Workbook

Sheet AER Sheet Heading (hidden)
B1: =IF(dms_MultiYear_ResponseFlag="Yes","REGULATORY REPORTING STATEMENT - HISTORICAL INFORMATION",INDEX(dms_Worksheet_List,MATCH(dms_Model,dms_Model_List))) -> REGULATORY REPORTING STATEMENT
B2: =INDEX(dms_TradingNameFull_List,MATCH(dms_TradingName,dms_TradingName_List)) -> AusNet Electricity Services Pty Ltd
B3: =dms_Header_Span -> 2021-22 to 2025-26
B4: XX
C11: EXPENDITURE
C12: =CONCATENATE("Forecast ($0's, real ",dms_DollarReal,")") -> Forecast ($0's, real June 2021)
C13: =CRCP_y4 -> 2019-20 | D13: =CRCP_y5 -> 2020-21 | E13: =FRCP_y1 -> 2021-22 | F13: =FRCP_y2 -> 2022-23 | G13: =FRCP_y3 -> 2023-24 | H13: =FRCP_y4 -> 2024-25 | I13: =FRCP_y5 -> 2025-26
C42: VOLUMES
C43: 0's
C44: =CRCP_y4 -> 2019-20 | D44: =CRCP_y5 -> 2020-21 | E44: =FRCP_y1 -> 2021-22 | F44: =FRCP_y2 -> 2022-23 | G44: =FRCP_y3 -> 2023-24 | H44: =FRCP_y4 -> 2024-25 | I44: =FRCP_y5 -> 2025-26

Sheet AER CF (hidden)
B1: AER CONDITIONAL FORMATTING
B4: CONDITIONAL FORMATTING MAP
F5: =INDEX(dms_CF_3.6.1, MATCH(dms_TradingName,dms_CF_TradingName))="Y" | G5: =INDEX(dms_CF_3.6.5, MATCH(dms_TradingName,dms_CF_TradingName))="Y" | H5: =INDEX(dms_CF_3.6.6, MATCH(dms_TradingName,dms_CF_TradingName))="Y" | I5: =INDEX(dms_CF_3.6.7.1, MATCH(dms_TradingName,dms_CF_TradingName))="Y" | J5: =INDEX(dms_CF_3.6.7.2, MATCH(dms_TradingName,dms_CF_TradingName))="Y" | K5: =INDEX(dms_CF_3.6.7.3, MATCH(dms_TradingName,dms_CF_TradingName))="Y" | L5: =INDEX(dms_CF_3.6.7.4, MATCH(dms_TradingName,dms_CF_TradingName))="Y" | M5: =INDEX(dms_CF_3.6.8, MATCH(dms_TradingName,dms_CF_TradingName))="Y" | N5: =INDEX(dms_CF_4.1, MATCH(dms_TradingName,dms_CF_TradingName))="Y" | O5: =INDEX(dms_CF_6.6.1, MATCH(dms_TradingName,dms_CF_TradingName))="Y" | P5: =INDEX(dms_CF_6.8, MATCH(dms_TradingName,dms_CF_TradingName))="Y" | Q5: =INDEX(dms_CF_7.12, MATCH(dms_TradingName,dms_CF_TradingName))="Y" | R5: =INDEX(dms_CF_8.1_A, MATCH(dms_TradingName,dms_CF_TradingName))="Y" | S5: =INDEX(dms_CF_8.1_B, MATCH(dms_TradingName,dms_CF_TradingName))="Y" | T5: =INDEX(dms_CF_8.1_Neg, MATCH(dms_TradingName,dms_CF_TradingName))="Y" | U5: =INDEX(dms_CF_4.4.1_Neg, MATCH(dms_TradingName,dms_CF_TradingName))="Y"
B6: dms_CF_TradingName | C6: JurisdictionList | D6: Sector | E6: Segment | F6: dms_CF_3.6.1 | G6: dms_CF_3.6.5 | H6: dms_CF_3.6.6 | I6: dms_CF_3.6.7.1 | J6: dms_CF_3.6.7.2 | K6: dms_CF_3.6.7.3 | L6: dms_CF_3.6.7.4 | M6: dms_CF_3.6.8 | N6: dms_CF_4.1 | O6: dms_CF_6.6.1 | P6: dms_CF_6.8 | Q6: dms_CF_7.12 | R6: dms_CF_8.1_A | S6: dms_CF_8.1_B | T6: dms_CF_8.1_Neg | U6: dms_CF_4.4.1 | V6: dms_CF_MAIFI_flag | W6: Spare1 | X6: Spare2
B7: ActewAGL Distribution | C7: ACT | D7: Electricity | E7: Distribution | G7: Y | I7: Y | J7: Y | K7: N | L7: Y | M7: N | N7: N | O7: N | P7: Y | Q7: Y | R7: N | S7: Y | T7: Y | U7: N | V7: N | W7: N | X7: N
B8: Ausgrid | C8: NSW | D8: Electricity | E8: Distribution | G8: Y | I8: N | J8: N | K8: N | L8: Y | M8: N | N8: N | O8: N | P8: Y | Q8: Y | R8: N | S8: Y | T8: Y | U8: N | V8: N | W8: N | X8: N
B9: AusNet (D) | C9: Vic | D9: Electricity | E9: Distribution | G9: N | I9: N | J9: N | K9: N | L9: N | M9: N | N9: Y | O9: N | P9: Y | Q9: N | R9: N | S9: N | T9: Y | U9: N | V9: N | W9: N | X9: N
B10: AusNet (T) | C10: Vic | D10: Electricity | E10: Transmission | G10: N | I10: N | J10: N | K10: N | L10: N | M10: N | N10: Y | O10: N | P10: Y | Q10: N | R10: N | S10: N | T10: Y | U10: N | V10: N | W10: N | X10: N
B11: CitiPower | C11: Vic | D11: Electricity | E11: Distribution | G11: N | I11: N | J11: N | K11: N | L11: N | M11: N | N11: Y | O11: N | P11: Y | Q11: N | R11: N | S11: N | T11: Y | U11: N | V11: N | W11: N | X11: N
B12: Directlink | C12: Qld | D12: Electricity | E12: Transmission | G12: N | I12: N | J12: N | K12: N | L12: N | M12: N | N12: Y | O12: N | P12: Y | Q12: N | R12: N | S12: Y | T12: Y | U12: N | V12: N | W12: N | X12: N
B13: ElectraNet | C13: SA | D13: Electricity | E13: Transmission | G13: N | I13: N | J13: N | K13: N | L13: N | M13: N | N13: Y | O13: N | P13: Y | Q13: N | R13: N | S13: Y | T13: Y | U13: N | V13: N | W13: N | X13: N
B14: Endeavour Energy | C14: NSW | D14: Electricity | E14: Distribution | G14: Y | I14: N | J14: N | K14: N | L14: Y | M14: N | N14: N | O14: N | P14: Y | Q14: Y | R14: N | S14: Y | T14: Y | U14: Y | V14: N | W14: N | X14: N
B15: Energex | C15: Qld | D15: Electricity | E15: Distribution | G15: Y | I15: N | J15: N | K15: N | L15: N | M15: N | N15: N | O15: N | P15: Y | Q15: Y | R15: N | S15: Y | T15: Y | U15: Y | V15: N | W15: N | X15: N
B16: Ergon Energy | C16: Qld | D16: Electricity | E16: Distribution | G16: Y | I16: N | J16: N | K16: N | L16: N | M16: N | N16: N | O16: N | P16: Y | Q16: Y | R16: N | S16: Y | T16: Y | U16: N | V16: N | W16: N | X16: N
B17: Essential Energy | C17: NSW | D17: Electricity | E17: Distribution | G17: Y | I17: N | J17: N | K17: N | L17: Y | M17: N | N17: N | O17: N | P17: Y | Q17: Y | R17: N | S17: Y | T17: Y | U17: N | V17: N | W17: N | X17: N
B18: Jemena Electricity | C18: Vic | D18: Electricity | E18: Distribution | G18: N | I18: N | J18: N | K18: N | L18: N | M18: N | N18: Y | O18: N | P18: Y | Q18: N | R18: N | S18: N | T18: Y | U18: N | V18: N | W18: N | X18: N
B19: Murraylink | C19: SA | D19: Electricity | E19: Transmission | G19: N | I19: N | J19: N | K19: N | L19: N | M19: N | N19: Y | O19: N | P19: Y | Q19: N | R19: N | S19: Y | T19: Y | U19: N | V19: N | W19: N | X19: N
B20: Power and Water | C20: NT | D20: Electricity | E20: Distribution | G20: N | I20: N | J20: Y | K20: N | L20: N | M20: Y | N20: Y | O20: Y | P20: Y | Q20: Y | R20: N | S20: Y | T20: Y | U20: N | V20: N | W20: N | X20: N
B21: Powercor Australia | C21: Vic | D21: Electricity | E21: Distribution | G21: N | I21: N | J21: N | K21: N | L21: N | M21: N | N21: Y | O21: N | P21: Y | Q21: N | R21: N | S21: N | T21: Y | U21: N | V21: N | W21: N | X21: N
B22: Powerlink | C22: Qld | D22: Electricity | E22: Transmission | G22: N | I22: N | J22: N | K22: N | L22: N | M22: N | N22: Y | O22: N | P22: Y | Q22: N | R22: N | S22: Y | T22: Y | U22: N | V22: N | W22: N | X22: N
B23: SA Power Networks | C23: SA | D23: Electricity | E23: Distribution | G23: Y | I23: N | J23: N | K23: N | L23: N | M23: N | N23: Y | O23: N | P23: Y | Q23: Y | R23: Y | S23: Y | T23: N | U23: N | V23: N | W23: N | X23: N
B24: TasNetworks (D) | C24: Tas | D24: Electricity | E24: Distribution | G24: Y | I24: N | J24: N | K24: N | L24: N | M24: N | N24: N | O24: N | P24: Y | Q24: Y | R24: N | S24: Y | T24: Y | U24: N | V24: N | W24: N | X24: N
B25: TasNetworks (T) | C25: Tas | D25: Electricity | E25: Transmission | G25: N | I25: N | J25: N | K25: N | L25: N | M25: N | N25: Y | O25: N | P25: Y | Q25: N | R25: N | S25: Y | T25: Y | U25: N | V25: N | W25: N | X25: N
B26: TransGrid | C26: NSW | D26: Electricity | E26: Transmission | G26: N | I26: N | J26: N | K26: N | L26: N | M26: N | N26: Y | O26: N | P26: Y | Q26: N | R26: N | S26: Y | T26: Y | U26: N | V26: N | W26: N | X26: N
B27: United Energy | C27: Vic | D27: Electricity | E27: Distribution | G27: N | I27: N | J27: N | K27: N | L27: N | M27: N | N27: Y | O27: N | P27: Y | Q27: N | R27: N | S27: N | T27: Y | U27: N | V27: N | W27: N | X27: N
B30: Confidential
B31: Amended
B33: Worksheet 6.2 STPIS reliability
B34: Formula | F34: Applied to:
B36: =INDEX(dms_CBD_flag,MATCH(dms_TradingName,dms_TradingName_List))="NO" | F36: $D$11,$D$17,$D$23,$D$33,$D$39,$D$45,$D$55,$D$61,$D$67,$D$77,$D$83,$D$89
B37: =INDEX(dms_Urban_flag,MATCH(dms_TradingName,dms_TradingName_List))="NO" | F37: $D$12,$D$18,$D$24,$D$56,$D$62,$D$78,$D$68,$D$84
B38: =INDEX(dms_ShortRural_flag,MATCH(dms_TradingName,dms_TradingName_List))="NO" | F38: $D$13,$D$19,$D$25,$D$57,$D$63,$D$69,$D$79,$D$85
B39: =INDEX(dms_LongRural_flag,MATCH(dms_TradingName,dms_TradingName_List))="NO" | F39: $D$14,$D$20,$D$26,$D$58,$D$64,$D$65,$D$70,$D$71,$D$80,$D$86
B40: =INDEX(dms_FeederType_5_flag,MATCH(dms_TradingName,dms_TradingName_List))="NO" | F40: $D$87,$D$81,$D$71,$D$65,$D$59,$D$49,$D$43,$D$37,$D$21,$D$15
B41: =dms_MAIFI_Flag="No" | F41: $D$55:$D$72
B44: Business & other details
B45: =(INDEX(dms_Model_Span,MATCH(dms_Model,dms_Model_List))>1)
B46: =(INDEX(dms_Model_Span,MATCH(dms_Model,dms_Model_List))=1)
B49: STYLES IN USE
B50: HEADING ONE | C50: dms_1
B51: HEADING TWO | C51: dms_2
B52: HEADING THREE | C52: dms_3
B53: HEADING FOUR | C53: dms_4
B54: HEADING FIVE | C54: dms_5
C55: dms_NUM
C56: dms_NUM%
C57: dms_Row_Locked
C58: dms_Row1
C59: dms_Row2
C60: dms_T1
C61: dms_T2
C62: dms_BH
C63: dms_BY1
C64: dms_BY2
C65: dms_GH
C66: dms_GY1
C67: dms_GY2

Sheet AER NRs (hidden)
B1: AER NAMED RANGES
B3: DROP DOWN SELECTORS USED IN WORKBOOKS
B5: COVER SHEET | C5: dms_DataQuality_List | D5: dms_Confid_status_List
C6: -- select -- | D6: -- select --
C7: Actual | D7: Public
C8: Estimate | D8: Confidential
C9: Consolidated
C12: For all files either AER or business needs to be able to specify the type of submission | D12: For PTRM & RFM templates we must provide a choice in case they change their form of control - otherwise it is drawn from the business specific lookup table above.
C13: dms_SourceList | D13: dms_FormControl_Choices
C14: -- select -- | D14: Revenue cap
C15: After appeal | D15: Revenue yield
C16: Draft decision | D16: Weighted average price cap
C17: Final decision
C18: PTRM update 1
C19: PTRM update 2
C20: PTRM update 3
C21: PTRM update 4
C22: PTRM update 5
C23: PTRM update 6
C24: PTRM update 7
C25: Regulatory proposal
C26: Reporting
C27: Revised regulatory proposal
K30: This is used to create an image to insert on 6.3 STPIS sheet - not for dropdown lists. | N30: GAS
B31: CA & RESET RINS DNSP | C31: dms_DNSP_020301_SubstationType | D31: dms_DNSP_020301_ProjectType | E31: dms_DNSP_020301_ProjectTrigger | F31: dms_DNSP_020302_ProjectType | G31: dms_DNSP_020302_ProjectTrigger | H31: dms_STPIS_Exclusion_List | I31: dms_Reason_Interruption | J31: dms_Reason_Interruption_Detailed | K31: Reason for interruption | N31: dms_N0205_AssetType
C32: Subtransmission substation | D32: New substation establishment | E32: Demand growth | F32: New line on new route - single circuit | G32: Demand growth | H32: Weather | I32: Animal | J32: Animal impact | K32: Animal | L32: Animal impact | N32: Cast Iron
C33: Zone substation | D33: Substation upgrade - capacity | E33: Voltage issues | F33: New line on new route - dual circuit | G33: Voltage issues | H33: Equipment failure | I33: Asset failure | J33: Animal nesting/burrowing, etc and other | L33: Animal nesting/burrowing, etc and other | N33: PVC
C34: Switching station | D34: Substation upgrade - voltage | E34: Reactive power issue | F34: New line on new route - other | G34: Reactive power issue | H34: Operational error | I34: Other | J34: Other | L34: Other | N34: Polyamide
C35: Other | D35: Other | E35: Fault level issues | F35: Line rebuild over existing route - single circuit | G35: Fault level issues | H35: Vegetation | I35: Overloads | J35: LV | K35: Asset failure | L35: LV | N35: High density polyethylene (80)
E36: Safety | F36: Line rebuild over existing route - dual circuit | G36: Net market benefit | H36: Animals | I36: Planned | J36: Distribution substation | L36: Distribution substation | N36: High density polyethylene (100)
E37: Environment | F37: Reconductor - Single circuit | G37: Safety | H37: Third party impacts | I37: Network business | J37: HV | L37: HV | N37: High density polyethylene (250)
E38: Other | F38: Reconductor - Dual circuit | G38: Environment | H38: Transmission failure | I38: Third party | J38: Zone substation | L38: Zone substation | N38: High density polyethylene (575)
F39: Reconductor - Other | G39: Other | H39: Load shedding | I39: Unknown | J39: Subtransmission | L39: Subtransmission | N39: Medium density polyethylene
F40: Line upgrade - raising/retensoring | H40: Inter-distributor connection failure | I40: Vegetation | J40: insert description of 'other' | K40: Other | L40: insert description of 'other' | N40: Unprotected steel
F41: Line upgrade - voltage upgrade | H41: Other | I41: Weather | J41: Network error | K41: Overloads | N41: Protected steel
F42: Line upgrade - capacity | I42: 2 - STPIS Exclusion (3.3)(a) | J42: Switching and protection error | K42: Planned | N42: Other
F43: String spare circuit | I43: 3 - STPIS Exclusion (3.3)(a) | J43: Fire | K43: Network business | L43: Network error
F44: Other | I44: 4 - STPIS Exclusion (3.3)(a) | J44: Other | L44: Switching and protection error
I45: 5 - STPIS Exclusion (3.3)(a) | J45: Dig-in | K45: Third party | L45: Fire
I46: 6 - STPIS Exclusion (3.3)(a) | J46: Unauthorised access | L46: Other
I47: 7 - STPIS Exclusion (3.3)(a) | J47: Vehicle impact | L47: Dig-in
J48: Unknown | L48: Unauthorised access
J49: Blow-in/Fall-in - NSP responsibility | L49: Vehicle impact
J50: Grow-in - NSP responsibility | K50: Unknown | L50: Unknown
J51: Blow-in/Fall-in - Other responsible party | K51: Vegetation | L51: Blow-in/Fall-in - NSP responsibility
J52: Grow-in - Other responsible party | L52: Grow-in - NSP responsibility
L53: Blow-in/Fall-in - Other responsible party
L54: Grow-in - Other responsible party
K55: Weather
K56: 2 - STPIS Exclusion (3.3)(a)
K57: 3 - STPIS Exclusion (3.3)(a)
K58: 4 - STPIS Exclusion (3.3)(a)
K59: 5 - STPIS Exclusion (3.3)(a)
K60: 6 - STPIS Exclusion (3.3)(a)
K61: 7 - STPIS Exclusion (3.3)(a)
B64: CA & RESET RINS TNSP | C64: dms_TNSP_0203_SubstationType | D64: dms_TNSP_020301_ProjectType | E64: dms_TNSP_020301_ProjectTrigger | F64: dms_TNSP_020302_ProjectType | G64: dms_TNSP_0203_ProjectTrigger
C65: Terminal station | D65: New substation establishment | E65: Demand growth | F65: New line on new route - single circuit | G65: Demand growth
C66: Switching station | D66: Capacity upgrade | E66: Voltage issues | F66: New line on new route - dual circuit | G66: Voltage issues
C67: Transmission substation | D67: Voltage upgrade | E67: Reactive power issue | F67: New line on new route - other | G67: Reactive power issue
C68: Other | D68: Other | E68: Fault level issues | F68: Line rebuild over existing route - single circuit | G68: Fault level issues
E69: Net market benefit | F69: Line rebuild over existing route - dual circuit | G69: Net market benefit
E70: Safety | F70: Reconductor - Single circuit | G70: Safety
E71: Environment | F71: Reconductor - Dual circuit | G71: Environment
E72: Other | F72: Reconductor - Other | G72: Other
F73: Line upgrade - raising/retensoring
F74: Line upgrade - voltage upgrade
F75: Line upgrade - capacity
F76: String spare circuit
F77: Other
B81: NAMED RANGES USED IN ETL PROCESS
B83: CA & RESET RINS DNSP ONLY | C83: dms_020303_01_UOM | D83: dms_020501_01_UOM | E83: dms_020501_02_UOM | F83: dms_020501_03_UOM | G83: dms_020501_04_UOM | H83: dms_020701_01_UOM | I83: dms_020701_02_UOM | J83: dms_020701_01_Rows | K83: dms_040102_01_UOM | L83: dms_040102_04_UOM | M83: dms_S140101_UOM | N83: dms_S140102_UOM | O83: dms_S140201_UOM
C84: Circuit line length in km | D84: 0's | E84: 0's | F84: 0's | G84: 0's | H84: km | I84: km | J84: Route line length within zone | K84: 0's | L84: days | M84: number | N84: number | O84: number per km
C85: Circuit line length in km | D85: 0's | E85: 0's | F85: 0's | G85: 0's | H85: 0's | I85: 0's | J85: Number of maintenance spans | K85: 0's | L85: 0's | M85: number | N85: number | O85: number
C86: Circuit line length in km | D86: MVA added | E86: MVA added | F86: MVA added | G86: MVA added | H86: km | I86: km | J86: Total length of maintenance spans | K86: 0's | L86: $0s | M86: number | N86: number | O86: number
C87: Circuit line length in km | D87: 0's | E87: 0's | F87: 0's | G87: 0's | H87: km | I87: km | J87: Length of vegetation corridors | K87: $0s | L87: 0's | M87: km | N87: number
C88: Number | D88: total spend $0s | E88: total spend $0s | F88: total spend $0s | G88: total spend $0s | H88: 0's | I88: 0's | J88: Average number of trees per maintenance span
C89: Number | D89: net circuit km added | E89: net circuit km added | F89: net circuit km added | G89: net circuit km added | H89: years | I89: years | J89: Average frequency of cutting cycle
C90: Number | D90: total spend $0s | E90: total spend $0s | F90: total spend $0s | G90: total spend $0s
D91: net circuit km added | E91: net circuit km added | F91: net circuit km added | G91: net circuit km added
D92: total spend $0s | E92: total spend $0s | F92: total spend $0s | G92: total spend $0s
D93: 0's | F93: $0s
D94: 0's
D95: 0's
D96: $0s
B99: CA & RESET RINS TNSP ONLY | C99: dms_020701_01_UOM
C100: km
C101: 0's
C102: km
C103: 0's
C104: km
C105: metres
C106: years
B109: CA & RESET RINS DNSP & TNSP | C109: dms_020603_01_UOM
C110: 0's
C111: 0's
C112: 0's
C113: 0's
C114: (per cent)
B117: EB & RESET RINS DNSP ONLY | C117: dms_030601_01_UOM | D117: dms_030601_02_UOM | E117: dms_030701_01_UOM | F117: dms_030702_01_UOM | G117: dms_030703_01_UOM
C118: minutes/customer | D118: minutes/customer | E118: Customer / km | F118: % | G118: km
C119: minutes/customer | D119: minutes/customer | E119: MWh/customer | F119: Number of spans
C120: interruptions/customer | D120: interruptions/customer | E120: kVA / customer | F120: Number of spans
C121: interruptions/customer | D121: interruptions/customer | F121: Number of spans
F122: Number of spans
F123: Years
F124: Years
F125: Trees
F126: Trees
F127: Defects
F128: Defects
F129: Spans
F130: km
F131: Spans
C133: WHEN INSERTING COVER SHEET INTO A TNSP FILE - APPLY THESE NAMED RANGES
B134: EB & RESET RINS TNSP ONLY | C134: dms_030601_01_UOM | E134: dms_030701_01_UOM | F134: dms_030702_01_UOM
C135: % | E135: Number of spans | F135: km
C136: number | E136: Years | F136: %
C137: number | E137: Trees | F137: km
C138: % | E138: Defects | F138: number
C139: number | E139: Number of spans
C140: number | E140: km
C141: % | E141: km
C142: number | E142: Number of spans
C143: number
C144: %
C145: number
C146: %
C147: number
C148: %
C149: number
B151: EB & RESET RINS DNSP & TNSP | C151: dms_EB_RAB_PIT
C152: Beginning of year
C153: End of year
C154: End of year
C155: End of year
C156: End of year
C157: End of year
B159: ARR DNSP ONLY | C159: dms_030605_UOM | D159: dms_03060703_UOM | E159: Spare | F159: Spare
C160: number | D160: number
C161: number | D161: number
C162: number | D162: number
C163: number | D163: number
C164: number | D164: (per cent)
C165: number
C166: number
C167: number
C168: number
C169: number
C170: number
C171: number
C172: (per cent)
C173: (per cent)
B175: RFM | C175: dms_Beg | D175: dms_Mid | E175: dms_End
C176: Beginning of year | D176: Mid year | E176: End of Year
B178: PTRM | C178: dms_PTRM_RAB_PIT | D178: dms_PTRM_TAB_PIT | E178: DMS_Xfactor
C179: Beginning of year | D179: Beginning of year | E179: x factors
C180: End of year | D180: End of year
C181: End of year | D181: End of year
C182: End of year | D182: End of year
C183: End of year
B186: STPIS & MIC NAMED RANGES
B188: These "row descriptions" are the column headings in the various templates but become row descriptions in the ETL process
B190: Table 6.3 sustained interruptions - row descriptions | C190: dms_060301_CustNo_Affected_Row | D190: dms_060301_Avg_Duration_Sustained_Int_Row | E190: dms_060301_Effect_unplanned_SAIDI_Row | F190: dms_060301_Effect_unplanned_SAIFI_Row
C191: Number of customers affected by the interruption | D191: Average duration of sustained customer interruption | E191: Effect on unplanned SAIDI | F191: Effect on unplanned SAIFI
B194: Table 6.1 telephone answering - row descriptions and start date | C194: dms_060101_Rows | D194: dms_060102_Rows | E194: dms_060101_StartDateTxt
C195: Total number of calls (after removing excluded events) | D195: Number of calls answered within 30 seconds (after excluding excluded events) | E195: =dms_060701_StartDateTxt -> 2015-01-01
B198: Table 6.8.1 - row descriptions | C198: dms_060801_01_Rows | D198: dms_060801_02_Rows | E198: dms_060801_03_Rows | F198: dms_060801_04_Rows
C199: Number of interruptions | D199: Duration of interruptions | E199: Total unplanned minutes off supply | F199: Effect on unplanned MAIFI
B202: Table 7.9.4 - market impact component - row descriptions | C202: dms_070904_01_Rows | D202: without exclusions | E202: with exclusions
B205: These headings (Lists) are determined from the INDEX/MATCH function on the NSP selected on the Business & other details sheet
B207: Table 6.7.1 - daily performance data - unplanned - MAIFI -- row descriptions and header named range values | C207: dms_060701_Feeder_Header_Lvl4 | D207: =INDEX(dms_FeederName_1,MATCH(dms_TradingName,dms_TradingName_List)) -> CBD | E207: =INDEX(dms_FeederName_1,MATCH(dms_TradingName,dms_TradingName_List)) -> CBD | F207: =INDEX(dms_FeederName_2,MATCH(dms_TradingName,dms_TradingName_List)) -> Urban | G207: =INDEX(dms_FeederName_2,MATCH(dms_TradingName,dms_TradingName_List)) -> Urban | H207: =INDEX(dms_FeederName_3,MATCH(dms_TradingName,dms_TradingName_List)) -> Short rural | I207: =INDEX(dms_FeederName_3,MATCH(dms_TradingName,dms_TradingName_List)) -> Short rural | J207: =INDEX(dms_FeederName_4,MATCH(dms_TradingName,dms_TradingName_List)) -> Long rural | K207: =INDEX(dms_FeederName_4,MATCH(dms_TradingName,dms_TradingName_List)) -> Long rural | L207: =IF((INDEX(dms_FeederName_5,MATCH(dms_TradingName,dms_TradingName_List))=0),"Network",(INDEX(dms_FeederName_5,MATCH(dms_TradingName,dms_TradingName_List)))) -> Network | M207: =IF((INDEX(dms_FeederName_5,MATCH(dms_TradingName,dms_TradingName_List))=0),"Network",(INDEX(dms_FeederName_5,MATCH(dms_TradingName,dms_TradingName_List)))) -> Network | N207: Network | O207: Network
C209: dms_060701_Rows | D209: All events | E209: After removing excluded events | F209: All events | G209: After removing excluded events | H209: All events | I209: After removing excluded events | J209: All events | K209: After removing excluded events | L209: All events | M209: After removing excluded events | N209: All events | O209: After removing excluded events
D210: the number of column headings changes from 10 to 12 depending on the number of feeder categories for the NSP
C212: dms_0603_FeederList | D212: =INDEX(dms_FeederName_1,MATCH(dms_TradingName,dms_TradingName_List)) -> CBD | E212: =INDEX(dms_FeederName_2,MATCH(dms_TradingName,dms_TradingName_List)) -> Urban | F212: =INDEX(dms_FeederName_3,MATCH(dms_TradingName,dms_TradingName_List)) -> Short rural | G212: =INDEX(dms_FeederName_4,MATCH(dms_TradingName,dms_TradingName_List)) -> Long rural
B215: Use these to add to specific worksheets in existing files | C215: Use these to add to specific worksheets in existing files
B218: ARRs 6.7 STPIS daily performance | C218: dms_060101_Values | D218: dms_060102_Values | E218: dms_060701_Values
C219: dms_LeapYear
B222: ARR's 6.8 STPIS exclusions | C222: dms_060801_Event_Date | D222: dms_060801_OutageID | E222: dms_060801_FeederID | F222: dms_060801_FeederClass | G222: dms_060801_CauseID | H222: dms_060801_01_Values | I222: dms_060801_02_Values | J222: dms_060801_03_Values | K222: dms_060801_Excl_Cat | L222: dms_060801_04_Values
C223: dms_060801_StartCell
B226: CA 6.3 sustained interruptions | C226: dms_060301_Event_Date | D226: dms_060301_Event_Time | E226: dms_060301_AssetID | F226: dms_060301_FeederClass | G226: dms_060301_Reason | H226: dms_060301_DetailedReason | I226: dms_060301_CustNo_Affected_Values | J226: dms_060301_Avg_Duration_Sustained_Int_Values | K226: dms_060301_Effect_unplanned_SAIDI_Values | L226: dms_060301_Effect_unplanned_SAIFI_Values | M226: dms_060301_MED

Sheet AER lookups (hidden)
B1: AER LOOKUP TABLES
B3: Data in these columns used for data validation and database purposes.
B4: Date last modified: | C4: 2017-01-16 | D4: added (Albury and Victora) for AGN
C5: 2016-10-17 | D5: updated TransGrid's correct legal name, corrected TasNetworks (T) to June financial year
C6: 2017-02-01 | D6: inserted Power and Water, added NRs (dms_FeederCat_1 and dms_FeederCat_2)
C7: 2017-03-03 | D7: inserted AEMO as a business | Z7: FOR ELECTRICITY BUSINESSES ONLY
C8: 2018-03-28 | D8: major changes to accommodate STPIS
C9: Template Version | D9: 5 | Z9: Feeder Types | AD9: TasNetworks (D) | AE9: MAIFI flag | AF9: Feeder Names
Z11: CBD | AA11: Urban | AB11: Short rural | AC11: long rural | AD11: EXTRA
B12: dms_TradingName_List | C12: dms_TradingNameFull_List | D12: dms_ABN_List | E12: dms_JurisdictionList | F12: dms_Sector_List | G12: dms_Segment_List | H12: dms_FormControl_List | I12: dms_RPT_List | J12: dms_RPTMonth_List | K12: dms_CRCPlength_List | L12: dms_FRCPlength_List | M12: dms_PRCPlength_List | N12: dms_663_List | O12: dms_DeterminationRef_List | P12: dms_Addr1_List | Q12: dms_Addr2_List | R12: dms_Suburb_List | S12: dms_State_List | T12: dms_PostCode_List | U12: dms_PAddr1_List | V12: dms_PAddr2_List | W12: dms_PSuburb_List | X12: dms_PState_List | Y12: dms_PPostCode_List | Z12: dms_CBD_flag | AA12: dms_Urban_flag | AB12: dms_ShortRural_flag | AC12: dms_LongRural_flag | AD12: dms_FeederType_5_flag | AE12: dms_MAIFI_flag_List | AF12: dms_FeederName_1 | AG12: dms_FeederName_2 | AH12: dms_FeederName_3 | AI12: dms_FeederName_4 | AJ12: dms_FeederName_5 | AK12: dms_Public_Lighting_List | AL12: Name
B13: AusNet (D) | C13: AusNet Electricity Services Pty Ltd | D13: 91064651118 | E13: Vic | F13: Electricity | G13: Distribution | H13: Revenue cap | I13: Financial | J13: June | K13: 5 | L13: 5 | M13: 5 | N13: 2 | O13: 2016-20 Distribution Determination | P13: Level 32 | Q13: 2 Southbank Boulevard | R13: SOUTHBANK | S13: Vic | T13: 3006 | U13: Locked Bag 14051 | W13: MELBOURNE CITY MAIL CENTRE | X13: Vic | Y13: 8001 | Z13: NO | AA13: YES | AB13: YES | AC13: YES | AD13: NO | AE13: YES | AF13: CBD | AG13: Urban | AH13: Short rural | AI13: Long rural | AK13: YES | AL13: =B13 -> AusNet (D)
B14: Australian Distribution Co. (Vic) | C14: Australian Distribution Co. (Victoria) | D14: 11222333444 | E14: Vic | F14: Electricity | G14: Distribution | H14: Revenue cap | I14: Financial | J14: June | K14: 5 | L14: 5 | M14: 5 | N14: 2 | O14: distribution determination | P14: 123 Straight Street | R14: MELBOURNE | S14: Vic | T14: 3000 | U14: PO Box 123 | W14: MELBOURNE | X14: Vic | Y14: 3000 | Z14: NO | AA14: NO | AB14: NO | AC14: NO | AD14: NO | AE14: YES | AF14: CBD | AG14: Urban | AH14: Short rural | AI14: Long rural | AK14: YES | AL14: Australian Distribution Co. (Vic)
B15: CitiPower | C15: CitiPower | D15: 76064651056 | E15: Vic | F15: Electricity | G15: Distribution | H15: Revenue cap | I15: Financial | J15: June | K15: 5 | L15: 5 | M15: 5 | N15: 2 | O15: 2016-20 Distribution Determination | P15: 40 Market Street | R15: MELBOURNE | S15: Vic | T15: 3000 | U15: Locked Bag 14090 | W15: MELBOURNE | X15: Vic | Y15: 8001 | Z15: YES | AA15: YES | AB15: NO | AC15: NO | AD15: NO | AE15: YES | AF15: CBD | AG15: Urban | AH15: Short rural | AI15: Long rural | AK15: YES | AL15: CitiPower
B16: Jemena Electricity | C16: Jemena Electricity | D16: 82064651083 | E16: Vic | F16: Electricity | G16: Distribution | H16: Revenue cap | I16: Financial | J16: June | K16: 5 | L16: 5 | M16: 5 | N16: 2 | O16: 2016-20 Distribution Determination | P16: Level 16 | Q16: 567 Collins Street | R16: MELBOURNE | S16: Vic | T16: 3000 | U16: PO Box 16182 | W16: MELBOURNE | X16: Vic | Y16: 8001 | Z16: NO | AA16: YES | AB16: YES | AC16: NO | AD16: NO | AE16: YES | AF16: CBD | AG16: Urban | AH16: Short rural | AI16: Long rural | AK16: YES | AL16: Jemena Electricity
B17: Powercor Australia | C17: Powercor Australia | D17: 89064651109 | E17: Vic | F17: Electricity | G17: Distribution | H17: Revenue cap | I17: Financial | J17: June | K17: 5 | L17: 5 | M17: 5 | N17: 2 | O17: 2016-20 Distribution Determination | P17: 40 Market Street | R17: MELBOURNE | S17: Vic | T17: 3000 | U17: Locked bag 14090 | W17: MELBOURNE | X17: Vic | Y17: 8001 | Z17: NO | AA17: NO | AB17: YES | AC17: YES | AD17: NO | AE17: YES | AF17: CBD | AG17: Urban | AH17: Short rural | AI17: Long rural | AK17: YES | AL17: Powercor Australia
B18: United Energy | C18: United Energy | D18: 70064651029 | E18: Vic | F18: Electricity | G18: Distribution | H18: Revenue cap | I18: Financial | J18: June | K18: 5 | L18: 5 | M18: 5 | N18: 2 | O18: 2016-20 Distribution Determination | P18: 43-45 Centreway | R18: MOUNT WAVERLEY | S18: Vic | T18: 3149 | U18: PO Box 449 | W18: MOUNT WAVERLEY | X18: Vic | Y18: 3170 | Z18: NO | AA18: NO | AB18: YES | AC18: NO | AD18: NO | AE18: YES | AF18: CBD | AG18: Urban | AH18: Short rural | AI18: Long rural | AK18: YES | AL18: United Energy
B23: The Reg Year Ending (dms_RYE) must be set to the last year of the regulatory period. For forecast data is is usually (FRCP_y5) for actual it is a single year (CRY). For historical actual data the RYE will need to be set manually in the business details sheet by setting the dms_Multiyear_flag to 1 and putting the correct value in 'dms_Specified_FinalYear. See cells C67:C68
B24: dms_Model_List | C24: dms_Model_Name_Format1 | D24: dms_Worksheet_List | E24: dms_Model_Span_List
B25: ARR | C25: Annual Reporting | D25: =IF(dms_MultiYear_ResponseFlag="yes","NEW HISTORICAL ANNUAL REPORTING","ANNUAL REPORTING") -> ANNUAL REPORTING | E25: 1
B26: CA | C26: Category Analysis | D26: =IF(dms_MultiYear_ResponseFlag="yes","NEW HISTORICAL CATEGORY ANALYSIS","CATEGORY ANALYSIS") -> CATEGORY ANALYSIS | E26: 1
B27: CESS | C27: Capitlal Expenditure | D27: CAPITLAL EXPENDITURE SHARING SCHEMING | E27: 5
B28: CPI | C28: CPI | D28: CPI | E28: 5
B29: EB | C29: Economic Benchmarking | D29: =IF(dms_MultiYear_ResponseFlag="yes","NEW HISTORICAL ECONOMIC BENCHMARKING","ECONOMIC BENCHMARKING") -> ECONOMIC BENCHMARKING | E29: 1
B30: Pricing | C30: Pricing Proposal | D30: PRICING PROPOSAL | E30: 5
B31: PTRM | C31: Post Tax Revenue Model | D31: POST TAX REVENUE MODEL | E31: 5
B32: Reset | C32: Regulatory Reporting (Reset) | D32: REGULATORY REPORTING STATEMENT | E32: 5
B33: RFM | C33: Roll Forward Model | D33: ROLL FORWARD MODEL | E33: 5
B34: WACC | C34: Weighted Average Cost of Capital | D34: WEIGHTED AVERAGE COST OF CAPITAL | E34: 1
B38: Financial | C38: Calendar | E38: PREVIOUS | G38: CURRENT | I38: FORTHCOMING
B39: 1987-88 | C39: 1988 | D39: PRCP_y1 | E39: =INDEX(INDIRECT(dms_RPT),dms_PRCP_start_row) -> 2011-12 | F39: CRCP_y1 | G39: =INDEX(INDIRECT(dms_RPT),dms_CRCP_start_row) -> 2016-17 | H39: =FRCP_y1 -> 2021-22 | I39: =INDEX(INDIRECT(dms_RPT),dms_FRCP_start_row) -> 2021-22
B40: 1988-89 | C40: 1989 | D40: PRCP_y2 | E40: =INDEX(INDIRECT(dms_RPT),dms_PRCP_start_row+1) -> 2012-13 | F40: CRCP_y2 | G40: =INDEX(INDIRECT(dms_RPT),dms_CRCP_start_row+1) -> 2017-18 | H40: FRCP_y2 | I40: =INDEX(INDIRECT(dms_RPT),dms_FRCP_start_row+1) -> 2022-23
B41: 1989-90 | C41: 1990 | D41: PRCP_y3 | E41: =INDEX(INDIRECT(dms_RPT),dms_PRCP_start_row+2) -> 2013-14 | F41: CRCP_y3 | G41: =INDEX(INDIRECT(dms_RPT),dms_CRCP_start_row+2) -> 2018-19 | H41: FRCP_y3 | I41: =INDEX(INDIRECT(dms_RPT),dms_FRCP_start_row+2) -> 2023-24
B42: 1990-91 | C42: 1991 | D42: PRCP_y4 | E42: =INDEX(INDIRECT(dms_RPT),dms_PRCP_start_row+3) -> 2014-15 | F42: CRCP_y4 | G42: =INDEX(INDIRECT(dms_RPT),dms_CRCP_start_row+3) -> 2019-20 | H42: FRCP_y4 | I42: =INDEX(INDIRECT(dms_RPT),dms_FRCP_start_row+3) -> 2024-25
B43: 1991-92 | C43: 1992 | D43: PRCP_y5 | E43: =INDEX(INDIRECT(dms_RPT),dms_PRCP_start_row+4) -> 2015-16 | F43: CRCP_y5 | G43: =INDEX(INDIRECT(dms_RPT),dms_CRCP_start_row+4) -> 2020-21 | H43: FRCP_y5 | I43: =INDEX(INDIRECT(dms_RPT),dms_FRCP_start_row+4) -> 2025-26
B44: 1992-93 | C44: 1993 | D44: PRCP_y6 | E44: =INDEX(INDIRECT(dms_RPT),dms_PRCP_start_row+5) -> 2016-17 | F44: CRCP_y6 | G44: =INDEX(INDIRECT(dms_RPT),dms_CRCP_start_row+5) -> 2021-22 | H44: FRCP_y6 | I44: =INDEX(INDIRECT(dms_RPT),dms_FRCP_start_row+5) -> 2026-27
B45: 1993-94 | C45: 1994 | D45: PRCP_y7 | E45: =INDEX(INDIRECT(dms_RPT),dms_PRCP_start_row+6) -> 2017-18 | F45: CRCP_y7 | G45: =INDEX(INDIRECT(dms_RPT),dms_CRCP_start_row+6) -> 2022-23 | H45: FRCP_y7 | I45: =INDEX(INDIRECT(dms_RPT),dms_FRCP_start_row+6) -> 2027-28
B46: 1994-95 | C46: 1995 | D46: PRCP_y8 | E46: =INDEX(INDIRECT(dms_RPT),dms_PRCP_start_row+7) -> 2018-19 | F46: CRCP_y8 | G46: =INDEX(INDIRECT(dms_RPT),dms_CRCP_start_row+7) -> 2023-24 | H46: FRCP_y8 | I46: =INDEX(INDIRECT(dms_RPT),dms_FRCP_start_row+7) -> 2028-29
B47: 1995-96 | C47: 1996 | D47: PRCP_y9 | E47: =INDEX(INDIRECT(dms_RPT),dms_PRCP_start_row+8) -> 2019-20 | F47: CRCP_y9 | G47: =INDEX(INDIRECT(dms_RPT),dms_CRCP_start_row+8) -> 2024-25 | H47: FRCP_y9 | I47: =INDEX(INDIRECT(dms_RPT),dms_FRCP_start_row+8) -> 2029-30
B48: 1996-97 | C48: 1997 | D48: PRCP_y10 | E48: =INDEX(INDIRECT(dms_RPT),dms_PRCP_start_row+9) -> 2020-21 | F48: CRCP_y10 | G48: =INDEX(INDIRECT(dms_RPT),dms_CRCP_start_row+9) -> 2025-26 | H48: FRCP_y10 | I48: =INDEX(INDIRECT(dms_RPT),dms_FRCP_start_row+9) -> 2030-31
B49: 1997-98 | C49: 1998 | D49: PRCP_y11 | E49: =INDEX(INDIRECT(dms_RPT),dms_PRCP_start_row+10) -> 2021-22 | F49: CRCP_y11 | G49: =INDEX(INDIRECT(dms_RPT),dms_CRCP_start_row+10) -> 2026-27 | H49: FRCP_y11 | I49: =INDEX(INDIRECT(dms_RPT),dms_FRCP_start_row+10) -> 2031-32
B50: 1998-99 | C50: 1999 | D50: PRCP_y12 | E50: =INDEX(INDIRECT(dms_RPT),dms_PRCP_start_row+11) -> 2022-23 | F50: CRCP_y12 | G50: =INDEX(INDIRECT(dms_RPT),dms_CRCP_start_row+11) -> 2027-28 | H50: FRCP_y12 | I50: =INDEX(INDIRECT(dms_RPT),dms_FRCP_start_row+11) -> 2032-33
B51: 1999-00 | C51: 2000 | D51: PRCP_y13 | E51: =INDEX(INDIRECT(dms_RPT),dms_PRCP_start_row+12) -> 2023-24 | F51: CRCP_y13 | G51: =INDEX(INDIRECT(dms_RPT),dms_CRCP_start_row+12) -> 2028-29 | H51: FRCP_y13 | I51: =INDEX(INDIRECT(dms_RPT),dms_FRCP_start_row+12) -> 2033-34
B52: 2000-01 | C52: 2001 | D52: PRCP_y14 | E52: =INDEX(INDIRECT(dms_RPT),dms_PRCP_start_row+13) -> 2024-25 | F52: CRCP_y14 | G52: =INDEX(INDIRECT(dms_RPT),dms_CRCP_start_row+13) -> 2029-30 | H52: FRCP_y14 | I52: =INDEX(INDIRECT(dms_RPT),dms_FRCP_start_row+13) -> 2034-35
B53: 2001-02 | C53: 2002 | D53: PRCP_y15 | E53: =INDEX(INDIRECT(dms_RPT),dms_PRCP_start_row+14) -> 2025-26 | F53: CRCP_y15 | G53: =INDEX(INDIRECT(dms_RPT),dms_CRCP_start_row+14) -> 2030-31 | H53: FRCP_y15 | I53: =INDEX(INDIRECT(dms_RPT),dms_FRCP_start_row+14) -> 2035-36
B54: 2002-03 | C54: 2003 | D54: PRCP_y16 | E54: =INDEX(INDIRECT(dms_RPT),dms_PRCP_start_row+15) -> 2026-27 | F54: CRCP_y16 | G54: =INDEX(INDIRECT(dms_RPT),dms_CRCP_start_row+15) -> 2031-32 | H54: FRCP_y16 | I54: =INDEX(INDIRECT(dms_RPT),dms_FRCP_start_row+15) -> 2036-37
B55: 2003-04 | C55: 2004
B56: 2004-05 | C56: 2005
B57: 2005-06 | C57: 2006 | E57: CRY - FRY
B58: 2006-07 | C58: 2007 | D58: dms_y1 | E58: =IFERROR(INDEX(INDIRECT(dms_RPT),dms_CRY_start_row),0) -> 2019-20
B59: 2007-08 | C59: 2008 | D59: dms_y2 | E59: =IFERROR(INDEX(INDIRECT(dms_RPT),dms_CRY_start_row+1),0) -> 2020-21
B60: 2008-09 | C60: 2009 | D60: dms_y3 | E60: =IFERROR(INDEX(INDIRECT(dms_RPT),dms_CRY_start_row+2),0) -> 2021-22
B61: 2009-10 | C61: 2010 | D61: dms_y4 | E61: =IFERROR(INDEX(INDIRECT(dms_RPT),dms_CRY_start_row+3),0) -> 2022-23
B62: 2010-11 | C62: 2011 | D62: dms_y5 | E62: =IFERROR(INDEX(INDIRECT(dms_RPT),dms_CRY_start_row+4),0) -> 2023-24
B63: 2011-12 | C63: 2012 | D63: dms_y6 | E63: =IFERROR(INDEX(INDIRECT(dms_RPT),dms_CRY_start_row+5),0) -> 2024-25
B64: 2012-13 | C64: 2013 | D64: dms_y7 | E64: =IFERROR(INDEX(INDIRECT(dms_RPT),dms_CRY_start_row+6),0) -> 2025-26
B65: 2013-14 | C65: 2014 | D65: dms_y8 | E65: =IFERROR(INDEX(INDIRECT(dms_RPT),dms_CRY_start_row+7),0) -> 2026-27
B66: 2014-15 | C66: 2015 | D66: dms_y9 | E66: =IFERROR(INDEX(INDIRECT(dms_RPT),dms_CRY_start_row+8),0) -> 2027-28
B67: 2015-16 | C67: 2016 | D67: dms_y10 | E67: =IFERROR(INDEX(INDIRECT(dms_RPT),dms_CRY_start_row+9),0) -> 2028-29
B68: 2016-17 | C68: 2017 | D68: dms_y11 | E68: =IFERROR(INDEX(INDIRECT(dms_RPT),dms_CRY_start_row+10),0) -> 2029-30
B69: 2017-18 | C69: 2018 | D69: dms_y12 | E69: =IFERROR(INDEX(INDIRECT(dms_RPT),dms_CRY_start_row+11),0) -> 2030-31
B70: 2018-19 | C70: 2019 | D70: dms_y13 | E70: =IFERROR(INDEX(INDIRECT(dms_RPT),dms_CRY_start_row+12),0) -> 2031-32
B71: 2019-20 | C71: 2020 | D71: dms_y14 | E71: =IFERROR(INDEX(INDIRECT(dms_RPT),dms_CRY_start_row+13),0) -> 2032-33
B72: 2020-21 | C72: 2021 | D72: dms_y15 | E72: =IFERROR(INDEX(INDIRECT(dms_RPT),dms_CRY_start_row+14),0) -> 2033-34
B73: 2021-22 | C73: 2022 | D73: dms_y16 | E73: =IFERROR(INDEX(INDIRECT(dms_RPT),dms_CRY_start_row+15),0) -> 2034-35
B74: 2022-23 | C74: 2023
B75: 2023-24 | C75: 2024
B76: 2024-25 | C76: 2025
B77: 2025-26 | C77: 2026
B78: 2026-27 | C78: 2027
B79: 2027-28 | C79: 2028
B80: 2028-29 | C80: 2029
B81: 2029-30 | C81: 2030
B82: 2030-31 | C82: 2031
B83: 2031-32 | C83: 2032
B84: 2032-33 | C84: 2033
B85: 2033-34 | C85: 2034
B86: 2034-35 | C86: 2035
B87: 2035-36 | C87: 2036
B88: 2036-37 | C88: 2037

Sheet AER ETL (hidden)
B1: AER ETL INFORMATION
B3: USES NAMED RANGES FLAG | C3: yes | D3: dms_Defined_Names_Used
B5: IF THIS IS AN ABC RIN - make sure the the named range CRY is applied and the named range dms_dollar_nom_UOM is applied
B6: IF THIS IS A RESET RIN - make sure the named ranges CRY and dms_dollar_nom_UOM are NOT present in the workbook
B7: FOR ABC RINS THAT SPAN MULTIPLE YEARS - make sure MultiYear Flag is set and final year entered as required
B9: Full trading name | C9: =INDEX(dms_TradingNameFull_List,MATCH(dms_TradingName,dms_TradingName_List)) -> AusNet Electricity Services Pty Ltd | E9: dms_TradingNameFull
B10: Trading name | C10: =dms_TradingName -> AusNet (D)
A11: Selected here | B11: Model / RIN | C11: Reset | D11: dms_Model
A12: Read from Business & other details | B12: Source | C12: Regulatory proposal | D12: dms_Source
B13: Data quality | C13: =dms_Selected_Quality -> Consolidated | D13: dms_DQ_1
B14: Data status | C14: =dms_Selected_Status -> Confidential | D14: dms_DQ_2
B15: Amendment reason | C15: =dms_Amendment_Text -> . | F15: dms_AmendmentReason
B16: Submission date | C16: =dms_Typed_Submission_Date -> 2020-01-31 | D16: dms_SubmissionDate
A18: Redundant | B18: EBSS - First application of scheme in forthcoming period? | C18: No
A19: Pre-populated from lookup table | B19: Data ingestion data quality | C19: =dms_Selected_Quality -> Consolidated | D19: dms_DataQuality | E19: =IF(dms_DQ_2="Confidential","Consolidated","Public")
B20: Sector | C20: =INDEX(dms_Sector_List,MATCH(dms_TradingName,dms_TradingName_List)) -> Electricity | D20: dms_Sector | E20: =INDEX(dms_Sector_List,MATCH(dms_TradingName,dms_TradingName_List))
B21: Segment | C21: =INDEX(dms_Segment_List,MATCH(dms_TradingName,dms_TradingName_List)) -> Distribution | D21: dms_Segment | E21: =INDEX(dms_Segment_List,MATCH(dms_TradingName,dms_TradingName_List))
B22: Regulatory Year Ending | C22: =dms_RYE_result -> 2026 | D22: dms_RYE | E22: =IF(dms_MultiYear_Flag=1,LEFT(dms_Specified_FinalYear,2)&RIGHT(dms_Specified_FinalYear,2),INDEX(dms_RYE_Formula_Result,MATCH(dms_Model,dms_Model_List)))
B23: Reporting Period Type | C23: =INDEX(dms_RPT_List,MATCH(dms_TradingName,dms_TradingName_List)) -> Financial | D23: dms_RPT | E23: =INDEX(dms_RPT_List,MATCH(dms_TradingName,dms_TradingName_List))
B24: EB/CA Unit of Measure for Monetary Values | C24: $0s | D24: dms_dollar_nom_UOM | E24: If the cover sheet is attached to an ABC RIN apply the NAMED RANGE to the cell
B25: Security Classification | C25: Public | D25: dms_Classification | E25: Always Public
B26: Jurisdiction | C26: =INDEX(dms_JurisdictionList,MATCH(dms_TradingName,dms_TradingName_List)) -> Vic | D26: dms_Jurisdiction | E26: =INDEX(dms_JurisdictionList,MATCH(dms_TradingName,dms_TradingName_List))
A27: Relevant for PTRM, RFMs and Reset RINS | B27: $ REAL REFERENCES
B28: Does the named range CRY exist in this file? | C28: =IFERROR(CRY,"NO") -> NO
B29: CRY-1 (last full calendar year before CRY) | C29: =IFERROR(IF(dms_RPT="calendar",CRY-1,LEFT(CRY,4)),"CRY not present") -> CRY not present | D29: dms_Cal_Year_B4_CRY | E29: '=IF(dms_RPT="financial",VALUE(LEFT(dms_SingleYear_FinalYear_Result,4)),VALUE(LEFT(dms_SingleYear_FinalYear_Result,4)-1))
B30: Dollar $ real month | C30: =INDEX(dms_RPTMonth_List,MATCH(dms_TradingName,dms_TradingName_List)) -> June | D30: dms_RPTMonth | E30: =INDEX(dms_RPTMonth_List,MATCH(dms_TradingName,dms_TradingName_List))
B31: Dollar $ real (the last month before the FRCP_y1) | C31: =IF(dms_SingleYearModel="yes",CONCATENATE(dms_RPTMonth)&" "&VALUE((LEFT(CRY,2))&RIGHT(CRY,2)),CONCATENATE(dms_RPTMonth)&" "&dms_DollarReal_year) -> June 2021 | D31: dms_DollarReal | E31: =IF(SUM(dms_SingleYear_Model)>0,CONCATENATE(dms_RPTMonth)&" "&VALUE((LEFT(CRY,2))&RIGHT(CRY,2)),CONCATENATE(dms_RPTMonth)&" "&VALUE((LEFT(dms_RYE,2)&RIGHT(dms_RYE,2))))
B32: Dollar $ real previous year (PRCP_y5) | C32: =IF(dms_SingleYearModel="yes",CONCATENATE(dms_RPTMonth)&" "&VALUE((LEFT(CRY,2))&RIGHT(CRY,2)),CONCATENATE(dms_RPTMonth)&" "&dms_Previous_DollarReal_year) -> June 2016 | D32: dms_DollarReal_Prev | E32: =IF(SUM(dms_SingleYear_Model)>0,CONCATENATE(dms_RPTMonth)&" "&VALUE(((LEFT(CRY,2))&RIGHT(CRY,2))-1),CONCATENATE(dms_RPTMonth)&" "&VALUE(((LEFT(dms_CRCP_FirstYear_Result,2)&RIGHT(dms_CRCP_FirstYear_Result,2))))-1)
B33: PTRM/ RFMs
B34: Form of control | C34: =INDEX(dms_FormControl_List,MATCH(dms_TradingName,dms_TradingName_List)) -> Revenue cap | D34: dms_FormControl | E34: =INDEX(dms_FormControl_List,MATCH(dms_TradingName,dms_TradingName_List))
A35: All potential values for Regulatory Years or RYEs as calculated | B35: This block works out the various RYE's for ALL RIN types and MODELS
B36: dms_start_year | C36: =FRCP_y1 -> 2021-22 | D36: =FRCP_y1 | E36: FRCP_y1 from cover sheet
B37: dms_CRY_start_year | C37: =IFERROR(CRY,CRCP_y4) -> 2019-20 | D37: =IFERROR(CRY,CRCP_y4)
B38: dms_CRY_start_row | C38: =IFERROR(MATCH(dms_CRY_start_year,INDIRECT(dms_RPT),0),0) -> 33 | D38: =IFERROR(MATCH(dms_CRY_start_year,INDIRECT(dms_RPT),0),0)
B39: dms_FRCP_start_row | C39: =MATCH(dms_start_year,INDIRECT(dms_RPT),0) -> 35 | D39: =MATCH(dms_start_year,INDIRECT(dms_RPT),0) | E39: Uses FRCP_y1 as a start reference
B40: dms_CRCP_start_row | C40: =dms_FRCP_start_row-dms_CRCPlength_Num -> 30 | D40: =dms_FRCP_start_row-dms_CRCPlength_Num | E40: Uses the value in dms_CRCPlength_Num
B41: dms_PRCP_start_row | C41: =dms_FRCP_start_row-dms_CRCPlength_Num-dms_PRCPlength_Num -> 25 | D41: =dms_FRCP_start_row-dms_CRCPlength_Num-dms_PRCPlength_Num | E41: Uses the value in dms_CRCPlength_Num and dms_PRCPlength_Num
B42: dms_RYE_start_row | C42: =dms_FRCP_start_row+(dms_FRCPlength_Num-1) -> 39 | D42: =dms_FRCP_start_row+(dms_FRCPlength_Num-1) | E42: Uses the value in dms_FRCPlength_Num-1
B43: FRCP_start_year | C43: =INDEX(INDIRECT(dms_RPT),dms_FRCP_start_row) -> 2021-22 | D43: =INDEX(INDIRECT(dms_RPT),dms_FRCP_start_row) | E43: Converts the FRCP start row to display the year
B44: CRCP_start_year | C44: =INDEX(INDIRECT(dms_RPT),dms_CRCP_start_row) -> 2016-17 | D44: =INDEX(INDIRECT(dms_RPT),dms_CRCP_start_row) | E44: Converts the CRCP start row to display the year
B45: PRCP_start_year | C45: =INDEX(INDIRECT(dms_RPT),dms_PRCP_start_row) -> 2011-12 | D45: =INDEX(INDIRECT(dms_RPT),dms_PRCP_start_row) | E45: Converts the PRCP start row to display the year
B46: FRCP_final_year | C46: =INDEX(INDIRECT(dms_RPT),dms_FRCP_start_row+dms_FRCPlength_Num-1) -> 2025-26 | D46: =INDEX(INDIRECT(dms_RPT),dms_FRCP_start_row+dms_FRCPlength_Num-1) | E46: Finds the FRCP final year
B47: CRCP_final_year | C47: =INDEX(INDIRECT(dms_RPT),dms_CRCP_start_row+dms_CRCPlength_Num-1) -> 2020-21 | D47: =INDEX(INDIRECT(dms_RPT),dms_CRCP_start_row+dms_CRCPlength_Num-1) | E47: Finds the CRCP final year
B48: PRCP_final_year | C48: =INDEX(INDIRECT(dms_RPT),dms_PRCP_start_row+dms_FRCPlength_Num-1) -> 2015-16 | D48: =INDEX(INDIRECT(dms_RPT),dms_PRCP_start_row+dms_FRCPlength_Num-1) | E48: Finds the PRCP final year
B49: dms_Reset_final_year | C49: =INDEX(INDIRECT(dms_RPT),dms_RYE_start_row) -> 2025-26 | D49: =INDEX(INDIRECT(dms_RPT),dms_RYE_start_row) | E49: For Resets and PTRM/RFMs (same as FRCP_final_year)
B50: dms_SpecifiedYear_final_year | C50: =FRY -> 2017-18 | D50: =FRY | E50: FRY from cover sheet
B51: dms_DollarReal_year | C51: =LEFT(CRCP_final_year,2)&RIGHT(CRCP_final_year,2) -> 2021 | D51: =LEFT(CRCP_final_year,2)&RIGHT(CRCP_final_year,2) | E51: Uses the value in CRCP_final_year
B52: dms_Previous_DollarReal_year | C52: =LEFT(PRCP_final_year,2)&RIGHT(PRCP_final_year,2) -> 2016 | D52: =LEFT(PRCP_final_year,2)&RIGHT(PRCP_final_year,2) | E52: Uses the value in PRCP_final_year
B53: dms_CRY_RYE | C53: =IFERROR(LEFT(CRY,2)&RIGHT(CRY,2),0) -> 0 | D53: =IFERROR(LEFT(CRY,2)&RIGHT(CRY,2),0) | E53: For ABC single year RINS
B54: dms_Reset_RYE | C54: =IF(dms_Model_Span>1,IF(dms_Model="RFM",(LEFT(dms_DollarReal_year,2)&RIGHT(dms_DollarReal_year,2)),(LEFT(dms_Reset_final_year,2)&RIGHT(dms_Reset_final_year,2))),0) -> 2026 | D54: =IF(dms_Model_Span>1,IF(dms_Model="RFM",(LEFT(dms_DollarReal_year,2)&RIGHT(dms_DollarReal_year,2)),(LEFT(dms_Reset_final_year,2)&RIGHT(dms_Reset_final_year,2))),0) | E54: If model span > 1 then uses dms_Reset_RYE otherwise it's a multi year ABC and uses dms_Specified_RYE
B55: dms_Specified_RYE | C55: =IF(dms_MultiYear_ResponseFlag="Yes",(LEFT(dms_Specified_FinalYear,2)&RIGHT(dms_Specified_FinalYear,2)),0) -> 0 | D55: =IF(dms_MultiYear_ResponseFlag="Yes",(LEFT(dms_Specified_FinalYear,2)&RIGHT(dms_Specified_FinalYear,2)),0) | E55: If multi year ABC - uses dms_Specified_FinalYear
B56: dms_Model_Span | C56: =INDEX(dms_Model_Span_List,MATCH(dms_Model,dms_Model_List)) -> 5 | D56: =INDEX(dms_Model_Span_List,MATCH(dms_Model,dms_Model_List)) | E56: A result of 5 is used to signify that it is more than 1 year span
B57: dms_RYE_result | C57: =IF(dms_MultiYear_ResponseFlag="yes",dms_Specified_RYE,(IF(dms_Model_Span>1,dms_Reset_RYE,dms_CRY_RYE))) -> 2026 | D57: =IF(dms_MultiYear_ResponseFlag="yes",dms_Specified_RYE,(IF(dms_Model_Span>1,dms_Reset_RYE,dms_CRY_RYE))) | E57: Nested IF - feeds into dms_RYE
B58: dms_Reset_Span | C58: =IF(dms_Reset_RYE>0,CONCATENATE(FRCP_y1," to ",FRCP_final_year),0) -> 2021-22 to 2025-26 | D58: =IF(dms_Reset_RYE>0,CONCATENATE(FRCP_y1," to ",FRCP_final_year),0) | E58: Reset span of years as text
B59: dms_SpecifiedYear_Span | C59: =IF(dms_Specified_RYE>0,CONCATENATE(CRY," to ",dms_Specified_FinalYear),0) -> 0 | D59: =IF(dms_Specified_RYE>0,CONCATENATE(CRY," to ",dms_Specified_FinalYear),0) | E59: Multi year ABC span of years as text
B60: dms_Header_Span | C60: =IF(dms_MultiYear_Flag=1,dms_SpecifiedYear_Span,IF(dms_Model_Span>1,dms_Reset_Span,CRY)) -> 2021-22 to 2025-26 | D60: =IF(dms_MultiYear_Flag=1,dms_SpecifiedYear_Span,IF(dms_Model_Span>1,dms_Reset_Span,CRY)) | E60: NESTED IF - for Sheet Headers
B61: ABC RINS THAT SPAN MULTIPLE YEARS
B62: This is a multi year ABC RIN? | C62: No
C63: =IF(dms_MultiYear_ResponseFlag="No",0,1) -> 0 | D63: dms_MultiYear_Flag | E63: This is set from the answer provided above
C64: =IF(dms_MultiYear_Flag=1,FRY,"not a Multiple year submission") -> not a Multiple year submission | D64: dms_Specified_FinalYear | E64: The result here is returned to dms_CRCP_FinalYear_Result if response to Q in C73 is "yes" and dms_MultiYear_Flag is set to 1
B65: Start year for 5.2 in Multi year ABC RINS | C65: =IFERROR(IF(dms_MultiYear_Flag=1,FRY,CRY),"not an ABC") -> not an ABC | D65: dms_0502_Inst_Year | E65: =IF(dms_MultiYear_Flag=1,FRY,CRY) | G65: For single year RINS this is CRY - multi year RINS need to start a the end of the span of years (ie. FRY)
B66: WHAT IS THE RYE?
B67: Reg Period Lengths
B68: PRCP length in years | C68: =INDEX(dms_PRCPlength_List,MATCH(dms_TradingName,dms_TradingName_List)) -> 5 | D68: dms_PRCPlength_Num | E68: =INDEX(dms_PRCPlength_List,MATCH(dms_TradingName,dms_TradingName_List))
B69: CRCP length in years | C69: =INDEX(dms_CRCPlength_List,MATCH(dms_TradingName,dms_TradingName_List)) -> 5 | D69: dms_CRCPlength_Num | E69: =INDEX(dms_CRCPlength_List,MATCH(dms_TradingName,dms_TradingName_List))
B70: FRCP length in years | C70: =INDEX(dms_FRCPlength_List,MATCH(dms_TradingName,dms_TradingName_List)) -> 5 | D70: dms_FRCPlength_Num | E70: =INDEX(dms_FRCPlength_List,MATCH(dms_TradingName,dms_TradingName_List))
B71: Single year RIN?
B72: Single Year ABC RIN ? | C72: =IF(dms_Model="EB",1,0) -> 0 | D72: dms_EB
C73: =IF(dms_Model="CA",1,0) -> 0 | D73: dms_CA | E73: =dms_SingleYear_Model
C74: =IF(dms_Model="ARR",1,0) -> 0 | D74: dms_ARR
B75: Is this a single Year ABC RIN? | C75: =IF(SUM(dms_SingleYear_Model)=1,"yes","no") -> no | D75: dms_SingleYearModel | E75: =IF(SUM(dms_SingleYear_Model)=1,"yes","no")
B76: Single Year Final Year Result | C76: =IF(AND(dms_SingleYearModel="yes",dms_MultiYear_Flag=0),CRY,0) -> 0 | D76: dms_SingleYear_FinalYear_Result | E76: =IFERROR(IF(SUM(dms_SingleYear_Model)<>0,(INDIRECT(dms_SingleYear_FinalYear_Ref)),"not a single year RIN"),"CRY not present")
B77: Multi year RIN?
B79: Multi Year Reset/Model? | C79: =IF(dms_Model_Span>1,"yes","no") -> yes
B80: Final year result for Reset/Model | C80: =IF(dms_Model_Span>1,dms_Reset_final_year,0) -> 2025-26 | D80: dms_MultiYear_FinalYear_Result | E80: dms_CRCP_FinalYear_Result
B82: Multi Year ABC RIN? | C82: =IF(dms_MultiYear_Flag=1,"yes","no") -> no | D82: dms_MultiYear_ABC_RIN
B83: Final year result for ABC multi year | C83: =IF(dms_MultiYear_Flag=1,C50,0) -> 0
B85: EB RINS
B86: Calendar Year for table 3.6 data | C86: =IFERROR(IF(dms_Segment="Transmission",dms_Cal_Year_B4_CRY,CRY),"CRY not present") -> CRY not present | D86: dms_0306_Year | E86: =IF(dms_Segment="Transmission",dms_Cal_Year_B4_CRY,CRY)
B87: CA RINS
B88: Find how many rows in tables 6.3 sustained interruptions? | E88: dms_060301_MaxRows only returns a valid value when cover sheet is attached to a CA file
C89: =IF(dms_Model<>"CA","not a CA","Is a CA") -> not a CA | E89: =IF(dms_Model<>"CA","not a CA","Is a CA")
B90: dms_060301_Avg_Duration_Sustained_Int_Values present? | C90: =IFERROR(IF(INDEX(dms_060301_Avg_Duration_Sustained_Int_Values,1,1)<>"","yes","no"),"no") -> no | D90: dms_060301_checkvalue | E90: =IFERROR(IF(INDEX(dms_060301_Avg_Duration_Sustained_Int_Values,1,1)<>"","yes","no"),"no")
C91: =IF(AND(dms_Model="CA",(dms_060301_checkvalue="no")),"error - NR not present","no errors") -> no errors | E91: =IF(AND(dms_Model="CA",(dms_060301_checkvalue="no")),"error - NR not present","no errors")
B92: Table 6.3.1 - last row reference | C92: =IFERROR(IF(dms_Model="CA",LOOKUP(2,1/(dms_060301_Avg_Duration_Sustained_Int_Values<>""),(ROW(dms_060301_Avg_Duration_Sustained_Int_Values))),"not a CA"),"6.3 not present") -> not a CA | D92: dms_060301_LastRow | E92: =IFERROR(IF(dms_Model="CA",LOOKUP(2,1/(dms_060301_Avg_Duration_Sustained_Int_Values<>""),(ROW(dms_060301_Avg_Duration_Sustained_Int_Values))),"not a CA"),"6.3 not present")
B93: Table 6.3.1 - max number rows | C93: =IFERROR(IF(dms_Model="CA",(dms_060301_LastRow-15),"not a CA"),"error") -> not a CA | D93: dms_060301_MaxRows | E93: =IFERROR(IF(dms_Model="CA",(dms_060301_LastRow-15),"not a CA"),"error")
B94: Table 6.6.3 - Public lighting repair - no. business days | C94: =INDEX(dms_663_List,MATCH(dms_TradingName,dms_TradingName_List)) -> 2 | D94: dms_663 | E94: =INDEX(dms_663_List,MATCH(dms_TradingName,dms_TradingName_List))
B95: ARR or RESET RINS
B96: How many rows in tables 6.1 or 6.7? (leap year?) | C96: insert dms_LeapYear NR if required | E96: 'dms_LeapYear is used to determine dms_060701_Max_Rows BUT it is only found on worksheet 6.1 or 6.7 and the date value in the cell is used to determine whether it is a leap year
B97: Is dms_LeapYear named range present? | C97: =IFERROR(IF(dms_LeapYear,"yes"),"no") -> no
B98: Table 6.7.1 - includes a leap year? | C98: =IFERROR(IF(MONTH(DATE(YEAR(dms_LeapYear),2,29))=2,"is a leap year","not a leap year"), "dms_LeapYear not present") -> dms_LeapYear not present | D98: dms_LeapYear_Result | E98: =IFERROR(IF(MONTH(DATE(YEAR(dms_LeapYear),2,29))=2,"is a leap year","not a leap year"),"dms_LeapYear not present")
B99: MaxRows if Reset and leap year | C99: =IF(dms_LeapYear_Result="is a leap year",1827,1826) -> 1826 | D99: dms_060701_Reset_MaxRows | E99: =IF(dms_LeapYear_Result="is a leap year",1827,1826) | H99: number of days present in Reset RIN table
B100: MaxRows if ARR and leap year | C100: =IF(dms_LeapYear_Result="is a leap year",366,365) -> 365 | D100: dms_060701_ARR_MaxRows | E100: =IF(dms_LeapYear_Result="is a leap year",366,365) | H100: number of days present in ARR RIN table
B101: Table 6.7.1 - Max Rows (leap year/ non leap year) | C101: =IF(dms_Model="ARR",dms_060701_ARR_MaxRows,IF(dms_Model="Reset",dms_060701_Reset_MaxRows,"not a relevant RIN type")) -> 1826 | D101: dms_060701_MaxRows | E101: =IF(dms_Model="ARR",dms_060701_ARR_MaxRows,IF(dms_Model="Reset",dms_060701_Reset_MaxRows,"not a relevant RIN type"))
B102: How many columns in 6.7? (4 or 5 feeder categories) | C102: =IF(dms_FifthFeeder_flag_NSP="NO","This NSP has only 4 feeder categories","This NSP has 5 feeder categories") -> This NSP has only 4 feeder categories
B103: Table 6.7.1 - Last column (# of feeder categories > 4) | C103: =IF(dms_FifthFeeder_flag_NSP="NO",10,12) -> 10 | D103: dms_060701_MaxCols | E103: =IF(dms_FifthFeeder_flag_NSP="NO",8,10)
B104: Table 6.7.1 - Number of offset rows | C104: =IF(dms_Model="ARR",15,9) -> 9 | D104: dms_060701_OffsetRows | E104: =IF(dms_Model="ARR",15,9)
B105: Start date for telephone answering in 6.1 or 6.7? | E105: Using 060101 as naming standard not 060701 for start dates
B106: Table 6.1.1 and 6.7.1 - Start Date as Text | C106: 2015-01-01 | D106: dms_060101_StartDateTxt | E106: =IF(SUM(dms_SingleYear_Model)>1,(CONCATENATE(IF(LEN(CRY)=4,"1-Jan-","1-Jul-"),LEFT(CRY,4))),(CONCATENATE(IF(LEN(CRCP_y4)=4,"1-Jan-","1-Jul-"),LEFT(CRCP_y4,4))))
B107: Table 6.1.1 and 6.7.1 - Start Date as Date Value | C107: 42005 | D107: dms_060101_StartDateVal | E107: =DATEVALUE(dms_060701_StartDateTxt)
B108: ARRs
B109: How many rows in table 6.8? | C109: insert dms_060801_StartCell NR if required | E109: dms_060801_StartCell is only found on worksheet 6.8 and is used to determine the starting date for the date range
B110: Is dms_060801_StartCell named range present? | C110: yes | E110: =IFERROR(IF((ROW(dms_060801_StartCell)-1)=1,"yes","yes"),"no")
B111: Table 6.8 - Number of offset rows | C111: 12 | D111: dms_0608_OffsetRows | E111: =IFERROR(IF(dms_Model="ARR",(ROW(dms_060801_StartCell)-1),"not an ARR"),"6.8 error")
B112: Table 6.8 - Last row | C112: 0 | D112: dms_0608_LastRow | E112: =IFERROR(IF(dms_060801_StartCell<>"",IF(dms_Model="ARR",(LOOKUP(2,1/(dms_060801_01_Values<>""),(ROW(dms_060801_01_Values)))),"not an ARR"),0),"0")
B113: Table 6.8 - MaxRows | C113: =IFERROR(IF(dms_Model="ARR",(MAX(0,dms_0608_LastRow-dms_0608_OffsetRows)),"not an ARR"),"0") -> not an ARR | D113: dms_060801_MaxRows | E113: =IFERROR(IF(dms_Model="ARR",(MAX(0,dms_0608_LastRow-dms_0608_OffsetRows)),"not an ARR"),"0")
B114: TNSP RESET RINS
B115: Table 7.9.4 only appears in TNSPs Reset RIN
B116: Table 7.9.4 - first year | C116: =LEFT(PRCP_y3,4) -> 2013 | D116: dms_070904_Start_Year | E116: =LEFT(PRCP_y3,4)
B118: MISC
B119: Distribution Determination Reference | C119: =INDEX(dms_DeterminationRef_List,MATCH(dms_TradingName,dms_TradingName_List)) -> 2016-20 Distribution Determination | D119: dms_DeterminationRef
B120: Public lighting NSP? | C120: =INDEX(dms_Public_Lighting_List,MATCH(dms_TradingName,dms_TradingName_List)) -> YES | D120: dms_Public_Lighting | E120: =INDEX(dms_Public_Lighting_List,MATCH(dms_TradingName,dms_TradingName_List))
B121: CBD Feeder for this business | C121: =INDEX(dms_CBD_flag,MATCH(dms_TradingName,dms_TradingName_List)) -> NO | D121: dms_CBD_flag_NSP
B122: Urban Feeder for this business | C122: =INDEX(dms_Urban_flag,MATCH(dms_TradingName,dms_TradingName_List)) -> YES | D122: dms_Urban_flag_NSP
B123: Short rural Feeder for this business | C123: =INDEX(dms_ShortRural_flag,MATCH(dms_TradingName,dms_TradingName_List)) -> YES | D123: dms_ShortRural_flag_NSP
B124: Long rural Feeder for this business | C124: =INDEX(dms_LongRural_flag,MATCH(dms_TradingName,dms_TradingName_List)) -> YES | D124: dms_LongRural_flag_NSP
B125: Fifth Feeder Category (eg. TasNetworks (D)) | C125: =INDEX(dms_FeederType_5_flag,MATCH(dms_TradingName,dms_TradingName_List)) -> NO | D125: dms_FifthFeeder_flag_NSP | E125: =INDEX(dms_FeederType_5_flag,MATCH(dms_TradingName,dms_TradingName_List))
B127: DISCARD FILES
B128: discard this record? | C128: NO | D128: dms_DISCARD | E128: If record is to be discarded from DB set this flag to YES
B130: SUBSET FILES
B131: Is this Submission File a Subset File | C131: NO | D131: dms_Partial
B134: REGULATORY YEARS FOR MULTI RYE SUBMISSIONS
B135: Multiple RYE flag | C135: NO | D135: dms_Multi_RYE_flag
C136: Manually specify RYE | D136: Named ranges to apply
C137: 2013 | D137: dms_RYE_01
C138: 2014 | D138: dms_RYE_02
C139: 2015 | D139: dms_RYE_03
C140: 2016 | D140: dms_RYE_04
C141: 2017 | D141: dms_RYE_05
C142: 2018 | D142: dms_RYE_06
C143: 2019 | D143: dms_RYE_07
C144: 2020 | D144: dms_RYE_08
C145: 2021 | D145: dms_RYE_09

Sheet Instructions
B2: =CONCATENATE(dms_Sector," ",dms_Segment," ", "Network Service Provider") -> Electricity Distribution Network Service Provider
B3: =IF(dms_Model="Reset","Regulatory Proposal RIN Template","Annual Reporting RIN") -> Regulatory Proposal RIN Template
B4: =CONCATENATE("This template is to be used by ",dms_TradingNameFull," to fulfil its reporting obligations to the AER.") -> This template is to be used by AusNet Electricity Services Pty Ltd to fulfil its reporting obligations to the AER.
B5: INSTRUCTIONS
B6: GENERAL | C6: Complete the Business & other details worksheet before entering data or values in any other worksheets. The Business & other details worksheet is linked to other worksheets within the workbook and automatically generates certain column headings and conditional formatting.
B8: CONFIDENTIAL INFORMATION | C8: Please use the macro at the top of each worksheet to identify confidential information in the confidential workbook.
C9: -Do this by selecting the cell or cells that contain confidential information and then run the Mark selection as CONFIDENTIAL macro. This will format the cells a specific colour that is identified by the AER's database which in turn marks that information as confidential. -To reverse this, select the cell or cells and run the Return selection to NON-CONFIDENTIAL macro.
B11: RESPONSES | C11: Please return two (2) files to the AER: 1. A confidential version which must contain a complete set of all responses with confidential information marked using the Mark selection CONFIDENTIAL macro and which has been completed using the locked template file provided by the AER. 2. A public version with confidential information either removed completely or aggregated in some form together with writtten consent to disclose the public version of the response. Use the drop down box on the Business and other details worksheet to identify the file as either confidential ('consolidated') or public.
B13: AMENDMENTS | C13: If an NSP wishes to correct data previously submitted to the AER it should resubmit that data using the original completed submission as the starting point. Please make any necessary changes to the data. Data that is not being amended should be left unchanged. NSPs must identify the reason for the amendments in the Amendment Reason box on the Business and other details worksheet. NSPs may provide further details regarding any amendments in the Amendments worksheet. .
C14: NSP may use Amended Data macro to highlight cells that contain amended data. NB: if data is also CONFIDENTIAL, re-apply the Confidentiality macro after applying the Amended macro
C15: Please resubmit two (2) files - a confidential version and a public version of the amended submission to the AER
B17: UNITS OF MEASURE | C17: All amounts are to be unrounded and reported on a one for one basis: that is 1000 is to be entered as '1000'. Applicable units of measure may be identified in the table column headings or row descriptors.
B19: INPUT / NON-INPUT CELLS
D20: Yellow = Input cell (mandatory)
D21: Darker yellow = input cell (mandatory)
D22: Orange = input cell (if data available)
D23: Grey = Not applicable/No inputs required
D24: PLEASE DO NOT ENTER TEXT into cells that are to contain numeric data.
B27: NAVIGATION | C27: Many tables in the worksheets have been "grouped" to allow for easy navigation. To ungroup or group data use the outline symbols in the left margin (for Row groupings) or above the columns (for column groupings).

Sheet CONTENTS
C1: =IF(dms_MultiYear_ResponseFlag="Yes","REGULATORY REPORTING STATEMENT - HISTORICAL INFORMATION",INDEX(dms_Worksheet_List,MATCH(dms_Model,dms_Model_List))) -> REGULATORY REPORTING STATEMENT
C2: =INDEX(dms_TradingNameFull_List,MATCH(dms_TradingName,dms_TradingName_List)) -> AusNet Electricity Services Pty Ltd
C3: =dms_Header_Span -> 2021-22 to 2025-26
D7: CONTENTS
D9: SUBMISSION | E9: Business & other details
E10: CPI series
D12: EXPENDITURE | E12: 2.1 Expenditure summary
E13: 2.2 Repex
E14: 2.3 Augex (a)
E15: 2.3 Augex (b)
E16: 2.5 Connections
E17: 2.6 Non-network
E18: 2.10 Overheads
E19: 2.11 Labour
E20: 2.14 Forecast price changes
E21: 2.16 Opex Summary
E22: 2.17 Step Changes
D24: ECONOMIC BENCHMARKING | E24: 3.1 Revenue
E25: 3.2 Operating expenditure
E26: 3.3 Assets (RAB)
E27: 3.4 Operational data
E28: 3.5 Physical assets
E29: 3.6 Quality of service
E30: 3.7 Operating Environment
D32: ALTERNATIVE CONTROL | E32: 4.1 Public lighting
E33: 4.2 Metering
E34: 4.3 Fee-based services
E35: 4.4 Quoted services
D37: NETWORK | E37: 5.4 MD & utilisation-Spatial
D39: SERVICE | E39: 6.1 Telephone answering
E40: 6.2 Reliability & Cust serv
D42: OTHER | E42: 7.1 Policies and Procedures
E43: 7.2 Contingent projects
E44: 7.3 Obligations
E45: 7.4 Shared Assets
E46: 7.7 TSS-LRMC
D48: FINANCIAL | E48: 8.2 Capex

Sheet Business & other details
V1: =INDEX(dms_Worksheet_List,MATCH(dms_Model,dms_Model_List)) -> REGULATORY REPORTING STATEMENT
V2: =INDEX(dms_TradingNameFull_List,MATCH(dms_TradingName,dms_TradingName_List)) -> AusNet Electricity Services Pty Ltd
V3: =dms_Header_Span -> 2021-22 to 2025-26
V4: BUSINESS & OTHER DETAILS
V6: INSTRUCTIONS
V7: Complete the following business details regulatory template before entering data or values in any other regulatory template. This regulatory template is linked to other cells within the spreadsheet and automatically generates column headings and conditional formatting to distinguish business specific input and non-input cells.
Q9: SUBMISSION PARTICULARS INPUT SHEET
V12: ENTITY DETAILS
V14: Business Name
V16: Short name | AL16: AusNet (D)
V17: ACN/ABN | AL17: =INDEX(dms_ABN_List,MATCH(dms_TradingName,dms_TradingName_List)) -> 91064651118
V21: Business Address | BQ21: Postal Address
V23: Address 1 | AL23: =INDEX(dms_Addr1_List,MATCH(dms_TradingName,dms_TradingName_List)) -> Level 32 | BI23: Address 1 | BQ23: =INDEX(dms_Addr1_List,MATCH(dms_TradingName,dms_TradingName_List)) -> Level 32
V24: Address 2 | AL24: =IF(ISBLANK(INDEX(dms_Addr2_List,MATCH(dms_TradingName,dms_TradingName_List))),"",(INDEX(dms_Addr2_List,MATCH(dms_TradingName,dms_TradingName_List)))) -> 2 Southbank Boulevard | BI24: Address 2 | BQ24: =IF(ISBLANK(INDEX(dms_Addr2_List,MATCH(dms_TradingName,dms_TradingName_List))),"",(INDEX(dms_Addr2_List,MATCH(dms_TradingName,dms_TradingName_List)))) -> 2 Southbank Boulevard
V25: Suburb | AL25: =INDEX(dms_Suburb_List,MATCH(dms_TradingName,dms_TradingName_List)) -> SOUTHBANK | BI25: Suburb | BQ25: =INDEX(dms_Suburb_List,MATCH(dms_TradingName,dms_TradingName_List)) -> SOUTHBANK
V26: State | AL26: =INDEX(dms_State_List,MATCH(dms_TradingName,dms_TradingName_List)) -> Vic | AV26: Post code | AX26: 3006 | BI26: State | BQ26: =INDEX(dms_PState_List,MATCH(dms_TradingName,dms_TradingName_List)) -> Vic | CA26: Post code | CC26: 3006
BA28: `
V30: Contact Names
V32: Name | AL32: Charlotte Eddy | BI32: Name | BQ32: Namrata Powale
V33: Phone | AL33: 03 9695 6309 | BI33: Phone | BQ33: 03 9695 6968
V34: Email | AL34: charlotte.eddy@ausnetservices.com.au | BI34: Email | BQ34: namrata.powale@ausnetservices.com.au
Q39: REGULATORY CONTROL PERIODS
Z42: Forthcoming period | AL42: 2021-22 | AU42: =FRCP_y2 -> 2022-23 | BD42: =FRCP_y3 -> 2023-24 | BM42: =FRCP_y4 -> 2024-25 | BV42: =FRCP_y5 -> 2025-26
AL43: =FRCP_y6 -> 2026-27 | AU43: =FRCP_y7 -> 2027-28 | BD43: =FRCP_y8 -> 2028-29 | BM43: =FRCP_y9 -> 2029-30 | BV43: =FRCP_y10 -> 2030-31
AL44: =FRCP_y11 -> 2031-32 | AU44: =FRCP_y12 -> 2032-33 | BD44: =FRCP_y13 -> 2033-34 | BM44: =FRCP_y14 -> 2034-35 | BV44: =FRCP_y15 -> 2035-36
X46: RESETS | Z46: Current period | AL46: =CRCP_y1 -> 2016-17 | AU46: =CRCP_y2 -> 2017-18 | BD46: =CRCP_y3 -> 2018-19 | BM46: =CRCP_y4 -> 2019-20 | BV46: =CRCP_y5 -> 2020-21
AL47: =CRCP_y6 -> 2021-22 | AU47: =CRCP_y7 -> 2022-23 | BD47: =CRCP_y8 -> 2023-24 | BM47: =CRCP_y9 -> 2024-25 | BV47: =CRCP_y10 -> 2025-26
AL48: =CRCP_y11 -> 2026-27 | AU48: =CRCP_y12 -> 2027-28 | BD48: =CRCP_y13 -> 2028-29 | BM48: =CRCP_y14 -> 2029-30 | BV48: =CRCP_y15 -> 2030-31
Z50: Previous period | AL50: =PRCP_y1 -> 2011-12 | AU50: =PRCP_y2 -> 2012-13 | BD50: =PRCP_y3 -> 2013-14 | BM50: =PRCP_y4 -> 2014-15 | BV50: =PRCP_y5 -> 2015-16
AL51: =PRCP_y6 -> 2016-17 | AU51: =PRCP_y7 -> 2017-18 | BD51: =PRCP_y8 -> 2018-19 | BM51: =PRCP_y9 -> 2019-20 | BV51: =PRCP_y10 -> 2020-21
AL52: =PRCP_y11 -> 2021-22 | AU52: =PRCP_y12 -> 2022-23 | BD52: =PRCP_y13 -> 2023-24 | BM52: =PRCP_y14 -> 2024-25 | BV52: =PRCP_y15 -> 2025-26
Z54: Commencing year | AL54: 2017-18
X55: ANNUAL RINS
Z56: Final year | AL56: 2017-18
Q60: SUBMISSION DETAILS
Z62: RIN type | AL62: =INDIRECT(dms_Model) -> Regulatory Reporting (Reset)
Z64: Source | AL64: Reporting
X66: THIS FILE | Z66: Data Quality | AL66: Consolidated
Z68: Confidentiality Status | AL68: Confidential
Z70: Amended RIN Amendment Reason | AL70: .
Z74: Submission Date | AL74: 2020-01-31 | BD74: Please enter date this file submitted to AER

Sheet CPI series
B1: =INDEX(dms_Worksheet_List,MATCH(dms_Model,dms_Model_List)) -> REGULATORY REPORTING STATEMENT
B2: =INDEX(dms_TradingNameFull_List,MATCH(dms_TradingName,dms_TradingName_List)) -> AusNet Electricity Services Pty Ltd
B3: =dms_Header_Span -> 2021-22 to 2025-26
B4: CPI SERIES
B8: NOMINATED CPI SERIES
B10: Name of CPI series | C10: Actual / Forecast annual inflation
C12: =CRCP_y1 -> 2016-17 | D12: =CRCP_y2 -> 2017-18 | E12: =CRCP_y3 -> 2018-19 | F12: =CRCP_y4 -> 2019-20 | G12: =CRCP_y5 -> 2020-21 | H12: =FRCP_y1 -> 2021-22 | I12: =FRCP_y2 -> 2022-23 | J12: =FRCP_y3 -> 2023-24 | K12: =FRCP_y4 -> 2024-25 | L12: =FRCP_y5 -> 2025-26
B13: Series data | C13: 0.01023255814 | D13: 0.01933701657 | E13: 0.02077687444 | F13: 0.01592920354 | G13: 0.02 | H13: 0.0245 | I13: 0.0245 | J13: 0.0245 | K13: 0.0245 | L13: 0.0245

Sheet 2.1 Expenditure summary
B1: =INDEX(dms_Worksheet_List,MATCH(dms_Model,dms_Model_List)) -> REGULATORY REPORTING STATEMENT
B2: =INDEX(dms_TradingNameFull_List,MATCH(dms_TradingName,dms_TradingName_List)) -> AusNet Electricity Services Pty Ltd
B3: =dms_Header_Span -> 2021-22 to 2025-26
B4: 2.1 EXPENDITURE SUMMARY & RECONCILIATION
B7: 2.1.1 - STANDARD CONTROL SERVICES CAPEX
C8: =CONCATENATE("Forecast ($0's, real ", dms_DollarReal, ")") -> Forecast ($0's, real June 2021)
C9: =CRCP_y4 -> 2019-20 | D9: =CRCP_y5 -> 2020-21 | E9: =FRCP_y1 -> 2021-22 | F9: =FRCP_y2 -> 2022-23 | G9: =FRCP_y3 -> 2023-24 | H9: =FRCP_y4 -> 2024-25 | I9: =FRCP_y5 -> 2025-26
B10: Replacement expenditure | C10: 133914630.9 | D10: 160792424.4 | E10: 148475694.2 | F10: 150722818.1 | G10: 147984662.9 | H10: 132012503.7 | I10: 123609643.3
B11: Connections | C11: 102870322.2 | D11: 105193995.1 | E11: 106971646.2 | F11: 105593271.4 | G11: 104324989.3 | H11: 105697030.5 | I11: 107016530.2
B12: Augmentation Expenditure | C12: 125073930.5 | D12: 104209177 | E12: 43428451.77 | F12: 41260902.57 | G12: 39112979.58 | H12: 44851875.41 | I12: 47349535.07
B13: Non-network | C13: 84369506.17 | D13: 61005466.65 | E13: 55888624.27 | F13: 39745938.04 | G13: 44092777.78 | H13: 38940567.45 | I13: 45979809.19
B14: Public lighting | C14: 0 | D14: 0 | E14: 0 | F14: 0 | G14: 0 | H14: 0 | I14: 0
B15: Metering | C15: 0 | D15: 0 | E15: 0 | F15: 0 | G15: 0 | H15: 0 | I15: 0
B16: Capitalised network overheads | C16: 26676237.03 | D16: 25606188.58 | E16: 25081027.81 | F16: 24655280.39 | G16: 24655280.39 | H16: 24655280.39 | I16: 24655280.39
B17: Capitalised corporate overheads | C17: 5052559.589 | D17: 4849889.192 | E17: 4750422.162 | F17: 4669784.319 | G17: 4669784.319 | H17: 4669784.319 | I17: 4669784.319
B18: capcons (included in the above) | C18: 68462514.29 | D18: 70471995.83 | E18: 72320594.38 | F18: 70447447.44 | G18: 68807592.12 | H18: 69877527.72 | I18: 70807211.97
B19: Total | C19: =SUM(C10:C17) -> 477957186.4 | D19: 461657141 | E19: 384595866.4 | F19: 366647994.7 | G19: 364840474.3 | H19: 350827041.8 | I19: 353280582.5
B22: 2.1.2 - STANDARD CONTROL SERVICES OPEX BY CATEGORY
C23: =CONCATENATE("Forecast ($0's, real ", dms_DollarReal, ")") -> Forecast ($0's, real June 2021)
C24: =CRCP_y4 -> 2019-20 | D24: =CRCP_y5 -> 2020-21
B25: Vegetation management | C25: 31189806.76 | D25: 31189806.76
B26: Maintenance | C26: 30800552.27 | D26: 30800552.27
B27: Emergency response | C27: 18217976.83 | D27: 18217976.83
B28: Non-network | C28: 31985560.85 | D28: 31985560.85
B29: Metering | C29: 7330810.774 | D29: 7330810.774
B30: Network overheads | C30: 64060192.3 | D30: 64060192.3
B31: Corporate overheads | C31: 20763454.79 | D31: 20763454.79
B32: Total | C32: =SUM(C25:C31) -> 204348354.6 | D32: =SUM(D25:D31) -> 204348354.6
B35: 2.1.3 - ALTERNATIVE CONTROL SERVICES CAPEX
C36: =CONCATENATE("Forecast ($0's, real ", dms_DollarReal, ")") -> Forecast ($0's, real June 2021)
C37: =CRCP_y4 -> 2019-20 | D37: =CRCP_y5 -> 2020-21 | E37: =FRCP_y1 -> 2021-22 | F37: =FRCP_y2 -> 2022-23 | G37: =FRCP_y3 -> 2023-24 | H37: =FRCP_y4 -> 2024-25 | I37: =FRCP_y5 -> 2025-26
B38: Connections | C38: 3378459.917 | D38: 2737575.72 | E38: 6021502.307 | F38: 5994607.066 | G38: 6080860.726 | H38: 6128821.028 | I38: 6202670.712
B39: Metering | C39: 7949980.936 | D39: 15002757.86 | E39: 12899261.9 | F39: 11353353.56 | G39: 10742742.63 | H39: 11440223.66 | I39: 12163563.17
B40: Public lighting | C40: 3156348.64 | D40: 5078133.468 | E40: 7000346.728 | F40: 6963654.914 | G40: 6701493.17 | H40: 5538750.865 | I40: 3738917.499
B41: Fee and quoted | C41: 0 | D41: 0 | E41: 0 | F41: 0 | G41: 0 | H41: 0 | I41: 0
B42: Network overheads | C42: 1252952.576 | D42: 2053403.79 | E42: 2199229.798 | F42: 2036077.904 | G42: 1956271.769 | H42: 1934553.788 | I42: 1870560.421
B43: Corporate overheads | C43: 154056.9354 | D43: 187153.6988 | E43: 308569.2979 | F43: 307056.9398 | G43: 302515.626 | H43: 274845.6099 | I43: 232005.8534
B44: Total | C44: =SUM(C38:C43) -> 15891799 | D44: 25059024.54 | E44: 28428910.03 | F44: 26654750.38 | G44: 25783883.93 | H44: 25317194.95 | I44: 24207717.66
B47: 2.1.4 - ALTERNATIVE CONTROL SERVICES OPEX
C48: =CONCATENATE("Forecast ($0's, real ", dms_DollarReal, ")") -> Forecast ($0's, real June 2021)
C49: =CRCP_y4 -> 2019-20 | D49: =CRCP_y5 -> 2020-21 | E49: =FRCP_y1 -> 2021-22 | F49: =FRCP_y2 -> 2022-23 | G49: =FRCP_y3 -> 2023-24 | H49: =FRCP_y4 -> 2024-25 | I49: =FRCP_y5 -> 2025-26
B50: Connections | C50: 0 | D50: 0 | E50: 0 | F50: 0 | G50: 0 | H50: 0 | I50: 0
B51: Metering | C51: 16554898.19 | D51: 16588507.32 | E51: 10995508.3 | F51: 11256836.49 | G51: 11385041.74 | H51: 11346971.56 | I51: 11404708.81
B52: Public lighting | C52: 8589233.239 | D52: 8326637.616 | E52: 7863349.747 | F52: 7733448.885 | G52: 7337143.551 | H52: 7237510.124 | I52: 7207299.587
B53: Fee and quoted | C53: 2385611.511 | D53: 2468434.685 | E53: 3035940.583 | F53: 7225132.679 | G53: 6780052.261 | H53: 3731255.642 | I53: 3235001.604
B54: Network overheads | C54: 0 | D54: 0 | E54: 0 | F54: 0 | G54: 0 | H54: 0 | I54: 0
B55: Corporate overheads | C55: 0 | D55: 0 | E55: 0 | F55: 0 | G55: 0 | H55: 0 | I55: 0
B56: Total | C56: =SUM(C50:C55) -> 27529742.94 | D56: 27383579.62 | E56: 21894798.63 | F56: 26215418.06 | G56: 25502237.55 | H56: 22315737.32 | I56: 21847010
B59: 2.1.5 - DUAL FUNCTION ASSETS CAPEX
C60: =CONCATENATE("Forecast ($0's, real ", dms_DollarReal, ")") -> Forecast ($0's, real June 2021)
C61: =CRCP_y4 -> 2019-20 | D61: =CRCP_y5 -> 2020-21 | E61: =FRCP_y1 -> 2021-22 | F61: =FRCP_y2 -> 2022-23 | G61: =FRCP_y3 -> 2023-24 | H61: =FRCP_y4 -> 2024-25 | I61: =FRCP_y5 -> 2025-26
B62: Replacement expenditure | C62: 0 | D62: 0 | E62: 0 | F62: 0 | G62: 0 | H62: 0 | I62: 0
B63: Connections | C63: 0 | D63: 0 | E63: 0 | F63: 0 | G63: 0 | H63: 0 | I63: 0
B64: Augmentation expenditure | C64: 0 | D64: 0 | E64: 0 | F64: 0 | G64: 0 | H64: 0 | I64: 0
B65: Non-network | C65: 0 | D65: 0 | E65: 0 | F65: 0 | G65: 0 | H65: 0 | I65: 0
B66: Capitalised network overheads | C66: 0 | D66: 0 | E66: 0 | F66: 0 | G66: 0 | H66: 0 | I66: 0
B67: Capitalised corporate overheads | C67: 0 | D67: 0 | E67: 0 | F67: 0 | G67: 0 | H67: 0 | I67: 0
B68: capcons (included in the above) | C68: 0 | D68: 0 | E68: 0 | F68: 0 | G68: 0 | H68: 0 | I68: 0
B69: Total | C69: =SUM(C62:C67) -> 0 | D69: 0 | E69: 0 | F69: 0 | G69: 0 | H69: 0 | I69: 0
B72: 2.1.6 - DUAL FUNCTION ASSETS OPEX BY CATEGORY
C73: =CONCATENATE("Forecast ($0's, real ", dms_DollarReal, ")") -> Forecast ($0's, real June 2021)
C74: =CRCP_y4 -> 2019-20 | D74: =CRCP_y5 -> 2020-21
B75: Vegetation management | C75: 0 | D75: 0
B76: Maintenance | C76: 0 | D76: 0
B77: Emergency response | C77: 0 | D77: 0
B78: Non-network | C78: 0 | D78: 0
B79: Metering | C79: 0 | D79: 0
B80: Network overheads | C80: 0 | D80: 0
B81: Corporate overheads | C81: 0 | D81: 0
B96: Total | C96: =SUM(C75:C95) -> 0 | D96: =SUM(D75:D95) -> 0
B99: 2.1.7 - STANDARD CONTROL SERVICES CAPCONS
C100: =CONCATENATE("Forecast ($0's, real ", dms_DollarReal, ")") -> Forecast ($0's, real June 2021)
C101: =CRCP_y4 -> 2019-20 | D101: =CRCP_y5 -> 2020-21 | E101: =FRCP_y1 -> 2021-22 | F101: =FRCP_y2 -> 2022-23 | G101: =FRCP_y3 -> 2023-24 | H101: =FRCP_y4 -> 2024-25 | I101: =FRCP_y5 -> 2025-26
B102: Replacement expenditure | C102: 0 | D102: 0 | E102: 0 | F102: 0 | G102: 0 | H102: 0 | I102: 0
B103: Connections | C103: 65435429.2 | D103: 67530800.03 | E103: 68994861.13 | F103: 67343581.49 | G103: 65825088.15 | H103: 66776173.29 | I103: 67626670.22
B104: Augmentation Expenditure | C104: 0 | D104: 0 | E104: 0 | F104: 0 | G104: 0 | H104: 0 | I104: 0
B105: Non-network | C105: 0 | D105: 0 | E105: 0 | F105: 0 | G105: 0 | H105: 0 | I105: 0
B106: Capitalised network overheads | C106: 2545045.766 | D106: 2472833.662 | E106: 2796136.567 | F106: 2609599.878 | G106: 2507563.828 | H106: 2607488.304 | I106: 2674065.665
B107: Capitalised corporate overheads | C107: 482039.3287 | D107: 468362.1388 | E107: 529596.6821 | F107: 494266.0719 | G107: 474940.1369 | H107: 493866.1334 | I107: 506476.0859
B108: Total | C108: =SUM(C102:C107) -> 68462514.29 | D108: 70471995.83 | E108: 72320594.38 | F108: 70447447.44 | G108: 68807592.12 | H108: 69877527.72 | I108: 70807211.97
B111: 2.1.8 - STANDARD CONTROL SERVICES CAPITALISED OVERHEADS
C112: =CONCATENATE("Forecast ($0's, real ", dms_DollarReal, ")") -> Forecast ($0's, real June 2021)
C113: =CRCP_y4 -> 2019-20 | D113: =CRCP_y5 -> 2020-21 | E113: =FRCP_y1 -> 2021-22 | F113: =FRCP_y2 -> 2022-23 | G113: =FRCP_y3 -> 2023-24 | H113: =FRCP_y4 -> 2024-25 | I113: =FRCP_y5 -> 2025-26
B114: Replacement expenditure | C114: 11610167.6 | D114: 13265250.69 | E114: 15867850.25 | F114: 15928544.82 | G114: 16072452.53 | H114: 14972316.01 | I114: 14373683.72
B115: Connections | C115: 6343433.986 | D115: 5961310.564 | E115: 6637496.634 | F115: 6396768.794 | G115: 6365338.383 | H115: 6626577.368 | I115: 6806185.471
B116: Augmentation Expenditure | C116: 10951622.65 | D116: 8508707.652 | E116: 4641272.588 | F116: 4360495.274 | G116: 4248017.972 | H116: 5086915.508 | I116: 5505939.692
B117: Non-network | C117: 2823572.385 | D117: 2720808.871 | E117: 2684830.498 | F117: 2639255.824 | G117: 2639255.824 | H117: 2639255.824 | I117: 2639255.824
B118: capcons (included in the above) | C118: 3027085.095 | D118: 2941195.8 | E118: 3325733.249 | F118: 3103865.95 | G118: 2982503.965 | H118: 3101354.438 | I118: 3180541.751
B119: Total | C119: =SUM(C114:C117) -> 31728796.62 | D119: 30456077.77 | E119: 29831449.98 | F119: 29325064.71 | G119: 29325064.71 | H119: 29325064.71 | I119: 29325064.71

Sheet 2.2 Repex
B1: =INDEX(dms_Worksheet_List,MATCH(dms_Model,dms_Model_List)) -> REGULATORY REPORTING STATEMENT
B2: =INDEX(dms_TradingNameFull_List,MATCH(dms_TradingName,dms_TradingName_List)) -> AusNet Electricity Services Pty Ltd
B3: =dms_Header_Span -> 2021-22 to 2025-26
B4: 2.2 REPEX
B6: There are THREE sub-tables on this worksheet. The table has been sub-grouped for easy navigation. See the Instructions sheet on how to group or ungroup tables.
B8: 2.2.1 - REPLACEMENT EXPENDITURE, VOLUMES AND ASSET FAILURES BY ASSET CATEGORY
B9: EXPENDITURE
E10: =CONCATENATE("EXPENDITURE ($0's, real ", dms_DollarReal,")") -> EXPENDITURE ($0's, real June 2021)
B11: ASSET GROUP | C11: ASSET CATEGORY | D11: UNITS | E11: =CRCP_y4 -> 2019-20 | F11: =CRCP_y5 -> 2020-21 | G11: =FRCP_y1 -> 2021-22 | H11: =FRCP_y2 -> 2022-23 | I11: =FRCP_y3 -> 2023-24 | J11: =FRCP_y4 -> 2024-25 | K11: =FRCP_y5 -> 2025-26
B12: POLES BY: HIGHEST OPERATING VOLTAGE ; MATERIAL TYPE | C12: Staking of a wooden pole | E12: 1639492.05 | F12: 1903214.076 | G12: 2010746 | H12: 2219938 | I12: 2133532 | J12: 2083080 | K12: 2233684
C13: ˂ = 1 kV; Wood | E13: 1296180.142 | F13: 1504678.41 | G13: 1589693 | H13: 1747602 | I13: 1501801 | J13: 1105983 | K13: 1066037
C14: > 1 kV & < = 11 kV; Wood | E14: 0 | F14: 0 | G14: 0 | H14: 0 | I14: 0 | J14: 0 | K14: 0
C15: ˃ 11 kV & < = 22 kV; Wood | E15: 10120352 | F15: 11748270.68 | G15: 12412050 | H15: 12590440 | I15: 12964740 | J15: 11890720 | K15: 10789400
C16: > 22 kV & < = 66 kV; Wood | E16: 2232723.951 | F16: 2591870.849 | G16: 2738312 | H16: 2589321 | I16: 3077239 | J16: 2843341 | K16: 2440327
C17: > 66 kV & < = 132 kV; Wood | E17: 0 | F17: 0 | G17: 0 | H17: 0 | I17: 0 | J17: 0 | K17: 0
C18: > 132 kV; Wood | E18: 0 | F18: 0 | G18: 0 | H18: 0 | I18: 0 | J18: 0 | K18: 0
C19: ˂ = 1 kV; Concrete | E19: 6480899.078 | F19: 7523390.156 | G19: 7948463 | H19: 8738010 | I19: 7509005 | J19: 5529914 | K19: 5330183
C20: > 1 kV & < = 11 kV; Concrete | E20: 0 | F20: 0 | G20: 0 | H20: 0 | I20: 0 | J20: 0 | K20: 0
C21: ˃ 11 kV & < = 22 kV; Concrete | E21: 10120352 | F21: 11748270.68 | G21: 12412050 | H21: 12590440 | I21: 12964740 | J21: 11890720 | K21: 10789400
C22: > 22 kV & < = 66 kV; Concrete | E22: 744241.5889 | F22: 863957.2652 | G22: 912771 | H22: 863107 | I22: 1025746 | J22: 947781 | K22: 813442
C23: > 66 kV & < = 132 kV; Concrete | E23: 0 | F23: 0 | G23: 0 | H23: 0 | I23: 0 | J23: 0 | K23: 0
C24: > 132 kV; Concrete | E24: 0 | F24: 0 | G24: 0 | H24: 0 | I24: 0 | J24: 0 | K24: 0
C25: ˂ = 1 kV; Steel | E25: 0 | F25: 0 | G25: 0 | H25: 0 | I25: 0 | J25: 0 | K25: 0
C26: > 1 kV & < = 11 kV; Steel | E26: 0 | F26: 0 | G26: 0 | H26: 0 | I26: 0 | J26: 0 | K26: 0
C27: ˃ 11 kV & < = 22 kV; Steel | E27: 0 | F27: 0 | G27: 0 | H27: 0 | I27: 0 | J27: 0 | K27: 0
C28: > 22 kV & < = 66 kV; Steel | E28: 0 | F28: 0 | G28: 0 | H28: 0 | I28: 0 | J28: 0 | K28: 0
C29: > 66 kV & < = 132 kV; Steel | E29: 0 | F29: 0 | G29: 0 | H29: 0 | I29: 0 | J29: 0 | K29: 0
C30: > 132 kV; Steel | E30: 0 | F30: 0 | G30: 0 | H30: 0 | I30: 0 | J30: 0 | K30: 0
C31: Other | E31: 0 | F31: 0 | G31: 0 | H31: 0 | I31: 0 | J31: 0 | K31: 0
B32: POLE TOP STRUCTURES BY: HIGHEST OPERATING VOLTAGE | C32: ˂ = 1 kV | E32: 7596757.159 | F32: 8818740.63 | G32: 9317001 | H32: 9383520 | I32: 9454022 | J32: 9516618 | K32: 9575428
C33: > 1 kV & < = 11 kV | E33: 0 | F33: 0 | G33: 0 | H33: 0 | I33: 0 | J33: 0 | K33: 0
C34: ˃ 11 kV & < = 22 kV | E34: 3183789.413 | F34: 3695920.834 | G34: 3904741 | H34: 3932619 | I34: 3962166 | J34: 3988400 | K34: 4013047
C35: > 22 kV & < = 66 kV | E35: 151895.9893 | F35: 176329.3606 | G35: 186292 | H35: 187623 | I35: 189032 | J35: 190284 | K35: 191460
C36: > 66 kV & < = 132 kV | E36: 0 | F36: 0 | G36: 0 | H36: 0 | I36: 0 | J36: 0 | K36: 0
C37: > 132 kV | E37: 0 | F37: 0 | G37: 0 | H37: 0 | I37: 0 | J37: 0 | K37: 0
C38: Other | E38: 0 | F38: 0 | G38: 0 | H38: 0 | I38: 0 | J38: 0 | K38: 0
B39: STAKING WOODEN POLES BY: HIGHEST OPERATING VOLTAGE | C39: ˂ = 1 Kv | D39: for year wooden pole staked | E39: 737771.6671 | F39: 856446.6181 | G39: 904836 | H39: 998972 | I39: 960090 | J39: 937386 | K39: 1005158
C40: > 1 kV & < = 11 kV | D40: for year wooden pole staked | E40: 0 | F40: 0 | G40: 0 | H40: 0 | I40: 0 | J40: 0 | K40: 0
C41: ˃ 11 kV & < = 22 kV | D41: for year wooden pole staked | E41: 885325.8375 | F41: 1027735.752 | G41: 1085803 | H41: 1198767 | I41: 1152107 | J41: 1124863 | K41: 1206189
C42: > 22 kV & < = 66 kV | D42: for year wooden pole staked | E42: 16394.54543 | F42: 19031.70536 | G42: 20107 | H42: 22199 | I42: 21335 | J42: 20831 | K42: 22337
C43: > 66 kV & < = 132 kV | D43: for year wooden pole staked | E43: 0 | F43: 0 | G43: 0 | H43: 0 | I43: 0 | J43: 0 | K43: 0
C44: > 132 kV | D44: for year wooden pole staked | E44: 0 | F44: 0 | G44: 0 | H44: 0 | I44: 0 | J44: 0 | K44: 0
B45: OVERHEAD CONDUCTORS BY: Highest operating voltage; Number of phases (at HV) | C45: ˂ = 1 kV | D45: per km | E45: 112183.6337 | F45: 130229.0369 | G45: 137587 | H45: 138569 | I45: 139610 | J45: 140535 | K45: 141403
C46: > 1 kV & < = 11 kV | D46: per km | E46: 0 | F46: 0 | G46: 0 | H46: 0 | I46: 0 | J46: 0 | K46: 0
C47: ˃ 11 kV & < = 22 kV ; SWER | D47: per km | E47: 2243671.043 | F47: 2604578.845 | G47: 2751738 | H47: 2771384 | I47: 2792206 | J47: 2810694 | K47: 2828063
C48: ˃ 11 kV & < = 22 kV ; Single-Phase | D48: per km | E48: 2804588.396 | F48: 3255723.083 | G48: 3439672 | H48: 3464230 | I48: 3490258 | J48: 3513368 | K48: 3535079
C49: ˃ 11 kV & < = 22 kV ; Multiple-Phase | D49: per km | E49: 6057911.326 | F49: 7032362.314 | G49: 7429692 | H49: 7482737 | I49: 7538957 | J49: 7588874 | K49: 7635771
C50: > 22 kV & < = 66 kV | D50: per km | E50: 0 | F50: 0 | G50: 0 | H50: 0 | I50: 0 | J50: 0 | K50: 0
C51: > 66 kV & < = 132 kV | D51: per km | E51: 0 | F51: 0 | G51: 0 | H51: 0 | I51: 0 | J51: 0 | K51: 0
C52: > 132 kV | D52: per km | E52: 0 | F52: 0 | G52: 0 | H52: 0 | I52: 0 | J52: 0 | K52: 0
C53: Other | D53: per km | E53: 1509965.601 | F53: 1752852.529 | G53: 1851889 | H53: 2826513 | I53: 5027156 | J53: 9996573 | K53: 21233280
B54: UNDERGROUND CABLES BY: Highest operating voltage | C54: ˂ = 1 kV | D54: per km | E54: 0 | F54: 0 | G54: 0 | H54: 0 | I54: 0 | J54: 0 | K54: 0
C55: > 1 kV & < = 11 kV | D55: per km | E55: 0 | F55: 0 | G55: 0 | H55: 0 | I55: 0 | J55: 0 | K55: 0
C56: > 11 kV & < = 22 kV | D56: per km | E56: 2337544.839 | F56: 2713552.798 | G56: 2866869 | H56: 3813465 | I56: 4665427 | J56: 4641067 | K56: 4669747
C57: > 22 kV & < = 33 kV | D57: per km | E57: 0 | F57: 0 | G57: 0 | H57: 0 | I57: 0 | J57: 0 | K57: 0
C58: > 33 kV & < = 66 kV | D58: per km | E58: 0 | F58: 0 | G58: 0 | H58: 0 | I58: 0 | J58: 0 | K58: 0
C59: > 66 kV & < = 132 kV | D59: per km | E59: 0 | F59: 0 | G59: 0 | H59: 0 | I59: 0 | J59: 0 | K59: 0
C60: > 132 kV | D60: per km | E60: 0 | F60: 0 | G60: 0 | H60: 0 | I60: 0 | J60: 0 | K60: 0
C61: Other | D61: per km | E61: 0 | F61: 0 | G61: 0 | H61: 0 | I61: 0 | J61: 0 | K61: 0
B62: SERVICE LINES BY: Connection voltage; Customer type; Connection complexity | C62: ˂ = 11 kV ; Residential ; Simple Type | D62: per number of spans | E62: 576676.7291 | F62: 669438.6032 | G62: 707262 | H62: 712312 | I62: 717663 | J62: 722415 | K62: 726880
C63: ˂ = 11 kV ; Commercial & Industrial ; Simple Type | D63: per number of spans | E63: 64075.46391 | F63: 74382.38253 | G63: 78585 | H63: 79146 | I63: 79740 | J63: 80268 | K63: 80764
C64: ˂ = 11 kV ; Residential ; Complex Type | D64: per number of spans | E64: 0 | F64: 0 | G64: 0 | H64: 0 | I64: 0 | J64: 0 | K64: 0
C65: ˂ = 11 kV ; Commercial & Industrial ; Complex Type | D65: per number of spans | E65: 0 | F65: 0 | G65: 0 | H65: 0 | I65: 0 | J65: 0 | K65: 0
C66: ˂ = 11 kV ; Subdivision ; Complex Type | D66: per number of spans | E66: 0 | F66: 0 | G66: 0 | H66: 0 | I66: 0 | J66: 0 | K66: 0
C67: > 11 kV & < = 22 kV ; Commercial & Industrial | D67: per number of spans | E67: 0 | F67: 0 | G67: 0 | H67: 0 | I67: 0 | J67: 0 | K67: 0
C68: > 11 kV & < = 22 kV ; Subdivision | D68: per number of spans | E68: 0 | F68: 0 | G68: 0 | H68: 0 | I68: 0 | J68: 0 | K68: 0
C69: > 22 kV & < = 33 kV ; Commercial & Industrial | D69: per number of spans | E69: 0 | F69: 0 | G69: 0 | H69: 0 | I69: 0 | J69: 0 | K69: 0
C70: > 22 kV & < = 33 kV ; Subdivision | D70: per number of spans | E70: 0 | F70: 0 | G70: 0 | H70: 0 | I70: 0 | J70: 0 | K70: 0
C71: > 33 kV & < = 66 kV ; Commercial & Industrial | D71: per number of spans | E71: 0 | F71: 0 | G71: 0 | H71: 0 | I71: 0 | J71: 0 | K71: 0
C72: > 33 kV & < = 66 kV ; Subdivision | D72: per number of spans | E72: 0 | F72: 0 | G72: 0 | H72: 0 | I72: 0 | J72: 0 | K72: 0
C73: > 66 kV & < = 132 kV ; Commercial & Industrial | D73: per number of spans | E73: 0 | F73: 0 | G73: 0 | H73: 0 | I73: 0 | J73: 0 | K73: 0
C74: > 66 kV & < = 132 kV ; Subdivision | D74: per number of spans | E74: 0 | F74: 0 | G74: 0 | H74: 0 | I74: 0 | J74: 0 | K74: 0
C75: > 132 kV ; Commercial & Industrial | D75: per number of spans | E75: 0 | F75: 0 | G75: 0 | H75: 0 | I75: 0 | J75: 0 | K75: 0
C76: > 132 kV ; Subdivision | D76: per number of spans | E76: 0 | F76: 0 | G76: 0 | H76: 0 | I76: 0 | J76: 0 | K76: 0
C77: Other | D77: per number of spans | E77: 0 | F77: 0 | G77: 0 | H77: 0 | I77: 0 | J77: 0 | K77: 0
B78: TRANSFORMERS BY: Mounting type; Highest operating voltage; Ampere rating; Number of phases (at LV) | C78: Pole Mounted ; < = 22kV ; < = 60 kVA ; Single Phase | E78: 912083.6729 | F78: 1058797.744 | G78: 1118620 | H78: 1126606 | I78: 1135071 | J78: 1142586 | K78: 1149647
C79: Pole Mounted ; < = 22kV ; > 60 kVA and < = 600 kVA ; Single Phase | E79: 0 | F79: 0 | G79: 0 | H79: 0 | I79: 0 | J79: 0 | K79: 0
C80: Pole Mounted ; < = 22kV ; > 600 kVA ; Single Phase | E80: 0 | F80: 0 | G80: 0 | H80: 0 | I80: 0 | J80: 0 | K80: 0
C81: Pole Mounted ; < = 22kV ; < = 60 kVA ; Multiple Phase | E81: 174654.4591 | F81: 202748.6654 | G81: 214204 | H81: 215733 | I81: 217354 | J81: 218793 | K81: 220145
C82: Pole Mounted ; < = 22kV ; > 60 kVA and < = 600 kVA ; Multiple Phase | E82: 77624.38525 | F82: 90110.72828 | G82: 95202 | H82: 95881 | I82: 96602 | J82: 97241 | K82: 97842
C83: Pole Mounted ; < = 22kV ; > 600 kVA ; Multiple Phase | E83: 0 | F83: 0 | G83: 0 | H83: 0 | I83: 0 | J83: 0 | K83: 0
C84: Kiosk Mounted ; < = 22kV ; < = 60 kVA ; Single Phase | E84: 172007.7841 | F84: 199676.257 | G84: 210958 | H84: 212465 | I84: 214061 | J84: 215478 | K84: 0
C85: Kiosk Mounted ; < = 22kV ; > 60 kVA and < = 600 kVA ; Single Phase | E85: 0 | F85: 0 | G85: 0 | H85: 0 | I85: 0 | J85: 0 | K85: 0
C86: Kiosk Mounted ; < = 22kV ; > 600 kVA ; Single Phase | E86: 0 | F86: 0 | G86: 0 | H86: 0 | I86: 0 | J86: 0 | K86: 0
C87: Kiosk Mounted ; < = 22kV ; < = 60 kVA ; Multiple Phase | E87: 57335.65625 | F87: 66558.43682 | G87: 70319 | H87: 70821 | I87: 71354 | J87: 71826 | K87: 0
C88: Kiosk Mounted ; < = 22kV ; > 60 kVA and < = 600 kVA ; Multiple Phase | E88: 57335.65625 | F88: 66558.43682 | G88: 70319 | H88: 70821 | I88: 71354 | J88: 71826 | K88: 0
C89: Kiosk Mounted ; < = 22kV ; > 600 kVA ; Multiple Phase | E89: 0 | F89: 0 | G89: 0 | H89: 0 | I89: 0 | J89: 0 | K89: 0
C90: Ground Outdoor / Indoor Chamber Mounted; ˂ 22 kV ; < = 60 kVA ; Single Phase | E90: 0 | F90: 0 | G90: 0 | H90: 0 | I90: 0 | J90: 0 | K90: 0
C91: Ground Outdoor / Indoor Chamber Mounted; ˂ 22 kV ; > 60 kVA and < = 600 kVA ; Single Phase | E91: 0 | F91: 0 | G91: 0 | H91: 0 | I91: 0 | J91: 0 | K91: 0
C92: Ground Outdoor / Indoor Chamber Mounted; ˂ 22 kV ; > 600 kVA ; Single Phase | E92: 0 | F92: 0 | G92: 0 | H92: 0 | I92: 0 | J92: 0 | K92: 0
C93: Ground Outdoor / Indoor Chamber Mounted; ˂ 22 kV ; < = 60 kVA ; Multiple Phase | E93: 0 | F93: 0 | G93: 0 | H93: 0 | I93: 0 | J93: 0 | K93: 0
C94: Ground Outdoor / Indoor Chamber Mounted; ˂ 22 kV ; > 60 kVA and < = 600 kVA ; Multiple Phase | E94: 0 | F94: 0 | G94: 0 | H94: 0 | I94: 0 | J94: 0 | K94: 0
C95: Ground Outdoor / Indoor Chamber Mounted; ˂ 22 kV ; > 600 kVA ; Multiple Phase | E95: 0 | F95: 0 | G95: 0 | H95: 0 | I95: 0 | J95: 0 | K95: 0
C96: Ground Outdoor / Indoor Chamber Mounted; > = 22 kV & < = 33 kV ; < = 15 MVA | E96: 402330.5685 | F96: 467047.8281 | G96: 0 | H96: 0 | I96: 1088676 | J96: 0 | K96: 0
C97: Ground Outdoor / Indoor Chamber Mounted; > = 22 kV & < = 33 kV ; > 15 MVA and < = 40 MVA | E97: 0 | F97: 0 | G97: 0 | H97: 0 | I97: 0 | J97: 0 | K97: 0
C98: Ground Outdoor / Indoor Chamber Mounted; > = 22 kV & < = 33 kV ; > 40 MVA | E98: 0 | F98: 0 | G98: 0 | H98: 0 | I98: 0 | J98: 0 | K98: 0
C99: Ground Outdoor / Indoor Chamber Mounted; > 33 kV & < = 66 kV ; < = 15 MVA | E99: 0 | F99: 0 | G99: 0 | H99: 0 | I99: 0 | J99: 0 | K99: 0
C100: Ground Outdoor / Indoor Chamber Mounted; > 33 kV & < = 66 kV ; > 15 MVA and < = 40 MVA | E100: 1501175.151 | F100: 1742648.082 | G100: 1841108 | H100: 1594919 | I100: 1526833 | J100: 633563 | K100: 199222
C101: Ground Outdoor / Indoor Chamber Mounted; > 33 kV & < = 66 kV ; > 40 MVA | E101: 0 | F101: 0 | G101: 0 | H101: 0 | I101: 0 | J101: 0 | K101: 0
C102: Ground Outdoor / Indoor Chamber Mounted; > 66 kV & < = 132 kV ; < = 100 MVA | E102: 0 | F102: 0 | G102: 0 | H102: 0 | I102: 0 | J102: 0 | K102: 0
C103: Ground Outdoor / Indoor Chamber Mounted; > 66 kV & < = 132 kV ; > 100 MVA | E103: 0 | F103: 0 | G103: 0 | H103: 0 | I103: 0 | J103: 0 | K103: 0
C104: Ground Outdoor / Indoor Chamber Mounted; > 132 kV ; < = 100 MVA | E104: 0 | F104: 0 | G104: 0 | H104: 0 | I104: 0 | J104: 0 | K104: 0
C105: Ground Outdoor / Indoor Chamber Mounted; > 132 kV ; > 100 MVA | E105: 0 | F105: 0 | G105: 0 | H105: 0 | I105: 0 | J105: 0 | K105: 0
C106: Other | E106: 0 | F106: 0 | G106: 0 | H106: 0 | I106: 0 | J106: 0 | K106: 0
B107: SWITCHGEAR BY: Highest operating voltage; Switch function | C107: ˂ = 11 kV ; FUSE | E107: 0 | F107: 0 | G107: 0 | H107: 0 | I107: 0 | J107: 0 | K107: 0
C108: ˂ = 11 kV ; Switch | E108: 0 | F108: 0 | G108: 0 | H108: 0 | I108: 0 | J108: 0 | K108: 0
C109: ˂ = 11 kV ; Circuit Breaker | E109: 0 | F109: 0 | G109: 0 | H109: 0 | I109: 0 | J109: 0 | K109: 0
C110: > 11 kV & < = 22 kV ; Switch | E110: 2916969.348 | F110: 3386181.178 | G110: 3577501 | H110: 3696528 | I110: 3811709 | J110: 3918110 | K110: 3976290
C111: > 11 kV & < = 22 kV ; Circuit Breaker | E111: 88209.45457 | F111: 102398.4688 | G111: 108184 | H111: 108956 | I111: 164662 | J111: 165752 | K111: 0
C112: > 22 kV & < = 33 kV ; Switch | E112: 0 | F112: 0 | G112: 0 | H112: 0 | I112: 0 | J112: 0 | K112: 0
C113: > 22 kV & < = 33 kV ; Circuit Breaker | E113: 0 | F113: 0 | G113: 0 | H113: 0 | I113: 0 | J113: 0 | K113: 0
C114: > 33 kV & < = 66 kV ; Switch | E114: 0 | F114: 0 | G114: 0 | H114: 0 | I114: 0 | J114: 0 | K114: 0
C115: > 33 kV & < = 66 kV ; Circuit Breaker | E115: 3746152.408 | F115: 4348743.255 | G115: 4594448 | H115: 6333326 | I115: 6194082 | J115: 4127209 | K115: 464852
C116: > 66 kV & < = 132 kV ; Switch | E116: 0 | F116: 0 | G116: 0 | H116: 0 | I116: 0 | J116: 0 | K116: 0
C117: > 66 kV & < = 132 kV ; Circuit Breaker | E117: 0 | F117: 0 | G117: 0 | H117: 0 | I117: 0 | J117: 0 | K117: 0
C118: > 132 kV ; Switch | E118: 0 | F118: 0 | G118: 0 | H118: 0 | I118: 0 | J118: 0 | K118: 0
C119: > 132 kV ; Circuit Breaker | E119: 0 | F119: 0 | G119: 0 | H119: 0 | I119: 0 | J119: 0 | K119: 0
C120: Other | E120: 4626310.462 | F120: 5370479.954 | G120: 5673913 | H120: 5714422 | I120: 5757357 | J120: 5795477 | K120: 5720107
B121: PUBLIC LIGHTING BY: Asset type ; Lighting obligation | C121: Luminaires ; Major Road | E121: 0 | F121: 0 | G121: 0 | H121: 0 | I121: 0 | J121: 0 | K121: 0
C122: Luminaires ; Minor Road | E122: 0 | F122: 0 | G122: 0 | H122: 0 | I122: 0 | J122: 0 | K122: 0
C123: Brackets ; Major Road | E123: 0 | F123: 0 | G123: 0 | H123: 0 | I123: 0 | J123: 0 | K123: 0
C124: Brackets ; Minor Road | E124: 0 | F124: 0 | G124: 0 | H124: 0 | I124: 0 | J124: 0 | K124: 0
C125: Lamps ; Major Road | E125: 0 | F125: 0 | G125: 0 | H125: 0 | I125: 0 | J125: 0 | K125: 0
C126: Lamps ; Minor Road | E126: 0 | F126: 0 | G126: 0 | H126: 0 | I126: 0 | J126: 0 | K126: 0
C127: Poles / Columns ; Major Road | E127: 388314.7601 | F127: 450777.4937 | G127: 476246.5 | H127: 519917 | I127: 449198.25 | J127: 464570.75 | K127: 545960.25
C128: Poles / Columns ; Minor Road | E128: 1164944.28 | F128: 1352332.481 | G128: 1428739.5 | H128: 1559751 | I128: 1347594.75 | J128: 1393712.25 | K128: 1637880.75
C129: Other | E129: 0 | F129: 0 | G129: 0 | H129: 0 | I129: 0 | J129: 0 | K129: 0
B130: SCADA, NETWORK CONTROL AND PROTECTION SYSTEMS BY: Function | C130: Field Devices | E130: 6562534.244 | F130: 7618156.823 | G130: 8048584 | H130: 9568398 | I130: 9480150 | J130: 7736161 | K130: 2305227
C131: Local Network Wiring Assets | E131: 0 | F131: 0 | G131: 0 | H131: 0 | I131: 0 | J131: 0 | K131: 0
C132: Communications Network Assets | E132: 12106736.22 | F132: 14054176.59 | G132: 14848240 | H132: 9481289 | I132: 8807600 | J132: 8395914 | K132: 8419833
C133: Master Station Assets | E133: 0 | F133: 0 | G133: 0 | H133: 0 | I133: 0 | J133: 0 | K133: 0
C134: Communications Site Infrastructure | E134: 0 | F134: 0 | G134: 0 | H134: 0 | I134: 0 | J134: 0 | K134: 0
C135: Communications Linear Assets | E135: 0 | F135: 0 | G135: 0 | H135: 0 | I135: 0 | J135: 0 | K135: 0
C136: AFLC | E136: 0 | F136: 0 | G136: 0 | H136: 0 | I136: 0 | J136: 0 | K136: 0
C137: Other | E137: 0 | F137: 0 | G137: 0 | H137: 0 | I137: 0 | J137: 0 | K137: 0
B138: OTHER BY: enter DNSP defined asset group here | C138: Insulators | E138: 406626.6365 | F138: 472034.9441 | G138: 498705 | H138: 502266 | I138: 506040 | J138: 509390 | K138: 512538
C139: Site Repairs | E139: 3727812.402 | F139: 4327453.149 | G139: 4571955 | H139: 7651160 | I139: 7375025 | J139: 3659775 | K139: 1856325
C140: Switchboards | E140: 5289146.002 | F140: 6139936.525 | G140: 6486844 | H140: 9569513 | I140: 9160997 | J140: 3801378 | K140: 1195334
C141: Voltage Transformers | E141: 893914.8931 | F141: 1037706.409 | G141: 1096337 | H141: 1713477 | I141: 1659626 | J141: 917799 | K141: 166019
C142: Current Transformers | E142: 458797.7704 | F142: 532598.1145 | G142: 562690 | H142: 477195 | I142: 467435 | J142: 319967 | K142: 33204
C143: Capacitor Banks | E143: 260032.9662 | F143: 301860.812 | G143: 318916 | H143: 443055 | I143: 433039 | J143: 285343 | K143: 33204
C144: NER's | E144: 72900.16004 | F144: 84626.58341 | G144: 89408 | H144: 90046 | I144: 199591 | J144: 54794 | K144: 0
C145: Surge Arrestors | E145: 839692.3007 | F145: 974761.7904 | G145: 1029836 | H145: 1037188 | I145: 722902 | J145: 727688 | K145: 732185
C146: Pole Top Capacitior | E146: 55218.96853 | F146: 64101.26732 | G146: 67723 | H146: 68207 | I146: 68719 | J146: 69174 | K146: 0
C147: Electrical Earths | E147: 159606.0814 | F147: 185279.6668 | G147: 195748 | H147: 197145 | I147: 198626 | J147: 199942 | K147: 201177
C148: Line Voltage Regulator | E148: 1190825.191 | F148: 1382376.489 | G148: 1460481 | H148: 1470908 | I148: 1481959 | J148: 1491772 | K148: 0
C149: Low Conductor | E149: 680445.7952 | F149: 789899.5395 | G149: 834529 | H149: 840488 | I149: 846803 | J149: 852409 | K149: 857677
C150: REFCL | E150: 20669387.67 | F150: 29331011.25 | G150: 10968320 | H150: 4942519 | I150: 0 | J150: 0 | K150: 0
C151: Top Down Adjustment | E151: 0 | F151: 0 | G151: -888189 | H151: -894530 | I151: -901251 | J151: -907218 | K151: -912824
C152: Support | E152: 4982205.084 | F152: 5783622.338 | G152: 6110398 | H152: 6113380 | I152: 6098462 | J152: 6101438 | K152: 6104416
B182: ASSET REPLACEMENTS
E183: VOLUMES (0's)
B184: ASSET GROUP | C184: ASSET CATEGORY | E184: =CRCP_y4 -> 2019-20 | F184: =CRCP_y5 -> 2020-21 | G184: =FRCP_y1 -> 2021-22 | H184: =FRCP_y2 -> 2022-23 | I184: =FRCP_y3 -> 2023-24 | J184: =FRCP_y4 -> 2024-25 | K184: =FRCP_y5 -> 2025-26
B185: POLES BY: HIGHEST OPERATING VOLTAGE ; MATERIAL TYPE | C185: Staking of a wooden pole | E185: 1948.7 | F185: 1948.7 | G185: 1860.5 | H185: 2039.5 | I185: 1945.5 | J185: 1887 | K185: 2011
C186: ˂ = 1 kV; Wood | E186: 737.375 | F186: 737.375 | G186: 792.125 | H186: 817.375 | I186: 791.5 | J186: 673.375 | K186: 612.5
C187: > 1 kV & < = 11 kV; Wood | E187: 0 | F187: 0 | G187: 0 | H187: 0 | I187: 0 | J187: 0 | K187: 0
C188: ˃ 11 kV & < = 22 kV; Wood | E188: 884.85 | F188: 884.85 | G188: 950.55 | H188: 980.85 | I188: 949.8 | J188: 808.05 | K188: 735
C189: > 22 kV & < = 66 kV; Wood | E189: 17.697 | F189: 17.697 | G189: 19.011 | H189: 19.617 | I189: 18.996 | J189: 16.161 | K189: 14.7
C190: > 66 kV & < = 132 kV; Wood | E190: 0 | F190: 0 | G190: 0 | H190: 0 | I190: 0 | J190: 0 | K190: 0
C191: > 132 kV; Wood | E191: 0 | F191: 0 | G191: 0 | H191: 0 | I191: 0 | J191: 0 | K191: 0
C192: ˂ = 1 kV; Concrete | E192: 265.455 | F192: 265.455 | G192: 285.165 | H192: 294.255 | I192: 284.94 | J192: 242.415 | K192: 220.5
C193: > 1 kV & < = 11 kV; Concrete | E193: 0 | F193: 0 | G193: 0 | H193: 0 | I193: 0 | J193: 0 | K193: 0
C194: ˃ 11 kV & < = 22 kV; Concrete | E194: 884.85 | F194: 884.85 | G194: 950.55 | H194: 980.85 | I194: 949.8 | J194: 808.05 | K194: 735
C195: > 22 kV & < = 66 kV; Concrete | E195: 159.273 | F195: 159.273 | G195: 171.099 | H195: 176.553 | I195: 170.964 | J195: 145.449 | K195: 132.3
C196: > 66 kV & < = 132 kV; Concrete | E196: 0 | F196: 0 | G196: 0 | H196: 0 | I196: 0 | J196: 0 | K196: 0
C197: > 132 kV; Concrete | E197: 0 | F197: 0 | G197: 0 | H197: 0 | I197: 0 | J197: 0 | K197: 0
C198: ˂ = 1 kV; Steel | E198: 0 | F198: 0 | G198: 0 | H198: 0 | I198: 0 | J198: 0 | K198: 0
C199: > 1 kV & < = 11 kV; Steel | E199: 0 | F199: 0 | G199: 0 | H199: 0 | I199: 0 | J199: 0 | K199: 0
C200: ˃ 11 kV & < = 22 kV; Steel | E200: 0 | F200: 0 | G200: 0 | H200: 0 | I200: 0 | J200: 0 | K200: 0
C201: > 22 kV & < = 66 kV; Steel | E201: 0 | F201: 0 | G201: 0 | H201: 0 | I201: 0 | J201: 0 | K201: 0
C202: > 66 kV & < = 132 kV; Steel | E202: 0 | F202: 0 | G202: 0 | H202: 0 | I202: 0 | J202: 0 | K202: 0
C203: > 132 kV; Steel | E203: 0 | F203: 0 | G203: 0 | H203: 0 | I203: 0 | J203: 0 | K203: 0
C204: Other | E204: 0 | F204: 0 | G204: 0 | H204: 0 | I204: 0 | J204: 0 | K204: 0
B205: POLE TOP STRUCTURES BY: HIGHEST OPERATING VOLTAGE | C205: ˂ = 1 kV | E205: 4880 | F205: 3732 | G205: 2980 | H205: 2980 | I205: 2980 | J205: 2980 | K205: 2980
C206: > 1 kV & < = 11 kV | E206: 0 | F206: 0 | G206: 0 | H206: 0 | I206: 0 | J206: 0 | K206: 0
C207: ˃ 11 kV & < = 22 kV | E207: 2045 | F207: 1564 | G207: 1114 | H207: 1114 | I207: 1114 | J207: 1114 | K207: 1114
C208: > 22 kV & < = 66 kV | E208: 98 | F208: 75 | G208: 41 | H208: 41 | I208: 41 | J208: 41 | K208: 41
C209: > 66 kV & < = 132 kV | E209: 0 | F209: 0 | G209: 0 | H209: 0 | I209: 0 | J209: 0 | K209: 0
C210: > 132 kV | E210: 0 | F210: 0 | G210: 0 | H210: 0 | I210: 0 | J210: 0 | K210: 0
C211: Other | E211: 0 | F211: 0 | G211: 0 | H211: 0 | I211: 0 | J211: 0 | K211: 0
B212: STAKING WOODEN POLES BY: HIGHEST OPERATING VOLTAGE | C212: ˂ = 1 Kv | E212: 876.2140288 | F212: 876.2140288 | G212: 836.5557554 | H212: 917.0413669 | I212: 874.7751799 | J212: 848.471223 | K212: 904.2266187
C213: > 1 kV & < = 11 kV | E213: 0 | F213: 0 | G213: 0 | H213: 0 | I213: 0 | J213: 0 | K213: 0
C214: ˃ 11 kV & < = 22 kV | E214: 1051.456835 | F214: 1051.456835 | G214: 1003.866906 | H214: 1100.44964 | I214: 1049.730216 | J214: 1018.165468 | K214: 1085.071942
C215: > 22 kV & < = 66 kV | E215: 21.02913669 | F215: 21.02913669 | G215: 20.07733813 | H215: 22.00899281 | I215: 20.99460432 | J215: 20.36330935 | K215: 21.70143885
C216: > 66 kV & < = 132 kV | E216: 0 | F216: 0 | G216: 0 | H216: 0 | I216: 0 | J216: 0 | K216: 0
C217: > 132 kV | E217: 0 | F217: 0 | G217: 0 | H217: 0 | I217: 0 | J217: 0 | K217: 0
B218: OVERHEAD CONDUCTORS BY: Highest operating voltage; Number of phases (at HV) | C218: ˂ = 1 kV | E218: 3 | F218: 3 | G218: 4 | H218: 4 | I218: 4 | J218: 4 | K218: 4
C219: > 1 kV & < = 11 kV | E219: 0 | F219: 0 | G219: 0 | H219: 0 | I219: 0 | J219: 0 | K219: 0
C220: ˃ 11 kV & < = 22 kV ; SWER | E220: 40 | F220: 45 | G220: 51.4 | H220: 51.4 | I220: 51.4 | J220: 51.4 | K220: 51.4
C221: ˃ 11 kV & < = 22 kV ; Single-Phase | E221: 45 | F221: 53 | G221: 59.96956522 | H221: 59.96956522 | I221: 59.96956522 | J221: 59.96956522 | K221: 59.96956522
C222: ˃ 11 kV & < = 22 kV ; Multiple-Phase | E222: 110 | F222: 130 | G222: 152.2304348 | H222: 152.2304348 | I222: 152.2304348 | J222: 152.2304348 | K222: 152.2304348
C223: > 22 kV & < = 66 kV | E223: 0.2 | F223: 0.2 | G223: 0.2 | H223: 0.2 | I223: 0.2 | J223: 0.2 | K223: 0.2
C224: > 66 kV & < = 132 kV | E224: 0 | F224: 0 | G224: 0 | H224: 0 | I224: 0 | J224: 0 | K224: 0
C225: > 132 kV | E225: 0 | F225: 0 | G225: 0 | H225: 0 | I225: 0 | J225: 0 | K225: 0
C226: Other | E226: 0 | F226: 1.6 | G226: 4.3059375 | H226: 7.063359375 | I226: 13.26755859 | J226: 27.22700684 | K226: 58.63576538
B227: UNDERGROUND CABLES BY: Highest operating voltage | C227: ˂ = 1 kV | E227: 0 | F227: 0 | G227: 0 | H227: 0 | I227: 0 | J227: 0 | K227: 0
C228: > 1 kV & < = 11 kV | E228: 0 | F228: 0 | G228: 0 | H228: 0 | I228: 0 | J228: 0 | K228: 0
C229: > 11 kV & < = 22 kV | E229: 0 | F229: 0 | G229: 2.190776699 | H229: 2.706796117 | I229: 3.122815534 | J229: 3.072815534 | K229: 3.072815534
C230: > 22 kV & < = 33 kV | E230: 0 | F230: 0 | G230: 0 | H230: 0 | I230: 0 | J230: 0 | K230: 0
C231: > 33 kV & < = 66 kV | E231: 0 | F231: 0 | G231: 0 | H231: 0 | I231: 0 | J231: 0 | K231: 0
... 242 more rows

Sheet 2.3 Augex (a)
B1: =INDEX(dms_Worksheet_List,MATCH(dms_Model,dms_Model_List)) -> REGULATORY REPORTING STATEMENT
B2: =INDEX(dms_TradingNameFull_List,MATCH(dms_TradingName,dms_TradingName_List)) -> AusNet Electricity Services Pty Ltd
B3: =dms_Header_Span -> 2021-22 to 2025-26
B4: 2.3 AUGEX PROJECT DATA
B6: There are TWO tables on this worksheet - each has been 'grouped' (and sub-grouped) for easy navigation. Both ROWS and COLUMNS have been grouped. See the Instructions sheet on how to group or ungroup tables.
B9: 2.3.1 - AUGEX ASSET DATA - SUBTRANSMISSION SUBSTATIONS, SWITCHING STATIONS AND ZONE SUBSTATIONS
B10: PROJECT DESCRIPTION AND CHANGES | L10: PLANT AND EQUIPMENT EXPENDITURE AND VOLUME | X10: OTHER EXPENDITURE | Z10: TOTAL DIRECT EXPENDITURE ($0's) | AA10: YEARS INCURRED | AB10: ALL RELATED PARTY CONTRACTS | AD10: ALL NON-RELATED PARTY CONTRACTS | AE10: LAND AND EASEMENTS
B11: SUBSTATION ID | C11: SUBSTATION TYPE (drop down) | D11: PROJECT ID | E11: PROJECT TYPE (drop down) | F11: PROJECT TRIGGER (drop down) | G11: VOLTAGE (KV) | H11: SUBSTATION RATING NORMAL CYCLIC (MVA) | J11: SUBSTATION RATING N-1 EMERGENCY (MVA) | L11: TRANSFORMERS | O11: SWITCHGEAR | R11: CAPACITORS | U11: OTHER PLANT ITEM | V11: INSTALLATION (LABOUR) | X11: CIVIL WORKS | Y11: OTHER DIRECT | AB11: RELATED PARTY MARGINS | AC11: TOTAL | AE11: LAND PURCHASE | AF11: EASEMENTS
H12: PRE | I12: POST | J12: PRE | K12: POST | L12: UNITS ADDED | M12: MVA ADDED | N12: =CONCATENATE("EXPENDITURE ($0's, real ", dms_DollarReal,")") -> EXPENDITURE ($0's, real June 2021) | O12: UNITS ADDED | Q12: =CONCATENATE("EXPENDITURE ($0's, real ", dms_DollarReal,")") -> EXPENDITURE ($0's, real June 2021) | R12: MVAR ADDED | T12: =CONCATENATE("EXPENDITURE ($0's, real ", dms_DollarReal,")") -> EXPENDITURE ($0's, real June 2021) | U12: =CONCATENATE("EXPENDITURE ($0's, real ", dms_DollarReal,")") -> EXPENDITURE ($0's, real June 2021) | V12: VOLUME | W12: =CONCATENATE("EXPENDITURE ($0's, real ", dms_DollarReal,")") -> EXPENDITURE ($0's, real June 2021) | X12: =CONCATENATE("EXPENDITURE ($0's, real ", dms_DollarReal,")") -> EXPENDITURE ($0's, real June 2021) | AB12: =CONCATENATE("EXPENDITURE ($0's, real ", dms_DollarReal,")") -> EXPENDITURE ($0's, real June 2021) | AE12: =CONCATENATE("EXPENDITURE ($0's, real ", dms_DollarReal,")") -> EXPENDITURE ($0's, real June 2021)
B13: CLN 3rd 20/33MVA Transformer (RIT-D?) | C13: Zone substation | D13: Clyde North Augmentation | E13: Substation upgrade - capacity | F13: Demand growth | G13: 66 | H13: 87 | I13: 131 | J13: 44 | K13: 87 | L13: 1 | M13: 33 | N13: 1423966.02 | O13: 1 | Q13: 2287263.33 | U13: 0 | W13: 928717.05 | X13: 372674.2 | Y13: 2973954 | Z13: =IF(SUM(N13,Q13,T13,U13,W13,X13,Y13)<>0,SUM(N13,Q13,T13,U13,W13,X13,Y13),"") -> 7986574.6 | AA13: 2021, 2022, 2023, 2024
B14: KMS | C14: Zone substation | D14: REFCL Driven Augmentation | E14: Substation upgrade - capacity | F14: Safety | G14: 66 | U14: 1236216 | W14: 320497 | X14: 61383 | Y14: 408727 | Z14: =IF(SUM(N14,Q14,T14,U14,W14,X14,Y14)<>0,SUM(N14,Q14,T14,U14,W14,X14,Y14),"") -> 2026823 | AA14: 2022, 2023, 2024, 2025, 2026
B15: WGI | C15: Zone substation | D15: REFCL Driven Augmentation | E15: Substation upgrade - capacity | F15: Safety | G15: 66 | L15: 2 | M15: 2 | N15: 276291 | U15: 4250023 | W15: 1123412 | X15: 191733 | Y15: 1475537 | Z15: =IF(SUM(N15,Q15,T15,U15,W15,X15,Y15)<>0,SUM(N15,Q15,T15,U15,W15,X15,Y15),"") -> 7316996 | AA15: 2022, 2023, 2024, 2025, 2026
B16: RWN | C16: Zone substation | D16: REFCL Driven Augmentation | E16: Substation upgrade - capacity | F16: Safety | G16: 66 | L16: 2 | M16: 1.5 | N16: 276290 | R16: 6 | T16: 604574 | U16: 2488332 | W16: 847362 | X16: 179352 | Y16: 1046370.01 | Z16: 5442280.01 | AA16: 2022, 2023, 2024, 2025, 2026
B17: BGE | C17: Zone substation | D17: REFCL Driven Augmentation | E17: Substation upgrade - capacity | F17: Safety | G17: 66 | U17: 1040410 | W17: 93637 | Y17: 208082 | Z17: 1342129 | AA17: 2022, 2023, 2024, 2025, 2026
B18: WOTS | C18: Zone substation | D18: REFCL Driven Augmentation | E18: New substation establishment | F18: Safety | G18: 66 | L18: 2 | M18: 40 | N18: 2315305.237 | O18: 3 | Q18: 1627224.132 | R18: 6 | T18: 215849.5035 | U18: 13175111.86 | W18: 1454118.873 | X18: 2936744.359 | Y18: 8710756.672 | Z18: 30435110.64 | AA18: 2022, 2023, 2024, 2025, 2026
B19: ELM | C19: Zone substation | D19: REFCL Driven Augmentation | E19: New substation establishment | F19: Safety | G19: 66 | L19: 2 | M19: 40 | N19: 2315378.193 | O19: 3 | Q19: 1627275.405 | R19: 6 | T19: 215856.3049 | U19: 7308258 | W19: 984783.1798 | X19: 2936836.896 | Y19: 6974319.553 | Z19: 22362707.53 | AA19: 2022, 2023, 2024, 2025, 2026
B20: LDL | C20: Zone substation | D20: REFCL Driven Augmentation | E20: Substation upgrade - capacity | F20: Safety | G20: 66 | U20: 1535473 | W20: 132435 | Y20: 230321 | Z20: 1898229 | AA20: 2022, 2023, 2024, 2025, 2026
B21: BDL | C21: Zone substation | D21: REFCL Driven Augmentation | E21: New substation establishment | F21: Safety | G21: 66 | L21: 2 | M21: 40 | N21: 2315300.778 | O21: 3 | Q21: 1465261.636 | R21: 6 | T21: 215849.0878 | U21: 9486184.222 | W21: 1146047.113 | X21: 2936738.703 | Y21: 6452481.46 | Z21: 24017863 | AA21: 2022, 2023, 2024, 2025, 2026
B22: WGI | C22: Zone substation | D22: CPA1 | E22: REFCL Station work | F22: Safety | G22: 66 | U22: 4175839.255 | W22: 2160173.119 | Y22: 4320738.98 | Z22: 10656751.35 | AA22: 2021, 2022
B23: SMR | C23: Zone substation | D23: CPA1 | E23: REFCL Station work | F23: Safety | G23: 66 | U23: 6954079.767 | W23: 5049192.861 | Y23: 5253610.736 | Z23: 17256883.36 | AA23: 2021, 2022
B24: WN | C24: Zone substation | D24: CPA1 | E24: REFCL Station work | F24: Safety | G24: 66 | U24: 10951116.25 | W24: 2190710.057 | Y24: 4422639.751 | Z24: 17564466.05 | AA24: 2021, 2022
B25: MYT | C25: Zone substation | D25: CPA1 | E25: REFCL Station work | F25: Safety | G25: 66 | U25: 3279462.949 | W25: 1270354.616 | Y25: 2885985.808 | Z25: 7435803.372 | AA25: 2021, 2022
B26: KLK | C26: Zone substation | D26: CPA1 | E26: REFCL Station work | F26: Safety | G26: 66 | U26: 7070996.429 | W26: 5309890.562 | Y26: 8257925.488 | Z26: 20638812.48 | AA26: 2021, 2022
B27: KMS | C27: Zone substation | D27: CPA1 | E27: REFCL Station work | F27: Safety | G27: 66 | U27: 2260116.262 | W27: 1314007.352 | Y27: 3221092.433 | Z27: 6795216.047 | AA27: 2021, 2022
B28: RUBA | C28: Zone substation | D28: CPA1 | E28: REFCL Station work | F28: Safety | G28: 66 | U28: 2944671.68 | W28: 2617887.884 | Y28: 3477049.806 | Z28: 9039609.37 | AA28: 2021, 2022
B29: BWA | C29: Zone substation | D29: CPA1 | E29: REFCL Station work | F29: Safety | G29: 66 | U29: 2766780.678 | W29: 1453152.047 | Y29: 3429562.993 | Z29: 7649495.718 | AA29: 2021, 2022
B30: WYK | C30: Zone substation | D30: CPA1 | E30: REFCL Station work | F30: Safety | G30: 66 | U30: 4479996.359 | W30: 1968207.432 | Y30: 4387782.074 | Z30: 10835985.86 | AA30: 2021, 2022
B31: RWN | C31: Zone substation | D31: CPA2 | E31: REFCL Station work | F31: Safety | G31: 66 | U31: 3692029.417 | W31: 1922051.55 | Y31: 6467032.114 | Z31: 12081113.08 | AA31: 2021, 2022
B32: ELM | C32: Zone substation | D32: CPA2 | E32: REFCL Station work | F32: Safety | G32: 66 | U32: 5706344.175 | W32: 3463292.62 | Y32: 11769637.66 | Z32: 20939274.46 | AA32: 2021, 2022
B33: FGY | C33: Zone substation | D33: CPA2 | E33: REFCL Station work | F33: Safety | G33: 66 | U33: 10854379.76 | W33: 5916792.561 | Y33: 19693677.3 | Z33: 36464849.63 | AA33: 2021, 2022
B34: WOTS | C34: Zone substation | D34: CPA2 | E34: REFCL Station work | F34: Safety | G34: 66 | U34: 5974976.03 | W34: 2934182.306 | Y34: 9763243.729 | Z34: 18672402.06 | AA34: 2021, 2022
B35: MOE | C35: Zone substation | D35: CPA2 | E35: REFCL Station work | F35: Safety | G35: 66 | U35: 4826724.097 | W35: 2927969.572 | Y35: 9900715.393 | Z35: 17655409.06 | AA35: 2021, 2022
B36: BGE | C36: Zone substation | D36: CPA2 | E36: REFCL Station work | F36: Safety | G36: 66 | U36: 4042483.014 | W36: 2450256.986 | Y36: 8299923.737 | Z36: 14792663.74 | AA36: 2021, 2022
B37: LDL | C37: Zone substation | D37: CPA2 | E37: REFCL Station work | F37: Safety | G37: 66 | U37: 4258529.012 | W37: 2591735.768 | Y37: 8812690.048 | Z37: 15662954.83 | AA37: 2021, 2022
B38: BDL | C38: Zone substation | D38: CPA2 | E38: REFCL Station work | F38: Safety | G38: 66 | U38: 5768853.315 | W38: 2948535.032 | Y38: 9522848.205 | Z38: 18240236.55 | AA38: 2021, 2022
B39: LLG | C39: Zone substation | D39: CPA3 | E39: REFCL Station work | F39: Safety | G39: 66 | U39: 3065772.79 | W39: 1861362.051 | Y39: 6024495.437 | Z39: 10951630.28 | AA39: 2021, 2022, 2023
B40: SLE | C40: Zone substation | D40: CPA3 | E40: REFCL Station work | F40: Safety | G40: 66 | U40: 3092724.591 | W40: 1877725.645 | Y40: 6078045.205 | Z40: 11048495.44 | AA40: 2021, 2022, 2023
B41: MSD | C41: Zone substation | D41: CPA3 | E41: REFCL Station work | F41: Safety | G41: 66 | U41: 4202263.985 | W41: 2551374.562 | Y41: 8261092.813 | Z41: 15014731.36 | AA41: 2021, 2022, 2023
B42: BN | C42: Zone substation | D42: CPA3 | E42: REFCL Station work | F42: Safety | G42: 66 | U42: 3348774.137 | W42: 2033184.297 | Y42: 6580390.94 | Z42: 11962349.37 | AA42: 2021, 2022, 2023
B43: KLO | C43: Zone substation | D43: CPA3 | E43: REFCL Station work | F43: Safety | G43: 66 | U43: 3586001.152 | W43: 2177214.985 | Y43: 7070045.506 | Z43: 12833261.64 | AA43: 2021, 2022, 2023
B44: BGE | C44: Zone substation | D44: DER Hosting Capacity - BGE | E44: Substation upgrade - voltage | F44: Voltage issues | G44: 66 | U44: 331929.2836 | Z44: 331929.2836 | AA44: 2021, 2022, 2023, 2024, 2025. 2026
B45: BRA | C45: Zone substation | D45: DER Hosting Capacity - BRA | E45: Substation upgrade - voltage | F45: Voltage issues | G45: 66 | U45: 331929.2836 | Z45: 331929.2836 | AA45: 2021, 2022, 2023, 2024, 2025. 2026
B46: BRT | C46: Zone substation | D46: DER Hosting Capacity - BRT | E46: Substation upgrade - voltage | F46: Voltage issues | G46: 66 | U46: 331929.2836 | Z46: 331929.2836 | AA46: 2021, 2022, 2023, 2024, 2025. 2026
B47: BWN | C47: Zone substation | D47: DER Hosting Capacity - BWN | E47: Substation upgrade - voltage | F47: Voltage issues | G47: 66 | U47: 331929.2836 | Z47: 331929.2836 | AA47: 2021, 2022, 2023, 2024, 2025. 2026
B48: BWR | C48: Zone substation | D48: DER Hosting Capacity - BWR | E48: Substation upgrade - voltage | F48: Voltage issues | G48: 66 | U48: 331929.2836 | Z48: 331929.2836 | AA48: 2021, 2022, 2023, 2024, 2025. 2026
B49: CF | C49: Zone substation | D49: DER Hosting Capacity - CF | E49: Substation upgrade - voltage | F49: Voltage issues | G49: 66 | U49: 331929.2836 | Z49: 331929.2836 | AA49: 2021, 2022, 2023, 2024, 2025. 2026
B50: CLN | C50: Zone substation | D50: DER Hosting Capacity - CLN | E50: Substation upgrade - voltage | F50: Voltage issues | G50: 66 | U50: 331929.2836 | Z50: 331929.2836 | AA50: 2021, 2022, 2023, 2024, 2025. 2026
B51: CPK | C51: Zone substation | D51: DER Hosting Capacity - CPK | E51: Substation upgrade - voltage | F51: Voltage issues | G51: 66 | U51: 331929.2836 | Z51: 331929.2836 | AA51: 2021, 2022, 2023, 2024, 2025. 2026
B52: CRE | C52: Zone substation | D52: DER Hosting Capacity - CRE | E52: Substation upgrade - voltage | F52: Voltage issues | G52: 66 | U52: 331929.2836 | Z52: 331929.2836 | AA52: 2021, 2022, 2023, 2024, 2025. 2026
B53: CYN | C53: Zone substation | D53: DER Hosting Capacity - CYN | E53: Substation upgrade - voltage | F53: Voltage issues | G53: 66 | U53: 331929.2836 | Z53: 331929.2836 | AA53: 2021, 2022, 2023, 2024, 2025. 2026
B54: DRN | C54: Zone substation | D54: DER Hosting Capacity - DRN | E54: Substation upgrade - voltage | F54: Voltage issues | G54: 66 | U54: 331929.2836 | Z54: 331929.2836 | AA54: 2021, 2022, 2023, 2024, 2025. 2026
B55: EPG | C55: Zone substation | D55: DER Hosting Capacity - EPG | E55: Substation upgrade - voltage | F55: Voltage issues | G55: 66 | U55: 331929.2836 | Z55: 331929.2836 | AA55: 2021, 2022, 2023, 2024, 2025. 2026
B56: FGY | C56: Zone substation | D56: DER Hosting Capacity - FGY | E56: Substation upgrade - voltage | F56: Voltage issues | G56: 66 | U56: 331929.2836 | Z56: 331929.2836 | AA56: 2021, 2022, 2023, 2024, 2025. 2026
B57: FTR | C57: Zone substation | D57: DER Hosting Capacity - FTR | E57: Substation upgrade - voltage | F57: Voltage issues | G57: 66 | U57: 331929.2836 | Z57: 331929.2836 | AA57: 2021, 2022, 2023, 2024, 2025. 2026
B58: HPK | C58: Zone substation | D58: DER Hosting Capacity - HPK | E58: Substation upgrade - voltage | F58: Voltage issues | G58: 66 | U58: 331929.2836 | Z58: 331929.2836 | AA58: 2021, 2022, 2023, 2024, 2025. 2026
B59: KLK | C59: Zone substation | D59: DER Hosting Capacity - KLK | E59: Substation upgrade - voltage | F59: Voltage issues | G59: 66 | U59: 331929.2836 | Z59: 331929.2836 | AA59: 2021, 2022, 2023, 2024, 2025. 2026
B60: KLO | C60: Zone substation | D60: DER Hosting Capacity - KLO | E60: Substation upgrade - voltage | F60: Voltage issues | G60: 66 | U60: 331929.2836 | Z60: 331929.2836 | AA60: 2021, 2022, 2023, 2024, 2025. 2026
B61: KMS | C61: Zone substation | D61: DER Hosting Capacity - KMS | E61: Substation upgrade - voltage | F61: Voltage issues | G61: 66 | U61: 331929.2836 | Z61: 331929.2836 | AA61: 2021, 2022, 2023, 2024, 2025. 2026
B62: LDL | C62: Zone substation | D62: DER Hosting Capacity - LDL | E62: Substation upgrade - voltage | F62: Voltage issues | G62: 66 | U62: 331929.2836 | Z62: 331929.2836 | AA62: 2021, 2022, 2023, 2024, 2025. 2026
B63: LGA | C63: Zone substation | D63: DER Hosting Capacity - LGA | E63: Substation upgrade - voltage | F63: Voltage issues | G63: 66 | U63: 331929.2836 | Z63: 331929.2836 | AA63: 2021, 2022, 2023, 2024, 2025. 2026
B64: LLG | C64: Zone substation | D64: DER Hosting Capacity - LLG | E64: Substation upgrade - voltage | F64: Voltage issues | G64: 66 | U64: 331929.2836 | Z64: 331929.2836 | AA64: 2021, 2022, 2023, 2024, 2025. 2026
B65: LYD | C65: Zone substation | D65: DER Hosting Capacity - LYD | E65: Substation upgrade - voltage | F65: Voltage issues | G65: 66 | U65: 331929.2836 | Z65: 331929.2836 | AA65: 2021, 2022, 2023, 2024, 2025. 2026
B66: MJG | C66: Zone substation | D66: DER Hosting Capacity - MJG | E66: Substation upgrade - voltage | F66: Voltage issues | G66: 66 | U66: 331929.2836 | Z66: 331929.2836 | AA66: 2021, 2022, 2023, 2024, 2025. 2026
B67: MSD | C67: Zone substation | D67: DER Hosting Capacity - MSD | E67: Substation upgrade - voltage | F67: Voltage issues | G67: 66 | U67: 331929.2836 | Z67: 331929.2836 | AA67: 2021, 2022, 2023, 2024, 2025. 2026
B68: MWTS | C68: Zone substation | D68: DER Hosting Capacity - MWTS | E68: Substation upgrade - voltage | F68: Voltage issues | G68: 66 | U68: 331929.2836 | Z68: 331929.2836 | AA68: 2021, 2022, 2023, 2024, 2025. 2026
B69: MYT | C69: Zone substation | D69: DER Hosting Capacity - MYT | E69: Substation upgrade - voltage | F69: Voltage issues | G69: 66 | U69: 331929.2836 | Z69: 331929.2836 | AA69: 2021, 2022, 2023, 2024, 2025. 2026
B70: NLA | C70: Zone substation | D70: DER Hosting Capacity - NLA | E70: Substation upgrade - voltage | F70: Voltage issues | G70: 66 | U70: 331929.2836 | Z70: 331929.2836 | AA70: 2021, 2022, 2023, 2024, 2025. 2026
B71: NRN | C71: Zone substation | D71: DER Hosting Capacity - NRN | E71: Substation upgrade - voltage | F71: Voltage issues | G71: 66 | U71: 331929.2836 | Z71: 331929.2836 | AA71: 2021, 2022, 2023, 2024, 2025. 2026
B72: OFR | C72: Zone substation | D72: DER Hosting Capacity - OFR | E72: Substation upgrade - voltage | F72: Voltage issues | G72: 66 | U72: 331929.2836 | Z72: 331929.2836 | AA72: 2021, 2022, 2023, 2024, 2025. 2026
B73: PHI | C73: Zone substation | D73: DER Hosting Capacity - PHI | E73: Substation upgrade - voltage | F73: Voltage issues | G73: 66 | U73: 331929.2836 | Z73: 331929.2836 | AA73: 2021, 2022, 2023, 2024, 2025. 2026
B74: PHM | C74: Zone substation | D74: DER Hosting Capacity - PHM | E74: Substation upgrade - voltage | F74: Voltage issues | G74: 66 | U74: 331929.2836 | Z74: 331929.2836 | AA74: 2021, 2022, 2023, 2024, 2025. 2026
B75: RUBA | C75: Zone substation | D75: DER Hosting Capacity - RUBA | E75: Substation upgrade - voltage | F75: Voltage issues | G75: 66 | U75: 331929.2836 | Z75: 331929.2836 | AA75: 2021, 2022, 2023, 2024, 2025. 2026
B76: RWN | C76: Zone substation | D76: DER Hosting Capacity - RWN | E76: Substation upgrade - voltage | F76: Voltage issues | G76: 66 | U76: 331929.2836 | Z76: 331929.2836 | AA76: 2021, 2022, 2023, 2024, 2025. 2026
B77: RWT | C77: Zone substation | D77: DER Hosting Capacity - RWT | E77: Substation upgrade - voltage | F77: Voltage issues | G77: 66 | U77: 331929.2836 | Z77: 331929.2836 | AA77: 2021, 2022, 2023, 2024, 2025. 2026
B78: SLE | C78: Zone substation | D78: DER Hosting Capacity - SLE | E78: Substation upgrade - voltage | F78: Voltage issues | G78: 66 | U78: 331929.2836 | Z78: 331929.2836 | AA78: 2021, 2022, 2023, 2024, 2025. 2026
B79: SMG | C79: Zone substation | D79: DER Hosting Capacity - SMG | E79: Substation upgrade - voltage | F79: Voltage issues | G79: 66 | U79: 331929.2836 | Z79: 331929.2836 | AA79: 2021, 2022, 2023, 2024, 2025. 2026
B80: SMR | C80: Zone substation | D80: DER Hosting Capacity - SMR | E80: Substation upgrade - voltage | F80: Voltage issues | G80: 66 | U80: 331929.2836 | Z80: 331929.2836 | AA80: 2021, 2022, 2023, 2024, 2025. 2026
B81: TGN | C81: Zone substation | D81: DER Hosting Capacity - TGN | E81: Substation upgrade - voltage | F81: Voltage issues | G81: 66 | U81: 331929.2836 | Z81: 331929.2836 | AA81: 2021, 2022, 2023, 2024, 2025. 2026
B82: TT | C82: Zone substation | D82: DER Hosting Capacity - TT | E82: Substation upgrade - voltage | F82: Voltage issues | G82: 66 | U82: 331929.2836 | Z82: 331929.2836 | AA82: 2021, 2022, 2023, 2024, 2025. 2026
B83: WGI | C83: Zone substation | D83: DER Hosting Capacity - WGI | E83: Substation upgrade - voltage | F83: Voltage issues | G83: 66 | U83: 331929.2836 | Z83: 331929.2836 | AA83: 2021, 2022, 2023, 2024, 2025. 2026
B84: WGL | C84: Zone substation | D84: DER Hosting Capacity - WGL | E84: Substation upgrade - voltage | F84: Voltage issues | G84: 66 | U84: 331929.2836 | Z84: 331929.2836 | AA84: 2021, 2022, 2023, 2024, 2025. 2026
B85: WN | C85: Zone substation | D85: DER Hosting Capacity - WN | E85: Substation upgrade - voltage | F85: Voltage issues | G85: 66 | U85: 331929.2836 | Z85: 331929.2836 | AA85: 2021, 2022, 2023, 2024, 2025. 2026
B86: WT | C86: Zone substation | D86: DER Hosting Capacity - WT | E86: Substation upgrade - voltage | F86: Voltage issues | G86: 66 | U86: 331929.2836 | Z86: 331929.2836 | AA86: 2021, 2022, 2023, 2024, 2025. 2026
B87: WYK | C87: Zone substation | D87: DER Hosting Capacity - WYK | E87: Substation upgrade - voltage | F87: Voltage issues | G87: 66 | U87: 331929.2836 | Z87: 331929.2836 | AA87: 2021, 2022, 2023, 2024, 2025. 2026
B88: All | C88: Other | D88: Top Down Adjustment | E88: Other | F88: Other | G88: 66 | Y88: -4477388 | Z88: -4477388 | AA88: 2021, 2022, 2023, 2024, 2025. 2026
D89: Non material projects - [forecast]
B92: 2.3.2 - AUGEX ASSET DATA - SUBTRANSMISSION LINES
B93: PROJECT DESCRIPTION AND CHANGES | L93: PLANT AND EQUIPMENT EXPENDITURE AND VOLUME | X93: OTHER EXPENDITURE | Z93: TOTAL DIRECT EXPENDITURE ($0's) | AA93: YEARS INCURRED | AB93: ALL RELATED PARTY CONTRACTS | AD93: ALL NON RELATED PARTY CONTRACTS | AE93: LAND AND EASEMENTS
B94: LINE ID | D94: PROJECT ID | E94: PROJECT TYPE (drop down) | F94: PROJECT TRIGGER (drop down) | G94: VOLTAGE (KV) (drop down) | H94: ROUTE LINE LENGTH ADDED | L94: POLES/TOWERS (INCLUDING STRUCTURES, AND CIVIL WORKS) | O94: OVERHEAD LINES | R94: UNDERGROUND CABLES | U94: OTHER PLANT ITEM | V94: INSTALLATION (LABOUR) | X94: CIVIL WORKS | Y94: OTHER DIRECT | AB94: RELATED PARTY MARGINS | AC94: TOTAL | AE94: LAND PURCHASE | AF94: EASEMENTS
H95: KM ADDED | L95: POLES/TOWERS ADDED | M95: POLES/TOWERS UPGRADED | N95: =CONCATENATE("EXPENDITURE ($0's, real ", dms_DollarReal,")") -> EXPENDITURE ($0's, real June 2021) | O95: CIRCUIT KM ADDED | P95: CIRCUIT KM UPGRADED | Q95: =CONCATENATE("EXPENDITURE ($0's, real ", dms_DollarReal,")") -> EXPENDITURE ($0's, real June 2021) | R95: CIRCUIT KM ADDED | S95: CIRCUIT KM UPGRADED | T95: =CONCATENATE("EXPENDITURE ($0's, real ", dms_DollarReal,")") -> EXPENDITURE ($0's, real June 2021) | U95: =CONCATENATE("EXPENDITURE ($0's, real ", dms_DollarReal,")") -> EXPENDITURE ($0's, real June 2021) | V95: VOLUME | W95: =CONCATENATE("EXPENDITURE ($0's, real ", dms_DollarReal,")") -> EXPENDITURE ($0's, real June 2021) | X95: =CONCATENATE("EXPENDITURE ($0's, real ", dms_DollarReal,")") -> EXPENDITURE ($0's, real June 2021) | AB95: =CONCATENATE("EXPENDITURE ($0's, real ", dms_DollarReal,")") -> EXPENDITURE ($0's, real June 2021) | AE95: =CONCATENATE("EXPENDITURE ($0's, real ", dms_DollarReal,")") -> EXPENDITURE ($0's, real June 2021)
Z96: =IF(SUM(N96,Q96,T96,U96,W96,X96,Y96)<>0,SUM(N96,Q96,T96,U96,W96,X96,Y96),"") -> 
Z97: =IF(SUM(N97,Q97,T97,U97,W97,X97,Y97)<>0,SUM(N97,Q97,T97,U97,W97,X97,Y97),"") -> 
Z98: =IF(SUM(N98,Q98,T98,U98,W98,X98,Y98)<>0,SUM(N98,Q98,T98,U98,W98,X98,Y98),"") -> 
D150: Non material projects - [forecast]

Sheet 2.3 Augex (b)
B1: =INDEX(dms_Worksheet_List,MATCH(dms_Model,dms_Model_List)) -> REGULATORY REPORTING STATEMENT
B2: =INDEX(dms_TradingNameFull_List,MATCH(dms_TradingName,dms_TradingName_List)) -> AusNet Electricity Services Pty Ltd
B3: =dms_Header_Span -> 2021-22 to 2025-26
B4: 2.3 AUGEX PROJECT DATA
B6: There are FOUR tables on this worksheet. These tables have been 'grouped' (and sub-grouped) for easy navigation. See the Instructions sheet on how to group or ungroup tables.
B8: NOTE: DNSP must provide expenditure information on an 'as incurred' basis.
B9: 2.3.3 - AUGEX DATA - HV/LV FEEDERS AND DISTRIBUTION SUBSTATIONS
B10: PROJECT TYPE | C10: Units | D10: VOLUMES (0's)
D11: =CRCP_y4 -> 2019-20 | E11: =CRCP_y5 -> 2020-21 | F11: =FRCP_y1 -> 2021-22 | G11: =FRCP_y2 -> 2022-23 | H11: =FRCP_y3 -> 2023-24 | I11: =FRCP_y4 -> 2024-25 | J11: =FRCP_y5 -> 2025-26
B12: DESCRIPTOR METRICS - UNITS ADDED
B13: HV Feeder Augmentations - Overhead Lines | C13: Circuit Line Length in KM | D13: 99.18 | E13: 82.08 | F13: 34.2 | G13: 37.9 | H13: 32.9 | I13: 25.2 | J13: 26.3
B14: HV Feeder Augmentations - Underground Cables | C14: Circuit Line Length in KM | D14: 0 | E14: 0 | F14: 0 | G14: 0 | H14: 0 | I14: 0 | J14: 0
B15: LV Feeder Augmentations - Overhead Lines | C15: Circuit Line Length in KM | D15: 190.82 | E15: 157.92 | F15: 65.8 | G15: 65.9 | H15: 64.9 | I15: 64.1 | J15: 63.8
B16: LV Feeder Augmentations - Underground Cables | C16: Circuit Line Length in KM | D16: 0 | E16: 0 | F16: 0 | G16: 0 | H16: 0 | I16: 0 | J16: 0
B17: Distribution Substation Augmentations - Pole Mounted | C17: Number | D17: 138.33 | E17: 114.48 | F17: 47.7 | G17: 52.8 | H17: 45.8 | I17: 35.1 | J17: 36.7
B18: Distribution Substation Augmentations - Ground Mounted | C18: Number | D18: 0 | E18: 0 | F18: 0 | G18: 0 | H18: 0 | I18: 0 | J18: 0
B19: Distribution Substation Augmentations - Indoor | C19: Number | D19: 0 | E19: 0 | F19: 0 | G19: 0 | H19: 0 | I19: 0 | J19: 0
B20: DESCRIPTOR METRICS - UNITS UPGRADED
B21: HV Feeder Augmentations - Overhead Lines | C21: Circuit Line Length in KM | D21: 148.77 | E21: 123.12 | F21: 51.3 | G21: 56.8 | H21: 49.3 | I21: 37.8 | J21: 39.5
B22: HV Feeder Augmentations - Underground Cables | C22: Circuit Line Length in KM | D22: 0 | E22: 0 | F22: 0 | G22: 0 | H22: 0 | I22: 0 | J22: 0
B23: LV Feeder Augmentations - Overhead Lines | C23: Circuit Line Length in KM | D23: 286.52 | E23: 237.12 | F23: 98.8 | G23: 98.8 | H23: 97.4 | I23: 96.2 | J23: 95.7
B24: LV Feeder Augmentations - Underground Cables | C24: Circuit Line Length in KM | D24: 0 | E24: 0 | F24: 0 | G24: 0 | H24: 0 | I24: 0 | J24: 0
B25: Distribution Substation Augmentations - Pole Mounted | C25: Number | D25: 207.35 | E25: 171.6 | F25: 71.5 | G25: 79.2 | H25: 68.7 | I25: 52.7 | J25: 55
B26: Distribution Substation Augmentations - Ground Mounted | C26: Number | D26: 0 | E26: 0 | F26: 0 | G26: 0 | H26: 0 | I26: 0 | J26: 0
B27: Distribution Substation Augmentations - Indoor | C27: Number | D27: 0 | E27: 0 | F27: 0 | G27: 0 | H27: 0 | I27: 0 | J27: 0
B29: COST METRICS
B30: PROJECT TYPE | D30: =CONCATENATE("TOTAL DIRECT EXPENDITURE ($0's, real ", dms_DollarReal,")") -> TOTAL DIRECT EXPENDITURE ($0's, real June 2021)
D31: =CRCP_y4 -> 2019-20 | E31: =CRCP_y5 -> 2020-21 | F31: =FRCP_y1 -> 2021-22 | G31: =FRCP_y2 -> 2022-23 | H31: =FRCP_y3 -> 2023-24 | I31: =FRCP_y4 -> 2024-25 | J31: =FRCP_y5 -> 2025-26
B32: HV Feeder Augmentations - Overhead Lines | D32: 16574034 | E32: 12870980 | F32: 5202620 | G32: 5432024 | H32: 4877091 | I32: 4099639 | J32: 4081826
B33: HV Feeder Augmentations - Underground Cables | D33: 0 | E33: 0 | F33: 0 | G33: 0 | H33: 0 | I33: 0 | J33: 0
B34: HV Feeder Non-Material Projects | D34: 8340396 | E34: 6435490 | F34: 2601310 | G34: 2716012 | H34: 2438545 | I34: 2049819 | J34: 2040913
B35: LV Feeder Augmentations - Overhead Lines | D35: 12092946 | E35: 9391080 | F35: 3777320 | G35: 3799935 | H35: 3823903 | I35: 3845184 | J35: 3865177
B36: LV Feeder Augmentations - Underground Cables | D36: 0 | E36: 0 | F36: 0 | G36: 0 | H36: 0 | I36: 0 | J36: 0
B37: LV Feeder Non-Material Projects | D37: 0 | E37: 0 | F37: 0 | G37: 0 | H37: 0 | I37: 0 | J37: 0
B38: Distribution Substation Augmentations - Pole Mounted | D38: 8340396 | E38: 6435490 | F38: 2601310 | G38: 2716012 | H38: 2438545 | I38: 2049819 | J38: 2040913
B39: Distribution Substation Augmentations - Ground Mounted | D39: 0 | E39: 0 | F39: 0 | G39: 0 | H39: 0 | I39: 0 | J39: 0
B40: Distribution Substation Augmentations - Indoor | D40: 0 | E40: 0 | F40: 0 | G40: 0 | H40: 0 | I40: 0 | J40: 0
B45: 2.3.4 - AUGEX - TOTAL EXPENDITURE
D46: =CONCATENATE("TOTAL DIRECT EXPENDITURE ($0's, real ", dms_DollarReal,")") -> TOTAL DIRECT EXPENDITURE ($0's, real June 2021)
D47: =CRCP_y4 -> 2019-20 | E47: =CRCP_y5 -> 2020-21 | F47: =FRCP_y1 -> 2021-22 | G47: =FRCP_y2 -> 2022-23 | H47: =FRCP_y3 -> 2023-24 | I47: =FRCP_y4 -> 2024-25 | J47: =FRCP_y5 -> 2025-26
B48: Subtransmission Substations, Switching Stations, Zone Substations | D48: 96949942 | E48: 79243029 | F48: 28362031 | G48: 25707768 | H48: 24640130 | I48: 31907673 | J48: 34416286
B49: Subtransmission Lines | D49: 0 | E49: 0 | F49: 0 | G49: 0 | H49: 0 | I49: 0 | J49: 0
B50: HV Feeders | D50: 11897078 | E50: 10534194 | F50: 7803930 | G50: 8148035 | H50: 7315636 | I50: 6149458 | J50: 6122740
B51: HV Feeders - Land Purchases and Easements | D51: 0 | E51: 0
B52: Distribution Substations | D52: 8340396 | E52: 6435490 | F52: 2601310 | G52: 2716012 | H52: 2438545 | I52: 2049819 | J52: 2040913
B53: Distribution Substations - Land Purchases and Easements | D53: 0 | E53: 0 | F53: 0 | H53: 0 | I53: 0 | J53: 0
B54: LV Feeders | D54: 5947844 | E54: 5774806 | F54: 3777320 | G54: 3799935 | H54: 3823903 | I54: 3845184 | J54: 3865177
B55: LV Feeders - Land Purchases and Easements | D55: 0 | E55: 0 | F55: 0 | G55: 0 | H55: 0 | I55: 0 | J55: 0
B56: Other Assets | D56: 1938670.037 | E56: 2221657.924 | F56: 883861.0403 | G56: 889152.6602 | H56: 894766.0305 | I56: 899740.5885 | J56: 904418.878
B60: 2.3.5 - AUGEX - BY DRIVER
D61: =CONCATENATE("TOTAL DIRECT EXPENDITURE ($0's, real ", dms_DollarReal,")") -> TOTAL DIRECT EXPENDITURE ($0's, real June 2021)
D62: =CRCP_y4 -> 2019-20 | E62: =CRCP_y5 -> 2020-21 | F62: =FRCP_y1 -> 2021-22 | G62: =FRCP_y2 -> 2022-23 | H62: =FRCP_y3 -> 2023-24 | I62: =FRCP_y4 -> 2024-25 | J62: =FRCP_y5 -> 2025-26
B63: "Greenfield" driven augex (network expansion capex) | D63: 105462734 | E63: 87869508 | F63: 35673024 | G63: 35865591 | H63: 35431236 | I63: 34817785 | J63: 7238066
B64: Reinforcement driven augex (augmentation of the existing network) | D64: 19611196 | E64: 16339669 | F64: 7755428.04 | G64: 5395311.66 | H64: 3681744.03 | I64: 10034089.59 | J64: 40201469
B68: 2.3.6 - AUGEX - GREENFIELDS DRIVEN
D69: =CONCATENATE("TOTAL DIRECT EXPENDITURE ($0's, real ", dms_DollarReal,")") -> TOTAL DIRECT EXPENDITURE ($0's, real June 2021)
D70: =CRCP_y4 -> 2019-20 | E70: =CRCP_y5 -> 2020-21 | F70: =FRCP_y1 -> 2021-22 | G70: =FRCP_y2 -> 2022-23 | H70: =FRCP_y3 -> 2023-24 | I70: =FRCP_y4 -> 2024-25 | J70: =FRCP_y5 -> 2025-26
B71: Subtransmission Substations, Switching Stations, Zone Substations | D71: 96801963.5 | E71: 80596451 | F71: 30000000 | G71: 30000000 | H71: 30000000 | I71: 30000000 | J71: 2200000
B72: Subtransmission Lines | D72: 0 | E72: 0 | F72: 0 | G72: 0 | H72: 0 | I72: 0 | J72: 0
B73: HV Feeders | D73: 4273136.5 | E73: 5095683 | F73: 3121572 | G73: 3259214 | H73: 2926255 | I73: 2459783 | J73: 2449096
B74: HV Feeders - Land Purchases and Easements | E74: 0
B75: Distribution Substations | D75: 1480582.5 | E75: 1987055 | F75: 1040524 | G75: 1086405 | H75: 975418 | I75: 819928 | J75: 816365
B76: Distribution Substations - Land Purchases and Easements | D76: 0 | E76: 0 | F76: 0 | G76: 0 | H76: 0 | I76: 0 | J76: 0
B77: LV Feeders | D77: 5395626.5 | E77: 2263751 | F77: 1510928 | G77: 1519974 | H77: 1529561 | I77: 1538074 | J77: 1546071
B78: LV Feeders - Land Purchases and Easements | D78: 0 | E78: 0 | F78: 0 | G78: 0 | H78: 0 | I78: 0 | J78: 0
B79: Other Assets | D79: 0 | E79: 0 | F79: 0 | G79: 0 | H79: 0 | I79: 0 | J79: 0

Sheet 2.5 Connections
B1: =INDEX(dms_Worksheet_List,MATCH(dms_Model,dms_Model_List)) -> REGULATORY REPORTING STATEMENT
B2: =INDEX(dms_TradingNameFull_List,MATCH(dms_TradingName,dms_TradingName_List)) -> AusNet Electricity Services Pty Ltd
B3: =dms_Header_Span -> 2021-22 to 2025-26
B4: 2.5 CONNECTIONS
B6: There are THREE tables on this worksheet - each has been 'grouped' (and sub-grouped) for easy navigation. See the Instructions sheet on how to group or ungroup tables.
B8: 2.5.1 - DESCRIPTOR METRICS
B9: VOLUMES AND EXPENDITURE - ALL
B10: CONNECTION SUBCATEGORY | C10: DESCRIPTOR METRIC | D10: Unit of Measure | E10: =CONCATENATE("VOLUMES and EXPENDITURE (0's, real ", dms_DollarReal, ")") -> VOLUMES and EXPENDITURE (0's, real June 2021)
E11: =CRCP_y4 -> 2019-20 | F11: =CRCP_y5 -> 2020-21 | G11: =FRCP_y1 -> 2021-22 | H11: =FRCP_y2 -> 2022-23 | I11: =FRCP_y3 -> 2023-24 | J11: =FRCP_y4 -> 2024-25 | K11: =FRCP_y5 -> 2025-26
B12: RESIDENTIAL | C12: Underground connections | D12: 0's | E12: 13998.36593 | F12: 11672.2749 | G12: 16506.85835 | H12: 16442.87721 | I12: 16665.498 | J12: 16807.72946 | K12: 17003.45622
C13: Overhead connections | D13: 0's | E13: 774.7995234 | F13: 646.0520516 | G13: 913.6427814 | H13: 910.1014711 | I13: 922.423372 | J13: 930.2957819 | K13: 941.1291173
C14: Distribution substations installed | D14: MVA added | E14: 80.36141641 | F14: 80.45345999 | G14: 89.79633388 | H14: 90.42598798 | I14: 91.75297042 | J14: 93.23068424 | K14: 94.51040226
C15: Distribution substations installed | D15: 0's | E15: 401.807082 | F15: 402.2673 | G15: 448.9816694 | H15: 452.1299399 | I15: 458.7648521 | J15: 466.1534212 | K15: 472.5520113
C16: Distribution substations installed | D16: total spend $0s | E16: 3504225.931 | F16: 3508239.568 | G16: 3915643.3 | H16: 3943099.887 | I16: 4000964.052 | J16: 4065400.984 | K16: 4121204.145
C17: Augmentation HV | D17: net circuit KM added | E17: 78.90207555 | F17: 78.99244765 | G17: 88.16565757 | H17: 88.78387732 | I17: 90.08676213 | J17: 91.53764108 | K17: 92.79411978
C18: Augmentation HV | D18: total spend $0s | E18: 1625017.14 | F18: 1626878.386 | G18: 1815804.003 | H18: 1828536.466 | I18: 1855369.855 | J18: 1885251.239 | K18: 1911128.878
C19: Augmentation LV | D19: net circuit KM added | E19: 19.72755343 | F19: 19.75014879 | G19: 22.04368781 | H19: 22.19825869 | I19: 22.52401348 | J19: 22.88677063 | K19: 23.20092271
C20: Augmentation LV | D20: total spend $0s | E20: 1556557.724 | F20: 1558340.559 | G20: 1739307.038 | H20: 1751503.101 | I20: 1777206.042 | J20: 1805828.57 | K20: 1830616.025
C21: Mean days to connect residential customer with LV single phase connection | D21: 0's | E21: 8.2025 | F21: 8.2025 | G21: 8.2025 | H21: 8.2025 | I21: 8.2025 | J21: 8.2025 | K21: 8.2025
C22: Volume of GSL breaches for residential customers | D22: 0's | E22: 540.5 | F22: 540.5 | G22: 540.5 | H22: 540.5 | I22: 540.5 | J22: 540.5 | K22: 540.5
C23: Volume of customer complaints relating to connection services | D23: 0's | E23: 258.75 | F23: 258.75 | G23: 258.75 | H23: 258.75 | I23: 258.75 | J23: 258.75 | K23: 258.75
C24: GSL payments | D24: $0's | E24: 120697.5 | F24: 120697.5 | G24: 120697.5 | H24: 120697.5 | I24: 120697.5 | J24: 120697.5 | K24: 120697.5
B25: COMMERCIAL/INDUSTRIAL | C25: Underground connections | D25: 0's | E25: 1560.960725 | F25: 1310.476515 | G25: 1815.090898 | H25: 1806.156694 | I25: 1821.835053 | J25: 1830.555674 | K25: 1849.276314
C26: Overhead connections | D26: 0's | E26: 215.8127747 | F26: 181.1817352 | G26: 250.9478918 | H26: 249.712681 | I26: 251.8803141 | J26: 253.0859956 | K26: 255.6742435
C27: Distribution substations installed | D27: MVA added | E27: 498.2730753 | F27: 493.8182922 | G27: 511.710346 | H27: 512.8297387 | I27: 508.9772088 | J27: 507.6269625 | K27: 511.2153489
C28: Distribution substations installed | D28: 0's | E28: 498.2730753 | F28: 493.8182922 | G28: 511.710346 | H28: 512.8297387 | I28: 508.9772088 | J28: 507.6269625 | K28: 511.2153489
C29: Distribution substations installed | D29: total spend $0s | E29: 10946090.51 | F29: 10848227.59 | G29: 11241281.22 | H29: 11265872.1 | I29: 11181239.51 | J29: 11151577.22 | K29: 11230407.09
C30: Augmentation HV | D30: net circuit KM added | E30: 141.0836306 | F30: 139.8222801 | G30: 144.8883293 | H30: 145.20528 | I30: 144.1144546 | J30: 143.7321389 | K30: 144.7481732
C31: Augmentation HV | D31: total spend $0s | E31: 5709868.033 | F31: 5658819.271 | G31: 5863849.948 | H31: 5876677.421 | I31: 5832530.068 | J31: 5817057.171 | K31: 5858177.62
C32: Augmentation LV | D32: net circuit KM added | E32: 28.96131746 | F32: 28.70239038 | G32: 29.74233711 | H32: 29.8074 | I32: 29.58347792 | J32: 29.50499704 | K32: 29.7135662
C33: Augmentation LV | D33: total spend $0s | E33: 2406292.994 | F33: 2384779.664 | G33: 2471185.143 | H33: 2476590.987 | I33: 2457986.097 | J33: 2451465.399 | K33: 2468794.67
B34: SUBDIVISION | C34: Underground connections | D34: 0's | E34: 451.1584762 | F34: 456.1864261 | G34: 448.6087374 | H34: 449.1171551 | I34: 453.3111966 | J34: 459.1432096 | K34: 460.3020408
C35: Overhead connections | D35: 0's | E35: 60.56322277 | F35: 61.23817152 | G35: 60.22094748 | H35: 60.28919714 | I35: 60.85220257 | J35: 61.63508823 | K35: 61.79064898
C36: Distribution substations installed | D36: MVA added | E36: 259.8185216 | F36: 257.3637073 | G36: 258.1647213 | H36: 260.9227266 | I36: 265.0717322 | J36: 270.4950273 | K36: 274.9123382
C37: Distribution substations installed | D37: 0's | E37: 721.7197325 | F37: 714.9007887 | G37: 717.1258326 | H37: 724.7869756 | I37: 736.312017 | J37: 751.3767592 | K37: 763.6470949
C38: Distribution substations installed | D38: total spend $0s | E38: 14236692.31 | F38: 14102181.36 | G38: 14146072.73 | H38: 14297196.95 | I38: 14524540.7 | J38: 14821708.83 | K38: 15063754.3
C39: Augmentation HV | D39: net circuit KM added | E39: 206.0736535 | F39: 204.1266309 | G39: 204.7619508 | H39: 206.9494477 | I39: 210.2402091 | J39: 214.5416662 | K39: 218.0452324
C40: Augmentation HV | D40: total spend $0s | E40: 8640825.933 | F40: 8559185.784 | G40: 8585825.234 | H40: 8677548.656 | I40: 8815532.796 | J40: 8995896.183 | K40: 9142803.396
C41: Augmentation LV | D41: net circuit KM added | E41: 299.636782 | F41: 296.8057573 | G41: 297.72953 | H41: 300.910211 | I41: 305.6950689 | J41: 311.9495062 | K41: 317.0437883
C42: Augmentation LV | D42: total spend $0s | E42: 12904914.5 | F42: 12782986.44 | G42: 12822771.96 | H42: 12959759.21 | I42: 13165835.98 | J42: 13435205.38 | K42: 13654608.6
C43: Cost per lot | D43: $0's | E43: 2070.216597 | F43: 2070.216597 | G43: 2070.216597 | H43: 2070.216597 | I43: 2070.216597 | J43: 2070.216597 | K43: 2070.216597
B44: EMBEDDED GENERATION | C44: Underground connections | D44: 0's | E44: 0 | F44: 0 | G44: 0 | H44: 0 | I44: 0 | J44: 0 | K44: 0
C45: Overhead connections | D45: 0's | E45: 1 | F45: 1 | G45: 1 | H45: 1 | I45: 1 | J45: 1 | K45: 1
C46: Distribution substations installed | D46: MVA added | E46: 17.56593988 | F46: 20.79111841 | G46: 22.49244045 | H46: 19.39293759 | I46: 16.26080959 | J46: 16.3288324 | K46: 16.39134258
C47: Distribution substations installed | D47: 0's | E47: 35.13187976 | F47: 41.58223682 | G47: 44.98488091 | H47: 38.78587518 | I47: 32.52161918 | J47: 32.65766479 | K47: 32.78268515
C48: Distribution substations installed | D48: total spend $0's | E48: 1192289.189 | F48: 1411198.369 | G48: 1526675.701 | H48: 1316296.764 | I48: 1103703.395 | J48: 1108320.447 | K48: 1112563.329
C49: Augmentation HV | D49: net circuit KM added | E49: 60.89877344 | F49: 72.08003773 | G49: 77.97829461 | H49: 67.2327311 | I49: 56.37406058 | J49: 56.60988659 | K49: 56.82660105
C50: Augmentation HV | D50: total spend $0s | E50: 8807213.655 | F50: 10424254.16 | G50: 11277263.27 | H50: 9723234.048 | I50: 8152847.226 | J50: 8186952.512 | K50: 8218293.875
C51: Augmentation LV | D51: net circuit KM added | E51: 0.0451695597 | F51: 0.05346287591 | G51: 0.05783770402 | H51: 0.0498675538 | I51: 0.04181351037 | J51: 0.04198842616 | K51: 0.04214916662
C52: Augmentation LV | D52: total spend $0s | E52: 33295.58494 | F52: 39408.79075 | G52: 42633.58333 | H52: 36758.59107 | I52: 30821.75907 | J52: 30950.69377 | K52: 31069.17949
B54: VOLUMES AND EXPENDITURE - STANDARD CONTROL SERVICES
B55: CONNECTION SUBCATEGORY | C55: DESCRIPTOR METRIC | D55: Unit of Measure | E55: =CONCATENATE("VOLUMES and EXPENDITURE (0's, real ", dms_DollarReal, ")") -> VOLUMES and EXPENDITURE (0's, real June 2021)
E56: =CRCP_y4 -> 2019-20 | F56: =CRCP_y5 -> 2020-21 | G56: =FRCP_y1 -> 2021-22 | H56: =FRCP_y2 -> 2022-23 | I56: =FRCP_y3 -> 2023-24 | J56: =FRCP_y4 -> 2024-25 | K56: =FRCP_y5 -> 2025-26
B57: RESIDENTIAL | C57: Underground connections | D57: 0's | E57: 2195.438032 | F57: 2268.824869 | G57: 2247.741159 | H57: 2249.164652 | I57: 2262.031259 | J57: 2287.631458 | K57: 2303.768382
C58: Overhead connections | D58: 0's | E58: 121.5159219 | F58: 125.5778307 | G58: 124.4108625 | H58: 124.4896518 | I58: 125.2018093 | J58: 126.6187619 | K58: 127.5119291
C59: Distribution substations installed | D59: MVA added | E59: 99.20676113 | F59: 101.9106651 | G59: 101.9504034 | H59: 102.9383548 | I59: 104.4465357 | J59: 106.3191225 | K59: 107.8110537
C60: Distribution substations installed | D60: 0's | E60: 496.0338057 | F60: 509.5533255 | G60: 509.7520172 | H60: 514.6917738 | I60: 522.2326785 | J60: 531.5956126 | K60: 539.0552685
C61: Distribution substations installed | D61: total spend $0s | E61: 4325992.752 | F61: 4443898.718 | G61: 4445631.541 | H61: 4488711.974 | I61: 4554477.449 | J61: 4636133.144 | K61: 4701190.035
C62: Augmentation HV | D62: net circuit KM added | E62: 97.40519409 | F62: 100.0599959 | G62: 100.0990126 | H62: 101.069023 | I62: 102.5498158 | J62: 104.388397 | K62: 105.8532351
C63: Augmentation HV | D63: total spend $0s | E63: 2006095.642 | F63: 2060772.257 | G63: 2061575.82 | H63: 2081553.54 | I63: 2112051.01 | J63: 2149917.262 | K63: 2180086.14
C64: Augmentation LV | D64: net circuit KM added | E64: 24.35381018 | F64: 25.0175791 | G64: 25.02733428 | H64: 25.26986189 | I64: 25.64009827 | J64: 26.09979097 | K64: 26.46603828
C65: Augmentation LV | D65: total spend $0s | E65: 1921581.988 | F65: 1973955.164 | G65: 1974724.875 | H65: 1993860.964 | I65: 2023073.624 | J65: 2059344.63 | K65: 2088242.541
C66: Mean days to connect residential customer with LV single phase connection | D66: 0's | E66: 8.2025 | F66: 8.2025 | G66: 8.2025 | H66: 8.2025 | I66: 8.2025 | J66: 8.2025 | K66: 8.2025
C67: Volume of GSL breaches for residential customers | D67: 0's | E67: 540.5 | F67: 540.5 | G67: 540.5 | H67: 540.5 | I67: 540.5 | J67: 540.5 | K67: 540.5
C68: Volume of customer complaints relating to connection services | D68: 0's | E68: 258.75 | F68: 258.75 | G68: 258.75 | H68: 258.75 | I68: 258.75 | J68: 258.75 | K68: 258.75
C69: GSL payments | D69: $0's | E69: 120697.5 | F69: 120697.5 | G69: 120697.5 | H69: 120697.5 | I69: 120697.5 | J69: 120697.5 | K69: 120697.5
B70: COMMERCIAL/INDUSTRIAL | C70: Underground connections | D70: 0's | E70: 345.0452885 | F70: 341.7507759 | G70: 346.1434593 | H70: 343.9471176 | I70: 338.0169949 | J70: 334.7224823 | K70: 334.9421164
C71: Overhead connections | D71: 0's | E71: 47.70471153 | F71: 47.24922415 | G71: 47.85654065 | H71: 47.5528824 | I71: 46.73300512 | J71: 46.27751774 | K71: 46.30788356
C72: Distribution substations installed | D72: MVA added | E72: 518.4255137 | F72: 515.3411783 | G72: 526.0422178 | H72: 527.2935701 | I72: 523.0028658 | J72: 521.4541408 | K72: 525.0601277
C73: Distribution substations installed | D73: 0's | E73: 518.4255137 | F73: 515.3411783 | G73: 526.0422178 | H73: 527.2935701 | I73: 523.0028658 | J73: 521.4541408 | K73: 525.0601277
C74: Distribution substations installed | D74: total spend $0s | E74: 11388800.39 | F74: 11321043.54 | G74: 11556124.57 | H74: 11583614.35 | I74: 11489355.92 | J74: 11455333.44 | K74: 11534549.96
C75: Augmentation HV | D75: net circuit KM added | E75: 146.7896968 | F75: 145.9163821 | G75: 148.9463301 | H75: 149.3006445 | I75: 148.0857521 | J75: 147.6472381 | K75: 148.668256
C76: Augmentation HV | D76: total spend $0s | E76: 5940801.169 | F76: 5905456.799 | G76: 6028083.379 | H76: 6042423.019 | I76: 5993254.488 | J76: 5975507.16 | K76: 6016829.299
C77: Augmentation LV | D77: net circuit KM added | E77: 30.13264538 | F77: 29.95337337 | G77: 30.575354 | H77: 30.64808683 | I77: 30.39869658 | J77: 30.30867943 | K77: 30.5182716
C78: Augmentation LV | D78: total spend $0s | E78: 2503614.471 | F78: 2488719.396 | G78: 2540397.557 | H78: 2546440.67 | I78: 2525719.719 | J78: 2518240.515 | K78: 2535654.783
B79: SUBDIVISION | C79: Underground connections | D79: 0's | E79: 451.1584762 | F79: 456.1864261 | G79: 448.6087374 | H79: 449.1171551 | I79: 453.3111966 | J79: 459.1432096 | K79: 460.3020408
C80: Overhead connections | D80: 0's | E80: 60.56322277 | F80: 61.23817152 | G80: 60.22094748 | H80: 60.28919714 | I80: 60.85220257 | J80: 61.63508823 | K80: 61.79064898
C81: Distribution substations installed | D81: MVA added | E81: 259.8185216 | F81: 257.3637073 | G81: 258.1647213 | H81: 260.9227266 | I81: 265.0717322 | J81: 270.4950273 | K81: 274.9123382
C82: Distribution substations installed | D82: 0's | E82: 721.7197325 | F82: 714.9007887 | G82: 717.1258326 | H82: 724.7869756 | I82: 736.312017 | J82: 751.3767592 | K82: 763.6470949
C83: Distribution substations installed | D83: total spend $0s | E83: 14236692.31 | F83: 14102181.36 | G83: 14146072.73 | H83: 14297196.95 | I83: 14524540.7 | J83: 14821708.83 | K83: 15063754.3
C84: Augmentation HV | D84: net circuit KM added | E84: 206.0736535 | F84: 204.1266309 | G84: 204.7619508 | H84: 206.9494477 | I84: 210.2402091 | J84: 214.5416662 | K84: 218.0452324
C85: Augmentation HV | D85: total spend $0s | E85: 8640825.933 | F85: 8559185.784 | G85: 8585825.234 | H85: 8677548.656 | I85: 8815532.796 | J85: 8995896.183 | K85: 9142803.396
C86: Augmentation LV | D86: net circuit KM added | E86: 299.636782 | F86: 296.8057573 | G86: 297.72953 | H86: 300.910211 | I86: 305.6950689 | J86: 311.9495062 | K86: 317.0437883
C87: Augmentation LV | D87: total spend $0s | E87: 12904914.5 | F87: 12782986.44 | G87: 12822771.96 | H87: 12959759.21 | I87: 13165835.98 | J87: 13435205.38 | K87: 13654608.6
C88: Cost per lot | D88: $0's | E88: 2070.216597 | F88: 2070.216597 | G88: 2070.216597 | H88: 2070.216597 | I88: 2070.216597 | J88: 2070.216597 | K88: 2070.216597
B89: EMBEDDED GENERATION | C89: Underground connections | D89: 0's | E89: 0 | F89: 0 | G89: 0 | H89: 0 | I89: 0 | J89: 0 | K89: 0
C90: Overhead connections | D90: 0's | E90: 1 | F90: 1 | G90: 1 | H90: 1 | I90: 1 | J90: 1 | K90: 1
C91: Distribution substations installed | D91: MVA added | E91: 17.56593988 | F91: 20.79111841 | G91: 22.49244045 | H91: 19.39293759 | I91: 16.26080959 | J91: 16.3288324 | K91: 16.39134258
C92: Distribution substations installed | D92: 0's | E92: 35.13187976 | F92: 41.58223682 | G92: 44.98488091 | H92: 38.78587518 | I92: 32.52161918 | J92: 32.65766479 | K92: 32.78268515
C93: Distribution substations installed | D93: total spend $0s | E93: 1192289.189 | F93: 1411198.369 | G93: 1526675.701 | H93: 1316296.764 | I93: 1103703.395 | J93: 1108320.447 | K93: 1112563.329
C94: Augmentation HV | D94: net circuit KM added | E94: 60.89877344 | F94: 72.08003773 | G94: 77.97829461 | H94: 67.2327311 | I94: 56.37406058 | J94: 56.60988659 | K94: 56.82660105
C95: Augmentation HV | D95: total spend $0s | E95: 8807213.655 | F95: 10424254.16 | G95: 11277263.27 | H95: 9723234.048 | I95: 8152847.226 | J95: 8186952.512 | K95: 8218293.875
C96: Augmentation LV | D96: net circuit KM added | E96: 0.0451695597 | F96: 0.05346287591 | G96: 0.05783770402 | H96: 0.0498675538 | I96: 0.04181351037 | J96: 0.04198842616 | K96: 0.04214916662
C97: Augmentation LV | D97: total spend $0s | E97: 33295.58494 | F97: 39408.79075 | G97: 42633.58333 | H97: 36758.59107 | I97: 30821.75907 | J97: 30950.69377 | K97: 31069.17949
B101: 2.5.2 - COST METRICS BY CONNECTION CLASSIFICATION
B102: EXPENDITURE - ALL
B103: CONNECTION SUBCATEGORY | C103: CONNECTION CLASSICIATION | E103: =CONCATENATE("EXPENDITURE ($'0s, real ", dms_DollarReal,")") -> EXPENDITURE ($'0s, real June 2021)
E104: =CRCP_y4 -> 2019-20 | F104: =CRCP_y5 -> 2020-21 | G104: =FRCP_y1 -> 2021-22 | H104: =FRCP_y2 -> 2022-23 | I104: =FRCP_y3 -> 2023-24 | J104: =FRCP_y4 -> 2024-25 | K104: =FRCP_y5 -> 2025-26
B105: RESIDENTIAL | C105: Simple connection LV | E105: 8734926.959 | F105: 8271833.239 | G105: 11386692.59 | H105: 11416661.26 | I105: 11584639.99 | J105: 11736432.19 | K105: 11891584.44
C106: Complex connection LV | E106: 12983186.36 | F106: 13337046.2 | G106: 13342246.75 | H106: 13471539.92 | I106: 13668915.52 | J106: 13913980.91 | K106: 14109229.91
C107: Complex connection HV | E107: 5136339.903 | F107: 5276332.074 | G107: 5278389.49 | H107: 5329539.773 | I107: 5407624.469 | J107: 5504575.95 | K107: 5581819.331
B108: COMMERCIAL/INDUSTRIAL | C108: Simple connection LV | E108: 400311.431 | F108: 331580.0644 | G108: 678504.5027 | H108: 675761.5228 | I108: 684530.3513 | J108: 689490.4997 | K108: 697731.8366
C109: Complex connection HV (customer connected at LV, minor HV works) | E109: 4411766.838 | F109: 4385519.348 | G109: 4476584.487 | H109: 4487233.412 | I109: 4450719.802 | J109: 4437540.254 | K109: 4468226.965
C110: Complex connection HV (customer connected at LV, upstream asset works) | E110: 10720489.24 | F110: 10656708.45 | G110: 10877994.59 | H110: 10903871.23 | I110: 10815144.02 | J110: 10783118.03 | K110: 10857686.01
C111: Complex connection HV (customer connected at HV) | E111: 6528696.087 | F111: 6489854.078 | G111: 6624615.645 | H111: 6640374.319 | I111: 6586340.126 | J111: 6566836.543 | K111: 6612247.874
C112: Complex connection sub-transmission | E112: 121740.8492 | F112: 121016.5607 | G112: 123529.4649 | H112: 123823.3175 | I112: 122815.7398 | J112: 122452.0557 | K112: 123298.8426
B113: SUBDIVISION | C113: Complex connection LV | E113: 21513150.14 | F113: 21309889.85 | G113: 21376214.36 | H113: 21604579.07 | I113: 21948119.55 | J113: 22397172.07 | K113: 22762928.42
C114: Complex connection HV (no upstream asset works) | E114: 23526422.28 | F114: 23304140.22 | G114: 23376671.59 | H114: 23626407.43 | I114: 24002097.58 | J114: 24493173.92 | K114: 24893158.96
C115: Complex connection HV (with upstream asset works) | E115: 108685.0916 | F115: 107658.2144 | G115: 107993.2878 | H115: 109146.9933 | I115: 110882.5703 | J115: 113151.1973 | K115: 114999.0096
B116: EMBEDDED GENERATION | C116: Simple connection LV | E116: 0 | F116: 0 | G116: 0 | H116: 0 | I116: 0 | J116: 0 | K116: 0
C117: Complex connection HV (small capacity) | E117: 0 | F117: 0 | G117: 0 | H117: 0 | I117: 0 | J117: 0 | K117: 0
C118: Complex connection HV (large capacity) | E118: 12165327.86 | F118: 14398931.9 | G118: 15577185.99 | H118: 13430618.89 | I118: 11261457.19 | J118: 11308566.53 | K118: 11351858.08
B120: EXPENDITURE - STANDARD CONTROL SERVICES
E121: =CONCATENATE("EXPENDITURE ($'0s, real ", dms_DollarReal,")") -> EXPENDITURE ($'0s, real June 2021)
E122: =CRCP_y4 -> 2019-20 | F122: =CRCP_y5 -> 2020-21 | G122: =FRCP_y1 -> 2021-22 | H122: =FRCP_y2 -> 2022-23 | I122: =FRCP_y3 -> 2023-24 | J122: =FRCP_y4 -> 2024-25 | K122: =FRCP_y5 -> 2025-26
B123: RESIDENTIAL | C123: Simple connection LV | E123: 2994837.791 | F123: 3100621.534 | G123: 3085723.995 | H123: 3118970.2 | I123: 3159967.827 | J123: 3208798.617 | K123: 3249621.97
C124: Complex connection LV | E124: 6940486.615 | F124: 7185638.674 | G124: 7151113.876 | H124: 7228161.401 | I124: 7323172.717 | J124: 7436337.259 | K124: 7530944.699
C125: Complex connection HV | E125: 2745758.813 | F125: 2842744.581 | G125: 2829086.062 | H125: 2859567.198 | I125: 2897155.076 | J125: 2941924.637 | K125: 2979352.734
B126: COMMERCIAL/INDUSTRIAL | C126: Simple connection LV | E126: 31806.96848 | F126: 31782.47551 | G126: 32303.75952 | H126: 32402.97565 | I126: 32105.05851 | J126: 31956.88883 | K126: 32148.30398
C127: Complex connection HV (customer connected at LV, minor HV works) | E127: 2686192.026 | F127: 2684123.523 | G127: 2728147.491 | H127: 2736526.584 | I127: 2711366.606 | J127: 2698853.241 | K127: 2715018.813
C128: Complex connection HV (customer connected at LV, upstream asset works) | E128: 6527383.19 | F128: 6522356.777 | G128: 6629333.979 | H128: 6649694.978 | I128: 6588556.825 | J128: 6558149.642 | K128: 6597431.602
C129: Complex connection HV (customer connected at HV) | E129: 3975126.522 | F129: 3972065.475 | G129: 4037213.774 | H129: 4049613.467 | I129: 4012380.799 | J129: 3993863.057 | K129: 4017785.47
C130: Complex connection sub-transmission | E130: 74124.33844 | F130: 74067.25897 | G130: 75282.08183 | H130: 75513.29939 | I130: 74819.02038 | J130: 74473.71933 | K130: 74919.80149
B131: SUBDIVISION | C131: Complex connection LV | E131: 4552092.081 | F131: 4529163.63 | G131: 4525659.307 | H131: 4574301.707 | I131: 4645444.512 | J131: 4737914.603 | K131: 4813546.549
C132: Complex connection HV (no upstream asset works) | E132: 4978091.998 | F132: 4953017.826 | G132: 4949185.557 | H132: 5002380.074 | I132: 5080180.66 | J132: 5181304.409 | K132: 5264014.244
C133: Complex connection HV (with upstream asset works) | E133: 22997.30822 | F133: 22881.47299 | G133: 22863.76904 | H133: 23109.51193 | I133: 23468.92755 | J133: 23936.08927 | K133: 24318.18418
B134: EMBEDDED GENERATION | C134: Simple connection LV | E134: 0 | F134: 0 | G134: 0 | H134: 0 | I134: 0 | J134: 0 | K134: 0
C135: Complex connection HV (small capacity) | E135: 0 | F135: 0 | G135: 0 | H135: 0 | I135: 0 | J135: 0 | K135: 0
C136: Complex connection HV (large capacity) | E136: -1121089.702 | F136: -1196463.925 | G136: -1414861.797 | H136: -1204417.474 | I136: -1031220.851 | J136: -1068009.413 | K136: -1089784.128
B138: EXPENDITURE - STANDARD CONTROL SERVICES - CAPITAL CONTRIBUTIONS
E139: =CONCATENATE("EXPENDITURE ($'0s, real ", dms_DollarReal,")") -> EXPENDITURE ($'0s, real June 2021)
E140: =CRCP_y4 -> 2019-20 | F140: =CRCP_y5 -> 2020-21 | G140: =FRCP_y1 -> 2021-22 | H140: =FRCP_y2 -> 2022-23 | I140: =FRCP_y3 -> 2023-24 | J140: =FRCP_y4 -> 2024-25 | K140: =FRCP_y5 -> 2025-26
B141: RESIDENTIAL | C141: Simple connection LV | E141: 2607440.45 | F141: 2654348.139 | G141: 2671489.73 | H141: 2694033.859 | I141: 2738204.31 | J141: 2795119.864 | K141: 2838546.955
C142: Complex connection LV | E142: 6042699.74 | F142: 6151407.526 | G142: 6191132.878 | H142: 6243378.52 | I142: 6345742.803 | J142: 6477643.652 | K142: 6578285.209
C143: Complex connection HV | E143: 2390581.091 | F143: 2433587.493 | G143: 2449303.428 | H143: 2469972.574 | I143: 2510469.394 | J143: 2562651.314 | K143: 2602466.597
B144: COMMERCIAL/INDUSTRIAL | C144: Simple connection LV | E144: 20432.38277 | F144: 20146.08146 | G144: 20703.09192 | H144: 20729.9688 | I144: 20595.53143 | J144: 20587.64322 | K144: 20759.58676
C145: Complex connection HV (customer connected at LV, minor HV works) | E145: 1725574.812 | F145: 1701395.825 | G145: 1748436.996 | H145: 1750706.828 | I145: 1739353.196 | J145: 1738687.014 | K145: 1753208.152
C146: Complex connection HV (customer connected at LV, upstream asset works) | E146: 4193106.045 | F146: 4134351.677 | G146: 4248660.612 | H146: 4254176.249 | I146: 4226587.193 | J146: 4224968.386 | K146: 4260254.407
C147: Complex connection HV (customer connected at HV) | E147: 2553569.565 | F147: 2517788.603 | G147: 2587401.871 | H147: 2590760.852 | I147: 2573959.328 | J147: 2572973.487 | K147: 2594462.404
C148: Complex connection sub-transmission | E148: 47616.51072 | F148: 46949.30174 | G148: 48247.38305 | H148: 48310.0181 | I148: 47996.71942 | J148: 47978.3364 | K148: 48379.04108
B149: SUBDIVISION | C149: Complex connection LV | E149: 16961058.06 | F149: 16780726.22 | G149: 16850555.05 | H149: 17030277.36 | I149: 17302675.04 | J149: 17659257.47 | K149: 17949381.87
C150: Complex connection HV (no upstream asset works) | E150: 18548330.28 | F150: 18351122.39 | G150: 18427486.03 | H150: 18624027.36 | I150: 18921916.92 | J150: 19311869.51 | K150: 19629144.72
C151: Complex connection HV (with upstream asset works) | E151: 85687.78333 | F151: 84776.74139 | G151: 85129.51875 | H151: 86037.48137 | I151: 87413.64276 | J151: 89215.10806 | K151: 90680.82539
B152: EMBEDDED GENERATION | C152: Simple connection LV | E152: 0 | F152: 0 | G152: 0 | H152: 0 | I152: 0 | J152: 0 | K152: 0
C153: Complex connection HV (small capacity) | E153: 0 | F153: 0 | G153: 0 | H153: 0 | I153: 0 | J153: 0 | K153: 0
C154: Complex connection HV (large capacity) | E154: 13286417.57 | F154: 15595395.82 | G154: 16992047.78 | H154: 14635036.37 | I154: 12292678.04 | J154: 12376575.94 | K154: 12441642.21
B158: 2.5.3 - VOLUMES BY CONNECTION CLASSIFICATION
B159: NEW CONNECTIONS - ALL
E160: VOLUMES (0's)
E161: =CRCP_y4 -> 2019-20 | F161: =CRCP_y5 -> 2020-21 | G161: =FRCP_y1 -> 2021-22 | H161: =FRCP_y2 -> 2022-23 | I161: =FRCP_y3 -> 2023-24 | J161: =FRCP_y4 -> 2024-25 | K161: =FRCP_y5 -> 2025-26
B162: RESIDENTIAL | C162: Simple connection LV | E162: 13321.05803 | F162: 10817.67998 | G162: 15933.79935 | H162: 15865.33537 | I162: 16091.76783 | J162: 16224.93921 | K162: 16420.82601
C163: Complex connection LV | E163: 1137.759458 | F163: 1175.791307 | G163: 1164.864927 | H163: 1165.602635 | I163: 1172.2706 | J163: 1185.537596 | K163: 1193.900364
C164: Complex connection HV | E164: 314.3479671 | F164: 324.8556666 | G164: 321.8368515 | H164: 322.0406706 | I164: 323.8829415 | J164: 327.548438 | K164: 329.8589607
B165: COMMERCIAL/INDUSTRIAL | C165: Simple connection LV | E165: 1390.750989 | F165: 1109.321504 | G165: 1678.78769 | H165: 1671.075452 | I165: 1695.555822 | J165: 1709.16789 | K165: 1730.231061
C166: Complex connection HV (customer connected at LV, minor HV works) | E166: 146.3336995 | F166: 144.9364968 | G166: 146.7994338 | H166: 145.8679653 | I166: 143.3530003 | J166: 141.9557976 | K166: 142.0489445
C167: Complex connection HV (customer connected at LV, upstream asset works) | E167: 105.2363579 | F167: 104.231555 | G167: 105.5712922 | H167: 104.9014236 | I167: 103.0927784 | J167: 102.0879755 | K167: 102.1549623
C168: Complex connection HV (customer connected at HV) | E168: 127.2671241 | F168: 126.0519702 | G168: 127.6721754 | H168: 126.8620728 | I168: 124.6747957 | J168: 123.4596417 | K168: 123.540652
C169: Complex connection sub-transmission | E169: 7.185329911 | F169: 7.116723961 | G169: 7.208198562 | H169: 7.162461261 | I169: 7.03897055 | J169: 6.970364599 | K169: 6.974938329
B170: SUBDIVISION | C170: Complex connection LV | E170: 272.3007422 | F170: 275.3354064 | G170: 270.7618245 | H170: 271.0686845 | I170: 273.6000359 | J170: 277.1199996 | K170: 277.8194226
C171: Complex connection HV (no upstream asset works) | E171: 234.3306888 | F171: 236.9421945 | G171: 233.0063602 | H171: 233.2704312 | I171: 235.4488069 | J171: 238.4779412 | K171: 239.0798354
C172: Complex connection HV (with upstream asset works) | E172: 5.090268019 | F172: 5.146996672 | G172: 5.061500181 | H172: 5.067236485 | I172: 5.114556433 | J172: 5.180357057 | K172: 5.193431756
B173: EMBEDDED GENERATION | C173: Simple connection LV | E173: 0 | F173: 0 | G173: 0 | H173: 0 | I173: 0 | J173: 0 | K173: 0
C174: Complex connection HV (small capacity) | E174: 0 | F174: 0 | G174: 0 | H174: 0 | I174: 0 | J174: 0 | K174: 0
C175: Complex connection HV (large capacity) | E175: 1 | F175: 1 | G175: 1 | H175: 1 | I175: 1 | J175: 1 | K175: 1
B177: NEW CONNECTIONS - STANDARD CONTROL SERVICES
E178: VOLUMES (0's)
E179: =CRCP_y4 -> 2019-20 | F179: =CRCP_y5 -> 2020-21 | G179: =FRCP_y1 -> 2021-22 | H179: =FRCP_y2 -> 2022-23 | I179: =FRCP_y3 -> 2023-24 | J179: =FRCP_y4 -> 2024-25 | K179: =FRCP_y5 -> 2025-26
B180: RESIDENTIAL | C180: Simple connection LV | E180: 864.8465287 | F180: 893.7557261 | G180: 885.450243 | H180: 886.0109981 | I180: 891.0795264 | J180: 901.1641851 | K180: 907.5209863
C181: Complex connection LV | E181: 1137.759458 | F181: 1175.791307 | G181: 1164.864927 | H181: 1165.602635 | I181: 1172.2706 | J181: 1185.537596 | K181: 1193.900364
C182: Complex connection HV | E182: 314.3479671 | F182: 324.8556666 | G182: 321.8368515 | H182: 322.0406706 | I182: 323.8829415 | J182: 327.548438 | K182: 329.8589607
B183: COMMERCIAL/INDUSTRIAL | C183: Simple connection LV | E183: 6.727488529 | F183: 6.663254075 | G183: 6.748900014 | H183: 6.706077045 | I183: 6.590455027 | J183: 6.526220572 | K183: 6.530502869
C184: Complex connection HV (customer connected at LV, minor HV works) | E184: 146.3336995 | F184: 144.9364968 | G184: 146.7994338 | H184: 145.8679653 | I184: 143.3530003 | J184: 141.9557976 | K184: 142.0489445
C185: Complex connection HV (customer connected at LV, upstream asset works) | E185: 105.2363579 | F185: 104.231555 | G185: 105.5712922 | H185: 104.9014236 | I185: 103.0927784 | J185: 102.0879755 | K185: 102.1549623
C186: Complex connection HV (customer connected at HV) | E186: 127.2671241 | F186: 126.0519702 | G186: 127.6721754 | H186: 126.8620728 | I186: 124.6747957 | J186: 123.4596417 | K186: 123.540652
C187: Complex connection sub-transmission | E187: 7.185329911 | F187: 7.116723961 | G187: 7.208198562 | H187: 7.162461261 | I187: 7.03897055 | J187: 6.970364599 | K187: 6.974938329
B188: SUBDIVISION | C188: Complex connection LV | E188: 272.3007422 | F188: 275.3354064 | G188: 270.7618245 | H188: 271.0686845 | I188: 273.6000359 | J188: 277.1199996 | K188: 277.8194226
C189: Complex connection HV (no upstream asset works) | E189: 234.3306888 | F189: 236.9421945 | G189: 233.0063602 | H189: 233.2704312 | I189: 235.4488069 | J189: 238.4779412 | K189: 239.0798354
C190: Complex connection HV (with upstream asset works) | E190: 5.090268019 | F190: 5.146996672 | G190: 5.061500181 | H190: 5.067236485 | I190: 5.114556433 | J190: 5.180357057 | K190: 5.193431756
B191: EMBEDDED GENERATION | C191: Simple connection LV | E191: 0 | F191: 0 | G191: 0 | H191: 0 | I191: 0 | J191: 0 | K191: 0
C192: Complex connection HV (small capacity) | E192: 0 | F192: 0 | G192: 0 | H192: 0 | I192: 0 | J192: 0 | K192: 0
C193: Complex connection HV (large capacity) | E193: 1 | F193: 1 | G193: 1 | H193: 1 | I193: 1 | J193: 1 | K193: 1
B195: EXISTING CONNECTIONS
E196: VOLUMES (0's)
E197: =CRCP_y4 -> 2019-20 | F197: =CRCP_y5 -> 2020-21 | G197: =FRCP_y1 -> 2021-22 | H197: =FRCP_y2 -> 2022-23 | I197: =FRCP_y3 -> 2023-24 | J197: =FRCP_y4 -> 2024-25 | K197: =FRCP_y5 -> 2025-26
B198: RESIDENTIAL | C198: Simple connection LV | E198: 645115.9908 | F198: 654894.334
C199: Complex connection LV | E199: 55054.83658 | F199: 56136.54368
C200: Complex connection HV | E200: 13853.73116 | F200: 14156.50783
B201: COMMERCIAL/INDUSTRIAL | C201: Simple connection LV | E201: 71830.41326 | F201: 72560.41882
C202: Complex connection HV (customer connected at LV, minor HV works) | E202: 6527.538806 | F202: 6637.553115
C203: Complex connection HV (customer connected at LV, upstream asset works) | E203: 4900.08843 | F203: 4978.923283
C204: Complex connection HV (customer connected at HV) | E204: 719.8770548 | F204: 816.5638603
C205: Complex connection sub-transmission | E205: 35.25204244 | F205: 42.3687664
B206: SUBDIVISION | C206: Complex connection LV | E206: 5091.272298 | F206: 5366.607704
C207: Complex connection HV (no upstream asset works) | E207: 4694.185577 | F207: 4931.127771
C208: Complex connection HV (with upstream asset works) | E208: 20.22630295 | F208: 25.37329962
B209: EMBEDDED GENERATION | C209: Simple connection LV | E209: 0 | F209: 0
C210: Complex connection HV (small capacity) | E210: 33 | F210: 33
C211: Complex connection HV (large capacity) | E211: 3.5 | F211: 4.5

Sheet 2.6 Non-network
B1: =INDEX(dms_Worksheet_List,MATCH(dms_Model,dms_Model_List)) -> REGULATORY REPORTING STATEMENT
B2: =INDEX(dms_TradingNameFull_List,MATCH(dms_TradingName,dms_TradingName_List)) -> AusNet Electricity Services Pty Ltd
B3: =dms_Header_Span -> 2021-22 to 2025-26
B4: 2.6 NON NETWORK EXPENDITURE
B6: There are THREE tables on this worksheet - each has been 'grouped' (and sub-grouped) for easy navigation. See the Instructions sheet on how to group or ungroup tables.
B8: 2.6.1 - NON-NETWORK EXPENDITURE
E9: =CONCATENATE("EXPENDITURE ($'0s, real ", dms_DollarReal,")") -> EXPENDITURE ($'0s, real June 2021)
B10: SERVICE SUBCATEGORY | C10: ASSET CATEGORY | E10: =CRCP_y4 -> 2019-20 | F10: =CRCP_y5 -> 2020-21 | G10: =FRCP_y1 -> 2021-22 | H10: =FRCP_y2 -> 2022-23 | I10: =FRCP_y3 -> 2023-24 | J10: =FRCP_y4 -> 2024-25 | K10: =FRCP_y5 -> 2025-26
B11: OPEX
B12: IT & COMMUNICATIONS | C12: Total IT and communications | E12: 24578686.03 | F12: 24578686.03 | G12: 29103570.4 | H12: 29373633.86 | I12: 29303164.92 | J12: 29766257.86 | K12: 30110577.43
B13: MOTOR VEHICLES | C13: Car | E13: 95657.71896 | F13: 95657.71896 | G13: 95657.71896 | H13: 95657.71896 | I13: 95657.71896 | J13: 95657.71896 | K13: 95657.71896
C14: Light commercial vehicle | E14: 951482.4281 | F14: 951482.4281 | G14: 951482.4281 | H14: 951482.4281 | I14: 951482.4281 | J14: 951482.4281 | K14: 951482.4281
C15: Elevated work platform (LCV) | E15: 0 | F15: 0 | G15: 0 | H15: 0 | I15: 0 | J15: 0 | K15: 0
C16: Elevated work platform (HCV) | E16: 304372.1341 | F16: 304372.1341 | G16: 304372.1341 | H16: 304372.1341 | I16: 304372.1341 | J16: 304372.1341 | K16: 304372.1341
C17: Heavy commercial vehicle | E17: 151588.2394 | F17: 151588.2394 | G17: 151588.2394 | H17: 151588.2394 | I17: 151588.2394 | J17: 151588.2394 | K17: 151588.2394
B18: BUILDINGS AND PROPERTY | C18: Total buildings and property expenditure | E18: 5903774.299 | F18: 5903774.299 | G18: 5903774.299 | H18: 5903774.299 | I18: 5903774.299 | J18: 5903774.299 | K18: 5903774.299
B19: OTHER | C19: Other expenditure | E19: 0 | F19: 0 | G19: 0 | H19: 0 | I19: 0 | J19: 0 | K19: 0
B20: OTHER - DNSP nominated
B31: CAPEX
B32: IT & COMMUNICATIONS | C32: Total IT and communications | E32: 61136772.73 | F32: 53837866.26 | G32: 45435736.4 | H32: 31676147.24 | I32: 36245473.03 | J32: 27536544.13 | K32: 26953136.88
B33: MOTOR VEHICLES | C33: Car | E33: 804734.7207 | F33: 1039496.515 | G33: 1688171.418 | H33: 1791467.788 | I33: 2161262.59 | J33: 2761993.832 | K33: 2999889.087
C34: Light commercial vehicle | E34: 677056.837 | F34: 874571.7118 | G34: 918638.7505 | H34: 641474.3782 | I34: 799121.2231 | J34: 1554965.861 | K34: 2045018.51
C35: Elevated work platform (LCV) | E35: 0 | F35: 0 | G35: 0 | H35: 0 | I35: 0 | J35: 0 | K35: 0
C36: Elevated work platform (HCV) | E36: 141219.2137 | F36: 182416.4867 | G36: 0 | H36: 0 | I36: 254549.8202 | J36: 411464.158 | K36: 313830.1638
C37: Heavy commercial vehicle | E37: 98807.82205 | F37: 127632.6024 | G37: 181098.1354 | H37: 211556.1193 | I37: 224600.7327 | J37: 239012.5318 | K37: 293269.6943
B38: BUILDINGS AND PROPERTY | C38: Total buildings and property expenditure | E38: 18571114.14 | F38: 2327558.433 | G38: 4766583.05 | H38: 2188507.401 | I38: 892170.9919 | J38: 2625977.293 | K38: 9479194.606
B39: OTHER | C39: Other expenditure | E39: 0 | F39: 0 | G39: 1277847.13 | H39: 1280934.485 | I39: 1284206.645 | J39: 1287111.93 | K39: 1289841.441
B40: OTHER - DNSP nominated | C40: General furniture and equipment | E40: 1685092.439 | F40: 1634660.719 | G40: 1585908.826 | H40: 1589740.476 | I40: 1593801.484 | J40: 1597407.171 | K40: 1600794.71
C41: Land purchases - REFCL | E41: 863013.5526 | F41: 869063.9218 | G41: 34640.55674 | H41: 366110.1504 | I41: 637591.2661 | J41: 926090.5523 | K41: 1004834.097
C42: Live line equipment - REFCL | E42: 391694.7178 | F42: 112200 | G42: 0 | H42: 0 | I42: 0 | J42: 0 | K42: 0
B54: 2.6.2 - ANNUAL DESCRIPTOR METRICS
B55: IT & COMMUNICATIONS
E56: VOLUMES (0's)
E57: =CRCP_y4 -> 2019-20 | F57: =CRCP_y5 -> 2020-21 | G57: =FRCP_y1 -> 2021-22 | H57: =FRCP_y2 -> 2022-23 | I57: =FRCP_y3 -> 2023-24 | J57: =FRCP_y4 -> 2024-25 | K57: =FRCP_y5 -> 2025-26
B58: Employee numbers | E58: 910 | F58: 910 | G58: 910 | H58: 910 | I58: 910 | J58: 910 | K58: 910
B59: User numbers | E59: 2150 | F59: 2150 | G59: 2150 | H59: 2150 | I59: 2150 | J59: 2150 | K59: 2150
B60: Number of devices | E60: 1832 | F60: 1832 | G60: 1832 | H60: 1832 | I60: 1832 | J60: 1832 | K60: 1832
B62: MOTOR VEHICLES
E63: VOLUMES (0's or %)
B64: ASSET CATEGORY | C64: DESCRIPTOR METRIC | D64: Units | E64: =CRCP_y4 -> 2019-20 | F64: =CRCP_y5 -> 2020-21 | G64: =FRCP_y1 -> 2021-22 | H64: =FRCP_y2 -> 2022-23 | I64: =FRCP_y3 -> 2023-24 | J64: =FRCP_y4 -> 2024-25 | K64: =FRCP_y5 -> 2025-26
B65: CAR | C65: Average kilometres travelled | D65: 0's | E65: 24987 | F65: 24987 | G65: 24987 | H65: 24987 | I65: 24987 | J65: 24987 | K65: 24987
C66: Number purchased | D66: 0's | E66: 22 | F66: 22 | G66: 37 | H66: 38 | I66: 44 | J66: 58 | K66: 64
C67: Number leased | D67: 0's | E67: 0 | F67: 0 | G67: 0 | H67: 0 | I67: 0 | J67: 0 | K67: 0
C68: Number in fleet | D68: 0's | E68: 280 | F68: 280 | G68: 280 | H68: 280 | I68: 280 | J68: 280 | K68: 280
C69: Proportion of total fleet expenditure allocated as regulatory expenditure | D69: % | E69: 1 | F69: 1 | G69: 1 | H69: 1 | I69: 1 | J69: 1 | K69: 1
B70: LIGHT COMMERCIAL VEHICLE | C70: Average kilometres travelled | D70: 0's | E70: 24944 | F70: 24944 | G70: 24944 | H70: 24944 | I70: 24944 | J70: 24944 | K70: 24944
C71: Number purchased | D71: 0's | E71: 11 | F71: 11 | G71: 12 | H71: 9 | I71: 11 | J71: 19 | K71: 24
C72: Number leased | D72: 0's | E72: 0 | F72: 0 | G72: 0 | H72: 0 | I72: 0 | J72: 0 | K72: 0
C73: Number in fleet | D73: 0's | E73: 78 | F73: 78 | G73: 78 | H73: 78 | I73: 78 | J73: 78 | K73: 78
C74: Proportion of total fleet expenditure allocated as regulatory expenditure | D74: % | E74: 1 | F74: 1 | G74: 1 | H74: 1 | I74: 1 | J74: 1 | K74: 1
B75: ELEVATED WORK PLATFORM (LCV) | C75: Average kilometres travelled | D75: 0's | E75: 0 | F75: 0 | G75: 0 | H75: 0 | I75: 0 | J75: 0 | K75: 0
C76: Number purchased | D76: 0's | E76: 0 | F76: 0 | G76: 0 | H76: 0 | I76: 0 | J76: 0 | K76: 0
C77: Number leased | D77: 0's | E77: 0 | F77: 0 | G77: 0 | H77: 0 | I77: 0 | J77: 0 | K77: 0
C78: Number in fleet | D78: 0's | E78: 0 | F78: 0 | G78: 0 | H78: 0 | I78: 0 | J78: 0 | K78: 0
C79: Proportion of total fleet expenditure allocated as regulatory expenditure | D79: % | E79: 0 | F79: 0 | G79: 0 | H79: 0 | I79: 0 | J79: 0 | K79: 0
B80: ELEVATED WORK PLATFORM (HCV) | C80: Average kilometres travelled | D80: 0's | E80: 12530 | F80: 12530 | G80: 12530 | H80: 12530 | I80: 12530 | J80: 12530 | K80: 12530
C81: Number purchased | D81: 0's | E81: 1 | F81: 1 | G81: 0 | H81: 0 | I81: 1 | J81: 1 | K81: 1
C82: Number leased | D82: 0's | E82: 0 | F82: 0 | G82: 0 | H82: 0 | I82: 0 | J82: 0 | K82: 0
C83: Number in fleet | D83: 0's | E83: 8 | F83: 8 | G83: 8 | H83: 8 | I83: 8 | J83: 8 | K83: 8
C84: Proportion of total fleet expenditure allocated as regulatory expenditure | D84: % | E84: 1 | F84: 1 | G84: 1 | H84: 1 | I84: 1 | J84: 1 | K84: 1
B85: HEAVY COMMERCIAL VEHICLE | C85: Average kilometres travelled | D85: 0's | E85: 9783 | F85: 9783 | G85: 9783 | H85: 9783 | I85: 9783 | J85: 9783 | K85: 9783
C86: Number purchased | D86: 0's | E86: 1 | F86: 1 | G86: 1 | H86: 1 | I86: 2 | J86: 2 | K86: 2
C87: Number leased | D87: 0's | E87: 0 | F87: 0 | G87: 0 | H87: 0 | I87: 0 | J87: 0 | K87: 0
C88: Number in fleet | D88: 0's | E88: 23 | F88: 23 | G88: 23 | H88: 23 | I88: 23 | J88: 23 | K88: 23
C89: Proportion of total fleet expenditure allocated as regulatory expenditure | D89: % | E89: 1 | F89: 1 | G89: 1 | H89: 1 | I89: 1 | J89: 1 | K89: 1
B92: Table 2.6.4 intentionally omitted
B94: 2.6.5 - INFORMATION & COMMUNICATIONS TECHNOLOGY - CAPEX
E95: =CONCATENATE("EXPENDITURE ($'0s, real ", dms_DollarReal,")") -> EXPENDITURE ($'0s, real June 2021)
E96: =CRCP_y4 -> 2019-20 | F96: =CRCP_y5 -> 2020-21 | G96: =FRCP_y1 -> 2021-22 | H96: =FRCP_y2 -> 2022-23 | I96: =FRCP_y3 -> 2023-24 | J96: =FRCP_y4 -> 2024-25 | K96: =FRCP_y5 -> 2025-26
B97: RECURRENT
B98: Metering Lifecycle | E98: 0 | F98: 0 | G98: 2247797.747 | H98: 4025680.368 | I98: 668444.9509 | J98: 0 | K98: 676627.5783
B99: CLCOE - Apps | E99: 0 | F99: 0 | G99: 1143234.257 | H99: 1294885.659 | I99: 1593968.899 | J99: 1749850.199 | K99: 1466801.029
B100: Corporate Communications | E100: 0 | F100: 0 | G100: 4466327.294 | H100: 1781386.23 | I100: 1794140.036 | J100: 1805463.881 | K100: 1816102.621
B101: CLCOE - Infra | E101: 0 | F101: 0 | G101: 7284807.802 | H101: 1656144.068 | I101: 9769721.34 | J101: 2397898.45 | K101: 2653230.535
B102: Corporate Enablement | E102: 0 | F102: 0 | G102: 1056410.907 | H102: 1772659.389 | I102: 1428280.572 | J102: 1796619.086 | K102: 1084323.425
B103: ICT Expenditure | E103: 24279171.99 | F103: 10495159.73 | G103: 0 | H103: 0 | I103: 0 | J103: 0 | K103: 0
B104: CLIENT DEVICES | E104: 0 | F104: 0 | G104: 0 | H104: 0 | I104: 0 | J104: 0 | K104: 0
B105: CLCOE - Infra | E105: 0 | F105: 0 | G105: 670016.636 | H105: 152323.0409 | I105: 898565.3439 | J105: 220545.5376 | K105: 244029.6184
B106: Workforce Collaboration | E106: 0 | F106: 0 | G106: 1379466.344 | H106: 1111078.554 | I106: 1119033.303 | J106: 1126096.163 | K106: 849548.7845
B108: NON-RECURRENT
B109: Outage Management | E109: 0 | F109: 0 | G109: 2864314.107 | H109: 2883794.512 | I109: 1936293.995 | J109: 974257.5274 | K109: 979998.364
B110: 5 min Settlement | E110: 0 | F110: 0 | G110: 7024367.958 | H110: 0 | I110: 0 | J110: 0 | K110: 0
B111: Customer Information Services | E111: 0 | F111: 0 | G111: 990233.2561 | H111: 1329290.538 | I111: 2008211.358 | J111: 1347257.553 | K111: 1016397.226
B112: DER | E112: 0 | F112: 0 | G112: 1349808.261 | H112: 1746042.063 | I112: 2076399.938 | J112: 2489837.333 | K112: 2907199.774
B113: Corporate Enablement | E113: 0 | F113: 0 | G113: 452747.5317 | H113: 759711.1667 | I113: 612120.2452 | J113: 769979.6082 | K113: 464710.0393
B114: Workforce Collaboration | E114: 0 | F114: 0 | G114: 591199.8616 | H114: 476176.5233 | I114: 479585.7014 | J114: 482612.6413 | K114: 364093.3362
B115: IM | E115: 0 | F115: 0 | G115: 3155612.428 | H115: 2541659.178 | I115: 2559856.146 | J115: 2576012.864 | K115: 1943394.063
B116: Future Distribution Network Management | E116: 0 | F116: 0 | G116: 7141673.611 | H116: 5592412.5 | I116: 5632451.287 | J116: 6477715.328 | K116: 7330371.105
B117: Cyber Security | E117: 0 | F117: 0 | G117: 3617718.398 | H117: 4552903.45 | I117: 3668399.911 | J117: 3322397.955 | K117: 3156309.974
B118: ICT Expenditure | E118: 36857600.74 | F118: 43342706.53 | G118: 0 | H118: 0 | I118: 0 | J118: 0 | K118: 0

Sheet 2.10 Overheads
B1: =INDEX(dms_Worksheet_List,MATCH(dms_Model,dms_Model_List)) -> REGULATORY REPORTING STATEMENT
B2: =INDEX(dms_TradingNameFull_List,MATCH(dms_TradingName,dms_TradingName_List)) -> AusNet Electricity Services Pty Ltd
B3: =dms_Header_Span -> 2021-22 to 2025-26
B4: 2.10 OVERHEADS
B6: There are TWO tables on this worksheet. Each table has been 'grouped' (and sub-grouped) for easy navigation. See the Instructions sheet on how to group or ungroup data.
B8: 2.10.1 - NETWORK OVERHEADS EXPENDITURE
D9: =CONCATENATE("EXPENDITURE ($0's, real ", dms_DollarReal,")") -> EXPENDITURE ($0's, real June 2021)
D10: =CRCP_y4 -> 2019-20 | E10: =CRCP_y5 -> 2020-21 | F10: =FRCP_y1 -> 2021-22 | G10: =FRCP_y2 -> 2022-23 | H10: =FRCP_y3 -> 2023-24 | I10: =FRCP_y4 -> 2024-25 | J10: =FRCP_y5 -> 2025-26
B11: OPEX
B12: Standard Control Services | C12: Total | D12: 64060192.3 | E12: 64060192.3 | F12: 75158756.75 | G12: 76272271.97 | H12: 77407949.31 | I12: 78488822.36 | J12: 79323174.84
B13: Alternative Control Services | C13: Total | D13: 0 | E13: 0 | F13: 0 | G13: 0 | H13: 0 | I13: 0 | J13: 0
B14: CAPEX
B15: Standard Control Services | C15: Total | D15: 26676237.03 | E15: 25606188.58 | F15: 25081027.81 | G15: 24655280.39 | H15: 24655280.39 | I15: 24655280.39 | J15: 24655280.39
B16: Alternative Control Services | C16: Total | D16: 1252952.576 | E16: 2053403.79 | F16: 2199229.798 | G16: 2036077.904 | H16: 1956271.769 | I16: 1934553.788 | J16: 1870560.421
B17: OTHER DISTRIBUTION SERVICES
B18: Negotiated Services | C18: Total | D18: 99,655 | E18: 99,655 | F18: 0 | G18: 0 | H18: 0 | I18: 0 | J18: 0
B19: Unregulated Distribution Services | C19: Total | D19: 354,584 | E19: 354,584 | F19: 0 | G19: 0 | H19: 0 | I19: 0 | J19: 0
B23: 2.10.2 - CORPORATE OVERHEADS EXPENDITURE
D24: =CONCATENATE("EXPENDITURE ($0's, real ", dms_DollarReal,")") -> EXPENDITURE ($0's, real June 2021)
D25: =CRCP_y4 -> 2019-20 | E25: =CRCP_y5 -> 2020-21 | F25: =FRCP_y1 -> 2021-22 | G25: =FRCP_y2 -> 2022-23 | H25: =FRCP_y3 -> 2023-24 | I25: =FRCP_y4 -> 2024-25 | J25: =FRCP_y5 -> 2025-26
B26: OPEX
B27: Standard Control Services | C27: Total | D27: 20763454.79 | E27: 20763454.79 | F27: 24360767.46 | G27: 24721684.62 | H27: 25089785.06 | I27: 25440122.11 | J27: 25710555.89
B28: Alternative Control Services | C28: Total | D28: 0 | E28: 0 | F28: 0 | G28: 0 | H28: 0 | I28: 0 | J28: 0
B29: CAPEX
B30: Standard Control Services | C30: Total | D30: 5052559.589 | E30: 4849889.192 | F30: 4750422.162 | G30: 4669784.319 | H30: 4669784.319 | I30: 4669784.319 | J30: 4669784.319
B31: Alternative Control Services | C31: Total | D31: 154056.9354 | E31: 187153.6988 | F31: 308569.2979 | G31: 307056.9398 | H31: 302515.626 | I31: 274845.6099 | J31: 232005.8534
B32: OTHER DISTRIBUTION SERVICES
B33: Negotiated Services | C33: Total | D33: 0 | E33: 0 | F33: 0 | G33: 0 | H33: 0 | I33: 0 | J33: 0
B34: Unregulated Distribution Services | C34: Total | D34: 0 | E34: 0 | F34: 0 | G34: 0 | H34: 0 | I34: 0 | J34: 0

Sheet 2.11 Labour
B1: =INDEX(dms_Worksheet_List,MATCH(dms_Model,dms_Model_List)) -> REGULATORY REPORTING STATEMENT
B2: =INDEX(dms_TradingNameFull_List,MATCH(dms_TradingName,dms_TradingName_List)) -> AusNet Electricity Services Pty Ltd
B3: =dms_Header_Span -> 2021-22 to 2025-26
B4: 2.11 LABOUR
B6: Table numbering on this worksheet starts at 2.11.3.
B8: 2.11.3 - LABOUR / NON-LABOUR EXPENDITURE SPLIT - STANDARD CONTROL SERVICES
C9: EXPENDITURE
C10: =CONCATENATE("($0's, real ", dms_DollarReal,")") -> ($0's, real June 2021)
C11: =CRCP_y4 -> 2019-20 | D11: =CRCP_y5 -> 2020-21 | E11: =FRCP_y1 -> 2021-22 | F11: =FRCP_y2 -> 2022-23 | G11: =FRCP_y3 -> 2023-24 | H11: =FRCP_y4 -> 2024-25 | I11: =FRCP_y5 -> 2025-26
B12: OPEX
B13: In-house labour expenditure | C13: 85452786.44 | D13: 85452786.44 | E13: 100257663.3 | F13: 101743031.6 | G13: 103257962.9 | H13: 104699788.3 | I13: 105812768.8
B14: Labour expenditure outsourced to related parties | C14: 0 | D14: 0 | E14: 0 | F14: 0 | G14: 0 | H14: 0 | I14: 0
B15: Labour expenditure outsourced to unrelated parties | C15: 0 | D15: 0 | E15: 0 | F15: 0 | G15: 0 | H15: 0 | I15: 0
B16: Controllable non-labour expenditure | C16: 112725078.8 | D16: 112725078.8 | E16: 132254938.2 | F16: 134214362.4 | G16: 136212784.7 | H16: 138114769.3 | I16: 139582958
B17: Uncontrollable non-labour expenditure | C17: 6170489.367 | D17: 6170489.367 | E17: 7239539.763 | F17: 7346797.227 | G17: 7456189.422 | H17: 7560302.685 | I17: 7640670.272
B18: Total | C18: =SUM(C13:C17) -> 204348354.6 | D18: 204348354.6 | E18: 239752141.3 | F18: 243304191.2 | G18: 246926937.1 | H18: 250374860.3 | I18: 253036397.1
B19: CAPEX
B20: In-house labour expenditure | C20: 53753537.05 | D20: 51339725.44 | E20: 41147105.29 | F20: 36852222.94 | G20: 36150251.81 | H20: 34086119.61 | I20: 33719026.14
B21: Labour expenditure outsourced to related parties | C21: 0 | D21: 0 | E21: 0 | F21: 0 | G21: 0 | H21: 0 | I21: 0
B22: Labour expenditure outsourced to unrelated parties | C22: 0 | D22: 0 | E22: 0 | F22: 0 | G22: 0 | H22: 0 | I22: 0
B23: Controllable non-labour expenditure | C23: 355741135.1 | D23: 339845419.8 | E23: 271128166.8 | F23: 259348324.4 | G23: 259882630.4 | H23: 246863394.4 | I23: 248754344.4
B24: Uncontrollable non-labour expenditure | C24: 0 | D24: 0 | E24: 0 | F24: 0 | G24: 0 | H24: 0 | I24: 0
B25: Total | C25: =SUM(C20:C24) -> 409494672.1 | D25: 391185145.2 | E25: 312275272.1 | F25: 296200547.3 | G25: 296032882.2 | H25: 280949514 | I25: 282473370.5

Sheet 2.14 Forecast price changes
B1: =INDEX(dms_Worksheet_List,MATCH(dms_Model,dms_Model_List)) -> REGULATORY REPORTING STATEMENT
B2: =INDEX(dms_TradingNameFull_List,MATCH(dms_TradingName,dms_TradingName_List)) -> AusNet Electricity Services Pty Ltd
B3: =dms_Header_Span -> 2021-22 to 2025-26
B4: 2.14 FORECAST PRICE CHANGES
B6: There is ONE table on this worksheet. It has been grouped for easy navigation. See the Instructions sheet on how to group or ungroup data.
B8: Instructions
B9: =CONCATENATE(dms_TradingName, " must provide all forecast price changes used to forecast opex and capex, including forecast changes in CPI. Forecast price changes must be expressed in real terms, except for CPI. "&"If the same escalators are not used for capex and opex, report capex and opex escalators separately. Add additional rows as required. If price changes for a given year were not used to forecast either opex or capex enter '0' for that year.") -> AusNet (D) must provide all forecast price changes used to forecast opex and capex, including forecast changes in CPI. Forecast price changes must be expressed in real terms, except for CPI. If the same escalators are not used for capex and opex, report capex and opex escalators separately. Add additional rows as required. If price changes for a given year were not used to forecast either opex or capex enter '0' for that year.
B11: 2.14.2 - FORECAST CAPEX AND OPEX PRICE CHANGES
C12: Price changes (% YoY real) Current regulatory period | E12: Price changes (%YoY real) Forthcoming regulatory period
C13: Forecast
C14: =CRCP_y4 -> 2019-20 | D14: =CRCP_y5 -> 2020-21 | E14: =FRCP_y1 -> 2021-22 | F14: =FRCP_y2 -> 2022-23 | G14: =FRCP_y3 -> 2023-24 | H14: =FRCP_y4 -> 2024-25 | I14: =FRCP_y5 -> 2025-26
B15: OPEX
B16: Labour Price Growth - WPI | C16: 0.0059 | D16: 0.0063 | E16: 0.005711980687 | F16: 0.006125316864 | G16: 0.006426039312 | H16: 0.005644789771 | I16: 0.0052536
B17: Output Growth | C17: 0.0154 | D17: 0.015 | E17: 0.01514046232 | F17: 0.01413053499 | G17: 0.01540262676 | H17: 0.01360942325 | I17: 0.01076759016
B18: Productivity | C18: 0 | D18: 0 | E18: 0.005 | F18: 0.005 | G18: 0.005 | H18: 0.005 | I18: 0.005
B19: Materials | C19: 0 | D19: 0 | E19: 0 | F19: 0 | G19: 0 | H19: 0 | I19: 0
B20: CAPEX
B21: Labour Price Growth - WPI | C21: 0.0059 | D21: 0.0063 | E21: 0.005711980687 | F21: 0.006125316864 | G21: 0.006426039312 | H21: 0.005644789771 | I21: 0.0052536
B22: Materials | C22: 0 | D22: 0 | E22: 0 | F22: 0 | G22: 0 | H22: 0 | I22: 0
B24: CPI
B25: CPI | C25: 0.01592920354 | D25: 0.02 | E25: 0.0245 | F25: 0.0245 | G25: 0.0245 | H25: 0.0245 | I25: 0.0245

Sheet 2.16 Opex Summary
B1: =INDEX(dms_Worksheet_List,MATCH(dms_Model,dms_Model_List)) -> REGULATORY REPORTING STATEMENT
B2: =INDEX(dms_TradingNameFull_List,MATCH(dms_TradingName,dms_TradingName_List)) -> AusNet Electricity Services Pty Ltd
B3: =dms_Header_Span -> 2021-22 to 2025-26
B4: 2.16 OPEX SUMMARY
B6: There are FOUR tables on this worksheet. Each table has been 'grouped' (and 'sub-grouped') for easy navigation. See the Instructions sheet on how to group or ungroup data.
B8: Instructions | J8: IMPORTANT!
B9: =CONCATENATE("Complete the tables below in accordance with the regulatory information notice. ",dms_TradingName,"'s total forecast opex must reconcile to Table 2.16.1 (and if ",dms_TradingName," owns any dual function assets Table 2.16.3). If ",dms_TradingName," did not forecast its total opex using a Base Year approach, total forecast opex must reconcile to Table 2.16.2 (and if ",dms_TradingName," owns any dual function assets Table 2.16.4).") -> Complete the tables below in accordance with the regulatory information notice. AusNet (D)'s total forecast opex must reconcile to Table 2.16.1 (and if AusNet (D) owns any dual function assets Table 2.16.3). If AusNet (D) did not forecast its total opex using a Base Year approach, total forecast opex must reconcile to Table 2.16.2 (and if AusNet (D) owns any dual function assets Table 2.16.4). | J9: =CONCATENATE("Has ",dms_TradingName," used a base-step-trend model to derive its opex forecast? ") -> Has AusNet (D) used a base-step-trend model to derive its opex forecast? | L9: Yes
B10: =CONCATENATE("If ",dms_TradingName," does not own any dual function assets,Table 2.16.3 and 2.16.4 may be left blank.") -> If AusNet (D) does not own any dual function assets,Table 2.16.3 and 2.16.4 may be left blank. | J10: Yes / No
B11: The total step changes in Table 2.16.1 and Table 2.16.3 must "&"reconcile (in each year) to the total step changes for each year in Table 2.17.1 and Table 2.17.3 of worksheet '2.17 Step Changes', respectively.") | J11: Please nominate the base year. | L11: 2018
B14: 2.16.1 - STANDARD CONTROL SERVICES - OPEX BY DRIVER
C15: EXPENDITURE
C16: =CONCATENATE("Forecast ($0's, real ", dms_DollarReal,")") -> Forecast ($0's, real June 2021)
C17: 2017 | D17: 2018 | E17: 2019 | F17: 2020 | G17: 2021 | H17: =FRCP_y1 -> 2021-22 | I17: =FRCP_y2 -> 2022-23 | J17: =FRCP_y3 -> 2023-24 | K17: =FRCP_y4 -> 2024-25 | L17: =FRCP_y5 -> 2025-26
B18: Base year total opex, excluding category specific | D18: 0 | E18: 209074291.3 | F18: 209074291.3 | G18: 209074291.3 | H18: 215352771.6 | I18: 215352771.6 | J18: 215352771.6 | K18: 215352771.6 | L18: 215352771.6
B19: Increment from base year to final year | G19: 6278480.339
B20: Price growth | H20: 1248715.017 | I20: 2632114.55 | J20: 4136442.823 | K20: 5504438.042 | L20: 6804616.391
B21: Output growth | H21: 3260540.524 | I21: 6349663.581 | J21: 9764463.442 | K21: 12828179.18 | L21: 15285138.14
B22: Productivity growth | H22: -1099310.136 | I22: -2237737.134 | J22: -3421639.799 | K22: -4638771.665 | L22: -5876998.584
B23: Step changes | H23: 3414108.859 | I23: 3534225.023 | J23: 3241400.453 | K23: 3335427.126 | L23: 3383601.437
B24: Category specific | D24: 0 | E24: 0 | F24: 0 | G24: 0 | H24: 17575315.39 | I24: 17673153.57 | J24: 17853498.54 | K24: 17992816.07 | L24: 18087268.11
B25: Total opex | C25: =SUM(C18:C24) -> 0 | D25: 0 | E25: 209074291.3 | F25: 209074291.3 | G25: 215352771.6 | H25: 239752141.3 | I25: 243304191.2 | J25: 246926937.1 | K25: 250374860.3 | L25: 253036397.1
B28: 2.16.2 - STANDARD CONTROL SERVICES - OPEX BY CATEGORY
C29: EXPENDITURE
C30: =CONCATENATE("Forecast ($0's, real ", dms_DollarReal,")") -> Forecast ($0's, real June 2021)
C31: =CRCP_y1 -> 2016-17 | D31: =CRCP_y2 -> 2017-18 | E31: =CRCP_y3 -> 2018-19 | F31: =CRCP_y4 -> 2019-20 | G31: =CRCP_y5 -> 2020-21 | H31: =FRCP_y1 -> 2021-22 | I31: =FRCP_y2 -> 2022-23 | J31: =FRCP_y3 -> 2023-24 | K31: =FRCP_y4 -> 2024-25 | L31: =FRCP_y5 -> 2025-26
B32: Vegetation management
B33: Maintenance
B34: Emergency response
B35: Non-network
B36: Metering
B37: Network overheads
B38: Corporate overheads
B39: Total opex | C39: =SUM(C32:C38) -> 0 | D39: 0 | E39: 0 | F39: 0 | G39: 0 | H39: 0 | I39: 0 | J39: 0 | K39: 0 | L39: 0
B42: 2.16.3 - DUAL FUNCTION ASSETS - OPEX BY DRIVER
C43: EXPENDITURE
C44: =CONCATENATE("Forecast ($0's, real ", dms_DollarReal,")") -> Forecast ($0's, real June 2021)
C45: 2017 | D45: 2018 | E45: 2019 | F45: 2020 | G45: 2021 | H45: =FRCP_y1 -> 2021-22 | I45: =FRCP_y2 -> 2022-23 | J45: =FRCP_y3 -> 2023-24 | K45: =FRCP_y4 -> 2024-25 | L45: =FRCP_y5 -> 2025-26
B46: Base year total opex, excluding category specific | D46: 0 | E46: 0 | F46: 0 | G46: 0 | H46: 0 | I46: 0 | J46: 0 | K46: 0 | L46: 0
B47: Increment from base year to final year | G47: 0 | H47: 0 | I47: 0 | J47: 0 | K47: 0 | L47: 0
B48: Price growth | H48: 0 | I48: 0 | J48: 0 | K48: 0 | L48: 0
B49: Output growth | H49: 0 | I49: 0 | J49: 0 | K49: 0 | L49: 0
B50: Productivity growth | H50: 0 | I50: 0 | J50: 0 | K50: 0 | L50: 0
B51: Step changes | H51: 0 | I51: 0 | J51: 0 | K51: 0 | L51: 0
B52: Category specific | D52: 0 | E52: 0 | F52: 0 | G52: 0 | H52: 0 | I52: 0 | J52: 0 | K52: 0 | L52: 0
B53: Total opex | C53: =SUM(C46:C52) -> 0 | D53: 0 | E53: 0 | F53: 0 | G53: 0 | H53: 0 | I53: 0 | J53: 0 | K53: 0 | L53: 0
B56: 2.16.4 - DUAL FUNCTION ASSETS - OPEX BY CATEGORY
C57: EXPENDITURE
C58: =CONCATENATE("Forecast ($0's, real ", dms_DollarReal,")") -> Forecast ($0's, real June 2021)
C59: =CRCP_y1 -> 2016-17 | D59: =CRCP_y2 -> 2017-18 | E59: =CRCP_y3 -> 2018-19 | F59: =CRCP_y4 -> 2019-20 | G59: =CRCP_y5 -> 2020-21 | H59: =FRCP_y1 -> 2021-22 | I59: =FRCP_y2 -> 2022-23 | J59: =FRCP_y3 -> 2023-24 | K59: =FRCP_y4 -> 2024-25 | L59: =FRCP_y5 -> 2025-26
B60: Vegetation management
B61: Maintenance
B62: Emergency response
B63: Non-network
B64: Metering
B65: Network overheads
B66: Corporate overheads
B67: Total opex | C67: =SUM(C60:C66) -> 0 | D67: 0 | E67: 0 | F67: 0 | G67: 0 | H67: 0 | I67: 0 | J67: 0 | K67: 0 | L67: 0

Sheet 2.17 Step Changes
B1: =INDEX(dms_Worksheet_List,MATCH(dms_Model,dms_Model_List)) -> REGULATORY REPORTING STATEMENT
B2: =INDEX(dms_TradingNameFull_List,MATCH(dms_TradingName,dms_TradingName_List)) -> AusNet Electricity Services Pty Ltd
B3: =dms_Header_Span -> 2021-22 to 2025-26
B4: 2.17 STEP CHANGES
B6: There are FIVE tables on this worksheet. Each table has been 'grouped' (and 'sub-grouped') for easy navigation. See the Instructions sheet on how to group or ungroup data.
B8: 2.17.1 - STEP CHANGES FOR STANDARD CONTROL SERVICES - FORECAST OPEX
E9: EXPENDITURE
E10: =CONCATENATE("Forecast ($0's, real ", dms_DollarReal, ")") -> Forecast ($0's, real June 2021)
B11: Step change | C11: Description | E11: =CRCP_y4 -> 2019-20 | F11: =CRCP_y5 -> 2020-21 | G11: =FRCP_y1 -> 2021-22 | H11: =FRCP_y2 -> 2022-23 | I11: =FRCP_y3 -> 2023-24 | J11: =FRCP_y4 -> 2024-25 | K11: =FRCP_y5 -> 2025-26
B12: REFCL - step change | C12: Step change for increases in ongoing cost as a result of the REFCL program | E12: 0 | F12: 419982.4681 | G12: 864536.8314 | H12: 1106357.961 | I12: 1323607.195 | J12: 1324793.166 | K12: 1325979.138
B13: IT Opex - step change | C13: Additional opex due to transition to cloud based solutions. This is a capex/opex tradeoff. | E13: 0 | F13: 264576.0101 | G13: 529152.0203 | H13: 529152.0203 | I13: 529152.0203 | J13: 529152.0203 | K13: 529152.0203
B14: Security | C14: Uplift in Cyber Security Capabilities as a result of a direction by AEMO. | E14: 0 | F14: 474642.8313 | G14: 1067946.371 | H14: 1067946.371 | I14: 901821.3795 | J14: 830624.9548 | K14: 807913.3452
B15: 5 minute meter data - step change | C15: Increase in ongoing opex to handle greater data flows to meet the new 5 minute settlement rules. | E15: 0 | F15: 317491.2122 | G15: 952473.6365 | H15: 830768.6718 | I15: 486819.8586 | J15: 650856.9849 | K15: 720556.9335
B22: Total | E22: =SUM(E12:E21) -> 0 | F22: 1476692.522 | G22: 3414108.859 | H22: 3534225.023 | I22: 3241400.453 | J22: 3335427.126 | K22: 3383601.437
B23: Check | G23: =IF(ROUND(G$22,0)-ROUND('2.16 Opex Summary'!H$23,0)=0,"OK","Error") -> OK | H23: =IF(ROUND(H$22,0)-ROUND('2.16 Opex Summary'!I$23,0)=0,"OK","Error") -> OK | I23: =IF(ROUND(I$22,0)-ROUND('2.16 Opex Summary'!J$23,0)=0,"OK","Error") -> OK | J23: =IF(ROUND(J$22,0)-ROUND('2.16 Opex Summary'!K$23,0)=0,"OK","Error") -> OK | K23: =IF(ROUND(K$22,0)-ROUND('2.16 Opex Summary'!L$23,0)=0,"OK","Error") -> OK
B25: 2.17.2 - STEP CHANGES FOR STANDARD CONTROL SERVICES - FORECAST CAPEX
E26: EXPENDITURE
E27: =CONCATENATE("Forecast ($0's, real ", dms_DollarReal, ")") -> Forecast ($0's, real June 2021)
B28: Step change | C28: Description | E28: =CRCP_y4 -> 2019-20 | F28: =CRCP_y5 -> 2020-21 | G28: =FRCP_y1 -> 2021-22 | H28: =FRCP_y2 -> 2022-23 | I28: =FRCP_y3 -> 2023-24 | J28: =FRCP_y4 -> 2024-25 | K28: =FRCP_y5 -> 2025-26
B29: Overhead Cable | C29: Proactive replacement of bare SWER conductor in Codified Areas with HV ABC | E29: 0 | F29: 742824.0029 | G29: 1851889.369 | H29: 2826512.791 | I29: 5027155.54 | J29: 9996573.32 | K29: 21233279.34
B30: REFCL | C30: Tranche 3 REFCL Construction, Testing and Commissioning | E30: 16147558.91 | F30: 33957333.02 | G30: 27399588.89 | H30: 10135210.37 | I30: 0 | J30: 0 | K30: 0
B31: REFCL Augmentation | C31: Augmentation to address the capacitive current seen by REFCL's | E31: 0 | F31: 0 | G31: 0 | H31: 12005835.72 | I31: 21343613.48 | J31: 30775991.69 | K31: 33637208.86
B39: Total | E39: =SUM(E29:E38) -> 16147558.91 | F39: 34700157.03 | G39: 29251478.26 | H39: 24967558.89 | I39: 26370769.02 | J39: 40772565.01 | K39: 54870488.2
B41: 2.17.3 - STEP CHANGES FOR DUAL FUNCTION ASSETS - FORECAST OPEX
E42: EXPENDITURE
E43: =CONCATENATE("Forecast ($0's, real ", dms_DollarReal, ")") -> Forecast ($0's, real June 2021)
B44: Step change | C44: Description | E44: =CRCP_y4 -> 2019-20 | F44: =CRCP_y5 -> 2020-21 | G44: =FRCP_y1 -> 2021-22 | H44: =FRCP_y2 -> 2022-23 | I44: =FRCP_y3 -> 2023-24 | J44: =FRCP_y4 -> 2024-25 | K44: =FRCP_y5 -> 2025-26
B55: Total | E55: =SUM(E45:E54) -> 0 | F55: 0 | G55: 0 | H55: 0 | I55: 0 | J55: 0 | K55: 0
B56: Check | G56: =IF(ROUND(G$22,0)-ROUND('2.16 Opex Summary'!H$51,0)=0,"OK","Error") -> Error | H56: =IF(ROUND(H$22,0)-ROUND('2.16 Opex Summary'!I$51,0)=0,"OK","Error") -> Error | I56: =IF(ROUND(I$22,0)-ROUND('2.16 Opex Summary'!J$51,0)=0,"OK","Error") -> Error | J56: =IF(ROUND(J$22,0)-ROUND('2.16 Opex Summary'!K$51,0)=0,"OK","Error") -> Error | K56: =IF(ROUND(K$22,0)-ROUND('2.16 Opex Summary'!L$51,0)=0,"OK","Error") -> Error
B58: 2.17.4 - STEP CHANGES FOR DUAL FUNCTION ASSETS - FORECAST CAPEX
E59: EXPENDITURE
E60: =CONCATENATE("Forecast ($0's, real ", dms_DollarReal, ")") -> Forecast ($0's, real June 2021)
B61: Step change | C61: Description | E61: =CRCP_y4 -> 2019-20 | F61: =CRCP_y5 -> 2020-21 | G61: =FRCP_y1 -> 2021-22 | H61: =FRCP_y2 -> 2022-23 | I61: =FRCP_y3 -> 2023-24 | J61: =FRCP_y4 -> 2024-25 | K61: =FRCP_y5 -> 2025-26
B72: Total | E72: =SUM(E62:E71) -> 0 | F72: 0 | G72: 0 | H72: 0 | I72: 0 | J72: 0 | K72: 0
B75: 2.17.5 - FORECAST CATEGORY SPECIFIC OPEX
D76: EXPENDITURE
D77: =CONCATENATE("Forecast ($0's, real ", dms_DollarReal, ")") -> Forecast ($0's, real June 2021)
B78: Category | C78: Description | D78: =CRCP_y3 -> 2018-19 | E78: =CRCP_y4 -> 2019-20 | F78: =CRCP_y5 -> 2020-21 | G78: =FRCP_y1 -> 2021-22 | H78: =FRCP_y2 -> 2022-23 | I78: =FRCP_y3 -> 2023-24 | J78: =FRCP_y4 -> 2024-25 | K78: =FRCP_y5 -> 2025-26
B79: GSL payments - bottom-up forecast | C79: Payments for failure to meet Guaranteed Service Levels | D79: 6993101.563 | E79: 9347020.964 | F79: 9347020.964 | G79: 9347020.964 | H79: 9347020.964 | I79: 9347020.964 | J79: 9347020.964 | K79: 9347020.964
B80: Metering - reallocation | C80: Reallocation of costs from the ACS metering business to reflect additional usage of AMI systems by the distribution business. | D80: 0 | E80: 0 | F80: 0 | G80: 5671139.629 | H80: 5737071.699 | I80: 5875638.698 | J80: 6048396.823 | K80: 6107144.449
B81: Innovation - step change | C81: Expenditure on proposed innovation programs. | D81: 0 | E81: 0 | F81: 0 | G81: 242388.1185 | H81: 242388.1185 | I81: 242388.1185 | J81: 242388.1185 | K81: 242388.1185
B82: Debt Raising Costs | C82: Forecast Based on AER's benchmark methodology. | D82: 2222100.837 | E82: 2344316.383 | F82: 2344316.383 | G82: 2314766.681 | H82: 2346672.786 | I82: 2388450.759 | J82: 2355010.161 | K82: 2390714.576
B89: Total | D89: =SUM(D86:D88) -> 0 | E89: 0 | F89: 0 | G89: 0 | H89: 0 | I89: 0 | J89: 0 | K89: 0

Sheet 3.1 Revenue
B1: =INDEX(dms_Worksheet_List,MATCH(dms_Model,dms_Model_List)) -> REGULATORY REPORTING STATEMENT
B2: =INDEX(dms_TradingNameFull_List,MATCH(dms_TradingName,dms_TradingName_List)) -> AusNet Electricity Services Pty Ltd
B3: =dms_Header_Span -> 2021-22 to 2025-26
B4: 3.1 REVENUE
B6: There are THREE tables on this worksheet. Each table has been 'grouped' (and 'sub-grouped') for easy navigation. See the Instructions sheet on how to group or ungroup data.
B8: 3.1.1 - REVENUE GROUPING BY CHARGEABLE QUANTITY
C9: Standard control services | K9: Alternative control services
C10: REVENUE | K10: REVENUE
C11: =CONCATENATE("Forecast ($0's, real ", dms_DollarReal,")") -> Forecast ($0's, real June 2021) | K11: =CONCATENATE("Forecast ($0's, real ", dms_DollarReal,")") -> Forecast ($0's, real June 2021)
C12: =CRCP_y4 -> 2019-20 | D12: =CRCP_y5 -> 2020-21 | E12: =FRCP_y1 -> 2021-22 | F12: =FRCP_y2 -> 2022-23 | G12: =FRCP_y3 -> 2023-24 | H12: =FRCP_y4 -> 2024-25 | I12: =FRCP_y5 -> 2025-26 | K12: =CRCP_y4 -> 2019-20 | L12: =CRCP_y5 -> 2020-21 | M12: =FRCP_y1 -> 2021-22 | N12: =FRCP_y2 -> 2022-23 | O12: =FRCP_y3 -> 2023-24 | P12: =FRCP_y4 -> 2024-25 | Q12: =FRCP_y5 -> 2025-26
A13: DREV0101 | B13: Revenue from Fixed Customer Charges | C13: 103214640.8 | D13: 100228137.8 | E13: 96022897.26 | F13: 99256473.63 | G13: 102585024 | H13: 106019928.7 | I13: 109536722.3 | K13: 0 | L13: 0 | M13: 0 | N13: 0 | O13: 0 | P13: 0 | Q13: 0
A14: DREV0102 | B14: Revenue from Energy Delivery charges where time of use is not a determinant | C14: 242242287.6 | D14: 229765552.6 | E14: 192784726 | F14: 193258480.5 | G14: 193947089.6 | H14: 194875948.9 | I14: 195669916 | K14: 0 | L14: 0 | M14: 0 | N14: 0 | O14: 0 | P14: 0 | Q14: 0
A15: DREV0103 | B15: Revenue from On–Peak Energy Delivery charges | C15: 180522713.3 | D15: 171514593.1 | E15: 173442521.6 | F15: 175827439 | G15: 178021788.2 | H15: 180036259.7 | I15: 181911601.1 | K15: 0 | L15: 0 | M15: 0 | N15: 0 | O15: 0 | P15: 0 | Q15: 0
A16: DREV0104 | B16: Revenue from Shoulder period Energy Delivery Charges | C16: 12843036.44 | D16: 12385745.75 | E16: 14424173.44 | F16: 14902779.92 | G16: 15354602.62 | H16: 15789393.45 | I16: 16199653.99 | K16: 0 | L16: 0 | M16: 0 | N16: 0 | O16: 0 | P16: 0 | Q16: 0
A17: DREV0105 | B17: Revenue from Off–Peak Energy Delivery charges | C17: 50504677.32 | D17: 48301674.16 | E17: 50653900.4 | F17: 51325969.8 | G17: 51931066.97 | H17: 52484038.61 | I17: 53004752.5 | K17: 0 | L17: 0 | M17: 0 | N17: 0 | O17: 0 | P17: 0 | Q17: 0
A18: DREV0106 | B18: Revenue from controlled load customer charges | C18: 0 | D18: 0 | E18: 0 | F18: 0 | G18: 0 | H18: 0 | I18: 0 | K18: 0 | L18: 0 | M18: 0 | N18: 0 | O18: 0 | P18: 0 | Q18: 0
A19: DREV0107 | B19: Revenue from unmetered supplies | C19: 9922514.86 | D19: 9573627.191 | E19: 0 | F19: 0 | G19: 0 | H19: 0 | I19: 0 | K19: 0 | L19: 0 | M19: 0 | N19: 0 | O19: 0 | P19: 0 | Q19: 0
A20: DREV0108 | B20: Revenue from Contracted Maximum Demand charges | C20: 43180921.88 | D20: 40741088.54 | E20: 41162907.14 | F20: 42199077.87 | G20: 43290345.51 | H20: 44404207.8 | I20: 45524785.18 | K20: 0 | L20: 0 | M20: 0 | N20: 0 | O20: 0 | P20: 0 | Q20: 0
A21: DREV0109 | B21: Revenue from Measured Maximum Demand charges | C21: 42056062.1 | D21: 40951447.17 | E21: 47601172.17 | F21: 49707113.33 | G21: 51907506.52 | H21: 54165739.53 | I21: 56847183.47 | K21: 0 | L21: 0 | M21: 0 | N21: 0 | O21: 0 | P21: 0 | Q21: 0
A22: DREV0110 | B22: Revenue from metering charges | C22: 0 | D22: 0 | E22: 0 | F22: 0 | G22: 0 | H22: 0 | I22: 0 | K22: 48974689.61 | L22: 51932266.5 | M22: 53452899.67 | N22: 53929133.9 | O22: 54409611.1 | P22: 54894369.07 | Q22: 55383445.95
A23: DREV0111 | B23: Revenue from connection charges | C23: 0 | D23: 0 | E23: 0 | F23: 0 | G23: 0 | H23: 0 | I23: 0 | K23: 4011432.82 | L23: 3354192.22 | M23: 7051178.097 | N23: 7026054.381 | O23: 7127990.452 | P23: 7186470.563 | Q23: 7273712.681
A24: DREV0112 | B24: Revenue from public lighting charges | C24: 0 | D24: 0 | E24: 0 | F24: 0 | G24: 0 | H24: 0 | I24: 0 | K24: 10421659.56 | L24: 10475906.57 | M24: 12488290.05 | N24: 11507860.99 | O24: 11659599.03 | P24: 12002113.08 | Q24: 12227567.46
A25: DREV0113 | B25: Revenue from other Sources | C25: -2644062.404 | D25: -907657.8848 | E25: 0 | F25: 0 | G25: 0 | H25: 0 | I25: 0 | K25: 0 | L25: 0 | M25: 0 | N25: 0 | O25: 0 | P25: 0 | Q25: 0
A26: DREV01 | B26: Total revenue by chargeable quantity | C26: =SUM(C13:C25) -> 681842791.9 | D26: 652554208.4 | E26: 616092298 | F26: 626477334.1 | G26: 637037423.4 | H26: 647775516.7 | I26: 658694614.5 | K26: =SUM(K13:K25) -> 63407781.99 | L26: 65762365.29 | M26: 72992367.82 | N26: 72463049.27 | O26: 73197200.58 | P26: 74082952.71 | Q26: 74884726.09
B29: 3.1.2 - REVENUE GROUPING BY CUSTOMER TYPE OR CLASS
C30: Standard control services | K30: Alternative control services
C31: REVENUE | K31: REVENUE
C32: =CONCATENATE("Forecast ($0's, real ", dms_DollarReal,")") -> Forecast ($0's, real June 2021) | K32: =CONCATENATE("Forecast ($0's, real ", dms_DollarReal,")") -> Forecast ($0's, real June 2021)
C33: =CRCP_y4 -> 2019-20 | D33: =CRCP_y5 -> 2020-21 | E33: =FRCP_y1 -> 2021-22 | F33: =FRCP_y2 -> 2022-23 | G33: =FRCP_y3 -> 2023-24 | H33: =FRCP_y4 -> 2024-25 | I33: =FRCP_y5 -> 2025-26 | K33: =CRCP_y4 -> 2019-20 | L33: =CRCP_y5 -> 2020-21 | M33: =FRCP_y1 -> 2021-22 | N33: =FRCP_y2 -> 2022-23 | O33: =FRCP_y3 -> 2023-24 | P33: =FRCP_y4 -> 2024-25 | Q33: =FRCP_y5 -> 2025-26
A34: DREV0201 | B34: Revenue from residential Customers | C34: 367971179.8 | D34: 352736121.4 | E34: 316670080.9 | F34: 319890143.4 | G34: 323187248 | H34: 326718158 | I34: 330237565.6 | K34: 43664543.65 | L34: 46301441.33 | M34: 47657197.82 | N34: 48081795.72 | O34: 48510176.54 | P34: 48942373.98 | Q34: 49378422.05
A35: DREV0202 | B35: Revenue from Non residential customers not on demand tariffs | C35: 90457356.18 | D35: 86378547.66 | E35: 79891095.96 | F35: 80894076.83 | G35: 81908707.05 | H35: 82851331.65 | I35: 83744161.69 | K35: 5310145.957 | L35: 5630825.17 | M35: 5795701.847 | N35: 5847338.178 | O35: 5899434.558 | P35: 5951995.087 | Q35: 6005023.899
A36: DREV0203 | B36: Revenue from Non-residential low voltage demand tariff customers | C36: 191903248.5 | D36: 183660884.1 | E36: 192752567.6 | F36: 198615613.7 | G36: 204563166.2 | H36: 210537066.7 | I36: 216765753 | K36: 0 | L36: 0 | M36: 0 | N36: 0 | O36: 0 | P36: 0 | Q36: 0
A37: DREV0204 | B37: Revenue from Non-residential high voltage demand tariff customers | C37: 21588492.55 | D37: 20192903.46 | E37: 20619941.4 | F37: 20832904.38 | G37: 21049389.89 | H37: 21260733.39 | I37: 21467716.97 | K37: 0 | L37: 0 | M37: 0 | N37: 0 | O37: 0 | P37: 0 | Q37: 0
A38: DREV0205 | B38: Revenue from unmetered supplies | C38: 9922514.86 | D38: 9585751.684 | E38: 6158612.178 | F38: 6244595.741 | G38: 6328912.244 | H38: 6408226.936 | I38: 6479417.307 | K38: 0 | L38: 0 | M38: 0 | N38: 0 | O38: 0 | P38: 0 | Q38: 0
A39: DREV0206 | B39: Revenue from Other Customers | C39: 0 | D39: 0 | E39: 0 | F39: 0 | G39: 0 | H39: 0 | I39: 0 | K39: 0 | L39: 0 | M39: 0 | N39: 0 | O39: 0 | P39: 0 | Q39: 0
A40: DREV02 | B40: Total revenue by customer class | C40: =SUM(C34:C39) -> 681842791.9 | D40: 652554208.4 | E40: 616092298 | F40: 626477334.1 | G40: 637037423.4 | H40: 647775516.7 | I40: 658694614.5 | K40: =SUM(K34:K39) -> 48974689.61 | L40: 51932266.5 | M40: 53452899.67 | N40: 53929133.9 | O40: 54409611.1 | P40: 54894369.07 | Q40: 55383445.95
B43: 3.1.3 - REVENUE (penalties) ALLOWED (deducted) THROUGH INCENTIVE SCHEMES
C44: Standard control services | K44: Alternative control services
C45: REVENUE | K45: REVENUE
C46: =CONCATENATE("Forecast ($0's, real ", dms_DollarReal,")") -> Forecast ($0's, real June 2021) | K46: =CONCATENATE("Forecast ($0's, real ", dms_DollarReal,")") -> Forecast ($0's, real June 2021)
C47: =CRCP_y4 -> 2019-20 | D47: =CRCP_y5 -> 2020-21 | E47: =FRCP_y1 -> 2021-22 | F47: =FRCP_y2 -> 2022-23 | G47: =FRCP_y3 -> 2023-24 | H47: =FRCP_y4 -> 2024-25 | I47: =FRCP_y5 -> 2025-26 | K47: =CRCP_y4 -> 2019-20 | L47: =CRCP_y5 -> 2020-21 | M47: =FRCP_y1 -> 2021-22 | N47: =FRCP_y2 -> 2022-23 | O47: =FRCP_y3 -> 2023-24 | P47: =FRCP_y4 -> 2024-25 | Q47: =FRCP_y5 -> 2025-26
A48: DREV0301 | B48: EBSS | C48: 9280182.259 | D48: 3620542.718 | E48: 17543720.87 | F48: 17839443.08 | G48: 18140150.06 | H48: 18445925.86 | I48: 18756855.9 | K48: 0 | L48: 0 | M48: 0 | N48: 0 | O48: 0 | P48: 0 | Q48: 0
A49: DREV0302 | B49: STPIS | C49: 7585867.743 | D49: 2791303.011 | E49: 0 | F49: 0 | G49: 0 | H49: 0 | I49: 0 | K49: 0 | L49: 0 | M49: 0 | N49: 0 | O49: 0 | P49: 0 | Q49: 0
A50: DREV0303 | B50: F-Factor | C50: 930675.9823 | D50: 161262 | E50: 0 | F50: 0 | G50: 0 | H50: 0 | I50: 0 | K50: 0 | L50: 0 | M50: 0 | N50: 0 | O50: 0 | P50: 0 | Q50: 0
A51: DREV0304 | B51: S-Factor True up | C51: -3805105.253 | D51: -1952505.859 | E51: 0 | F51: 0 | G51: 0 | H51: 0 | I51: 0 | K51: 0 | L51: 0 | M51: 0 | N51: 0 | O51: 0 | P51: 0 | Q51: 0
A52: DREV0305 | B52: Other | C52: 0 | D52: 0 | E52: 9185412.946 | F52: 9340245.014 | G52: 9497686.977 | H52: 9657782.829 | I52: 9820577.305 | K52: 0 | L52: 0 | M52: 0 | N52: 0 | O52: 0 | P52: 0 | Q52: 0
A53: DREV03 | B53: Total revenue of incentive schemes | C53: =SUM(C48:C52) -> 13991620.73 | D53: 4620601.871 | E53: 26729133.82 | F53: 27179688.09 | G53: 27637837.04 | H53: 28103708.69 | I53: 28577433.21 | K53: =SUM(K48:K52) -> 0 | L53: 0 | M53: 0 | N53: 0 | O53: 0 | P53: 0 | Q53: 0

Sheet 3.2 Operating expenditure
B1: =INDEX(dms_Worksheet_List,MATCH(dms_Model,dms_Model_List)) -> REGULATORY REPORTING STATEMENT
B2: =INDEX(dms_TradingNameFull_List,MATCH(dms_TradingName,dms_TradingName_List)) -> AusNet Electricity Services Pty Ltd
B3: =dms_Header_Span -> 2021-22 to 2025-26
B4: 3.2 OPERATING EXPENDITURE
B6: There are THREE tables on this worksheet. Both ROWS and COLUMNS have been grouped for ease of navigation. see the Instructions sheet on how to group or ungroup tables.
B8: 3.2.1 - OPEX CATEGORIES
B9: CURRENT OPEX CATEGORIES AND COST ALLOCATIONS
C10: Standard control services | K10: Alternative control services
C11: EXPENDITURE | K11: EXPENDITURE
C12: =CONCATENATE("Forecast ($0's, real ",dms_DollarReal,")") -> Forecast ($0's, real June 2021) | K12: =CONCATENATE("Forecast ($0's, real ",dms_DollarReal,")") -> Forecast ($0's, real June 2021)
C13: =CRCP_y4 -> 2019-20 | D13: =CRCP_y5 -> 2020-21 | E13: =FRCP_y1 -> 2021-22 | F13: =FRCP_y2 -> 2022-23 | G13: =FRCP_y3 -> 2023-24 | H13: =FRCP_y4 -> 2024-25 | I13: =FRCP_y5 -> 2025-26 | K13: =CRCP_y4 -> 2019-20 | L13: =CRCP_y5 -> 2020-21 | M13: =FRCP_y1 -> 2021-22 | N13: =FRCP_y2 -> 2022-23 | O13: =FRCP_y3 -> 2023-24 | P13: =FRCP_y4 -> 2024-25 | Q13: =FRCP_y5 -> 2025-26
A14: DOPEX0101 | B14: OPERATING
A15: DOPEX0102 | B15: Network Operating Costs | C15: 49577494.88 | D15: 49577494.88 | E15: 54975097.63 | F15: 56115972.59 | G15: 57342053.58 | H15: 58192916.71 | I15: 58876436.33 | K15: 0 | L15: 0 | M15: 0 | N15: 0 | O15: 0 | P15: 0 | Q15: 0
A16: DOPEX0103 | B16: Billing & Revenue Collection | C16: 89161.93606 | D16: 89161.93606 | E16: 96327.6028 | F16: 97748.78666 | G16: 99343.50253 | H16: 100686.634 | I16: 101765.2363 | K16: 0 | L16: 0 | M16: 0 | N16: 0 | O16: 0 | P16: 0 | Q16: 0
A17: DOPEX0104 | B17: Advertising, marketing & promotions | C17: 876393.5119 | D17: 876393.5119 | E17: 946826.5253 | F17: 960795.6737 | G17: 976470.5088 | H17: 989672.4616 | I17: 1000274.296 | K17: 0 | L17: 0 | M17: 0 | N17: 0 | O17: 0 | P17: 0 | Q17: 0
A18: DOPEX0105 | B18: Customer Service | C18: 5556490.596 | D18: 5556490.596 | E18: 6003048.416 | F18: 6091615.299 | G18: 6190996.539 | H18: 6274699.266 | I18: 6341916.781 | K18: 0 | L18: 0 | M18: 0 | N18: 0 | O18: 0 | P18: 0 | Q18: 0
A19: DOPEX0106 | B19: Regulatory | C19: 3010431.621 | D19: 3010431.621 | E19: 3252370.622 | F19: 3300354.964 | G19: 3354198.379 | H19: 3399547.387 | I19: 3435964.929 | K19: 0 | L19: 0 | M19: 0 | N19: 0 | O19: 0 | P19: 0 | Q19: 0
A20: DOPEX0107 | B20: IT | C20: 24578686.03 | D20: 24578686.03 | E20: 29103570.4 | F20: 29373633.86 | G20: 29303164.92 | H20: 29766257.86 | I20: 30110577.43 | K20: 13147482.29 | L20: 13170877.52 | M20: 7477400.702 | N20: 7444846.303 | O20: 7341010.662 | P20: 7199985.975 | Q20: 7171824.321
A21: DOPEX0108 | B21: Licence fee | C21: 0 | D21: 0 | E21: 0 | F21: 0 | G21: 0 | H21: 0 | I21: 0 | K21: 0 | L21: 0 | M21: 0 | N21: 0 | O21: 0 | P21: 0 | Q21: 0
A22: DOPEX0109 | B22: GSL payments | C22: 0 | D22: 0 | E22: 9347020.964 | F22: 9347020.964 | G22: 9347020.964 | H22: 9347020.964 | I22: 9347020.964 | K22: 0 | L22: 0 | M22: 0 | N22: 0 | O22: 0 | P22: 0 | Q22: 0
A23: DOPEX0110 | B23: Non-network alternatives costs | C23: 11405973.76 | D23: 11405973.76 | E23: 12322636.31 | F23: 12504440.18 | G23: 12708443.02 | H23: 12880262.1 | I23: 13018241.49 | K23: 0 | L23: 0 | M23: 0 | N23: 0 | O23: 0 | P23: 0 | Q23: 0
A24: DOPEX0111 | B24: AMI Cost | C24: 7826503.624 | D24: 7826503.624 | E24: 14126634.94 | F24: 14317316.44 | G24: 14595865.25 | H24: 14886521.48 | I24: 15039947.23 | K24: 2220381.051 | L24: 2227921.763 | M24: 2323083.073 | N24: 2613060.376 | O24: 2840940.517 | P24: 2940029.38 | Q24: 3022351.951
A25: DOPEX0112 | B25: Other - Standard Control Services | C25: 25664800.57 | D25: 25664800.57 | E25: 27727400.55 | F25: 28136480.95 | G25: 28595511.64 | H25: 28982125.05 | I25: 29292595.14 | K25: 0 | L25: 0 | M25: 0 | N25: 0 | O25: 0 | P25: 0 | Q25: 0
A26: DOPEX0113 | B26: MAINTENANCE
A27: DOPEX0114 | B27: Routine | C27: 10788022.72 | D27: 10788022.72 | E27: 11655022.46 | F27: 11826976.6 | G27: 12019927 | H27: 12182437.29 | I27: 12312941.26 | K27: 0 | L27: 0 | M27: 0 | N27: 0 | O27: 0 | P27: 0 | Q27: 0
A28: DOPEX0115 | B28: Condition based | C28: 45477068.48 | D28: 45477068.48 | E28: 49131918.65 | F28: 49856793.85 | G28: 50670179.09 | H28: 51355243.62 | I28: 51905385.03 | K28: 0 | L28: 0 | M28: 0 | N28: 0 | O28: 0 | P28: 0 | Q28: 0
A29: DOPEX0116 | B29: Emergency | C29: 19449835.24 | D29: 19449835.24 | E29: 21012957.84 | F29: 21322975.69 | G29: 21670847.91 | H29: 21963839.37 | I29: 22199126.29 | K29: 0 | L29: 0 | M29: 0 | N29: 0 | O29: 0 | P29: 0 | Q29: 0
A30: DOPEX0117 | B30: SCADA/Network Control | C30: 47491.59946 | D30: 47491.59946 | E30: 51308.3512 | F30: 52065.33672 | G30: 52914.75309 | H30: 53630.16443 | I30: 54204.67585 | K30: 0 | L30: 0 | M30: 0 | N30: 0 | O30: 0 | P30: 0 | Q30: 0
A31: DOPEX0118 | B31: Other - Standard Control Services | C31: 0 | D31: 0 | E31: 0 | F31: 0 | G31: 0 | H31: 0 | I31: 0 | K31: 0 | L31: 0 | M31: 0 | N31: 0 | O31: 0 | P31: 0 | Q31: 0
A32: DOPEX0119 | B32: AMI | C32: 0 | D32: 0 | E32: 0 | F32: 0 | G32: 0 | H32: 0 | I32: 0 | K32: 1187034.846 | L32: 1189708.038 | M32: 1195024.524 | N32: 1198929.815 | O32: 1203090.563 | P32: 1206956.203 | Q32: 1210532.539
A33: DOPEX0120 | B33: Public Lighting | C33: 0 | D33: 0 | E33: 0 | F33: 0 | G33: 0 | H33: 0 | I33: 0 | K33: 8589233.239 | L33: 8326637.616 | M33: 7863349.747 | N33: 7733448.885 | O33: 7337143.551 | P33: 7237510.124 | Q33: 7207299.587
A34: DOPEX0121 | B34: Alternative control -other | C34: 0 | D34: 0 | E34: 0 | F34: 0 | G34: 0 | H34: 0 | I34: 0 | K34: 2385611.511 | L34: 2468434.685 | M34: 3035940.583 | N34: 7225132.679 | O34: 6780052.261 | P34: 3731255.642 | Q34: 3235001.604
A35: DOPEX0122
A36: DOPEX0123
A37: DOPEX0124
A38: DOPEX0125
A39: DOPEX0126
A40: DOPEX0127
A41: DOPEX0128
A42: DOPEX0129
A43: DOPEX0130
A44: DOPEX0131
A45: DOPEX0132
A46: DOPEX0133
A47: DOPEX0134
A48: DOPEX0135
A49: DOPEX0136
A50: DOPEX0137
A51: DOPEX0138
A52: DOPEX0139
A53: DOPEX0140
A54: DOPEX0141
A55: DOPEX0142
A56: DOPEX0143
A57: DOPEX0144
A58: DOPEX0145
A59: DOPEX0146
A60: DOPEX0147
A61: DOPEX0148
A62: DOPEX0149
A63: DOPEX01 | B63: Total opex | C63: =SUM(C14:C62) -> 204348354.6 | D63: 204348354.6 | E63: 239752141.3 | F63: 243304191.2 | G63: 246926937.1 | H63: 250374860.3 | I63: 253036397.1 | K63: =SUM(K14:K62) -> 27529742.94 | L63: 27383579.62 | M63: 21894798.63 | N63: 26215418.06 | O63: 25502237.55 | P63: 22315737.32 | Q63: 21847010
B66: 3.2.2 - OPEX CONSISTENCY
B67: OPEX CONSISTENCY - CURRENT COST ALLOCATION APPROACH
C68: Standard control services | K68: Alternative control services
C69: EXPENDITURE | K69: EXPENDITURE
C70: =CONCATENATE("Forecast ($0's, real ",dms_DollarReal,")") -> Forecast ($0's, real June 2021) | K70: =CONCATENATE("Forecast ($0's, real ",dms_DollarReal,")") -> Forecast ($0's, real June 2021)
C71: =CRCP_y4 -> 2019-20 | D71: =CRCP_y5 -> 2020-21 | E71: =FRCP_y1 -> 2021-22 | F71: =FRCP_y2 -> 2022-23 | G71: =FRCP_y3 -> 2023-24 | H71: =FRCP_y4 -> 2024-25 | I71: =FRCP_y5 -> 2025-26 | K71: =CRCP_y4 -> 2019-20 | L71: =CRCP_y5 -> 2020-21 | M71: =FRCP_y1 -> 2021-22 | N71: =FRCP_y2 -> 2022-23 | O71: =FRCP_y3 -> 2023-24 | P71: =FRCP_y4 -> 2024-25 | Q71: =FRCP_y5 -> 2025-26
A72: DOPEX0201 | B72: Opex for network services | C72: 178869778.5 | D72: 178869778.5 | E72: 205359272.5 | F72: 208418714.6 | G72: 211462527.8 | H72: 214336201.4 | I72: 216619027.7 | K72: 2385611.511 | L72: 2468434.685 | M72: 3035940.583 | N72: 7225132.679 | O72: 6780052.261 | P72: 3731255.642 | Q72: 3235001.604
A73: DOPEX0202 | B73: Opex for metering | C73: 7826503.624 | D73: 7826503.624 | E73: 14126634.94 | F73: 14317316.44 | G73: 14595865.25 | H73: 14886521.48 | I73: 15039947.23 | K73: 16554898.19 | L73: 16588507.32 | M73: 10995508.3 | N73: 11256836.49 | O73: 11385041.74 | P73: 11346971.56 | Q73: 11404708.81
A74: DOPEX0203 | B74: Opex for connection services | C74: 2567218.581 | D74: 2567218.581 | E74: 2947407.575 | F74: 2991318.048 | G74: 3035004.207 | H74: 3076248.449 | I74: 3109012.587 | K74: 0 | L74: 0 | M74: 0 | N74: 0 | O74: 0 | P74: 0 | Q74: 0
A75: DOPEX0204 | B75: Opex for public lighting | C75: 0 | D75: 0 | E75: 0 | F75: 0 | G75: 0 | H75: 0 | I75: 0 | K75: 8589233.239 | L75: 8326637.616 | M75: 7863349.747 | N75: 7733448.885 | O75: 7337143.551 | P75: 7237510.124 | Q75: 7207299.587
A76: DOPEX0205 | B76: Opex for amounts payable for easement levy or similar direct charges on DNSP | C76: 15016313.17 | D76: 15016313.17 | E76: 17240135.1 | F76: 17496978.61 | G76: 17752510.04 | H76: 17993758.08 | I76: 18185403.84 | K76: 0 | L76: 0 | M76: 0 | N76: 0 | O76: 0 | P76: 0 | Q76: 0
A77: DOPEX0207 | B77: Opex for transmission connection point planning | C77: 68540.66967 | D77: 68540.66967 | E77: 78691.1136 | F77: 79863.45368 | G77: 81029.80493 | H77: 82130.96084 | I77: 83005.71144 | K77: 0 | L77: 0 | M77: 0 | N77: 0 | O77: 0 | P77: 0 | Q77: 0
B80: 3.2.4 - OPEX FOR HIGH VOLTAGE CUSTOMERS
C81: End user costs (not standard control services)
C82: EXPENDITURE
C83: =CONCATENATE("Forecast ($0's, real ",dms_DollarReal,")") -> Forecast ($0's, real June 2021)
C84: =CRCP_y4 -> 2019-20 | D84: =CRCP_y5 -> 2020-21 | E84: =FRCP_y1 -> 2021-22 | F84: =FRCP_y2 -> 2022-23 | G84: =FRCP_y3 -> 2023-24 | H84: =FRCP_y4 -> 2024-25 | I84: =FRCP_y5 -> 2025-26
A85: DOPEX0401 | B85: Opex for high voltage customers | C85: 246463.0111 | D85: 246463.0111 | E85: 246463.0111 | F85: 246463.0111 | G85: 246463.0111 | H85: 246463.0111 | I85: 246463.0111

Sheet 3.3 Assets (RAB)
B1: =INDEX(dms_Worksheet_List,MATCH(dms_Model,dms_Model_List)) -> REGULATORY REPORTING STATEMENT
B2: =INDEX(dms_TradingNameFull_List,MATCH(dms_TradingName,dms_TradingName_List)) -> AusNet Electricity Services Pty Ltd
B3: =dms_Header_Span -> 2021-22 to 2025-26
B4: 3.3 ASSETS
B6: There are FOUR tables on this worksheet. Both ROWS and COLUMNS in each have been grouped (and sub-grouped) for ease of navigation. see the Instructions sheet on how to group or ungroup tables.
B8: 3.3.1 - REGULATORY ASSET BASE VALUES
C9: Network services | K9: Standard control services | S9: Alternative control services
C10: =CONCATENATE("Forecast ($0's, real ", dms_DollarReal,")") -> Forecast ($0's, real June 2021) | K10: =CONCATENATE("Forecast ($0's, real ", dms_DollarReal,")") -> Forecast ($0's, real June 2021) | S10: =CONCATENATE("Forecast ($0's, real ", dms_DollarReal,")") -> Forecast ($0's, real June 2021)
C11: =CRCP_y4 -> 2019-20 | D11: =CRCP_y5 -> 2020-21 | E11: =FRCP_y1 -> 2021-22 | F11: =FRCP_y2 -> 2022-23 | G11: =FRCP_y3 -> 2023-24 | H11: =FRCP_y4 -> 2024-25 | I11: =FRCP_y5 -> 2025-26 | K11: =CRCP_y4 -> 2019-20 | L11: =CRCP_y5 -> 2020-21 | M11: =FRCP_y1 -> 2021-22 | N11: =FRCP_y2 -> 2022-23 | O11: =FRCP_y3 -> 2023-24 | P11: =FRCP_y4 -> 2024-25 | Q11: =FRCP_y5 -> 2025-26 | S11: =CRCP_y4 -> 2019-20 | T11: =CRCP_y5 -> 2020-21 | U11: =FRCP_y1 -> 2021-22 | V11: =FRCP_y2 -> 2022-23 | W11: =FRCP_y3 -> 2023-24 | X11: =FRCP_y4 -> 2024-25 | Y11: =FRCP_y5 -> 2025-26
B12: For total asset base:
A13: DRAB0101 | B13: Opening value | C13: 4277916371 | D13: 4489715967 | E13: 4701674068 | F13: 4768559209 | G13: 4809608785 | H13: 4846810453 | I13: 4862731663 | K13: 4290385688 | L13: 4501899298 | M13: 4715140469 | N13: 4781711503 | O13: 4822446973 | P13: 4859334534 | Q13: 4874941637 | S13: 301260036.2 | T13: 280151280 | U13: 268393749.9 | V13: 255115640.9 | W13: 237285159 | X13: 217560227.2 | Y13: 196363584.7
A14: DRAB0102 | B14: Inflation addition | C14: 0 | D14: 0 | E14: 0 | F14: 0 | G14: 0 | H14: 0 | I14: 0 | K14: 0 | L14: 0 | M14: 0 | N14: 0 | O14: 0 | P14: 0 | Q14: 0 | S14: 0 | T14: 0 | U14: 0 | V14: 0 | W14: 0 | X14: 0 | Y14: 0
A15: DRAB0103 | B15: Straight line depreciation | C15: -204326161.3 | D15: -209570219.3 | E15: -247333650.7 | F15: -256733809.1 | G15: -260238162.8 | H15: -266112731.1 | I15: -270801953.6 | K15: -204612146.7 | L15: -209854262.7 | M15: -247647757.5 | N15: -257047915.9 | O15: -260552269.6 | P15: -266426837.9 | Q15: -271116060.5 | S15: -39222561.28 | T15: -31780567.32 | U15: -35854330.39 | V15: -38108419.58 | W15: -39025829.86 | X15: -40068459.38 | Y15: -40756581.15
A16: DRAB0105 | B16: Actual additions (recognised in RAB) | C16: 417449399.3 | D16: 394281004.5 | E16: 315881754.8 | F16: 299446349 | G16: 299102794.2 | H16: 283696904.4 | I16: 285069531.6 | K16: 417449399.3 | L16: 395612330 | M16: 315881754.8 | N16: 299446349 | O16: 299102794.2 | P16: 283696904.4 | Q16: 285069531.6 | S16: 18113805.04 | T16: 15325634.48 | U16: 22576221.46 | V16: 20277937.61 | W16: 19300898.06 | X16: 18871816.94 | Y16: 17705529.98
A17: DRAB0106 | B17: Disposals | C17: -1323642.26 | D17: -1309842.15 | E17: -1662963.292 | F17: -1662963.292 | G17: -1662963.292 | H17: -1662963.292 | I17: -1662963.292 | K17: -1323642.26 | L17: -1309842.15 | M17: -1662963.292 | N17: -1662963.292 | O17: -1662963.292 | P17: -1662963.292 | Q17: -1662963.292 | S17: 0 | T17: 0 | U17: 0 | V17: 0 | W17: 0 | X17: 0 | Y17: 0
A18: DRAB0107 | B18: Closing value | C18: =SUM(C13+C14+C15+C16+C17) -> 4489715967 | D18: 4673116910 | E18: 4768559209 | F18: 4809608785 | G18: 4846810453 | H18: 4862731663 | I18: 4875336278 | K18: =SUM(K13+K14+K15+K16+K17) -> 4501899298 | L18: 4686347523 | M18: 4781711503 | N18: 4822446973 | O18: 4859334534 | P18: 4874941637 | Q18: 4887232145 | S18: =SUM(S13+S14+S15+S16+S17) -> 280151280 | T18: 263696347.1 | U18: 255115640.9 | V18: 237285159 | W18: 217560227.2 | X18: 196363584.7 | Y18: 173312533.6
B21: 3.3.2 - ASSET VALUE ROLL FORWARD
C22: Network services | K22: Standard control services | S22: Alternative control services
C23: =CONCATENATE("Forecast ($0's, real ", dms_DollarReal,")") -> Forecast ($0's, real June 2021) | K23: =CONCATENATE("Forecast ($0's, real ", dms_DollarReal,")") -> Forecast ($0's, real June 2021) | S23: =CONCATENATE("Forecast ($0's, real ", dms_DollarReal,")") -> Forecast ($0's, real June 2021)
C24: =CRCP_y4 -> 2019-20 | D24: =CRCP_y5 -> 2020-21 | E24: =FRCP_y1 -> 2021-22 | F24: =FRCP_y2 -> 2022-23 | G24: =FRCP_y3 -> 2023-24 | H24: =FRCP_y4 -> 2024-25 | I24: =FRCP_y5 -> 2025-26 | K24: =CRCP_y4 -> 2019-20 | L24: =CRCP_y5 -> 2020-21 | M24: =FRCP_y1 -> 2021-22 | N24: =FRCP_y2 -> 2022-23 | O24: =FRCP_y3 -> 2023-24 | P24: =FRCP_y4 -> 2024-25 | Q24: =FRCP_y5 -> 2025-26 | S24: =CRCP_y4 -> 2019-20 | T24: =CRCP_y5 -> 2020-21 | U24: =FRCP_y1 -> 2021-22 | V24: =FRCP_y2 -> 2022-23 | W24: =FRCP_y3 -> 2023-24 | X24: =FRCP_y4 -> 2024-25 | Y24: =FRCP_y5 -> 2025-26
B25: For overhead network assets less than 33kV:
A26: DRAB0201 | B26: Opening value | C26: 2331015872 | D26: 2353559848 | E26: 2418958472 | F26: 2423635471 | G26: 2423545168 | H26: 2419310279 | I26: 2412897194 | K26: 2331015872 | L26: 2353559848 | M26: 2418958472 | N26: 2423635471 | O26: 2423545168 | P26: 2419310279 | Q26: 2412897194 | S26: 0 | T26: =S31 -> 0 | U26: 0 | V26: 0 | W26: 0 | X26: 0 | Y26: 0
A27: DRAB0202 | B27: Inflation addition | C27: 0 | D27: 0 | E27: 0 | F27: 0 | G27: 0 | H27: 0 | I27: 0 | K27: 0 | L27: 0 | M27: 0 | N27: 0 | O27: 0 | P27: 0 | Q27: 0 | S27: 0 | T27: 0 | U27: 0 | V27: 0 | W27: 0 | X27: 0 | Y27: 0
A28: DRAB0203 | B28: Straight line depreciation | C28: -86970087.64 | D28: -86301575.98 | E28: -81742453.96 | F28: -84180393.04 | G28: -85248943.96 | H28: -87534393.86 | I28: -89822869.49 | K28: -86970087.64 | L28: -86301575.98 | M28: -81742453.96 | N28: -84180393.04 | O28: -85248943.96 | P28: -87534393.86 | Q28: -89822869.49 | S28: 0 | T28: 0 | U28: 0 | V28: 0 | W28: 0 | X28: 0 | Y28: 0
A29: DRAB0205 | B29: Actual additions (recognised in RAB) | C29: 109514063.3 | D29: 110127606.6 | E29: 86419452.57 | F29: 84090090.2 | G29: 81014054.44 | H29: 81121309.5 | I29: 85618873.9 | K29: 109514063.3 | L29: 110127606.6 | M29: 86419452.57 | N29: 84090090.2 | O29: 81014054.44 | P29: 81121309.5 | Q29: 85618873.9 | S29: 0 | T29: 0 | U29: 0 | V29: 0 | W29: 0 | X29: 0 | Y29: 0
A30: DRAB0206 | B30: Disposals | C30: 0 | D30: 0 | E30: 0 | F30: 0 | G30: 0 | H30: 0 | I30: 0 | K30: 0 | L30: 0 | M30: 0 | N30: 0 | O30: 0 | P30: 0 | Q30: 0 | S30: 0 | T30: 0 | U30: 0 | V30: 0 | W30: 0 | X30: 0 | Y30: 0
A31: DRAB0207 | B31: Closing value | C31: =SUM(C26+C27+C28+C29+C30) -> 2353559848 | D31: 2377385878 | E31: 2423635471 | F31: 2423545168 | G31: 2419310279 | H31: 2412897194 | I31: 2408693199 | K31: =SUM(K26+K27+K28+K29+K30) -> 2353559848 | L31: 2377385878 | M31: 2423635471 | N31: 2423545168 | O31: 2419310279 | P31: 2412897194 | Q31: 2408693199 | S31: =SUM(S26+S27+S28+S29+S30) -> 0 | T31: 0 | U31: 0 | V31: 0 | W31: 0 | X31: 0 | Y31: 0
B32: For underground network assets less than 33kV:
A33: DRAB0301 | B33: Opening value | C33: 824037837.7 | D33: 888395138.8 | E33: 970181673.4 | F33: 1016485757 | G33: 1059955586 | H33: 1100417716 | I33: 1140190920 | K33: 824037837.7 | L33: 888395138.8 | M33: 970181673.4 | N33: 1016485757 | O33: 1059955586 | P33: 1100417716 | Q33: 1140190920 | S33: 0 | T33: =S38 -> 0 | U33: 0 | V33: 0 | W33: 0 | X33: 0 | Y33: 0
A34: DRAB0302 | B34: Inflation addition | C34: 0 | D34: 0 | E34: 0 | F34: 0 | G34: 0 | H34: 0 | I34: 0 | K34: 0 | L34: 0 | M34: 0 | N34: 0 | O34: 0 | P34: 0 | Q34: 0 | S34: 0 | T34: 0 | U34: 0 | V34: 0 | W34: 0 | X34: 0 | Y34: 0
A35: DRAB0303 | B35: Straight line depreciation | C35: -29722478.87 | D35: -29494011.54 | E35: -27935907.92 | F35: -28769086.26 | G35: -29134269.08 | H35: -29915333.45 | I35: -30697431.87 | K35: -29722478.87 | L35: -29494011.54 | M35: -27935907.92 | N35: -28769086.26 | O35: -29134269.08 | P35: -29915333.45 | Q35: -30697431.87 | S35: 0 | T35: 0 | U35: 0 | V35: 0 | W35: 0 | X35: 0 | Y35: 0
A36: DRAB0305 | B36: Actual additions (recognised in RAB) | C36: 94079779.92 | D36: 94606853.95 | E36: 74239991.07 | F36: 72238915.66 | G36: 69596398.72 | H36: 69688537.86 | I36: 73552241.35 | K36: 94079779.92 | L36: 94606853.95 | M36: 74239991.07 | N36: 72238915.66 | O36: 69596398.72 | P36: 69688537.86 | Q36: 73552241.35 | S36: 0 | T36: 0 | U36: 0 | V36: 0 | W36: 0 | X36: 0 | Y36: 0
A37: DRAB0306 | B37: Disposals | C37: 0 | D37: 0 | E37: 0 | F37: 0 | G37: 0 | H37: 0 | I37: 0 | K37: 0 | L37: 0 | M37: 0 | N37: 0 | O37: 0 | P37: 0 | Q37: 0 | S37: 0 | T37: 0 | U37: 0 | V37: 0 | W37: 0 | X37: 0 | Y37: 0
A38: DRAB0307 | B38: Closing value | C38: =SUM(C33+C34+C35+C36+C37) -> 888395138.8 | D38: 953507981.2 | E38: 1016485757 | F38: 1059955586 | G38: 1100417716 | H38: 1140190920 | I38: 1183045729 | K38: =SUM(K33+K34+K35+K36+K37) -> 888395138.8 | L38: 953507981.2 | M38: 1016485757 | N38: 1059955586 | O38: 1100417716 | P38: 1140190920 | Q38: 1183045729 | S38: =SUM(S33+S34+S35+S36+S37) -> 0 | T38: 0 | U38: 0 | V38: 0 | W38: 0 | X38: 0 | Y38: 0
B39: For distribution substations and transformers:
A40: DRAB0401 | B40: Opening value | C40: 349237542.2 | D40: 362876954.1 | E40: 231027560.3 | F40: 239854116.1 | G40: 247757328.9 | H40: 254758868.2 | I40: 261448823.1 | K40: 349237542.2 | L40: 362876954.1 | M40: 231027560.3 | N40: 239854116.1 | O40: 247757328.9 | P40: 254758868.2 | Q40: 261448823.1 | S40: 0 | T40: =S45 -> 0 | U40: 0 | V40: 0 | W40: 0 | X40: 0 | Y40: 0
A41: DRAB0402 | B41: Inflation addition | C41: 0 | D41: 0 | E41: 0 | F41: 0 | G41: 0 | H41: 0 | I41: 0 | K41: 0 | L41: 0 | M41: 0 | N41: 0 | O41: 0 | P41: 0 | Q41: 0 | S41: 0 | T41: 0 | U41: 0 | V41: 0 | W41: 0 | X41: 0 | Y41: 0
A42: DRAB0403 | B42: Straight line depreciation | C42: -12843984.61 | D42: -12745256.94 | E42: -12071953.11 | F42: -12431994.74 | G42: -12589801.32 | H42: -12927322.92 | I42: -13265291.37 | K42: -12843984.61 | L42: -12745256.94 | M42: -12071953.11 | N42: -12431994.74 | O42: -12589801.32 | P42: -12927322.92 | Q42: -13265291.37 | S42: 0 | T42: 0 | U42: 0 | V42: 0 | W42: 0 | X42: 0 | Y42: 0
A43: DRAB0405 | B43: Actual additions (recognised in RAB) | C43: 26483396.48 | D43: 26631767.47 | E43: 20898508.9 | F43: 20335207.48 | G43: 19591340.69 | H43: 19617277.8 | I43: 20704907.8 | K43: 26483396.48 | L43: 26631767.47 | M43: 20898508.9 | N43: 20335207.48 | O43: 19591340.69 | P43: 19617277.8 | Q43: 20704907.8 | S43: 0 | T43: 0 | U43: 0 | V43: 0 | W43: 0 | X43: 0 | Y43: 0
A44: DRAB0406 | B44: Disposals | C44: 0 | D44: 0 | E44: 0 | F44: 0 | G44: 0 | H44: 0 | I44: 0 | K44: 0 | L44: 0 | M44: 0 | N44: 0 | O44: 0 | P44: 0 | Q44: 0 | S44: 0 | T44: 0 | U44: 0 | V44: 0 | W44: 0 | X44: 0 | Y44: 0
A45: DRAB0407 | B45: Closing value | C45: =SUM(C40+C41+C42+C43+C44) -> 362876954.1 | D45: 376763464.6 | E45: 239854116.1 | F45: 247757328.9 | G45: 254758868.2 | H45: 261448823.1 | I45: 268888439.6 | K45: =SUM(K40+K41+K42+K43+K44) -> 362876954.1 | L45: 376763464.6 | M45: 239854116.1 | N45: 247757328.9 | O45: 254758868.2 | P45: 261448823.1 | Q45: 268888439.6 | S45: =SUM(S40+S41+S42+S43+S44) -> 0 | T45: 0 | U45: 0 | V45: 0 | W45: 0 | X45: 0 | Y45: 0
B46: For overhead network assets 33kV and above:
A47: DRAB0501 | B47: Opening value | C47: 274797021.4 | D47: 264830634.8 | E47: 230796718.9 | F47: 222246476.3 | G47: 213250744.2 | H47: 203617822.7 | I47: 193261454.7 | K47: 274797021.4 | L47: 264830634.8 | M47: 230796718.9 | N47: 222246476.3 | O47: 213250744.2 | P47: 203617822.7 | Q47: 193261454.7 | S47: 0 | T47: =S52 -> 0 | U47: 0 | V47: 0 | W47: 0 | X47: 0 | Y47: 0
A48: DRAB0502 | B48: Inflation addition | C48: 0 | D48: 0 | E48: 0 | F48: 0 | G48: 0 | H48: 0 | I48: 0 | K48: 0 | L48: 0 | M48: 0 | N48: 0 | O48: 0 | P48: 0 | Q48: 0 | S48: 0 | T48: 0 | U48: 0 | V48: 0 | W48: 0 | X48: 0 | Y48: 0
A49: DRAB0503 | B49: Straight line depreciation | C49: -10284482.06 | D49: -11046121 | E49: -8758643.312 | F49: -9262740.766 | G49: -9908604.567 | H49: -10575450.57 | I49: -11105386.36 | K49: -10284482.06 | L49: -11046121 | M49: -8758643.312 | N49: -9262740.766 | O49: -9908604.567 | P49: -10575450.57 | Q49: -11105386.36 | S49: 0 | T49: 0 | U49: 0 | V49: 0 | W49: 0 | X49: 0 | Y49: 0
A50: DRAB0505 | B50: Actual additions (recognised in RAB) | C50: 318095.473 | D50: 313332.8041 | E50: 208400.6329 | F50: 267008.7374 | G50: 275683.0592 | H50: 219082.5499 | I50: 167079.0664 | K50: 318095.473 | L50: 313332.8041 | M50: 208400.6329 | N50: 267008.7374 | O50: 275683.0592 | P50: 219082.5499 | Q50: 167079.0664 | S50: 0 | T50: 0 | U50: 0 | V50: 0 | W50: 0 | X50: 0 | Y50: 0
A51: DRAB0506 | B51: Disposals | C51: 0 | D51: 0 | E51: 0 | F51: 0 | G51: 0 | H51: 0 | I51: 0 | K51: 0 | L51: 0 | M51: 0 | N51: 0 | O51: 0 | P51: 0 | Q51: 0 | S51: 0 | T51: 0 | U51: 0 | V51: 0 | W51: 0 | X51: 0 | Y51: 0
A52: DRAB0507 | B52: Closing value | C52: =SUM(C47+C48+C49+C50+C51) -> 264830634.8 | D52: 254097846.6 | E52: 222246476.3 | F52: 213250744.2 | G52: 203617822.7 | H52: 193261454.7 | I52: 182323147.4 | K52: =SUM(K47+K48+K49+K50+K51) -> 264830634.8 | L52: 254097846.6 | M52: 222246476.3 | N52: 213250744.2 | O52: 203617822.7 | P52: 193261454.7 | Q52: 182323147.4 | S52: =SUM(S47+S48+S49+S50+S51) -> 0 | T52: 0 | U52: 0 | V52: 0 | W52: 0 | X52: 0 | Y52: 0
B53: For underground network assets 33kV and above:
A54: DRAB0601 | B54: Opening value | C54: 180817.8691 | D54: 499680.8561 | E54: 739040.9686 | F54: 947689.5628 | G54: 1215263.093 | H54: 1491485.785 | I54: 1710656.477 | K54: 180817.8691 | L54: 499680.8561 | M54: 739040.9686 | N54: 947689.5628 | O54: 1215263.093 | P54: 1491485.785 | Q54: 1710656.477 | S54: 0 | T54: =S59 -> 0 | U54: 0 | V54: 0 | W54: 0 | X54: 0 | Y54: 0
A55: DRAB0602 | B55: Inflation addition | C55: 0 | D55: 0 | E55: 0 | F55: 0 | G55: 0 | H55: 0 | I55: 0 | K55: 0 | L55: 0 | M55: 0 | N55: 0 | O55: 0 | P55: 0 | Q55: 0 | S55: 0 | T55: 0 | U55: 0 | V55: 0 | W55: 0 | X55: 0 | Y55: 0
A56: DRAB0603 | B56: Straight line depreciation | C56: -1297.17616 | D56: -1393.241268 | E56: -1104.722944 | F56: -1168.304483 | G56: -1249.766935 | H56: -1333.87586 | I56: -1400.716376 | K56: -1297.17616 | L56: -1393.241268 | M56: -1104.722944 | N56: -1168.304483 | O56: -1249.766935 | P56: -1333.87586 | Q56: -1400.716376 | S56: 0 | T56: 0 | U56: 0 | V56: 0 | W56: 0 | X56: 0 | Y56: 0
A57: DRAB0605 | B57: Actual additions (recognised in RAB) | C57: 320160.1631 | D57: 315366.5807 | E57: 209753.3171 | F57: 268741.8344 | G57: 277472.4593 | H57: 220504.5681 | I57: 168163.5411 | K57: 320160.1631 | L57: 315366.5807 | M57: 209753.3171 | N57: 268741.8344 | O57: 277472.4593 | P57: 220504.5681 | Q57: 168163.5411 | S57: 0 | T57: 0 | U57: 0 | V57: 0 | W57: 0 | X57: 0 | Y57: 0
A58: DRAB0606 | B58: Disposals | C58: 0 | D58: 0 | E58: 0 | F58: 0 | G58: 0 | H58: 0 | I58: 0 | K58: 0 | L58: 0 | M58: 0 | N58: 0 | O58: 0 | P58: 0 | Q58: 0 | S58: 0 | T58: 0 | U58: 0 | V58: 0 | W58: 0 | X58: 0 | Y58: 0
A59: DRAB0607 | B59: Closing value | C59: =SUM(C54+C55+C56+C57+C58) -> 499680.8561 | D59: 813654.1955 | E59: 947689.5628 | F59: 1215263.093 | G59: 1491485.785 | H59: 1710656.477 | I59: 1877419.302 | K59: =SUM(K54+K55+K56+K57+K58) -> 499680.8561 | L59: 813654.1955 | M59: 947689.5628 | N59: 1215263.093 | O59: 1491485.785 | P59: 1710656.477 | Q59: 1877419.302 | S59: =SUM(S54+S55+S56+S57+S58) -> 0 | T59: 0 | U59: 0 | V59: 0 | W59: 0 | X59: 0 | Y59: 0
B60: Zone substations and transformers
A61: DRAB0701 | B61: Opening value | C61: 305856118.4 | D61: 365049713.5 | E61: 331124544.1 | F61: 367345005.2 | G61: 416034677.2 | H61: 466223491.5 | I61: 503831910 | K61: 305856118.4 | L61: 365049713.5 | M61: 331124544.1 | N61: 367345005.2 | O61: 416034677.2 | P61: 466223491.5 | Q61: 503831910 | S61: 0 | T61: =S66 -> 0 | U61: 0 | V61: 0 | W61: 0 | X61: 0 | Y61: 0
A62: DRAB0702 | B62: Inflation addition | C62: 0 | D62: 0 | E62: 0 | F62: 0 | G62: 0 | H62: 0 | I62: 0 | K62: 0 | L62: 0 | M62: 0 | N62: 0 | O62: 0 | P62: 0 | Q62: 0 | S62: 0 | T62: 0 | U62: 0 | V62: 0 | W62: 0 | X62: 0 | Y62: 0
A63: DRAB0703 | B63: Straight line depreciation | C63: -10277527.85 | D63: -11038651.79 | E63: -8752720.853 | F63: -9256477.444 | G63: -9901904.521 | H63: -10568299.61 | I63: -11097877.07 | K63: -10277527.85 | L63: -11038651.79 | M63: -8752720.853 | N63: -9256477.444 | O63: -9901904.521 | P63: -10568299.61 | Q63: -11097877.07 | S63: 0 | T63: 0 | U63: 0 | V63: 0 | W63: 0 | X63: 0 | Y63: 0
A64: DRAB0705 | B64: Actual additions (recognised in RAB) | C64: 69471122.98 | D64: 68432938.39 | E64: 44973182.02 | F64: 57946149.4 | G64: 60090718.86 | H64: 48176718.1 | I64: 37041952.97 | K64: 69471122.98 | L64: 68432938.39 | M64: 44973182.02 | N64: 57946149.4 | O64: 60090718.86 | P64: 48176718.1 | Q64: 37041952.97 | S64: 0 | T64: 0 | U64: 0 | V64: 0 | W64: 0 | X64: 0 | Y64: 0
A65: DRAB0706 | B65: Disposals | C65: 0 | D65: 0 | E65: 0 | F65: 0 | G65: 0 | H65: 0 | I65: 0 | K65: 0 | L65: 0 | M65: 0 | N65: 0 | O65: 0 | P65: 0 | Q65: 0 | S65: 0 | T65: 0 | U65: 0 | V65: 0 | W65: 0 | X65: 0 | Y65: 0
A66: DRAB0707 | B66: Closing value | C66: =SUM(C61+C62+C63+C64+C65) -> 365049713.5 | D66: 422444000.1 | E66: 367345005.2 | F66: 416034677.2 | G66: 466223491.5 | H66: 503831910 | I66: 529775985.9 | K66: =SUM(K61+K62+K63+K64+K65) -> 365049713.5 | L66: 422444000.1 | M66: 367345005.2 | N66: 416034677.2 | O66: 466223491.5 | P66: 503831910 | Q66: 529775985.9 | S66: =SUM(S61+S62+S63+S64+S65) -> 0 | T66: 0 | U66: 0 | V66: 0 | W66: 0 | X66: 0 | Y66: 0
B67: For easements:
A68: DRAB0801 | B68: Opening value | C68: 0 | D68: =C72 -> 0 | E68: 0 | F68: 0 | G68: 0 | H68: 0 | I68: 0 | K68: 0 | L68: =K72 -> 0 | M68: 0 | N68: 0 | O68: 0 | P68: 0 | Q68: 0 | S68: 0 | T68: =S72 -> 0 | U68: 0 | V68: 0 | W68: 0 | X68: 0 | Y68: 0
A69: DRAB0802 | B69: Inflation addition | C69: 0 | D69: 0 | E69: 0 | F69: 0 | G69: 0 | H69: 0 | I69: 0 | K69: 0 | L69: 0 | M69: 0 | N69: 0 | O69: 0 | P69: 0 | Q69: 0 | S69: 0 | T69: 0 | U69: 0 | V69: 0 | W69: 0 | X69: 0 | Y69: 0
A70: DRAB0803 | B70: Actual additions (recognised in RAB) | C70: 0 | D70: 0 | E70: 0 | F70: 0 | G70: 0 | H70: 0 | I70: 0 | K70: 0 | L70: 0 | M70: 0 | N70: 0 | O70: 0 | P70: 0 | Q70: 0 | S70: 0 | T70: 0 | U70: 0 | V70: 0 | W70: 0 | X70: 0 | Y70: 0
A71: DRAB0804 | B71: Disposals | C71: 0 | D71: 0 | E71: 0 | F71: 0 | G71: 0 | H71: 0 | I71: 0 | K71: 0 | L71: 0 | M71: 0 | N71: 0 | O71: 0 | P71: 0 | Q71: 0 | S71: 0 | T71: 0 | U71: 0 | V71: 0 | W71: 0 | X71: 0 | Y71: 0
A72: DRAB0805 | B72: Closing value | C72: =SUM(C68+C69+C70+C71) -> 0 | D72: 0 | E72: 0 | F72: 0 | G72: 0 | H72: 0 | I72: 0 | K72: =SUM(K68+K69+K70+K71) -> 0 | L72: 0 | M72: 0 | N72: 0 | O72: 0 | P72: 0 | Q72: 0 | S72: =SUM(S68+S69+S70+S71) -> 0 | T72: 0 | U72: 0 | V72: 0 | W72: 0 | X72: 0 | Y72: 0
B73: For meters:
A74: DRAB0901 | B74: Opening value | C74: 0 | D74: =C79 -> 0 | E74: 0 | F74: 0 | G74: 0 | H74: 0 | I74: 0 | K74: 0 | L74: =K79 -> 0 | M74: 0 | N74: 0 | O74: 0 | P74: 0 | Q74: 0 | S74: 270869393.6 | T74: 247681737.1 | U74: 231920707.1 | V74: 212825410.6 | W74: 189550926.1 | X74: 164997407.1 | Y74: 140538088.4
A75: DRAB0902 | B75: Inflation addition | C75: 0 | D75: 0 | E75: 0 | F75: 0 | G75: 0 | H75: 0 | I75: 0 | K75: 0 | L75: 0 | M75: 0 | N75: 0 | O75: 0 | P75: 0 | Q75: 0 | S75: 0 | T75: 0 | U75: 0 | V75: 0 | W75: 0 | X75: 0 | Y75: 0
A76: DRAB0903 | B76: Straight line depreciation | C76: 0 | D76: 0 | E76: 0 | F76: 0 | G76: 0 | H76: 0 | I76: 0 | K76: 0 | L76: 0 | M76: 0 | N76: 0 | O76: 0 | P76: 0 | Q76: 0 | S76: -37805311.94 | T76: -30186619.83 | U76: -33978829.29 | V76: -35900054.07 | W76: -36490138.87 | X76: -37244596.26 | Y76: -37741812.79
A77: DRAB0905 | B77: Actual additions (recognised in RAB) | C77: 0 | D77: 0 | E77: 0 | F77: 0 | G77: 0 | H77: 0 | I77: 0 | K77: 0 | L77: 0 | M77: 0 | N77: 0 | O77: 0 | P77: 0 | Q77: 0 | S77: 14617655.44 | T77: 9728187.07 | U77: 14883532.75 | V77: 12625569.57 | W77: 11936619.85 | X77: 12785277.53 | Y77: 13596829.43
A78: DRAB0906 | B78: Disposals | C78: 0 | D78: 0 | E78: 0 | F78: 0 | G78: 0 | H78: 0 | I78: 0 | K78: 0 | L78: 0 | M78: 0 | N78: 0 | O78: 0 | P78: 0 | Q78: 0 | S78: 0 | T78: 0 | U78: 0 | V78: 0 | W78: 0 | X78: 0 | Y78: 0
A79: DRAB0907 | B79: Closing value | C79: =SUM(C74+C75+C76+C77+C78) -> 0 | D79: 0 | E79: 0 | F79: 0 | G79: 0 | H79: 0 | I79: 0 | K79: =SUM(K74+K75+K76+K77+K78) -> 0 | L79: 0 | M79: 0 | N79: 0 | O79: 0 | P79: 0 | Q79: 0 | S79: =SUM(S74+S75+S76+S77+S78) -> 247681737.1 | T79: 227223304.4 | U79: 212825410.6 | V79: 189550926.1 | W79: 164997407.1 | X79: 140538088.4 | Y79: 116393105
B80: For “other” asset items with long lives:
A81: DRAB1001 | B81: Opening value | C81: 78387055.36 | D81: 117563487.5 | E81: 345770775.5 | F81: 324725223.6 | G81: 289428430 | H81: 250444419.1 | I81: 212935137.6 | K81: 90856371.98 | L81: 129746818.6 | M81: 359237176.6 | N81: 337877517.9 | O81: 302266617.4 | P81: 262968499.8 | Q81: 225145111.4 | S81: 30390642.57 | T81: 32469542.83 | U81: 36473042.75 | V81: 42290230.36 | W81: 47734232.88 | X81: 52562820.09 | Y81: 55825496.38
A82: DRAB1002 | B82: Inflation addition | C82: 0 | D82: 0 | E82: 0 | F82: 0 | G82: 0 | H82: 0 | I82: 0 | K82: 0 | L82: 0 | M82: 0 | N82: 0 | O82: 0 | P82: 0 | Q82: 0 | S82: 0 | T82: 0 | U82: 0 | V82: 0 | W82: 0 | X82: 0 | Y82: 0
A83: DRAB1003 | B83: Straight line depreciation | C83: -7038446.642 | D83: -9084539.78 | E83: -55600752.51 | F83: -59345846.23 | G83: -61584804.63 | H83: -63777273.37 | I83: -66205186.84 | K83: -7324432.088 | L83: -9368583.181 | M83: -55914859.32 | N83: -59659953.04 | O83: -61898911.44 | P83: -64091380.18 | Q83: -66519293.64 | S83: -1417249.348 | T83: -1593947.49 | U83: -1875501.104 | V83: -2208365.516 | W83: -2535690.993 | X83: -2823863.126 | Y83: -3014768.362
A84: DRAB1005 | B84: Actual additions (recognised in RAB) | C84: 46214878.73 | D84: 30854783.99 | E84: 34555200.62 | F84: 24049052.59 | G84: 22600793.78 | H84: 26267991.81 | I84: 29344083.44 | K84: 46214878.73 | L84: 32186109.52 | M84: 34555200.62 | N84: 24049052.59 | O84: 22600793.78 | P84: 26267991.81 | Q84: 29344083.44 | S84: 3496149.606 | T84: 5597447.409 | U84: 7692688.712 | V84: 7652368.038 | W84: 7364278.209 | X84: 6086539.413 | Y84: 4108700.548
A85: DRAB1006 | B85: Disposals | C85: 0 | D85: 0 | E85: 0 | F85: 0 | G85: 0 | H85: 0 | I85: 0 | K85: 0 | L85: 0 | M85: 0 | N85: 0 | O85: 0 | P85: 0 | Q85: 0 | S85: 0 | T85: 0 | U85: 0 | V85: 0 | W85: 0 | X85: 0 | Y85: 0
A86: DRAB1007 | B86: Closing value | C86: =SUM(C81+C82+C83+C84+C85) -> 117563487.5 | D86: 139333731.7 | E86: 324725223.6 | F86: 289428430 | G86: 250444419.1 | H86: 212935137.6 | I86: 176074034.2 | K86: 129746818.6 | L86: 152564345 | M86: 337877517.9 | N86: 302266617.4 | O86: 262968499.8 | P86: 225145111.4 | Q86: 187969901.2 | S86: =SUM(S81+S82+S83+S84+S85) -> 32469542.83 | T86: 36473042.75 | U86: 42290230.36 | V86: 47734232.88 | W86: 52562820.09 | X86: 55825496.38 | Y86: 56919428.57
B87: For “other” asset items with short lives:
A88: DRAB1101 | B88: Opening value | C88: 114404106.5 | D88: 136940510.1 | E88: 172912478.9 | F88: 173156667 | G88: 158258784.5 | H88: 150383568.3 | I88: 136292763.8 | K88: 114404106.5 | L88: 136940510.1 | M88: 172912478.9 | N88: 173156667 | O88: 158258784.5 | P88: 150383568.3 | Q88: 136292763.8 | S88: 0 | T88: =S93 -> 0 | U88: 0 | V88: 0 | W88: 0 | X88: 0 | Y88: 0
A89: DRAB1102 | B89: Inflation addition | C89: 0 | D89: 0 | E89: 0 | F89: 0 | G89: 0 | H89: 0 | I89: 0 | K89: 0 | L89: 0 | M89: 0 | N89: 0 | O89: 0 | P89: 0 | Q89: 0 | S89: 0 | T89: 0 | U89: 0 | V89: 0 | W89: 0 | X89: 0 | Y89: 0
A90: DRAB1103 | B90: Straight line depreciation | C90: -47187856.42 | D90: -49858669.07 | E90: -52470114.31 | F90: -53486102.32 | G90: -51868584.98 | H90: -50813323.47 | I90: -48606509.93 | K90: -47187856.42 | L90: -49858669.07 | M90: -52470114.31 | N90: -53486102.32 | O90: -51868584.98 | P90: -50813323.47 | Q90: -48606509.93 | S90: 0 | T90: 0 | U90: 0 | V90: 0 | W90: 0 | X90: 0 | Y90: 0
A91: DRAB1105 | B91: Actual additions (recognised in RAB) | C91: 71047902.24 | D91: 62998354.7 | E91: 54377265.7 | F91: 40251183.08 | G91: 45656332.16 | H91: 38385482.22 | I91: 38472229.57 | K91: 71047902.24 | L91: 62998354.7 | M91: 54377265.7 | N91: 40251183.08 | O91: 45656332.16 | P91: 38385482.22 | Q91: 38472229.57 | S91: 0 | T91: 0 | U91: 0 | V91: 0 | W91: 0 | X91: 0 | Y91: 0
A92: DRAB1106 | B92: Disposals | C92: -1323642.26 | D92: -1309842.15 | E92: -1662963.292 | F92: -1662963.292 | G92: -1662963.292 | H92: -1662963.292 | I92: -1662963.292 | K92: -1323642.26 | L92: -1309842.15 | M92: -1662963.292 | N92: -1662963.292 | O92: -1662963.292 | P92: -1662963.292 | Q92: -1662963.292 | S92: 0 | T92: 0 | U92: 0 | V92: 0 | W92: 0 | X92: 0 | Y92: 0
A93: DRAB1107 | B93: Closing value | C93: =SUM(C88+C89+C90+C91+C92) -> 136940510.1 | D93: 148770353.6 | E93: 173156667 | F93: 158258784.5 | G93: 150383568.3 | H93: 136292763.8 | I93: 124495520.1 | K93: =SUM(K88+K89+K90+K91+K92) -> 136940510.1 | L93: 148770353.6 | M93: 173156667 | N93: 158258784.5 | O93: 150383568.3 | P93: 136292763.8 | Q93: 124495520.1 | S93: =SUM(S88+S89+S90+S91+S92) -> 0 | T93: 0 | U93: 0 | V93: 0 | W93: 0 | X93: 0 | Y93: 0
B97: 3.3.3 - TOTAL DISAGGREGATED RAB ASSET VALUES
C98: Network services | K98: Standard control services | S98: Alternative control services
C99: =CONCATENATE("Forecast ($0's, real ", dms_DollarReal,")") -> Forecast ($0's, real June 2021) | K99: =CONCATENATE("Forecast ($0's, real ", dms_DollarReal,")") -> Forecast ($0's, real June 2021) | S99: =CONCATENATE("Forecast ($0's, real ", dms_DollarReal,")") -> Forecast ($0's, real June 2021)
C100: =CRCP_y4 -> 2019-20 | D100: =CRCP_y5 -> 2020-21 | E100: =FRCP_y1 -> 2021-22 | F100: =FRCP_y2 -> 2022-23 | G100: =FRCP_y3 -> 2023-24 | H100: =FRCP_y4 -> 2024-25 | I100: =FRCP_y5 -> 2025-26 | K100: =CRCP_y4 -> 2019-20 | L100: =CRCP_y5 -> 2020-21 | M100: =FRCP_y1 -> 2021-22 | N100: =FRCP_y2 -> 2022-23 | O100: =FRCP_y3 -> 2023-24 | P100: =FRCP_y4 -> 2024-25 | Q100: =FRCP_y5 -> 2025-26 | S100: =CRCP_y4 -> 2019-20 | T100: =CRCP_y5 -> 2020-21 | U100: =FRCP_y1 -> 2021-22 | V100: =FRCP_y2 -> 2022-23 | W100: =FRCP_y3 -> 2023-24 | X100: =FRCP_y4 -> 2024-25 | Y100: =FRCP_y5 -> 2025-26
A101: DRAB1201 | B101: Overhead network assets less than 33kV (wires and poles) | C101: 2342287860 | D101: 2365472863 | E101: 2421296972 | F101: 2423590320 | G101: 2421427723 | H101: 2416103736 | I101: 2410795196 | K101: 2342287860 | L101: 2365472863 | M101: 2421296972 | N101: 2423590320 | O101: 2421427723 | P101: 2416103736 | Q101: 2410795196 | S101: 0 | T101: 0 | U101: 0 | V101: 0 | W101: 0 | X101: 0 | Y101: 0
A102: DRAB1202 | B102: Underground network assets less than 33kV (cables) | C102: 856216488.3 | D102: 920951560 | E102: 993333715 | F102: 1038220671 | G102: 1080186651 | H102: 1120304318 | I102: 1161618325 | K102: 856216488.3 | L102: 920951560 | M102: 993333715 | N102: 1038220671 | O102: 1080186651 | P102: 1120304318 | Q102: 1161618325 | S102: 0 | T102: 0 | U102: 0 | V102: 0 | W102: 0 | X102: 0 | Y102: 0
A103: DRAB1203 | B103: Distribution substations including transformers | C103: 356057248.2 | D103: 294967019.5 | E103: 235440838.2 | F103: 243805722.5 | G103: 251258098.6 | H103: 258103845.7 | I103: 265168631.3 | K103: 356057248.2 | L103: 294967019.5 | M103: 235440838.2 | N103: 243805722.5 | O103: 251258098.6 | P103: 258103845.7 | Q103: 265168631.3 | S103: 0 | T103: 0 | U103: 0 | V103: 0 | W103: 0 | X103: 0 | Y103: 0
A104: DRAB1204 | B104: Overhead network assets 33kV and above (wires and towers / poles etc) | C104: 269813828.1 | D104: 259464240.7 | E104: 226521597.6 | F104: 217748610.2 | G104: 208434283.5 | H104: 198439638.7 | I104: 187792301.1 | K104: 269813828.1 | L104: 259464240.7 | M104: 226521597.6 | N104: 217748610.2 | O104: 208434283.5 | P104: 198439638.7 | Q104: 187792301.1 | S104: 0 | T104: 0 | U104: 0 | V104: 0 | W104: 0 | X104: 0 | Y104: 0
A105: DRAB1205 | B105: Underground network assets 33kV and above(cables, ducts etc) | C105: 340249.3626 | D105: 656667.5258 | E105: 843365.2657 | F105: 1081476.328 | G105: 1353374.439 | H105: 1601071.131 | I105: 1794037.89 | K105: 340249.3626 | L105: 656667.5258 | M105: 843365.2657 | N105: 1081476.328 | O105: 1353374.439 | P105: 1601071.131 | Q105: 1794037.89 | S105: 0 | T105: 0 | U105: 0 | V105: 0 | W105: 0 | X105: 0 | Y105: 0
A106: DRAB1206 | B106: Zone substations and transformers | C106: 335452915.9 | D106: 363799826.9 | E106: 349234774.6 | F106: 391689841.2 | G106: 441129084.3 | H106: 485027700.8 | I106: 516803948 | K106: 335452915.9 | L106: 363799826.9 | M106: 349234774.6 | N106: 391689841.2 | O106: 441129084.3 | P106: 485027700.8 | Q106: 516803948 | S106: 0 | T106: 0 | U106: 0 | V106: 0 | W106: 0 | X106: 0 | Y106: 0
A107: DRAB1207 | B107: Easements | C107: 0 | D107: 0 | E107: 0 | F107: 0 | G107: 0 | H107: 0 | I107: 0 | K107: 0 | L107: 0 | M107: 0 | N107: 0 | O107: 0 | P107: 0 | Q107: 0 | S107: 0 | T107: 0 | U107: 0 | V107: 0 | W107: 0 | X107: 0 | Y107: 0
A108: DRAB1208 | B108: Meters | C108: 0 | D108: 0 | E108: 0 | F108: 0 | G108: 0 | H108: 0 | I108: 0 | K108: 0 | L108: 0 | M108: 0 | N108: 0 | O108: 0 | P108: 0 | Q108: 0 | S108: 259275565.4 | T108: 237452520.7 | U108: 222373058.9 | V108: 201188168.3 | W108: 177274166.6 | X108: 152767747.7 | Y108: 128465596.7
A109: DRAB1209 | B109: “Other” assets with long lives | C109: 97975271.41 | D109: 233248829.3 | E109: 335247999.6 | F109: 307076826.8 | G109: 269936424.6 | H109: 231689778.3 | I109: 194504585.9 | K109: 110301595.3 | L109: 245955801.5 | M109: 348557347.2 | N109: 320072067.7 | O109: 282617558.6 | P109: 244056805.6 | Q109: 206557506.3 | S109: 31430092.7 | T109: 34471292.79 | U109: 39381636.55 | V109: 45012231.62 | W109: 50148526.49 | X109: 54194158.24 | Y109: 56372462.47
A110: DRAB1210 | B110: “Other” assets with short lives | C110: 125672308.3 | D110: 142855431.8 | E110: 173034572.9 | F110: 165707725.7 | G110: 154321176.4 | H110: 143338166.1 | I110: 130394142 | K110: 125672308.3 | L110: 142855431.8 | M110: 173034572.9 | N110: 165707725.7 | O110: 154321176.4 | P110: 143338166.1 | Q110: 130394142 | S110: 0 | T110: 0 | U110: 0 | V110: 0 | W110: 0 | X110: 0 | Y110: 0
A111: DRAB13 | B111: Value of Capital Contributions or Contributed Assets (included in the above) | C111: 68462514.29 | D111: 70471995.83 | E111: 72320594.38 | F111: 70447447.44 | G111: 68807592.12 | H111: 69877527.72 | I111: 70807211.97 | K111: 68462514.29 | L111: 70471995.83 | M111: 72320594.38 | N111: 70447447.44 | O111: 68807592.12 | P111: 69877527.72 | Q111: 70807211.97 | S111: 0 | T111: 0 | U111: 0 | V111: 0 | W111: 0 | X111: 0 | Y111: 0
B114: 3.3.4 - ASSET LIVES
C115: Network services | K115: Standard control services | S115: Alternative control services
C116: Forecast ( years ) | K116: Forecast ( years ) | S116: Forecast ( years )
C117: =CRCP_y4 -> 2019-20 | D117: =CRCP_y5 -> 2020-21 | E117: =FRCP_y1 -> 2021-22 | F117: =FRCP_y2 -> 2022-23 | G117: =FRCP_y3 -> 2023-24 | H117: =FRCP_y4 -> 2024-25 | I117: =FRCP_y5 -> 2025-26 | K117: =CRCP_y4 -> 2019-20 | L117: =CRCP_y5 -> 2020-21 | M117: =FRCP_y1 -> 2021-22 | N117: =FRCP_y2 -> 2022-23 | O117: =FRCP_y3 -> 2023-24 | P117: =FRCP_y4 -> 2024-25 | Q117: =FRCP_y5 -> 2025-26 | S117: =CRCP_y4 -> 2019-20 | T117: =CRCP_y5 -> 2020-21 | U117: =FRCP_y1 -> 2021-22 | V117: =FRCP_y2 -> 2022-23 | W117: =FRCP_y3 -> 2023-24 | X117: =FRCP_y4 -> 2024-25 | Y117: =FRCP_y5 -> 2025-26
B118: Estimated service life of new assets
A119: DRAB1401 | B119: Overhead network assets less than 33kV (wires and poles) | C119: 64 | D119: 64 | E119: 64 | F119: 64 | G119: 64 | H119: 64 | I119: 64 | K119: 64 | L119: 64 | M119: 64 | N119: 64 | O119: 64 | P119: 64 | Q119: 64 | S119: 0 | T119: 0 | U119: 0 | V119: 0 | W119: 0 | X119: 0 | Y119: 0
A120: DRAB1402 | B120: Underground network assets less than 33kV (cables) | C120: 50 | D120: 50 | E120: 50 | F120: 50 | G120: 50 | H120: 50 | I120: 50 | K120: 50 | L120: 50 | M120: 50 | N120: 50 | O120: 50 | P120: 50 | Q120: 50 | S120: 0 | T120: 0 | U120: 0 | V120: 0 | W120: 0 | X120: 0 | Y120: 0
A121: DRAB1403 | B121: Distribution substations including transformers | C121: 52 | D121: 52 | E121: 52 | F121: 52 | G121: 52 | H121: 52 | I121: 52 | K121: 52 | L121: 52 | M121: 52 | N121: 52 | O121: 52 | P121: 52 | Q121: 52 | S121: 0 | T121: 0 | U121: 0 | V121: 0 | W121: 0 | X121: 0 | Y121: 0
A122: DRAB1404 | B122: Overhead network assets 33kV and above (wires and towers / poles etc) | C122: 72 | D122: 72 | E122: 72 | F122: 72 | G122: 72 | H122: 72 | I122: 72 | K122: 72 | L122: 72 | M122: 72 | N122: 72 | O122: 72 | P122: 72 | Q122: 72 | S122: 0 | T122: 0 | U122: 0 | V122: 0 | W122: 0 | X122: 0 | Y122: 0
A123: DRAB1405 | B123: Underground network assets 33kV and above(cables, ducts etc) | C123: 50 | D123: 50 | E123: 50 | F123: 50 | G123: 50 | H123: 50 | I123: 50 | K123: 50 | L123: 50 | M123: 50 | N123: 50 | O123: 50 | P123: 50 | Q123: 50 | S123: 0 | T123: 0 | U123: 0 | V123: 0 | W123: 0 | X123: 0 | Y123: 0
A124: DRAB1406 | B124: Zone substations and transformers | C124: 46 | D124: 46 | E124: 46 | F124: 46 | G124: 46 | H124: 46 | I124: 46 | K124: 46 | L124: 46 | M124: 46 | N124: 46 | O124: 46 | P124: 46 | Q124: 46 | S124: 0 | T124: 0 | U124: 0 | V124: 0 | W124: 0 | X124: 0 | Y124: 0
A125: DRAB1407 | B125: Meters | C125: - | D125: - | E125: - | F125: - | G125: - | H125: - | I125: - | K125: - | L125: - | M125: - | N125: - | O125: - | P125: - | Q125: - | S125: 14.76815751 | T125: 14.76493384 | U125: 14.03490835 | V125: 14.30870563 | W125: 14.1187012 | X125: 13.86875721 | Y125: 13.51652885
A126: DRAB1408 | B126: “Other” assets with long lives | C126: 10.11961381 | D126: 9.888849729 | E126: 10.58487841 | F126: 10 | G126: 10 | H126: 10 | I126: 9.005150144 | K126: 10.11961381 | L126: 12.96773773 | M126: 10.58487841 | N126: 10 | O126: 10 | P126: 10 | Q126: 9.005150144 | S126: 29.76246171 | T126: 29.35505445 | U126: 28.61900487 | V126: 28.10390458 | W126: 27.69372809 | X126: 27.60844759 | Y126: 27.80197109
A127: DRAB1409 | B127: “Other” assets with short lives | C127: 5 | D127: 5 | E127: 5 | F127: 5 | G127: 5 | H127: 5 | I127: 5 | K127: 5 | L127: 5 | M127: 5 | N127: 5 | O127: 5 | P127: 5 | Q127: 5 | S127: 0 | T127: 0 | U127: 0 | V127: 0 | W127: 0 | X127: 0 | Y127: 0
B128: Estimated residual service life
A129: DRAB1501 | B129: Overhead network assets less than 33kV (wires and poles) | C129: 35 | D129: 35 | E129: 34 | F129: 34 | G129: 33 | H129: 33 | I129: 32 | K129: 35 | L129: 35 | M129: 34 | N129: 34 | O129: 33 | P129: 33 | Q129: 32 | S129: 0 | T129: 0 | U129: 0 | V129: 0 | W129: 0 | X129: 0 | Y129: 0
A130: DRAB1502 | B130: Underground network assets less than 33kV (cables) | C130: 26 | D130: 25 | E130: 24 | F130: 23 | G130: 22 | H130: 21 | I130: 20 | K130: 26 | L130: 25 | M130: 24 | N130: 23 | O130: 22 | P130: 21 | Q130: 20 | S130: 0 | T130: 0 | U130: 0 | V130: 0 | W130: 0 | X130: 0 | Y130: 0
A131: DRAB1503 | B131: Distribution substations including transformers | C131: 24 | D131: 23 | E131: 22 | F131: 21 | G131: 20 | H131: 19 | I131: 19 | K131: 24 | L131: 23 | M131: 22 | N131: 21 | O131: 20 | P131: 19 | Q131: 19 | S131: 0 | T131: 0 | U131: 0 | V131: 0 | W131: 0 | X131: 0 | Y131: 0
A132: DRAB1504 | B132: Overhead network assets 33kV and above (wires and towers / poles etc) | C132: 38 | D132: 38 | E132: 37 | F132: 37 | G132: 36 | H132: 36 | I132: 35 | K132: 38 | L132: 38 | M132: 37 | N132: 37 | O132: 36 | P132: 36 | Q132: 35 | S132: 0 | T132: 0 | U132: 0 | V132: 0 | W132: 0 | X132: 0 | Y132: 0
A133: DRAB1505 | B133: Underground network assets 33kV and above (cables, ducts etc) | C133: 18 | D133: 17 | E133: 16 | F133: 15 | G133: 14 | H133: 13 | I133: 12 | K133: 18 | L133: 17 | M133: 16 | N133: 15 | O133: 14 | P133: 13 | Q133: 12 | S133: 0 | T133: 0 | U133: 0 | V133: 0 | W133: 0 | X133: 0 | Y133: 0
A134: DRAB1506 | B134: Zone substations and transformers | C134: 13 | D134: 12 | E134: 11 | F134: 10 | G134: 10 | H134: 9 | I134: 8 | K134: 13 | L134: 12 | M134: 11 | N134: 10 | O134: 10 | P134: 9 | Q134: 8 | S134: 0 | T134: 0 | U134: 0 | V134: 0 | W134: 0 | X134: 0 | Y134: 0
A135: DRAB1507 | B135: Meters | C135: 0 | D135: 0 | E135: 0 | F135: 0 | G135: 0 | H135: 0 | I135: 0 | K135: 0 | L135: 0 | M135: 0 | N135: 0 | O135: 0 | P135: 0 | Q135: 0 | S135: 7.922488748 | T135: 7.018736607 | U135: 5.886600213 | V135: 5.815062827 | W135: 5.656218588 | X135: 5.908187722 | Y135: 6.814562938
A136: DRAB1508 | B136: “Other” assets with long lives | C136: 9.095668604 | D136: 6.516561541 | E136: 6.076570817 | F136: 5.598987997 | G136: 5.335733933 | H136: 5.474824062 | I136: 6.157860642 | K136: 12.46184461 | L136: 7.879491289 | M136: 7.489491773 | N136: 7.133069678 | O136: 7.032842129 | P136: 7.377718748 | Q136: 8.345432776 | S136: 25.21100878 | T136: 24.59961771 | U136: 23.82933284 | V136: 23.17486961 | W136: 22.54296152 | X136: 22.09854236 | Y136: 21.75950764
A137: DRAB1509 | B137: “Other” assets with short lives | C137: 3.859316461 | D137: 3.652287467 | E137: 3.59879857 | F137: 3.471565614 | G137: 3.512591686 | H137: 3.509263005 | I137: 3.560946292 | K137: 3.859316461 | L137: 3.652287467 | M137: 3.59879857 | N137: 3.471565614 | O137: 3.512591686 | P137: 3.509263005 | Q137: 3.560946292 | S137: 0 | T137: 0 | U137: 0 | V137: 0 | W137: 0 | X137: 0 | Y137: 0

Sheet 3.4 Operational data
B1: =INDEX(dms_Worksheet_List,MATCH(dms_Model,dms_Model_List)) -> REGULATORY REPORTING STATEMENT
B2: =INDEX(dms_TradingNameFull_List,MATCH(dms_TradingName,dms_TradingName_List)) -> AusNet Electricity Services Pty Ltd
B3: =dms_Header_Span -> 2021-22 to 2025-26
B4: 3.4 OPERATIONAL DATA
B6: There are TWO tables on this worksheet. Each table has been grouped for ease of navigation. See the Instructions sheet on how to group or ungroup tables.
B8: 3.4.1 - ENERGY DELIVERY
D9: Standard control services
D10: Forecast
C11: Units | D11: =CRCP_y4 -> 2019-20 | E11: =CRCP_y5 -> 2020-21 | F11: =FRCP_y1 -> 2021-22 | G11: =FRCP_y2 -> 2022-23 | H11: =FRCP_y3 -> 2023-24 | I11: =FRCP_y4 -> 2024-25 | J11: =FRCP_y5 -> 2025-26
A12: DOPED01 | B12: Total energy delivered | C12: GWh
B13: 3.4.1.1 - Energy grouping - delivery by chargeable quantity
A14: DOPED0201 | B14: Energy Delivery where time of use is not a determinant | C14: GWh | D14: 2139.106293 | E14: 2091.10286 | F14: 2049.655246 | G14: 2015.326402 | H14: 1988.458772 | I14: 1966.863608 | J14: 1947.136863
A15: DOPED0202 | B15: Energy Delivery at On-peak times | C15: GWh | D15: 2120.240408 | E15: 2127.320485 | F15: 2128.228299 | G15: 2123.313865 | H15: 2120.290517 | I15: 2116.883687 | J15: 2114.131891
A16: DOPED0203 | B16: Energy Delivery at Shoulder times | C16: GWh | D16: 469.4063983 | E16: 476.6707714 | F16: 482.4019173 | G16: 488.4466453 | H16: 494.8270172 | I16: 501.1828611 | J16: 507.3571206
A17: DOPED0204 | B17: Energy Delivery at Off-peak times | C17: GWh | D17: 2340.804612 | E17: 2345.441392 | F17: 2343.92545 | G17: 2336.369703 | H17: 2330.553504 | I17: 2324.454092 | J17: 2319.802119
A18: DOPED0205 | B18: Controlled load energy deliveries | C18: GWh | D18: 0 | E18: 0 | F18: 0 | G18: 0 | H18: 0 | I18: 0 | J18: 0
A19: DOPED0206 | B19: Energy Delivery to unmetered supplies | C19: GWh | D19: 295.3994448 | E19: 295.4614372 | F19: 295.3596271 | G19: 295.0706422 | H19: 294.8895229 | I19: 294.7117032 | J19: 294.5459842
B20: 3.4.1.2 - Energy - received from TNSP and other DNSPs by time of receipt
A21: DOPED0301 | B21: Energy into DNSP network at On-peak times | C21: GWh | D21: 0 | E21: 0 | F21: 0 | G21: 0 | H21: 0 | I21: 0 | J21: 0
A22: DOPED0302 | B22: Energy into DNSP network at Shoulder times | C22: GWh | D22: 0 | E22: 0 | F22: 0 | G22: 0 | H22: 0 | I22: 0 | J22: 0
A23: DOPED0303 | B23: Energy into DNSP network at Off-peak times | C23: GWh | D23: 0 | E23: 0 | F23: 0 | G23: 0 | H23: 0 | I23: 0 | J23: 0
A24: DOPED0304 | B24: Energy received from TNSP and other DNSPs not included in the above categories | C24: GWh | D24: 6493.274004 | E24: 6396.438475 | F24: 6297.116258 | G24: 6200.19289 | H24: 6122.244487 | I24: 6057.005665 | J24: 5995.718557
B25: 3.4.1.3 - Energy - received into DNSP system from embedded generation by time of receipt
A26: DOPED0401 | B26: Energy into DNSP network at On-peak times from non-residential embedded generation | C26: GWh | D26: 0 | E26: 0 | F26: 0 | G26: 0 | H26: 0 | I26: 0 | J26: 0
A27: DOPED0402 | B27: Energy into DNSP network at Shoulder times from non-residential embedded generation | C27: GWh | D27: 0 | E27: 0 | F27: 0 | G27: 0 | H27: 0 | I27: 0 | J27: 0
A28: DOPED0403 | B28: Energy into DNSP network at Off-peak times from non-residential embedded generation | C28: GWh | D28: 0 | E28: 0 | F28: 0 | G28: 0 | H28: 0 | I28: 0 | J28: 0
A29: DOPED0404 | B29: Energy received from embedded generation not included in above categories from non-residential embedded generation | C29: GWh | D29: 1043.245164 | E29: 1048.681588 | F29: 1054.777236 | G29: 1060.159452 | H29: 1066.020205 | I29: 1071.0629 | J29: 1076.473676
A30: DOPED0405 | B30: Energy into DNSP network at On-peak times from residential embedded generation | C30: GWh | D30: 0 | E30: 0 | F30: 0 | G30: 0 | H30: 0 | I30: 0 | J30: 0
A31: DOPED0406 | B31: Energy into DNSP network at Shoulder times from residential embedded generation | C31: GWh | D31: 0 | E31: 0 | F31: 0 | G31: 0 | H31: 0 | I31: 0 | J31: 0
A32: DOPED0407 | B32: Energy into DNSP network at Off-peak times from residential embedded generation | C32: GWh | D32: 0 | E32: 0 | F32: 0 | G32: 0 | H32: 0 | I32: 0 | J32: 0
A33: DOPED0408 | B33: Energy received from embedded generation not included in above categories from residential embedded generation | C33: GWh | D33: 322.4884191 | E33: 382.984627 | F33: 437.3412619 | G33: 485.0858972 | H33: 525.686196 | I33: 559.28705 | J33: 592.6245175
B34: 3.4.1.4 - Energy grouping - customer type or class
A35: DOPED0501 | B35: Residential customers energy deliveries | C35: GWh | D35: 3031.617398 | E35: 2970.514116 | F35: 2925.1895 | G35: 2871.147037 | H35: 2825.36724 | I35: 2784.982202 | J35: 2747.662162
A36: DOPED0502 | B36: Non residential customers not on demand tariffs energy deliveries | C36: GWh | D36: 942.351561 | E36: 948.2864817 | F36: 940.0974095 | G36: 938.2947626 | H36: 936.5528118 | I36: 934.1115624 | J36: 933.0870289
A37: DOPED0503 | B37: Non-residential low voltage demand tariff customers energy deliveries | C37: GWh | D37: 2393.687003 | E37: 2423.389187 | F37: 2445.285289 | G37: 2466.669137 | H37: 2490.379621 | I37: 2513.98626 | J37: 2536.798203
A38: DOPED0504 | B38: Non-residential high voltage demand tariff customers energy deliveries | C38: GWh | D38: 997.3011947 | E38: 993.8071599 | F38: 988.9983414 | G38: 982.4163212 | H38: 976.719661 | I38: 971.0159273 | J38: 965.4265827
A39: DOPED0505 | B39: Other Customer Class Energy Deliveries | C39: GWh | D39: 0 | E39: 0 | F39: 0 | G39: 0 | H39: 0 | I39: 0 | J39: 0
B43: 3.4.3 - SYSTEM DEMAND
D44: Standard control services
D45: Forecast
C46: Units | D46: =CRCP_y4 -> 2019-20 | E46: =CRCP_y5 -> 2020-21 | F46: =FRCP_y1 -> 2021-22 | G46: =FRCP_y2 -> 2022-23 | H46: =FRCP_y3 -> 2023-24 | I46: =FRCP_y4 -> 2024-25 | J46: =FRCP_y5 -> 2025-26
B47: 3.4.3.1 - Annual system maximum demand characteristics at the zone substation level – MW measure
A48: DOPSD0102 | B48: Non–coincident Summated Weather Adjusted System Annual Maximum Demand 10% POE | C48: MW | D48: 2050.696689 | E48: 2079.194301 | F48: 2107.873192 | G48: 2136.433466 | H48: 2165.384349 | I48: 2194.542151 | J48: 2223.315407
A49: DOPSD0103 | B49: Non–coincident Summated Weather Adjusted System Annual Maximum Demand 50% POE | C49: MW | D49: 1962.472497 | E49: 1989.340722 | F49: 2016.407037 | G49: 2043.334125 | H49: 2070.656073 | I49: 2098.111532 | J49: 2125.254826
A50: DOPSD0105 | B50: Coincident Weather Adjusted System Annual Maximum Demand 10% POE | C50: MW | D50: 0 | E50: 0 | F50: 0 | G50: 0 | H50: 0 | I50: 0 | J50: 0
A51: DOPSD0106 | B51: Coincident Weather Adjusted System Annual Maximum Demand 50% POE | C51: MW | D51: 0 | E51: 0 | F51: 0 | G51: 0 | H51: 0 | I51: 0 | J51: 0
B52: 3.4.3.2 - Annual system maximum demand characteristics at the transmission connection point – MW measure
A53: DOPSD0108 | B53: Non–coincident Summated Weather Adjusted System Annual Maximum Demand 10% POE | C53: MW | D53: 2206.796014 | E53: 2222.537393 | F53: 2262.333252 | G53: 2278.622189 | H53: 2320.018629 | I53: 2379.090545 | J53: 2400.49553
A54: DOPSD0109 | B54: Non–coincident Summated Weather Adjusted System Annual Maximum Demand 50% POE | C54: MW | D54: 1957.184082 | E54: 1968.218598 | F54: 2011.842909 | G54: 2038.159254 | H54: 2069.679083 | I54: 2120.240116 | J54: 2121.359059
A55: DOPSD0111 | B55: Coincident Weather Adjusted System Annual Maximum Demand 10% POE | C55: MW | D55: 1986.646028 | E55: 1979.287933 | F55: 1999.526459 | G55: 2048.787061 | H55: 2063.75732 | I55: 2102.41223 | J55: 2157.222763
A56: DOPSD0112 | B56: Coincident Weather Adjusted System Annual Maximum Demand 50% POE | C56: MW | D56: 1798.862462 | E56: 1801.706357 | F56: 1809.918678 | G56: 1864.680783 | H56: 1884.45787 | I56: 1915.654725 | J56: 1964.527722
B57: 3.4.3.3 - Annual system maximum demand characteristics at the zone substation level – MVA measure
A58: DOPSD0202 | B58: Non–coincident Summated Weather Adjusted System Annual Maximum Demand 10% POE | C58: MVA | D58: 2071.203656 | E58: 2099.986244 | F58: 2128.951923 | G58: 2157.7978 | H58: 2187.038193 | I58: 2216.487572 | J58: 2245.548561
A59: DOPSD0203 | B59: Non–coincident Summated Weather Adjusted System Annual Maximum Demand 50% POE | C59: MVA | D59: 1982.097222 | E59: 2009.234129 | F59: 2036.571107 | G59: 2063.767466 | H59: 2091.362634 | I59: 2119.092648 | J59: 2146.507374
A60: DOPSD0205 | B60: Coincident Weather Adjusted System Annual Maximum Demand 10% POE | C60: MVA | D60: 0 | E60: 0 | F60: 0 | G60: 0 | H60: 0 | I60: 0 | J60: 0
A61: DOPSD0206 | B61: Coincident Weather Adjusted System Annual Maximum Demand 50% POE | C61: MVA | D61: 0 | E61: 0 | F61: 0 | G61: 0 | H61: 0 | I61: 0 | J61: 0
B62: 3.4.3.4 - Annual system maximum demand characteristics at the transmission connection point – MVA measure
A63: DOPSD0208 | B63: Non–coincident Summated Weather Adjusted System Annual Maximum Demand 10% POE | C63: MVA | D63: 2427.475615 | E63: 2444.791133 | F63: 2488.566577 | G63: 2506.484407 | H63: 2552.020492 | I63: 2616.9996 | J63: 2640.545083
A64: DOPSD0209 | B64: Non–coincident Summated Weather Adjusted System Annual Maximum Demand 50% POE | C64: MVA | D64: 2152.902491 | E64: 2165.040457 | F64: 2213.0272 | G64: 2241.97518 | H64: 2276.646991 | I64: 2332.264128 | J64: 2333.494965
A65: DOPSD0211 | B65: Coincident Weather Adjusted System Annual Maximum Demand 10% POE | C65: MVA | D65: 2185.310631 | E65: 2177.216726 | F65: 2199.479105 | G65: 2253.665767 | H65: 2270.133052 | I65: 2312.653453 | J65: 2372.945039
A66: DOPSD0212 | B66: Coincident Weather Adjusted System Annual Maximum Demand 50% POE | C66: MVA | D66: 1978.748708 | E66: 1981.876993 | F66: 1990.910546 | G66: 2051.148861 | H66: 2072.903657 | I66: 2107.220198 | J66: 2160.980494
B67: 3.4.3.5 - Power factor conversion between MVA and MW
A68: DOPSD0301 | B68: Average overall network power factor conversion between MVA and MW | C68: Factor | D68: 0.9900990099 | E68: 0.9900990099 | F68: 0.9900990099 | G68: 0.9900990099 | H68: 0.9900990099 | I68: 0.9900990099 | J68: 0.9900990099
A69: DOPSD0302 | B69: Average power factor conversion for low voltage distribution lines | C69: Factor | D69: 0.9 | E69: 0.9 | F69: 0.9 | G69: 0.9 | H69: 0.9 | I69: 0.9 | J69: 0.9
A70: DOPSD0303 | B70: Average power factor conversion for 3.3 kV lines | C70: Factor | D70: 0 | E70: 0 | F70: 0 | G70: 0 | H70: 0 | I70: 0 | J70: 0
A71: DOPSD0304 | B71: Average power factor conversion for 6.6 kV lines | C71: Factor | D71: 0.9985993293 | E71: 0.9985993293 | F71: 0.9985993293 | G71: 0.9985993293 | H71: 0.9985993293 | I71: 0.9985993293 | J71: 0.9985993293
A72: DOPSD0305 | B72: Average power factor conversion for 7.6 kV lines | C72: Factor | D72: 0 | E72: 0 | F72: 0 | G72: 0 | H72: 0 | I72: 0 | J72: 0
A73: DOPSD0306 | B73: Average power factor conversion for 11 kV lines | C73: Factor | D73: 0.943956041 | E73: 0.943956041 | F73: 0.943956041 | G73: 0.943956041 | H73: 0.943956041 | I73: 0.943956041 | J73: 0.943956041
A74: DOPSD0307 | B74: Average power factor conversion for SWER lines | C74: Factor | D74: 0.9896382051 | E74: 0.989345694 | F74: 0.9890531829 | G74: 0.9887606718 | H74: 0.9884681607 | I74: 0.9881756496 | J74: 0.9878831386
A75: DOPSD0308 | B75: Average power factor conversion for 22 kV lines | C75: Factor | D75: 0.973854786 | E75: 0.9768808669 | F75: 0.9799069478 | G75: 0.9829330286 | H75: 0.9859591095 | I75: 0.9889851903 | J75: 0.9920112712
A76: DOPSD0309 | B76: Average power factor conversion for 33 kV lines | C76: Factor | D76: 0 | E76: 0 | F76: 0 | G76: 0 | H76: 0 | I76: 0 | J76: 0
A77: DOPSD0310 | B77: Average power factor conversion for 44 kV lines | C77: Factor | D77: 0 | E77: 0 | F77: 0 | G77: 0 | H77: 0 | I77: 0 | J77: 0
A78: DOPSD0311 | B78: Average power factor conversion for 66 kV lines | C78: Factor | D78: 0.9634768211 | E78: 0.9593731822 | F78: 0.9552695433 | G78: 0.9511659044 | H78: 0.9470622655 | I78: 0.9429586266 | J78: 0.9388549877
A79: DOPSD0312 | B79: Average power factor conversion for 110 kV lines | C79: Factor | D79: 0 | E79: 0 | F79: 0 | G79: 0 | H79: 0 | I79: 0 | J79: 0
A80: DOPSD0313 | B80: Average power factor conversion for 132 kV lines | C80: Factor | D80: 0 | E80: 0 | F80: 0 | G80: 0 | H80: 0 | I80: 0 | J80: 0
A81: DOPSD0314 | B81: Average power factor conversion for 220 kV lines | C81: Factor | D81: 0 | E81: 0 | F81: 0 | G81: 0 | H81: 0 | I81: 0 | J81: 0
B82: 3.4.3.6 - Demand supplied (for customers charged on this basis) – MW measure
A83: DOPSD0401 | B83: Summated Chargeable Contracted Maximum Demand | C83: MW | D83: 0 | E83: 0 | F83: 0 | G83: 0 | H83: 0 | I83: 0 | J83: 0
A84: DOPSD0402 | B84: Summated Chargeable Measured Maximum Demand | C84: MW | D84: 0 | E84: 0 | F84: 0 | G84: 0 | H84: 0 | I84: 0 | J84: 0
B85: 3.4.3.7 - Demand supplied (for customers charged on this basis) – MVA measure
A86: DOPSD0403 | B86: Summated Chargeable Contracted Maximum Demand | C86: MVA | D86: 1207.268926 | E86: 1231.35668 | F86: 1255.92504 | G86: 1280.983594 | H86: 1306.542124 | I86: 1332.610604 | J86: 1359.199209
A87: DOPSD0404 | B87: Summated Chargeable Measured Maximum Demand | C87: MVA | D87: 556.9826007 | E87: 564.6021765 | F87: 572.3259888 | G87: 580.1554636 | H87: 588.0920463 | I87: 596.1372023 | J87: 604.2924168

Sheet 3.5 Physical assets
B1: =INDEX(dms_Worksheet_List,MATCH(dms_Model,dms_Model_List)) -> REGULATORY REPORTING STATEMENT
B2: =INDEX(dms_TradingNameFull_List,MATCH(dms_TradingName,dms_TradingName_List)) -> AusNet Electricity Services Pty Ltd
B3: =dms_Header_Span -> 2021-22 to 2025-26
B4: 3.5 PHYSICAL ASSETS DATA
B6: There are THREE tables on this worksheet. Each table has been grouped (and sub-grouped) for ease of navigation. See the Instructions sheet on how to group or ungroup tables.
B8: 3.5.1 - NETWORK CAPACITIES VARIABLES
D9: VOLUMES
C10: Units | D10: =CRCP_y4 -> 2019-20 | E10: =CRCP_y5 -> 2020-21 | F10: =FRCP_y1 -> 2021-22 | G10: =FRCP_y2 -> 2022-23 | H10: =FRCP_y3 -> 2023-24 | I10: =FRCP_y4 -> 2024-25 | J10: =FRCP_y5 -> 2025-26
B11: CIRCUIT LENGTH
B12: 3.5.1.1 - Overhead network length of circuit at each voltage
A13: DPA0101 | B13: Overhead low voltage distribution | C13: km | D13: 7454.3 | E13: 7454.3 | F13: 7454.3 | G13: 7454.3 | H13: 7454.3 | I13: 7454.3 | J13: 7454.3
A14: DPA0102 | B14: Overhead 2.2 kV | C14: km | D14: 0 | E14: 0 | F14: 0 | G14: 0 | H14: 0 | I14: 0 | J14: 0
A15: DPA0103 | B15: Overhead 7.6 kV | C15: km | D15: 51.7 | E15: 51.7 | F15: 51.7 | G15: 51.7 | H15: 51.7 | I15: 51.7 | J15: 51.7
A16: DPA0104 | B16: Overhead 11 kV | C16: km | D16: 3.2 | E16: 3.2 | F16: 3.2 | G16: 3.2 | H16: 3.2 | I16: 3.2 | J16: 3.2
A17: DPA0105 | B17: Overhead SWER | C17: km | D17: 6494.9 | E17: 6494.9 | F17: 6492.2 | G17: 6486.7 | H17: 6475 | I17: 6449.4 | J17: 6392.4
A18: DPA0106 | B18: Overhead 22 kV | C18: km | D18: 22744.2 | E18: 22744.2 | F18: 22742.6 | G18: 22741 | H18: 22739.4 | I18: 22737.8 | J18: 22736.2
A19: DPA0107 | B19: Overhead 33 kV | C19: km | D19: 0.3 | E19: 0.3 | F19: 0.3 | G19: 0.3 | H19: 0.3 | I19: 0.3 | J19: 0.3
A20: DPA0108 | B20: Overhead 44 kV | C20: km | D20: 0 | E20: 0 | F20: 0 | G20: 0 | H20: 0 | I20: 0 | J20: 0
A21: DPA0109 | B21: Overhead 66 kV | C21: km | D21: 2720.2 | E21: 2720.2 | F21: 2720.2 | G21: 2720.2 | H21: 2720.2 | I21: 2720.2 | J21: 2720.2
A22: DPA0110 | B22: Overhead 132 kV | C22: km | D22: 0 | E22: 0 | F22: 0 | G22: 0 | H22: 0 | I22: 0 | J22: 0
A23: DPA0111 | B23: Overhead 6.6kv | C23: km | D23: 0 | E23: 0 | F23: 0 | G23: 0 | H23: 0 | I23: 0 | J23: 0
A24: DPA0112 | B24: Overhead 110kV | C24: km | D24: 0 | E24: 0 | F24: 0 | G24: 0 | H24: 0 | I24: 0 | J24: 0
A25: DPA0113 | B25: Overhead 220kV | C25: km | D25: 0 | E25: 0 | F25: 0 | G25: 0 | H25: 0 | I25: 0 | J25: 0
A26: DPA0114 | B26: Other | C26: km | D26: 0 | E26: 0 | F26: 0 | G26: 0 | H26: 0 | I26: 0 | J26: 0
A27: DPA01 | B27: Total overhead circuit km | D27: =SUM(D13:D26) -> 39468.8 | E27: 39468.8 | F27: 39464.5 | G27: 39457.4 | H27: 39444.1 | I27: 39416.9 | J27: 39358.3
B28: 3.5.1.2 - Underground network circuit length at each voltage
A29: DPA0201 | B29: Underground low voltage distribution | C29: km | D29: 4695.194306 | E29: 4947.888612 | F29: 5200.582918 | G29: 5453.277224 | H29: 5705.97153 | I29: 5958.665836 | J29: 6211.360142
A30: DPA0202 | B30: Underground 5 kV | C30: km | D30: 0 | E30: 0 | F30: 0 | G30: 0 | H30: 0 | I30: 0 | J30: 0
A31: DPA0203 | B31: Underground 6.6 Kv | C31: km | D31: 13.29786261 | E31: 14.69572521 | F31: 16.09358781 | G31: 17.49145042 | H31: 18.88931302 | I31: 20.28717563 | J31: 21.68503824
A32: DPA0204 | B32: Underground 7.6 kV | C32: km | D32: 0 | E32: 0 | F32: 0 | G32: 0 | H32: 0 | I32: 0 | J32: 0
A33: DPA0205 | B33: Underground 11 kV | C33: km | D33: 2.048158837 | E33: 2.096317675 | F33: 2.144476512 | G33: 2.19263535 | H33: 2.240794187 | I33: 2.288953025 | J33: 2.337111862
A34: DPA0206 | B34: Underground SWER | C34: km | D34: 29.62936167 | E34: 33.25872333 | F34: 39.5940225 | G34: 48.68674354 | H34: 63.9836638 | I34: 93.2400323 | J34: 153.9051594
A35: DPA0207 | B35: Underground 22 kV | C35: km | D35: 2142.671304 | E35: 2257.442608 | F35: 2373.813912 | G35: 2490.185216 | H35: 2606.55652 | I35: 2722.927824 | J35: 2839.299128
A36: DPA0208 | B36: Underground 33 kV | C36: km | D36: 0.01139590833 | E36: 0.01279181667 | F36: 0.014187725 | G36: 0.01558363333 | H36: 0.01697954167 | I36: 0.01837545 | J36: 0.01977135833
A37: DPA0209 | B37: Underground 66 kV | C37: km | D37: 12.69411295 | E37: 13.7882259 | F37: 14.88233885 | G37: 15.97645181 | H37: 17.07056476 | I37: 18.16467771 | J37: 19.25879066
A38: DPA0210 | B38: Underground 110 kV | C38: km | D38: 0 | E38: 0 | F38: 0 | G38: 0 | H38: 0 | I38: 0 | J38: 0
A39: DPA0211 | B39: Underground 132 kV | C39: km | D39: 0 | E39: 0 | F39: 0 | G39: 0 | H39: 0 | I39: 0 | J39: 0
A40: DPA0212 | B40: Other | C40: km | D40: 0 | E40: 0 | F40: 0 | G40: 0 | H40: 0 | I40: 0 | J40: 0
A41: DPA02 | B41: Total underground circuit km | D41: =SUM(D29:D40) -> 6895.546502 | E41: 7269.183004 | F41: 7647.125443 | G41: 8027.825305 | H41: 8414.729365 | I41: 8815.592874 | J41: 9247.865142
B43: CIRCUIT CAPACITY MVA
B44: 3.5.1.3 - Estimated overhead network weighted average MVA capacity by voltage class
A45: DPA0301 | B45: Overhead low voltage distribution | C45: MVA | D45: 0.14 | E45: 0.14 | F45: 0.14 | G45: 0.14 | H45: 0.14 | I45: 0.14 | J45: 0.14
A46: DPA0302 | B46: Overhead 6.6 kV | C46: MVA | D46: 2.57 | E46: 2.57 | F46: 2.57 | G46: 2.57 | H46: 2.57 | I46: 2.57 | J46: 2.57
A47: DPA0303 | B47: Overhead 7.6 kV | C47: MVA | D47: 0 | E47: 0 | F47: 0 | G47: 0 | H47: 0 | I47: 0 | J47: 0
A48: DPA0304 | B48: Overhead 11 kV | C48: MVA | D48: 6 | E48: 6 | F48: 6 | G48: 6 | H48: 6 | I48: 6 | J48: 6
A49: DPA0305 | B49: Overhead SWER | C49: MVA | D49: 0.35 | E49: 0.35 | F49: 0.35 | G49: 0.35 | H49: 0.35 | I49: 0.35 | J49: 0.35
A50: DPA0306 | B50: Overhead 22 kV | C50: MVA | D50: 4.52 | E50: 4.52 | F50: 4.52 | G50: 4.52 | H50: 4.52 | I50: 4.52 | J50: 4.52
A51: DPA0307 | B51: Overhead 33 kV | C51: MVA | D51: 1.43 | E51: 1.43 | F51: 1.43 | G51: 1.43 | H51: 1.43 | I51: 1.43 | J51: 1.43
A52: DPA0308 | B52: Overhead 44 kV | C52: MVA | D52: 0 | E52: 0 | F52: 0 | G52: 0 | H52: 0 | I52: 0 | J52: 0
A53: DPA0309 | B53: Overhead 66 kV | C53: MVA | D53: 39.74 | E53: 39.74 | F53: 39.74 | G53: 39.74 | H53: 39.74 | I53: 39.74 | J53: 39.74
A54: DPA0310 | B54: Overhead 110 kV | C54: MVA | D54: 0 | E54: 0 | F54: 0 | G54: 0 | H54: 0 | I54: 0 | J54: 0
A55: DPA0311 | B55: Overhead 132 kV | C55: MVA | D55: 0 | E55: 0 | F55: 0 | G55: 0 | H55: 0 | I55: 0 | J55: 0
A56: DPA0312 | B56: Overhead 220 kV | C56: MVA | D56: 0 | E56: 0 | F56: 0 | G56: 0 | H56: 0 | I56: 0 | J56: 0
A57: DPA0313 | B57: Other | C57: MVA | D57: 0 | E57: 0 | F57: 0 | G57: 0 | H57: 0 | I57: 0 | J57: 0
B58: 3.5.1.4 - Estimated underground network weighted average MVA capacity by voltage class
A59: DPA0401 | B59: Underground low voltage distribution | C59: MVA | D59: 0.18 | E59: 0.18 | F59: 0.18 | G59: 0.18 | H59: 0.18 | I59: 0.18 | J59: 0.18
A60: DPA0402 | B60: Underground 5 kV | C60: MVA | D60: 0 | E60: 0 | F60: 0 | G60: 0 | H60: 0 | I60: 0 | J60: 0
A61: DPA0403 | B61: Underground 6.6 kV | C61: MVA | D61: 3.49 | E61: 3.49 | F61: 3.49 | G61: 3.49 | H61: 3.49 | I61: 3.49 | J61: 3.49
A62: DPA0404 | B62: Underground 7.6 kV | C62: MVA | D62: 0 | E62: 0 | F62: 0 | G62: 0 | H62: 0 | I62: 0 | J62: 0
A63: DPA0405 | B63: Underground 11 kV | C63: MVA | D63: 6 | E63: 6 | F63: 6 | G63: 6 | H63: 6 | I63: 6 | J63: 6
A64: DPA0406 | B64: Underground SWER | C64: MVA | D64: 1.43 | E64: 1.43 | F64: 1.43 | G64: 1.43 | H64: 1.43 | I64: 1.43 | J64: 1.43
A65: DPA0407 | B65: Underground 12.7 kV | C65: MVA | D65: 0 | E65: 0 | F65: 0 | G65: 0 | H65: 0 | I65: 0 | J65: 0
A66: DPA0408 | B66: Underground 22 kV | C66: MVA | D66: 11.07 | E66: 11.07 | F66: 11.07 | G66: 11.07 | H66: 11.07 | I66: 11.07 | J66: 11.07
A67: DPA0409 | B67: Underground 33 kV | C67: MVA | D67: 1.43 | E67: 1.43 | F67: 1.43 | G67: 1.43 | H67: 1.43 | I67: 1.43 | J67: 1.43
A68: DPA0410 | B68: Underground 66 kV | C68: MVA | D68: 55.2 | E68: 55.2 | F68: 55.2 | G68: 55.2 | H68: 55.2 | I68: 55.2 | J68: 55.2
A69: DPA0411 | B69: Underground 110 kV | C69: MVA | D69: 0 | E69: 0 | F69: 0 | G69: 0 | H69: 0 | I69: 0 | J69: 0
A70: DPA0412 | B70: Underground 132 kV | C70: MVA | D70: 0 | E70: 0 | F70: 0 | G70: 0 | H70: 0 | I70: 0 | J70: 0
A71: DPA0413 | B71: Other | C71: MVA | D71: 0 | E71: 0 | F71: 0 | G71: 0 | H71: 0 | I71: 0 | J71: 0
B75: 3.5.2 - TRANSFORMER CAPACITIES VARIABLES
D76: VOLUMES
C77: Units | D77: =CRCP_y4 -> 2019-20 | E77: =CRCP_y5 -> 2020-21 | F77: =FRCP_y1 -> 2021-22 | G77: =FRCP_y2 -> 2022-23 | H77: =FRCP_y3 -> 2023-24 | I77: =FRCP_y4 -> 2024-25 | J77: =FRCP_y5 -> 2025-26
B78: Distribution transformer total installed capacity
A79: DPA0501 | B79: Distribution transformer capacity owned by utility | C79: MVA | D79: 6006.818 | E79: 6104.518 | F79: 6202.218 | G79: 6299.918 | H79: 6397.618 | I79: 6495.318 | J79: 6593.018
A80: DPA0502 | B80: Distribution transformer capacity owned by High Voltage Customers | C80: MVA | D80: 368.19988 | E80: 373.79988 | F80: 379.39988 | G80: 384.99988 | H80: 390.59988 | I80: 396.19988 | J80: 401.79988
A81: DPA0503 | B81: Cold spare capacity included in DPA0501 | C81: MVA | D81: 62.902 | E81: 62.902 | F81: 62.902 | G81: 62.902 | H81: 62.902 | I81: 62.902 | J81: 62.902
B82: Zone substation transformer capacity
A83: DPA0601 | B83: Total installed capacity for first step transformation where there are two steps to reach distribution voltage | C83: MVA | D83: 0 | E83: 0 | F83: 0 | G83: 0 | H83: 0 | I83: 0 | J83: 0
A84: DPA0602 | B84: Total installed capacity for second step transformation where there are two steps to reach distribution voltage | C84: MVA | D84: 0 | E84: 0 | F84: 0 | G84: 0 | H84: 0 | I84: 0 | J84: 0
A85: DPA0603 | B85: Total zone substation transformer capacity where there is only a single step transformation to reach distribution voltage | C85: MVA | D85: 3443.9 | E85: 3463.3 | F85: 3482.7 | G85: 3502.1 | H85: 3521.5 | I85: 3540.9 | J85: 3560.3
A86: DPA0604 | B86: Total zone substation transformer capacity | C86: MVA | D86: 3534.4 | E86: 3553.8 | F86: 3573.2 | G86: 3592.6 | H86: 3612 | I86: 3631.4 | J86: 3650.8
A87: DPA0605 | B87: Cold spare capacity of zone substation transformers included in DPA0604 | C87: MVA | D87: 90.5 | E87: 90.5 | F87: 90.5 | G87: 90.5 | H87: 90.5 | I87: 90.5 | J87: 90.5
B91: 3.5.3 - PUBLIC LIGHTING
D92: VOLUMES
C93: Units | D93: =CRCP_y4 -> 2019-20 | E93: =CRCP_y5 -> 2020-21 | F93: =FRCP_y1 -> 2021-22 | G93: =FRCP_y2 -> 2022-23 | H93: =FRCP_y3 -> 2023-24 | I93: =FRCP_y4 -> 2024-25 | J93: =FRCP_y5 -> 2025-26
A94: DPA0701 | B94: Public lighting luminaires | C94: 0's | D94: 178957.9259 | E94: 182195.9372 | F94: 187600.3484 | G94: 192160.6982 | H94: 196768.5486 | I94: 201417.4282 | J94: 206271.3701
A95: DPA0702 | B95: Public lighting poles | C95: 0's | D95: 178957.9259 | E95: 182195.9372 | F95: 187600.3484 | G95: 192160.6982 | H95: 196768.5486 | I95: 201417.4282 | J95: 206271.3701

Sheet 3.6 Quality of service
B1: =INDEX(dms_Worksheet_List,MATCH(dms_Model,dms_Model_List)) -> REGULATORY REPORTING STATEMENT
B2: =INDEX(dms_TradingNameFull_List,MATCH(dms_TradingName,dms_TradingName_List)) -> AusNet Electricity Services Pty Ltd
B3: =dms_Header_Span -> 2021-22 to 2025-26
B4: 3.6 QUALITY OF SERVICE DATA
B6: 3.6.2 - ENERGY NOT SUPPLIED
D7: Forecast
C8: Units | D8: =CRCP_y4 -> 2019-20 | E8: =CRCP_y5 -> 2020-21 | F8: =FRCP_y1 -> 2021-22 | G8: =FRCP_y2 -> 2022-23 | H8: =FRCP_y3 -> 2023-24 | I8: =FRCP_y4 -> 2024-25 | J8: =FRCP_y5 -> 2025-26
A9: DQS0201 | B9: Energy Not Supplied (planned) | C9: GWh | D9: 3.012649168 | E9: 3.012649168 | F9: 3.012649168 | G9: 3.012649168 | H9: 3.012649168 | I9: 3.012649168 | J9: 3.012649168
A10: DQS0202 | B10: Energy Not Supplied (unplanned) | C10: GWh | D10: 2.97972149 | E10: 2.97972149 | F10: 2.97972149 | G10: 2.97972149 | H10: 2.97972149 | I10: 2.97972149 | J10: 2.97972149
A11: DQS02 | B11: Total | D11: =SUM(D9:D10) -> 5.992370658 | E11: 5.992370658 | F11: 5.992370658 | G11: 5.992370658 | H11: 5.992370658 | I11: 5.992370658 | J11: 5.992370658
B13: 3.6.3 - SYSTEM LOSSES
D14: Forecast
C15: Units | D15: =CRCP_y4 -> 2019-20 | E15: =CRCP_y5 -> 2020-21 | F15: =FRCP_y1 -> 2021-22 | G15: =FRCP_y2 -> 2022-23 | H15: =FRCP_y3 -> 2023-24 | I15: =FRCP_y4 -> 2024-25 | J15: =FRCP_y5 -> 2025-26
A16: DQS03 | B16: System losses | C16: % | D16: 0.0628642263 | E16: 0.0628642263 | F16: 0.0628642263 | G16: 0.0628642263 | H16: 0.0628642263 | I16: 0.0628642263 | J16: 0.0628642263
B18: 3.6.4 - CAPACITY UTILISATION
D19: Forecast
C20: Units | D20: =CRCP_y4 -> 2019-20 | E20: =CRCP_y5 -> 2020-21 | F20: =FRCP_y1 -> 2021-22 | G20: =FRCP_y2 -> 2022-23 | H20: =FRCP_y3 -> 2023-24 | I20: =FRCP_y4 -> 2024-25 | J20: =FRCP_y5 -> 2025-26
A21: DQS04 | B21: Overall utilisation | C21: % | D21: 0.5247877681 | E21: 0.5222757567 | F21: 0.5197637453 | G21: 0.5172517339 | H21: 0.5147397225 | I21: 0.5122277111 | J21: 0.5097156998

Sheet 3.7 Operating Environment
B1: =INDEX(dms_Worksheet_List,MATCH(dms_Model,dms_Model_List)) -> REGULATORY REPORTING STATEMENT
B2: =INDEX(dms_TradingNameFull_List,MATCH(dms_TradingName,dms_TradingName_List)) -> AusNet Electricity Services Pty Ltd
B3: =dms_Header_Span -> 2021-22 to 2025-26
B4: 3.7 OPERATING ENVIRONMENT FACTORS
B6: There are THREE tables on this worksheet. Each table has been grouped (and sub-grouped) for ease of navigation. See the Instructions sheet on how to group or ungroup tables.
A8: DOEF01 | B8: 3.7.1 - DENSITY FACTORS
D9: Forecast
C10: Units | D10: =CRCP_y4 -> 2019-20 | E10: =CRCP_y5 -> 2020-21 | F10: =FRCP_y1 -> 2021-22 | G10: =FRCP_y2 -> 2022-23 | H10: =FRCP_y3 -> 2023-24 | I10: =FRCP_y4 -> 2024-25 | J10: =FRCP_y5 -> 2025-26
A11: DOEF0101 | B11: Customer density | C11: Customer / km | D11: 19.18768739
A12: DOEF0102 | B12: Energy density | C12: MWh/customer | D12: 9.950122559
A13: DOEF0103 | B13: Demand density | C13: kVA / customer | D13: 2.371424622
A15: DOEF02 | B15: 3.7.2 - TERRAIN FACTORS
D16: Forecast
C17: Units | D17: =CRCP_y4 -> 2019-20 | E17: =CRCP_y5 -> 2020-21 | F17: =FRCP_y1 -> 2021-22 | G17: =FRCP_y2 -> 2022-23 | H17: =FRCP_y3 -> 2023-24 | I17: =FRCP_y4 -> 2024-25 | J17: =FRCP_y5 -> 2025-26
A18: DOEF0201 | B18: Rural proportion | C18: % | D18: 0.9316057415
A19: DOEF0202 | B19: Urban and CBD vegetation maintenance spans | C19: 0's | D19: 9123.25
A20: DOEF0203 | B20: Rural vegetation maintenance spans | C20: 0's | D20: 61531.80764
A21: DOEF0204 | B21: Total vegetation maintenance spans | C21: 0's | D21: 70655.05764
A22: DOEF0205 | B22: Total number of spans | C22: 0's | D22: 313873.9188
A23: DOEF0206 | B23: Average urban and CBD vegetation maintenance span cycle | C23: Years | D23: 0.7590277778
A24: DOEF0207 | B24: Average rural vegetation maintenance span cycle | C24: Years | D24: 1
A25: DOEF0208 | B25: Average number of trees per urban and CBD vegetation maintenance span | C25: Trees | D25: 5.631571146
A26: DOEF0209 | B26: Average number of trees per rural vegetation maintenance span | C26: Trees | D26: 6.489456737
A27: DOEF0210 | B27: Average number of defects per urban and CBD vegetation maintenance span | C27: Defects | D27: 0.02736709664
A28: DOEF0211 | B28: Average number of defects per rural vegetation maintenance span | C28: Defects | D28: 0.04346756883
A29: DOEF0212 | B29: Tropical proportion | C29: Spans | D29: 0
A30: DOEF0213 | B30: Standard vehicle access | C30: km | D30: 2089.311639 | E30: 2107.082154 | F30: 2125.320825 | G30: 2143.717367 | H30: 2162.273149 | I30: 2180.989547 | J30: 2199.867952
A31: DOEF0214 | B31: Bushfire risk | C31: Spans | D31: 52258.73472
A33: DOEF03 | B33: 3.7.3 - SERVICE AREA FACTORS
D34: Forecast
C35: Units | D35: =CRCP_y4 -> 2019-20 | E35: =CRCP_y5 -> 2020-21 | F35: =FRCP_y1 -> 2021-22 | G35: =FRCP_y2 -> 2022-23 | H35: =FRCP_y3 -> 2023-24 | I35: =FRCP_y4 -> 2024-25 | J35: =FRCP_y5 -> 2025-26
A36: DOEF0301 | B36: Route Line length | C36: km | D36: 39204.93398 | E36: 39361.11679 | F36: 39517.9218 | G36: 39675.35147 | H36: 39833.40831 | I36: 39992.09481 | J36: 40151.41348

Sheet 4.1 Public lighting
B1: =INDEX(dms_Worksheet_List,MATCH(dms_Model,dms_Model_List)) -> REGULATORY REPORTING STATEMENT
B2: =INDEX(dms_TradingNameFull_List,MATCH(dms_TradingName,dms_TradingName_List)) -> AusNet Electricity Services Pty Ltd
B3: =dms_Header_Span -> 2021-22 to 2025-26
B4: 4.1 PUBLIC LIGHTING
B6: There are TWO tables on this worksheet. Each table has been grouped (and sub-grouped) for ease of navigation. See the Instructions sheet on how to group or ungroup tables.
B8: 4.1.2 - DESCRIPTOR METRICS ANNUALLY
D9: VOLUMES & EXPENDITURE
C10: Units | D10: =CRCP_y4 -> 2019-20 | E10: =CRCP_y5 -> 2020-21 | F10: =FRCP_y1 -> 2021-22 | G10: =FRCP_y2 -> 2022-23 | H10: =FRCP_y3 -> 2023-24 | I10: =FRCP_y4 -> 2024-25 | J10: =FRCP_y5 -> 2025-26
B11: LIGHT INSTALLATION
B12: Number of lights installed | C12: 0's | D12: 4443.134708 | E12: 3238.011277 | F12: 5404.411255 | G12: 4560.349747 | H12: 4607.850466 | I12: 4648.87959 | J12: 4853.941813
B13: Number of poles installed | C13: 0's | D13: 3554.507766 | E13: 2590.409022 | F13: 4323.529004 | G13: 3648.279798 | H13: 3686.280372 | I13: 3719.103672 | J13: 3883.15345
B14: Total expenditure | C14: $0's | D14: 2363301.641 | E14: 2363264.73 | F14: 2368715.653 | G14: 2369071.653 | H14: 2119391.693 | I14: 2369783.653 | J14: 2370139.653
B15: LIGHT REPLACEMENT
B16: Number of lights replaced | C16: 0's | D16: 2648.90549 | E16: 5292.900248 | F16: 8254.179293 | G16: 8181.179293 | H16: 8111.81562 | I16: 5352.736962 | J16: 2178.875309
B17: Number of poles replaced | C17: 0's | D17: 817 | E17: 817 | F17: 817 | G17: 817 | H17: 817 | I17: 817 | J17: 817
B18: Total expenditure | C18: $0's | D18: 1132847.965 | E18: 3234182.679 | F18: 5323973.059 | G18: 5283296.385 | H18: 5244886.516 | I18: 3716755.759 | J18: 1738560.895
B19: LIGHT MAINTENANCE
B20: Number of lights maintained | C20: 0's | D20: 178957.9259 | E20: 182195.9372 | F20: 187600.3484 | G20: 192160.6982 | H20: 196768.5486 | I20: 201417.4282 | J20: 206271.3701
B21: Number of poles maintained | C21: 0's | D21: 178957.9259 | E21: 182195.9372 | F21: 187600.3484 | G21: 192160.6982 | H21: 196768.5486 | I21: 201417.4282 | J21: 206271.3701
B22: Total expenditure | C22: $0's | D22: 8589233.239 | E22: 8326637.616 | F22: 7863349.747 | G22: 7733448.885 | H22: 7337143.551 | I22: 7237510.124 | J22: 7207299.587
B23: QUALITY OF SUPPLY
B24: Mean days to rectify/replace public lighting assets | C24: days | D24: 1.7 | E24: 1.7 | F24: 1.7 | G24: 1.7 | H24: 1.7 | I24: 1.7 | J24: 1.7
B25: GSO breaches | C25: 0's | D25: 33 | E25: 33 | F25: 33 | G25: 33 | H25: 33 | I25: 33 | J25: 33
B26: GSL payments | C26: $0's | D26: 825 | E26: 825 | F26: 825 | G26: 825 | H26: 825 | I26: 825 | J26: 825
B27: Customer complaints | C27: 0's | D27: 0 | E27: 0 | F27: 0 | G27: 0 | H27: 0 | I27: 0 | J27: 0
B31: 4.1.3 - COST METRICS
D32: =CONCATENATE("AVERAGE UNIT COST ($0's, real ",dms_DollarReal, ")") -> AVERAGE UNIT COST ($0's, real June 2021)
D33: =CRCP_y4 -> 2019-20 | E33: =CRCP_y5 -> 2020-21 | F33: =FRCP_y1 -> 2021-22 | G33: =FRCP_y2 -> 2022-23 | H33: =FRCP_y3 -> 2023-24 | I33: =FRCP_y4 -> 2024-25 | J33: =FRCP_y5 -> 2025-26
B34: LIGHT INSTALLATION
B35: Mercury Vapour 80W | D35: 288.28 | E35: 288.28 | F35: 0 | G35: 0 | H35: 0 | I35: 0 | J35: 0
B36: HP Sodium 150W | D36: 436.07 | E36: 436.07 | F36: 0 | G36: 0 | H36: 0 | I36: 0 | J36: 0
B37: HP Sodium 250W | D37: 443.02 | E37: 443.02 | F37: 0 | G37: 0 | H37: 0 | I37: 0 | J37: 0
B38: T5 2X14W | D38: 451.38 | E38: 451.38 | F38: 415.9848448 | G38: 416.7800568 | H38: 416.7800568 | I38: 416.7800568 | J38: 416.7800568
B39: T5 2X24W | D39: 496.49 | E39: 496.49 | F39: 458.0296495 | G39: 458.9465902 | H39: 458.9465902 | I39: 458.9465902 | J39: 458.9465902
B40: LED 18W standard output power | D40: 585.89 | E40: 585.89 | F40: 535.5194357 | G40: 536.3008454 | H40: 536.2910932 | I40: 536.2813413 | J40: 536.2715895
B41: LED 70W-125W (L1) | D41: 1040.28 | E41: 1040.28 | F41: 940.5012546 | G41: 940.6867942 | H41: 941.7569595 | I41: 942.8283424 | J41: 943.900944
B42: LED 155W-250W (L2) | D42: 1050.54 | E42: 1050.54 | F42: 1048.663416 | G42: 1049.341883 | H42: 1049.329605 | I42: 1049.317327 | J42: 1049.305049
B43: LED 275W-400W (L4) | D43: 0 | E43: 0 | F43: 1157.670056 | G43: 1157.983225 | H43: 1157.983225 | I43: 1157.983225 | J43: 1157.983225
B95: LIGHT REPLACEMENT
B96: Mercury Vapour 80W | D96: 288.28 | E96: 288.28 | F96: 0 | G96: 0 | H96: 0 | I96: 0 | J96: 0
B97: HP Sodium 150W | D97: 436.07 | E97: 436.07 | F97: 0 | G97: 0 | H97: 0 | I97: 0 | J97: 0
B98: HP Sodium 250W | D98: 443.02 | E98: 443.02 | F98: 0 | G98: 0 | H98: 0 | I98: 0 | J98: 0
B99: T5 2X14W | D99: 451.38 | E99: 451.38 | F99: 415.9848448 | G99: 416.7800568 | H99: 416.7800568 | I99: 416.7800568 | J99: 416.7800568
B100: T5 2X24W | D100: 496.49 | E100: 496.49 | F100: 458.0296495 | G100: 458.9465902 | H100: 458.9465902 | I100: 458.9465902 | J100: 458.9465902
B101: LED 18W standard output power | D101: 585.89 | E101: 585.89 | F101: 535.5194357 | G101: 536.3008454 | H101: 536.2910932 | I101: 536.2813413 | J101: 536.2715895
B102: LED 70W-125W (L1) | D102: 1040.28 | E102: 1040.28 | F102: 940.5012546 | G102: 940.6867942 | H102: 941.7569595 | I102: 942.8283424 | J102: 943.900944
B103: LED 155W-250W (L2) | D103: 1050.54 | E103: 1050.54 | F103: 1048.663416 | G103: 1049.341883 | H103: 1049.329605 | I103: 1049.317327 | J103: 1049.305049
B104: LED 275W-400W (L4) | D104: 0 | E104: 0 | F104: 1157.670056 | G104: 1157.983225 | H104: 1157.983225 | I104: 1157.983225 | J104: 1157.983225
B156: LIGHT MAINTENANCE
B157: Mercury Vapour 80W | D157: 37.2060891 | E157: 36.87895627 | F157: 37.22437462 | G157: 36.49514293 | H157: 36.62152793 | I157: 40.80498549 | J157: 41.3306419
B158: HP Sodium 150W | D158: 92.94481945 | E158: 92.55883997 | F158: 93.38092294 | G158: 93.82267954 | H158: 92.86696006 | I158: 94.29433749 | J158: 95.61889004
B159: HP Sodium 250W | D159: 94.5378002 | E159: 94.09935051 | F159: 94.89971418 | G159: 95.38065249 | H159: 94.29446381 | I159: 95.08947163 | J159: 96.45822404
B160: T5 2X14W | D160: 53.86877848 | E160: 49.80189418 | F160: 46.6103941 | G160: 49.37670424 | H160: 46.04730456 | I160: 46.33659006 | J160: 46.99578333
B161: T5 2X24W | D161: 58.51177793 | E161: 54.34558153 | F161: 51.05962023 | G161: 51.2766673 | H161: 50.19964765 | I161: 50.30920053 | J161: 49.98988869
B162: LED 18W standard output power | D162: 18.01441365 | E162: 17.19821739 | F162: 16.31073826 | G162: 16.35447533 | H162: 16.07455857 | I162: 16.18851279 | J162: 16.40240372
B163: LED 70W-125W (L1) | D163: 15.29414888 | E163: 17.80047494 | F163: 20.58925566 | G163: 20.64182483 | H163: 20.42710466 | I163: 20.60994948 | J163: 20.91536406
B164: LED 155W-250W (L2) | D164: 15.58209334 | E164: 18.42010623 | F164: 21.52252045 | G164: 21.66456015 | H164: 21.33927628 | I164: 21.52648645 | J164: 21.8348675
B165: LED 275W-400W (L4) | D165: 16.15332583 | E165: 25.21236961 | F165: 34.11536151 | G165: 34.14240286 | H165: 33.23527409 | I165: 33.48059104 | J165: 33.94309295

Sheet 4.2 Metering
B1: =INDEX(dms_Worksheet_List,MATCH(dms_Model,dms_Model_List)) -> REGULATORY REPORTING STATEMENT
B2: =INDEX(dms_TradingNameFull_List,MATCH(dms_TradingName,dms_TradingName_List)) -> AusNet Electricity Services Pty Ltd
B3: =dms_Header_Span -> 2021-22 to 2025-26
B4: 4.2 METERING
B6: There are TWO tables on this worksheet. Each table has been 'grouped' (and 'sub-grouped') for easy navigation. See the Instructions sheet on how to group or ungroup data.
B8: 4.2.1 - METERING DESCRIPTOR METRIC
E9: VOLUMES (0's)
B10: ASSET CATEGORY | C10: ASSET SUBCATEGORY | E10: =CRCP_y4 -> 2019-20 | F10: =CRCP_y5 -> 2020-21 | G10: =FRCP_y1 -> 2021-22 | H10: =FRCP_y2 -> 2022-23 | I10: =FRCP_y3 -> 2023-24 | J10: =FRCP_y4 -> 2024-25 | K10: =FRCP_y5 -> 2025-26
B11: Meter Type 4 | C11: Single phase meter population | E11: 632200 | F11: 646017 | G11: 660883 | H11: 675906 | I11: 691187 | J11: 706517 | K11: 722055
C12: Multi phase meter population | E12: 133226 | F12: 135266.5 | G12: 137446.5 | H12: 139644.5 | I12: 141876.5 | J12: 144111.5 | K12: 146377.5
C13: Current transformer connected meter population | E13: 4370 | F13: 4440 | G13: 4516 | H13: 4594 | I13: 4672 | J13: 4752 | K13: 4832
C14: Direct connect meter population | E14: 761056 | F14: 776843.5 | G14: 793813.5 | H14: 810956.5 | I14: 828391.5 | J14: 845876.5 | K14: 863600.5
B15: Meter Type 5 | C15: Single phase meter population | E15: 902 | F15: 902 | G15: 902 | H15: 902 | I15: 902 | J15: 902 | K15: 902
C16: Multi phase meter population | E16: 303 | F16: 303 | G16: 303 | H16: 303 | I16: 303 | J16: 303 | K16: 303
C17: Current transformer connected meter population | E17: 39 | F17: 39 | G17: 39 | H17: 39 | I17: 39 | J17: 39 | K17: 39
C18: Direct connect meter population | E18: 1166 | F18: 1166 | G18: 1166 | H18: 1166 | I18: 1166 | J18: 1166 | K18: 1166
B19: Meter Type 6 | C19: Single phase meter population | E19: 2662 | F19: 2342 | G19: 2142 | H19: 1982 | I19: 1862 | J19: 1782 | K19: 1702
C20: Multi phase meter population | E20: 1259 | F20: 1179 | G20: 1129 | H20: 1089 | I20: 1059 | J20: 1039 | K20: 1019
C21: Current transformer connected meter population | E21: 29 | F21: 29 | G21: 29 | H21: 29 | I21: 29 | J21: 29 | K21: 29
C22: Direct connect meter population | E22: 3892 | F22: 3492 | G22: 3242 | H22: 3042 | I22: 2892 | J22: 2792 | K22: 2692
B25: 4.2.2 - COST METRICS
B26: EXPENDITURE
E27: =CONCATENATE("EXPENDITURE ($0's, real ",dms_DollarReal,")") -> EXPENDITURE ($0's, real June 2021)
B28: SERVICE SUBCATEGORY | C28: METER TYPE | E28: =CRCP_y4 -> 2019-20 | F28: =CRCP_y5 -> 2020-21 | G28: =FRCP_y1 -> 2021-22 | H28: =FRCP_y2 -> 2022-23 | I28: =FRCP_y3 -> 2023-24 | J28: =FRCP_y4 -> 2024-25 | K28: =FRCP_y5 -> 2025-26
B29: Meter purchase | D29: Meter Type 4 | E29: 1575289.05 | F29: 1740727.494 | G29: 1891429.633 | H29: 1916968.514 | I29: 1955126.187 | J29: 1967041.313 | K29: 1993712.799
D30: Meter Type 5 | E30: 0 | F30: 0 | G30: 0 | H30: 0 | I30: 0 | J30: 0 | K30: 0
D31: Meter Type 6 | E31: 0 | F31: 0 | G31: 0 | H31: 0 | I31: 0 | J31: 0 | K31: 0
B32: Meter testing | D32: Meter Type 4 | E32: 84943.00381 | F32: 84943.00381 | G32: 84943.00381 | H32: 84943.00381 | I32: 84943.00381 | J32: 84943.00381 | K32: 84943.00381
D33: Meter Type 5 | E33: 0 | F33: 0 | G33: 0 | H33: 0 | I33: 0 | J33: 0 | K33: 0
D34: Meter Type 6 | E34: 75434.45861 | F34: 75434.45861 | G34: 75434.45861 | H34: 75434.45861 | I34: 75434.45861 | J34: 75434.45861 | K34: 75434.45861
B35: Meter investigation | D35: Meter Type 4 | E35: 721708.5401 | F35: 721708.5401 | G35: 721708.5401 | H35: 721708.5401 | I35: 721708.5401 | J35: 721708.5401 | K35: 721708.5401
D36: Meter Type 5 | E36: 0 | F36: 0 | G36: 0 | H36: 0 | I36: 0 | J36: 0 | K36: 0
D37: Meter Type 6 | E37: 8499.77938 | F37: 8499.77938 | G37: 8499.77938 | H37: 8499.77938 | I37: 8499.77938 | J37: 8499.77938 | K37: 8499.77938
B38: Scheduled meter reading | D38: Meter Type 4 | E38: 0 | F38: 0 | G38: 0 | H38: 0 | I38: 0 | J38: 0 | K38: 0
D39: Meter Type 5 | E39: 2371641.282 | F39: 2379181.994 | G39: 2474343.305 | H39: 2764320.607 | I39: 2992200.748 | J39: 3091289.612 | K39: 3173612.182
D40: Meter Type 6 | E40: 86236.77401 | F40: 86236.77401 | G40: 86236.77401 | H40: 86236.77401 | I40: 86236.77401 | J40: 86236.77401 | K40: 86236.77401
B41: Special meter reading | D41: Meter Type 4 | E41: 420903.0346 | F41: 420903.0346 | G41: 420903.0346 | H41: 420903.0346 | I41: 420903.0346 | J41: 420903.0346 | K41: 420903.0346
D42: Meter Type 5 | E42: 182578.383 | F42: 182578.383 | G42: 182578.383 | H42: 182578.383 | I42: 182578.383 | J42: 182578.383 | K42: 182578.383
D43: Meter Type 6 | E43: 940203.8453 | F43: 940203.8453 | G43: 940203.8453 | H43: 940203.8453 | I43: 940203.8453 | J43: 940203.8453 | K43: 940203.8453
B44: New meter installation | D44: Meter Type 4 | E44: 0 | F44: 0 | G44: 0 | H44: 0 | I44: 0 | J44: 0 | K44: 0
D45: Meter Type 5 | E45: 0 | F45: 0 | G45: 0 | H45: 0 | I45: 0 | J45: 0 | K45: 0
D46: Meter Type 6 | E46: 0 | F46: 0 | G46: 0 | H46: 0 | I46: 0 | J46: 0 | K46: 0
B47: Meter replacement | D47: Meter Type 4 | E47: 3862276.903 | F47: 3870219.085 | G47: 4267069.257 | H47: 4893563.843 | I47: 5548947.265 | J47: 6229056.729 | K47: 6814198.363
D48: Meter Type 5 | E48: 0 | F48: 0 | G48: 0 | H48: 0 | I48: 0 | J48: 0 | K48: 0
D49: Meter Type 6 | E49: 0 | F49: 0 | G49: 0 | H49: 0 | I49: 0 | J49: 0 | K49: 0
B50: Meter maintenance | D50: Meter Type 4 | E50: 1187034.846 | F50: 1189708.038 | G50: 1195024.524 | H50: 1198929.815 | I50: 1203090.563 | J50: 1206956.203 | K50: 1210532.539
D51: Meter Type 5 | E51: 0 | F51: 0 | G51: 0 | H51: 0 | I51: 0 | J51: 0 | K51: 0
D52: Meter Type 6 | E52: 0 | F52: 0 | G52: 0 | H52: 0 | I52: 0 | J52: 0 | K52: 0
B53: Remote meter reading | D53: Meter Type 4 | E53: 1960266.955 | F53: 1960266.955 | G53: 1960266.955 | H53: 1960266.955 | I53: 1960266.955 | J53: 1960266.955 | K53: 1960266.955
B54: Remote meter re-configuration | D54: Meter Type 4 | E54: 26368.87648 | F54: 26368.87648 | G54: 26368.87648 | H54: 26368.87648 | I54: 26368.87648 | J54: 26368.87648 | K54: 26368.87648
B55: Other metering | D55: Meter Type 4 | E55: 0 | F55: 0 | G55: 0 | H55: 0 | I55: 0 | J55: 0 | K55: 0
D56: Meter Type 5 | E56: 0 | F56: 0 | G56: 0 | H56: 0 | I56: 0 | J56: 0 | K56: 0
D57: Meter Type 6 | E57: 0 | F57: 0 | G57: 0 | H57: 0 | I57: 0 | J57: 0 | K57: 0
D58: Meter Type 7 | E58: 0 | F58: 0 | G58: 0 | H58: 0 | I58: 0 | J58: 0 | K58: 0
B59: IT infrastructure capex | D59: Meter Type 4 | E59: 0 | F59: 0 | G59: 1376038.327 | H59: 928594.0667 | I59: 166773.5397 | J59: 1378.293717 | K59: 171660.2174
B60: IT infrastructure opex | D60: Meter Type 4 | E60: 7728014.542 | F60: 7751409.768 | G60: 2057932.952 | H60: 2025378.553 | I60: 1921542.912 | J60: 1780518.226 | K60: 1752356.571
B61: Communications infrastructure capex | D61: Meter Type 4 | E61: 2512414.983 | F61: 9391811.285 | G61: 5364724.686 | H61: 3614227.138 | I61: 3071895.643 | J61: 3242747.322 | K61: 3183991.795
B62: Communications infrastructure opex | D62: Meter Type 4 | E62: 2304748.94 | F62: 2304748.94 | G62: 2304748.94 | H62: 2304748.94 | I62: 2304748.94 | J62: 2304748.94 | K62: 2304748.94
B64: VOLUMES
E65: VOLUMES (0's)
B66: SERVICE SUBCATEGORY | C66: METER TYPE | E66: =CRCP_y4 -> 2019-20 | F66: =CRCP_y5 -> 2020-21 | G66: =FRCP_y1 -> 2021-22 | H66: =FRCP_y2 -> 2022-23 | I66: =FRCP_y3 -> 2023-24 | J66: =FRCP_y4 -> 2024-25 | K66: =FRCP_y5 -> 2025-26
B67: Meter purchase | D67: Meter Type 4 | E67: 14051 | F67: 15527.5 | G67: 16872 | H67: 17099 | I67: 17441 | J67: 17545 | K67: 17784
D68: Meter Type 5 | E68: 0 | F68: 0 | G68: 0 | H68: 0 | I68: 0 | J68: 0 | K68: 0
D69: Meter Type 6 | E69: 0 | F69: 0 | G69: 0 | H69: 0 | I69: 0 | J69: 0 | K69: 0
B70: Meter testing | D70: Meter Type 4 | E70: 134 | F70: 134 | G70: 134 | H70: 134 | I70: 134 | J70: 134 | K70: 134
D71: Meter Type 5 | E71: 0 | F71: 0 | G71: 0 | H71: 0 | I71: 0 | J71: 0 | K71: 0
D72: Meter Type 6 | E72: 119 | F72: 119 | G72: 119 | H72: 119 | I72: 119 | J72: 119 | K72: 119
B73: Meter investigation | D73: Meter Type 4 | E73: 2802 | F73: 2802 | G73: 2802 | H73: 2802 | I73: 2802 | J73: 2802 | K73: 2802
D74: Meter Type 5 | E74: 0 | F74: 0 | G74: 0 | H74: 0 | I74: 0 | J74: 0 | K74: 0
D75: Meter Type 6 | E75: 33 | F75: 33 | G75: 33 | H75: 33 | I75: 33 | J75: 33 | K75: 33
B76: Scheduled meter reading | D76: Meter Type 4 | E76: 0 | F76: 0 | G76: 0 | H76: 0 | I76: 0 | J76: 0 | K76: 0
D77: Meter Type 5 | E77: 89149 | F77: 89149 | G77: 89149 | H77: 89149 | I77: 89149 | J77: 89149 | K77: 89149
D78: Meter Type 6 | E78: 3101 | F78: 3101 | G78: 3101 | H78: 3101 | I78: 3101 | J78: 3101 | K78: 3101
B79: Special meter reading | D79: Meter Type 4 | E79: 9000 | F79: 9000 | G79: 9000 | H79: 9000 | I79: 9000 | J79: 9000 | K79: 9000
D80: Meter Type 5 | E80: 3904 | F80: 3904 | G80: 3904 | H80: 3904 | I80: 3904 | J80: 3904 | K80: 3904
D81: Meter Type 6 | E81: 20104 | F81: 20104 | G81: 20104 | H81: 20104 | I81: 20104 | J81: 20104 | K81: 20104
B82: New meter installation | D82: Meter Type 4 | E82: 0 | F82: 0 | G82: 0 | H82: 0 | I82: 0 | J82: 0 | K82: 0
D83: Meter Type 5 | E83: 0 | F83: 0 | G83: 0 | H83: 0 | I83: 0 | J83: 0 | K83: 0
D84: Meter Type 6 | E84: 0 | F84: 0 | G84: 0 | H84: 0 | I84: 0 | J84: 0 | K84: 0
B85: Meter replacement | D85: Meter Type 4 | E85: 4663.5 | F85: 4620 | G85: 5053 | H85: 5811.5 | I85: 6744 | J85: 7702.5 | K85: 8469.5
D86: Meter Type 5 | E86: 0 | F86: 0 | G86: 0 | H86: 0 | I86: 0 | J86: 0 | K86: 0
D87: Meter Type 6 | E87: 0 | F87: 0 | G87: 0 | H87: 0 | I87: 0 | J87: 0 | K87: 0
B88: Meter maintenance | D88: Meter Type 4 | E88: 123 | F88: 123 | G88: 123 | H88: 123 | I88: 123 | J88: 123 | K88: 123
D89: Meter Type 5 | E89: 0 | F89: 0 | G89: 0 | H89: 0 | I89: 0 | J89: 0 | K89: 0
D90: Meter Type 6 | E90: 0 | F90: 0 | G90: 0 | H90: 0 | I90: 0 | J90: 0 | K90: 0
B91: Remote meter reading | D91: Meter Type 4 | E91: 745855 | F91: 745855 | G91: 745855 | H91: 745855 | I91: 745855 | J91: 745855 | K91: 745855
B92: Remote meter re-configuration | D92: Meter Type 4 | E92: 10033 | F92: 10033 | G92: 10033 | H92: 10033 | I92: 10033 | J92: 10033 | K92: 10033

Sheet 4.3 Fee-based services
B1: =INDEX(dms_Worksheet_List,MATCH(dms_Model,dms_Model_List)) -> REGULATORY REPORTING STATEMENT
B2: =INDEX(dms_TradingNameFull_List,MATCH(dms_TradingName,dms_TradingName_List)) -> AusNet Electricity Services Pty Ltd
B3: =dms_Header_Span -> 2021-22 to 2025-26
B4: 4.3 ANCILLARY SERVICES - FEE BASED SERVICES
B6: There are TWO tables on this worksheet. The COLUMNS representing each table have been 'grouped' for easy navigation. See the Instructions sheet on how to group or ungroup data.
B8: 4.3.1 - COST METRICS FOR FEE-BASED SERVICES
B9: SERVICE SUBCATEGORY | C9: =CONCATENATE("EXPENDITURE ($0's, real ", dms_DollarReal, ")") -> EXPENDITURE ($0's, real June 2021) | J9: VOLUMES (0's)
C10: =CRCP_y4 -> 2019-20 | D10: =CRCP_y5 -> 2020-21 | E10: =FRCP_y1 -> 2021-22 | F10: =FRCP_y2 -> 2022-23 | G10: =FRCP_y3 -> 2023-24 | H10: =FRCP_y4 -> 2024-25 | I10: =FRCP_y5 -> 2025-26 | J10: =CRCP_y4 -> 2019-20 | K10: =CRCP_y5 -> 2020-21 | L10: =FRCP_y1 -> 2021-22 | M10: =FRCP_y2 -> 2022-23 | N10: =FRCP_y3 -> 2023-24 | O10: =FRCP_y4 -> 2024-25 | P10: =FRCP_y5 -> 2025-26
B11: COMMON FEE-BASED SERVICES
B12: Energisation | C12: 0 | D12: 0 | E12: 0 | F12: 0 | G12: 0 | H12: 0 | I12: 0 | J12: 0 | K12: 0 | L12: 0 | M12: 0 | N12: 0 | O12: 0 | P12: 0
B13: De-energisation | C13: 83140 | D13: 83140 | E13: 83140 | F13: 83140 | G13: 83140 | H13: 83140 | I13: 83140 | J13: 51600 | K13: 51600 | L13: 51600 | M13: 51600 | N13: 51600 | O13: 51600 | P13: 51600
B14: Re-energisation | C14: 167792 | D14: 167792 | E14: 167792 | F14: 167792 | G14: 167792 | H14: 167792 | I14: 167792 | J14: 114660 | K14: 114660 | L14: 114660 | M14: 114660 | N14: 114660 | O14: 114660 | P14: 114660
B15: MISCELLANEOUS FEE-BASED SERVICES
B16: Single Phase Overhead – Business Hours | C16: 33000 | D16: 26513.24837 | E16: 44306.67574 | F16: 44103.44703 | G16: 44755.2062 | H16: 45117.60899 | I16: 45675.63991 | J16: 76.04274016 | K16: 60.58362072 | L16: 91.86723438 | M16: 91.44585184 | N16: 92.79723539 | O16: 93.54865583 | P16: 94.70569946
B17: Single Phase Overhead – After Hours | C17: 1000 | D17: 803.4290881 | E17: 2945.747512 | F17: 2932.235768 | G17: 2975.568244 | H17: 2999.662742 | I17: 3036.763656 | J17: 1.91087075 | K17: 1.522400015 | L17: 2.308522953 | M17: 2.297934072 | N17: 2.33189286 | O17: 2.350775232 | P17: 2.379850471
B18: Single Phase underground – Business Hours | C18: 2586934.864 | D18: 2078426.634 | E18: 1453389.803 | F18: 1446723.301 | G18: 1468102.927 | H18: 1479990.808 | I18: 1498295.87 | J18: 11477.68513 | K18: 9144.327534 | L18: 6933.095702 | M18: 6901.294533 | N18: 7003.281618 | O18: 7059.990301 | P18: 7147.310816
B19: Single Phase underground with a directly connected meter on group metering panel - Business Hours | C19: 0 | D19: 0 | E19: 3195732.581 | F19: 3181074.19 | G19: 3228083.991 | H19: 3254223.221 | I19: 3294472.631 | J19: 0 | K19: 0 | L19: 6933.095702 | M19: 6901.294533 | N19: 7003.281618 | O19: 7059.990301 | P19: 7147.310816
B20: Single Phase underground – After Hours | C20: 20000 | D20: 16068.43057 | E20: 106945.197 | F20: 106454.6539 | G20: 108027.837 | H20: 108902.5864 | I20: 110249.533 | J20: 69.37405465 | K20: 55.27064656 | L20: 83.81079542 | M20: 83.42636667 | N20: 84.65923855 | O20: 85.34476202 | P20: 86.40033692
B21: Multi-phase overhead with a directly connected meter – Business Hours | C21: 9500 | D21: 7632.580042 | E21: 13679.00542 | F21: 13616.26168 | G21: 13817.48231 | H21: 13929.3686 | I21: 14101.65207 | J21: 20.4825662 | K21: 16.31856005 | L21: 24.74498822 | M21: 24.63148632 | N21: 24.99548955 | O21: 25.19788913 | P21: 25.50954575
